Workbook

Sheet Welcome

Sheet Instructions
B2: Instructions
B4: The main sheets of the tool are detailed, and how to use each of them depending on the user's needs
B6: Main sheets
B8: 1. Data_EVD: This is the database of electric cars, which enables the user to calculation of the annual electricity consumption of different car models. For our case study the average consumption of all the models included in the database were used for calculating the total demand of each scenario. However, the user can add and edit the models, enabling them to update this database and use new models for their calculations as technologies evolve. For more information on how to work with the database, click on the 'help' button.
B15: 2. Data_Bus: This is the database for electric buses. Data about the electricity consumption, passengers capacity, etc. is provided. The models can be edited and you can add new models if need be. For our case study, two different models of buses are used: a bus with smaller capacity (thought to be used within the city centre) , and another with higher capacity (used in the rest of the city) For more information on how to work with the database, click on the 'Help' button.
B22: 3. Solar_Power: In this sheet, you can change the input data required to calculate the energy output of the PV panels, such as the longitude and latitude or the solar irradiation profile. Currently, this sheet is developed for the city of Glasgow, in case you need to change the location or update the irradation or PV panel information, go to 'Glasgow Solar Spreadsheet' (or clik the button below) and edit the information. Once in the sheet click on the 'Help' button to find out more information on how to make changes.
B29: 4. Wind power: Similarly, in this sheet you can change the input data required to calculate the energy output of the wind turbines, such as the the wind profile, surface roughness, or wind speed reference height. Currently, this sheet is developed for the city of Glasgow, in case you need to change the location or update the wind profile or the turbine information, go to 'Wind data' sheet (or click the button below) and edit the information. Once in the sheet click on the 'Help' button to find out more information on how to make changes.
B36: 5. Results_EVD: Here, the results for the contribution of wind and PV are provided. To obtain them you need to follow the next steps: First, it is necessary to define the model of car and buses you want to use for your scenarios. Secondly, you have to define the scenarios (that is the expected number of cars and buses for each scenario) you want to use for studying the contribution RE deployment in cities can make. Then, you need to select one scenario at a time to study the contribution. And finally, once you have studied the land availability for solar and/or wind, you should input it in the forth and fifth modules to get the contribution of each technology. These steps are more detailed in the instructions module in the 'Results_EVD' sheet.

Sheet Data_EVD
B2: Private Electric Vehicles Database
E3: Source: https://ev-database.uk/ | U3: =COUNTA(D8:D223) -> 25
B6: EV model | C6: Consumption cold weather (kWh/mi) | D6: Consumption mild weather (kWh/mi) | E6: Annual Consumption (kWh) | H6: ASSUMPTIONS MADE FOR PRIVATE Evs
B7: Average | C7: =AVERAGE(C8:C508) -> 0.3466000001 | D7: =AVERAGE(D8:D508) -> 0.2546 | E7: =AVERAGE(E8:E508) -> 1011.61053
B8: Audi e-tron 55 quattro | C8: 0.415 | D8: 0.32 | E8: =((C8*EV_Distance*ColdDays)+(D8*EV_Distance*MildDays))+ChargingLosses*((C8*EV_Distance*ColdDays)+(D8*EV_Distance*MildDays)) -> 1232.111088 | H8: Assumption | I8: Value | J8: Unit
B9: Hyundai Kona Electric 64 kWh | C9: 0.3100000024 | D9: 0.2199999988 | E9: 894.1667906 | H9: Cold conditions | I9: 212 | J9: days | K9: Source: choice
B10: jaguar I-Pace | C10: 0.42 | D10: 0.315 | E10: 1234.765336 | H10: Mild weather | I10: 153 | J10: days
B11: BMW i3 120 Ah | C11: 0.315 | D11: 0.22 | E11: 903.7040869 | H11: Trip duration per day (average) in Glasgow | I11: 20 | J11: min | K11: Source: (Transport Scotland, 2018)
B12: Nissan Leaf | C12: 0.315 | D12: 0.23 | E12: 917.4701886 | H12: Average driving speed in Glasgow in 2006 | I12: 36.2 | J12: km/h | K12: Source: (Scottish Household Surveys, 2006)
B13: Volkswagen e-Golf | C13: 0.32 | D13: 0.235 | E13: 933.8905386 | I13: =I12*0.621371/60 -> 0.3748938367 | J13: mi/min
B14: Hyundai IONIQ Electric | C14: 0.28 | D14: 0.2 | E14: 809.4107891 | H14: Total distance per day | I14: =I13*I11 -> 7.497876733 | J14: mi
B15: Hyundai Kone Electric 39 kWh | C15: 0.3 | D15: 0.215 | E15: 868.2091385 | H15: Charging losses | I15: 0.2 | K15: Source: (Hayes et al, 2011)
B16: Renault Zoe R110 ZE40 | C16: 0.3 | D16: 0.22 | E16: 875.0921893 | H16: Indication of real-world energy use in several situations. Cold weather: 'worst-case' based on -10°C and use of heating. Mild weather: 'best-case' based on 23°C and no use of A/C. The energy use will depend on speed, style of driving, climate and route conditions.
B17: Volkswagen e-Up! | C17: 0.32 | D17: 0.225 | E17: 920.124437
B18: Nissan e-NV200 Combi | C18: 0.38 | D18: 0.29 | E18: 1124.051688
B19: Citroen C-Zero | C19: 0.33 | D19: 0.23 | E19: 946.0820862
B20: Peugeot iOn | C20: 0.33 | D20: 0.25 | E20: 973.6142896
B21: Smart EQ fortwo coupe | C21: 0.3 | D21: 0.22 | E21: 875.0921893
B22: Smart EQ forfour | C22: 0.37 | D22: 0.255 | E22: 1056.795734
B23: Renault Kangoo Crew Van ZE33 | C23: 0.36 | D23: 0.265 | E23: 1051.487237
B24: Smart EQ fortwo cabrio | C24: 0.33 | D24: 0.255 | E24: 980.4973404
B25: BMW i3s 120 Ah | C25: 0.315 | D25: 0.225 | E25: 910.5871378
B26: Kia Soul EV | C26: 0.33 | D26: 0.24 | E26: 959.8481879
B27: Tesla Model X Ludicrous Performance | C27: 0.41 | D27: 0.31 | E27: 1208.807687
B28: Tesla Model X Long Range | C28: 0.4 | D28: 0.3 | E28: 1175.966987
B29: Tesla Model S Ludicrous Performance | C29: 0.37 | D29: 0.275 | E29: 1084.327937
B30: Tesla Model S Long Range | C30: 0.365 | D30: 0.265 | E30: 1061.024537
B31: Tesla Model X Performance | C31: 0.41 | D31: 0.31 | E31: 1208.807687
B32: Tesla Model S Performance | C32: 0.37 | D32: 0.275 | E32: =((C32*EV_Distance*ColdDays)+(D32*EV_Distance*MildDays))+ChargingLosses*((C32*EV_Distance*ColdDays)+(D32*EV_Distance*MildDays)) -> 1084.327937

Sheet Engine (hidden)
B2: EV s | C2: BUSES
B3: =COUNTA(Data_EVD!D7:D100001) -> 26 | C3: =COUNTA(Data_Buses!C7:C100007) -> 10 | D3: Total entries in database - maximum 10000 | H3: =TRANSPOSE(Results_EVD!R18:W18) -> 
B4: EDIT | C4: EDIT | D4: Mode
B5: 2 | C5: 9 | D5: Row Store for chosen scenarios | E5: 3
B6: =COUNTA(Results_EVD!R18:W18) -> 4 | D6: Row store for chosen wind turbines | E6: 1
K7: SCENARIOS DEFINITION
E8: Model | F8: kWh/m2 | G8: Turbine Spacing | H8: kWh/turbine | K8: EDIT | L8: =Def_Start -> SCENARIO 2024 | M8: =COUNTA(Results_EVD!R18:W18) -> 4
B9: =Scenario_Start -> SCENARIO 2024 | E9: ='Wind power'!B4 -> 1kW turbine | F9: ='Wind power'!C22 -> 1.29466048 | G9: ='Turbine information'!B40 -> 19.6 | H9: ='Wind power'!C18 -> 1165.194432 | K9: =COUNTA(Results_EVD!R18:W18) -> 4 | L9: =Results_EVD!S18 -> SCENARIO 2030
B10: =Results_EVD!S18 -> SCENARIO 2030 | E10: ='Wind power'!F4 -> 5kW turbine | F10: ='Wind power'!G22 -> 0 | G10: ='Turbine information'!E40 -> 31.5 | H10: ='Wind power'!G18 -> 7602.222357 | K10: 3 | L10: =Results_EVD!T18 -> SCENARIO 2050
B11: =Results_EVD!T18 -> SCENARIO 2050 | E11: ='Wind power'!J4 -> 10kW turbine | F11: ='Wind power'!K22 -> 0 | G11: ='Turbine information'!H40 -> 49 | H11: ='Wind power'!K18 -> 8626.735691 | L11: =Results_EVD!U18 -> Eibar city
B12: =IF(Results_EVD!U18 = " ", "", Results_EVD!U18 ) -> Eibar city | E12: ='Wind power'!N4 -> 50kW turbine | F12: ='Wind power'!O22 -> 94.06896635 | G12: ='Turbine information'!K40 -> 134.4 | H12: ='Wind power'!O18 -> 84662.06972 | L12: =Results_EVD!V18 -> 0
B13: =IF(Results_EVD!V18 = " ", "", Results_EVD!V18 ) -> 0 | L13: =Results_EVD!W18 -> 0
B14: =IF(Results_EVD!W18 = " ", "", Results_EVD!W18 ) -> 0
E16: ELECTRICITY DEMAND OF GLASGOW
E17: Electricity demand of Glasgow | F17: 2368
E18: 2050 Scenario | F18: =Results_EVD!T23 -> 361.0697981
E19: Percentage | F19: =F18/F17 -> 0.1524787999

Sheet Data_Buses
B2: Electric Bus Prototypes Database
F3: Source: http://zeeus.eu/uploads/publications/documents/zeeus-ebus-report-internet.pdf
B6: Electric Bus Model | C6: Consumption (kWh/km) | D6: Passenger capacity | E6: Speed (km/h) | F6: Charging time (h) | G6: Length (m) | H6: Annual Consumption | J6: ASSUMPTIONS FOR ANNUAL BUS CONSUMPTION | M6: Source: https://www.euractiv.com/wp-content/uploads/sites/2/2018/11/2018_11_electric_bus_paper_final.pdf
B7: Sileo S10 | C7: 0.8500000238 | D7: 78 | E7: 75 | F7: 2/5 h | G7: 10.69999981 | H7: 89250.0025 | J7: Daily distance (km) | L7: 250
B8: Ebusco 2.1 HV | C8: 0.8500000238 | D8: 90 | E8: 80 | F8: 4.5/3 h | G8: 12 | H8: 89250.0025 | J8: Days working per year | L8: 350
B9: Evopro Modulo C68e | C9: 0.6200000048 | D9: 55 | E9: 65 | F9: 5 | G9: 7.981999874 | H9: 65100.0005
B10: CRRC C12 | C10: 1 | D10: 86 | E10: 70 | F10: 2 | G10: 11.94999981 | H10: 105000
B11: Irizar i2e (12m) | C11: 1.5 | D11: 80 | E11: 85 | F11: 0,86 | G11: 12 | H11: 157500
B12: Optare Solo EV | C12: 0.5099999905 | D12: 55 | E12: 80 | F12: 2,5 | G12: 9.2-9.9 | H12: 53549.999 | J12: INFO ABOUT BUSES IN GLASGOW
B13: Optare Metrocity EV | C13: 0.6700000167 | D13: 58 | E13: 80 | F13: 2,5 | G13: 10,8 | H13: 70350.00175 | J13: BUS COMPANY | K13: #Buses
B14: Solaris Urbino 8.9 LE Electric | C14: 0.8000000119 | D14: 65 | E14: 80 | F14: * Plug-in: 1.33 kWh/min; Pantograph: 7.5 kWh/min; induction: 3.33 kWh/min | G14: 8,95 | H14: 84000.00125 | J14: First Glasgow | K14: 838
B15: Solaris Urbino 12 | C15: 0.8999999762 | D15: 90 | E15: 80 | F15: * Plug-in: 1.33 kWh/min; Pantograph: 7.5 kWh/min; induction: 3.33 kWh/min | G15: 12 | H15: 94499.9975 | J15: Glasgow City Bus | K15: 48
B16: Volvo 7900 Electric | C16: 0.6999999881 | D16: 71 | E16: 70 | F16: 3-6 min | G16: 12 | H16: 73499.99875 | J16: McGuills | K16: 70
J17: Glasgow city sightseen | K17: 15
J18: total amount of buses | K18: =SUM(K14:K17) -> 971
K20: Percentage split | L20: # Buses
J21: Glasgow city centre | K21: 0.4 | L21: =K21*K18 -> 388.4 | M21: source: choice
J22: Glasgow surroundings | K22: =100%-K21 -> 0.6 | L22: =K22*K18 -> 582.6

Sheet Results_EVD
B3: Note that the 'Results_EVD' sheet is divided in two main modules. The firts one is used to define the vehicles and number of vehicles for the scenarios to be analysed. While the second module allows the user to choose and scenario and calculate the energy output of solar pv panels and/or wind turbines deployed in a given amount or urban land | R3: 1. INPUT THE EV PROTOTYPES | AH3: 3. CHOOSE SCENARIO | AM3: 4. URBAN SOLAR PVs CONTRIBUTION | AR3: 5. URBAN WIND TURBINES CONTRIBUTION
S4: Select the EV prototype | U4: Annual Energy Consumption (KWh)
B5: Follow the next steps to analyse the contribution of RE for a defined scenario: | AJ5: INPUT INFORMATION | AN5: Available land | AO5: 20000 | AP5: m2 | AS5: Available land | AT5: 900 | AU5: m2
R6: Private EV Prototype | T6: Average | U6: 1011.61053 | AI6: Chosen scenario | AJ6: Eibar city | AN6: Number of PV panels | AO6: 5046 | AP6: - | AS6: Number of turbines | AT6: 1 | AU6: -
B7: 1. Click on the 'Choose model' button to select the models of car and bus to be used in the scenarios | AI7: Chosen wind turbine model | AJ7: 5kW turbine | AN7: Annual energy density | AO7: 81.52545166 | AP7: kWh/m2 | AS7: Annual energy density | AT7: 0 | AU7: kWh/m2
R8: Smaller Capacity Bus | T8: Optare Metrocity EV | U8: 70350.00175 | AI8: Estimated demand | AJ8: 41.56983185 | AN8: Total annual output | AO8: 1.630509019 | AP8: GWh | AS8: Total annual output | AT8: 0.007602222264 | AU8: GWh
AJ9: REQUIRED LAND (m2) | AN9: Contribution | AO9: 0.03922337294 | AP9: % | AS9: Contribution | AT9: 0.00110363774 | AU9: %
B10: 2. Define the scenarios you want to use to calculate the demand b clicking the 'Define new scenario'. Then, you will be asked to introduce the number of cars and buses that compose your scenario. There are two types of buses since it is considered that cities may have a high passenger capacity model and small capacity model. If that is not the case, input zero for the small capacity model or viceversa. Also note that the demand of personal modes of transport is calculated as the percentage of bikes compared to number of cars. You can also edit already-defined scenario by clicking 'Edit a scenario' | R10: Biger Capacity Bus | T10: Irizar i2e (12m) | U10: 157500 | AI10: For deployment of PV panels | AJ10: 509900.0312
AI11: For deployment of wind turbines | AJ11: 5517310
Q16: 2. ELECTRICITY DEMAND RESULTS FOR THE EVS SCENARIOS
B17: 3. In this module you need to choose the scenario you want to study the contribution that can be made with RE resources. To do so, click on 'Choose scenario' , and thus you will be asked to select a scenario from those defined in the previous step, as well as the type of wind turbine model that is going to be used in your analysis. Once you have selected this, the amount of theoretically required land will be calculated, so you can picture the amount of land that will be required to meet the demand generated by the scenario under study. Note that the next step will consist on idetifying the actual amount of available land that could be used to deploy RE resoruces. In the case of Glasgow, this was obtained through GIS. | Q17: No. Scenarios | R17: 1 | S17: 2 | T17: 3 | U17: 4 | V17: 5 | W17: 6
Q18: Name of the scenario | R18: SCENARIO 2024 | S18: SCENARIO 2030 | T18: SCENARIO 2050 | U18: Eibar city
Q19: No. Buses (smaller capacity) | R19: 0 | S19: 388.4 | T19: 388.4 | U19: 10
Q20: No. Buses (higher capcity) | R20: 0 | S20: 97.1 | T20: 582.6 | U20: 20
Q21: No. Cars | R21: 25000 | S21: 25000 | T21: 217462.74 | U21: 2500
B22: 4. After having identified the land available, press on the 'Calculate PV output' button, if you want to calculate the amount of energy that woul be generated in a year if PV panels are deployed in these urban areas. | Q22: Individual modes of transport (%) | R22: 0 | S22: 0 | T22: 10 | U22: 20
Q23: Energy estimation (GWh) | R23: =(((R$21*$U$6)+(R$19*$U$8)+(R$20*$U$10)+(R22/100*(R$21*$U$6)))/1000000) -> 25.29026325 | S23: =(((S$21*$U$6)+(S$19*$U$8)+(S$20*$U$10)+(S22/100*(S$21*$U$6)))/1000000) -> 67.90745393 | T23: 361.0697981 | U23: 6.888331607 | V23: 0 | W23: 0
B24: 5. If you want to calculate the amoun of energy generated by wind turbines in the identified urban land, then click on the button 'Calculate wind output'

Sheet Glasgow Solar Spreadsheet
B5: Location Data | H5: Panel Data | T5: Energy Density (kWh/m^2)
B6: City | D6: Latitude | E6: Longitude | H6: No. panels: | J6: 1 | K6: Distance Between Panels (m) | T6: =Solar_Power!H17 -> 81.52545447
B7: Glasgow | C7: (RADIANS) | D7: 55.84 | E7: -4.213 | H7: β: | J7: 0.004 | K7: 1
B8: Reference longitude | D8: 0 | H8: PSTC (W) | J8: 345
B9: Ground reflectance | D9: 0.2 | H9: Panel Height (m) | J9: 0.992 | K9: Panel Width (m) | W9: Annual energy output (kWh) | Z9: =(SUM(Y17:Y8776))/1000 -> 324.637156
B10: Surface azimuth | D10: 0 | H10: Panel inclination to the vertical () | J10: =90-J11 -> 80 | K10: 1.96
H11: Panel inclination to the horizontal () | J11: 10 | W11: Capacity coefficient | Z11: =(Z9*1000)/(J8*24*365*J6) -> 0.1074174959
A13: Date | B13: Time | C13: Ambient temperature | D13: Direct normal solar | E13: Direct horizontal | F13: Diffuse horizontal solar | G13: Panel Lenght in Shadow | J13: Declination | K13: Equation of time | L13: Local | M13: Hour | N13: Solar | O13: Solar | P13: Perpindicular | Q13: Surface Azimuth | R13: Solar | S13: Surface | T13: Solar | U13: Direct | V13: Diffuse | W13: Ground | X13: Total solar | Y13: Panel | Z13: Panel
L14: solar | M14: angle | N14: elevation | O14: Zenith | R14: azimuth | S14: Solar | T14: incidence | U14: solar | V14: solar | W14: reflected | X14: on panel | Y14: power | Z14: Output
L15: time | R15: as | S15: azimuth | T15: angle | U15: on panel | V15: on panel | W15: on panel | Y15: output | Z15: with Shading
A16: (Year Day) | B16: (Hour) | C16: (degC) | D16: (W/m^2) | E16: (W/m^2) | F16: (W/m^2) | G16: (m) | H16: Panel In Shadow | I16: Shadow Length (m) | J16: (deg) | K16: E | L16: (hour) | M16: (deg) | N16: (deg) | O16: (deg) | R16: (deg) | S16: (deg) | T16: (deg) | U16: (W/m^2) | V16: (W/m^2) | W16: (W/m^2) | X16: (W/m^2) | Y16: (W) | Z16: (W)
A17: 1 | B17: 1 | C17: 1.8 | D17: 0 | E17: =D17*SIN(RADIANS(N17)) -> 0 | F17: 0 | G17: =MAX(0,(SIN(RADIANS(N17)))*(MAX(0,I17-$K$7))/(SIN(RADIANS(180-$J$11-N17)))) -> 0 | H17: =MAX(0,G17/$J$9) -> 0 | I17: =MAX(0,Shadows!$C$2/(TAN(RADIANS('Glasgow Solar Spreadsheet '!N17)))) -> 0 | J17: =23.45*SIN(RADIANS(280.1+0.9863*A17)) -> -23.01239181 | K17: =9.87* SIN(RADIANS(1.978*A17 - 160.22)) - 7.53*COS(RADIANS(0.989*A17 - 80.11)) - 1.5*SIN(RADIANS(0.989*A17 - 80.11)) -> -3.606818438 | L17: =($E$7/15)+(K17/60)+B17 -> 0.6590196927 | M17: =15*(12-L17) -> 170.1147046 | N17: =DEGREES(ASIN((COS(RADIANS($D$7))*COS(RADIANS(J17))*COS(RADIANS(M17))) + (SIN(RADIANS($D$7))*SIN(RADIANS(J17))))) -> -56.37011168 | O17: =DEGREES(ACOS((SIN(RADIANS($D$7)))*(SIN(RADIANS(J17)))+(COS(RADIANS($D$7)))*(COS(RADIANS(J17)))*(COS(RADIANS(M17))))) -> 146.3701117 | P17: =N17+O17 -> 90 | Q17: =$D$10 -> 0 | R17: =DEGREES(ASIN(((COS(RADIANS(J17))*SIN(RADIANS(M17))) /COS(RADIANS(N17))))) -> 16.57762186 | S17: =ABS(R17-Q17) -> 16.57762186 | T17: =DEGREES(ACOS(SIN(RADIANS( N17))*COS(RADIANS(90-$J$10)) + COS(RADIANS( N17 ))*COS(RADIANS(S17 ))*SIN(RADIANS(90-$J$10)))) -> 136.7030658 | U17: =MAX(0,(D17*COS(RADIANS(T17)))) -> 0 | V17: =IFERROR(F17*(0.5*(1+COS(RADIANS(90-$J$10))))*(1+(1-((F17^2)/((E17+F17)^2)))*((SIN(RADIANS(0.5*$J$10)))^3))*(1+(1-((F17^2)/((E17+F17)^2)))*((COS(RADIANS(T17)))^2)*((SIN(RADIANS(90-N17)))^3)),0) -> 0 | W17: =0.5*(1-COS(RADIANS(90-$J$10)))* (E17 + F17)*0.2 -> 0 | X17: =U17+V17+W17 -> 0 | Y17: =$J$8*(X17/1000)*(1-$J$7*(C17-25))*0.9 -> 0 | Z17: =Y17*(1-H17) -> 0
A18: =IF(B18>1,A17,A17+1) -> 1 | B18: =IF(B17<24,B17+1,1) -> 2 | C18: 1.7 | D18: 0 | E18: 0 | F18: 0 | G18: 0 | H18: 0 | I18: =MAX(0,Shadows!$C$2/(TAN(RADIANS('Glasgow Solar Spreadsheet '!N18)))) -> 0 | J18: -23.01239181 | K18: -3.606818438 | L18: 1.659019693 | M18: 155.1147046 | N18: -52.40281988 | O18: 142.4028199 | P18: 90 | Q18: 0 | R18: 39.40761352 | S18: 39.40761352 | T18: 134.300789 | U18: 0 | V18: 0 | W18: 0 | X18: 0 | Y18: 0 | Z18: 0
A19: 1 | B19: 3 | C19: 1.7 | D19: 0 | E19: 0 | F19: 0 | G19: 0 | H19: 0 | I19: =MAX(0,Shadows!$C$2/(TAN(RADIANS('Glasgow Solar Spreadsheet '!N19)))) -> 0 | J19: -23.01239181 | K19: -3.606818438 | L19: 2.659019693 | M19: 140.1147046 | N19: -46.05914726 | O19: 136.0591473 | P19: 90 | Q19: 0 | R19: 58.27346937 | S19: 58.27346937 | T19: 130.2220773 | U19: 0 | V19: 0 | W19: 0 | X19: 0 | Y19: 0 | Z19: 0
A20: 1 | B20: 4 | C20: 1.9 | D20: 0 | E20: 0 | F20: 0 | G20: 0 | H20: 0 | I20: =MAX(0,Shadows!$C$2/(TAN(RADIANS('Glasgow Solar Spreadsheet '!N20)))) -> 0 | J20: -23.01239181 | K20: -3.606818438 | L20: 3.659019693 | M20: 125.1147046 | N20: -38.37221177 | O20: 128.3722118 | P20: 90 | Q20: 0 | R20: 73.81066321 | S20: 73.81066321 | T20: 124.9862235 | U20: 0 | V20: 0 | W20: 0 | X20: 0 | Y20: 0 | Z20: 0
A21: 1 | B21: 5 | C21: 2.2 | D21: 0 | E21: 0 | F21: 0 | G21: 0 | H21: 0 | I21: =MAX(0,Shadows!$C$2/(TAN(RADIANS('Glasgow Solar Spreadsheet '!N21)))) -> 0 | J21: -23.01239181 | K21: -3.606818438 | L21: 4.659019693 | M21: 110.1147046 | N21: -30.0807034 | O21: 120.0807034 | P21: 90 | Q21: 0 | R21: 87.19056557 | S21: 87.19056557 | T21: 119.0937291 | U21: 0 | V21: 0 | W21: 0 | X21: 0 | Y21: 0 | Z21: 0
A22: 1 | B22: 6 | C22: 2.4 | D22: 0 | E22: 0 | F22: 0 | G22: 0 | H22: 0 | I22: =MAX(0,Shadows!$C$2/(TAN(RADIANS('Glasgow Solar Spreadsheet '!N22)))) -> 0 | J22: -23.01239181 | K22: -3.606818438 | L22: 5.659019693 | M22: 95.11470461 | N22: -21.68840305 | O22: 111.688403 | P22: 90 | Q22: 0 | R22: 80.60954443 | S22: 80.60954443 | T22: 109.7317729 | U22: 0 | V22: 0 | W22: 0 | X22: 0 | Y22: 0 | Z22: 0
A23: 1 | B23: 7 | C23: 2.4 | D23: 0 | E23: 0 | F23: 0 | G23: 0 | H23: 0 | I23: =MAX(0,Shadows!$C$2/(TAN(RADIANS('Glasgow Solar Spreadsheet '!N23)))) -> 0 | J23: -23.01239181 | K23: -3.606818438 | L23: 6.659019693 | M23: 80.11470461 | N23: -13.57736612 | O23: 103.5773661 | P23: 90 | Q23: 0 | R23: 68.87941009 | S23: 68.87941009 | T23: 99.80928863 | U23: 0 | V23: 0 | W23: 0 | X23: 0 | Y23: 0 | Z23: 0
A24: 1 | B24: 8 | C24: 2.3 | D24: 0 | E24: 0 | F24: 0 | G24: 0 | H24: 0 | I24: =MAX(0,Shadows!$C$2/(TAN(RADIANS('Glasgow Solar Spreadsheet '!N24)))) -> 0 | J24: -23.01239181 | K24: -3.606818438 | L24: 7.659019693 | M24: 65.11470461 | N24: -6.085020725 | O24: 96.08502072 | P24: 90 | Q24: 0 | R24: 57.10763747 | S24: 57.10763747 | T24: 90.60867468 | U24: 0 | V24: 0 | W24: 0 | X24: 0 | Y24: 0 | Z24: 0 | AA24: Jan | AB24: =(SUM($Y$17:$Y$760))/1000 -> 5.408697121
A25: 1 | B25: 9 | C25: 2.1 | D25: 0 | E25: 0 | F25: 0 | G25: 0.9056126339 | H25: 0.9129159616 | I25: =MAX(0,Shadows!$C$2/(TAN(RADIANS('Glasgow Solar Spreadsheet '!N25)))) -> 21.72446729 | J25: -23.01239181 | K25: -3.606818438 | L25: 8.659019693 | M25: 50.11470461 | N25: 0.4543037245 | O25: 89.54569628 | P25: 90 | Q25: 0 | R25: 44.93370195 | S25: 44.93370195 | T25: 82.48796222 | U25: 0 | V25: 0 | W25: 0 | X25: 0 | Y25: 0 | Z25: 0 | AA25: Feb | AB25: =(SUM($Y$761:$Y$1432))/1000 -> 11.26941
A26: 1 | B26: 10 | C26: 2.3 | D26: 0 | E26: 0 | F26: 17 | G26: 0.2666003906 | H26: 0.2687503938 | I26: =MAX(0,Shadows!$C$2/(TAN(RADIANS('Glasgow Solar Spreadsheet '!N26)))) -> 1.726565212 | J26: -23.01239181 | K26: -3.606818438 | L26: 9.659019693 | M26: 35.11470461 | N26: 5.69753152 | O26: 84.30246848 | P26: 90 | Q26: 0 | R26: 32.14530599 | S26: 32.14530599 | T26: 75.87309226 | U26: 0 | V26: 16.8708659 | W26: 0.02582681988 | X26: 16.89669272 | Y26: 5.722798306 | Z26: 4.184794008 | AA26: Mar | AB26: =(SUM($Y$1433:$Y$2176))/1000 -> 22.67324073
A27: 1 | B27: 11 | C27: 2.5 | D27: 34 | E27: 5.501685659 | F27: 58 | G27: 0.02471774712 | H27: 0.02491708379 | I27: =MAX(0,Shadows!$C$2/(TAN(RADIANS('Glasgow Solar Spreadsheet '!N27)))) -> 1.050518076 | J27: -23.01239181 | K27: -3.606818438 | L27: 10.65901969 | M27: 20.11470461 | N27: 9.312219468 | O27: 80.68778053 | P27: 90 | Q27: 0 | R27: 18.70891801 | S27: 18.70891801 | T27: 71.23658996 | U27: 10.93647689 | V27: 61.08402582 | W27: 0.09647332927 | X27: 72.11697603 | Y27: 24.40762995 | Z27: 23.79946299 | AA27: Apr | AB27: =(SUM($Y$2177:$Y$2896))/1000 -> 39.64692396
A28: 1 | B28: 12 | C28: 2.7 | D28: 270 | E28: 51.64543949 | F28: 59 | G28: 0 | H28: 0 | I28: =MAX(0,Shadows!$C$2/(TAN(RADIANS('Glasgow Solar Spreadsheet '!N28)))) -> 0.8839338332 | J28: -23.01239181 | K28: -3.606818438 | L28: 11.65901969 | M28: 5.11470461 | N28: 11.02745826 | O28: 78.97254174 | P28: 90 | Q28: 0 | R28: 4.795466903 | S28: 4.795466903 | T28: 69.00916077 | U28: 96.7190433 | V28: 75.73177069 | W28: 0.1680952845 | X28: 172.6189093 | Y28: 58.37912821 | Z28: 58.37912821 | AA28: May | AB28: =(SUM($Y$2897:$Y$3640))/1000 -> 53.25393896
A29: 1 | B29: 13 | C29: 2.9 | D29: 238 | E29: 44.1880902 | F29: 74 | G29: 0 | H29: 0 | I29: =MAX(0,Shadows!$C$2/(TAN(RADIANS('Glasgow Solar Spreadsheet '!N29)))) -> 0.9116670132 | J29: -23.01239181 | K29: -3.606818438 | L29: 12.65901969 | M29: -9.88529539 | N29: 10.69986176 | O29: 79.30013824 | P29: 90 | Q29: 0 | R29: -9.253932039 | S29: 9.253932039 | T29: 69.43609353 | U29: 83.59795389 | V29: 91.36587924 | W29: 0.1795542657 | X29: 175.1433874 | Y29: 59.18939251 | Z29: 59.18939251 | AA29: Jun | AB29: =(SUM($Y$3641:$Y$4360))/1000 -> 51.93120319
A30: 1 | B30: 14 | C30: 3 | D30: 189 | E30: 27.47142689 | F30: 68 | G30: 0.07962650071 | H30: 0.08026864991 | I30: =MAX(0,Shadows!$C$2/(TAN(RADIANS('Glasgow Solar Spreadsheet '!N30)))) -> 1.172534561 | J30: -23.01239181 | K30: -3.606818438 | L30: 13.65901969 | M30: -24.88529539 | N30: 8.357632275 | O30: 81.64236773 | P30: 90 | Q30: 0 | R30: -23.04618836 | S30: 23.04618836 | T30: 72.46817216 | U30: 56.93351772 | V30: 79.61808911 | W30: 0.1450425498 | X30: 136.6966494 | Y30: 46.17940888 | Z30: 42.47265008 | AA30: Jul | AB30: =(SUM($Y$4361:$Y$5104))/1000 -> 46.55674898
A31: 1 | B31: 15 | C31: 3.2 | D31: 137 | E31: 10.01309934 | F31: 39 | G31: 0.4026320911 | H31: 0.4058791241 | I31: =MAX(0,Shadows!$C$2/(TAN(RADIANS('Glasgow Solar Spreadsheet '!N31)))) -> 2.350557372 | J31: -23.01239181 | K31: -3.606818438 | L31: 14.65901969 | M31: -39.88529539 | N31: 4.191389387 | O31: 85.80861061 | P31: 90 | Q31: 0 | R31: -36.28518983 | S31: 36.28518983 | T31: 77.78514981 | U31: 28.98620252 | V31: 43.16661738 | W31: 0.07446191108 | X31: 72.22728181 | Y31: 24.38216799 | Z31: 14.485955 | AA31: Aug | AB31: =(SUM($Y$5105:$Y$5848))/1000 -> 42.51644534
A32: 1 | B32: 16 | C32: 3 | D32: 0 | E32: 0 | F32: 12 | G32: 0 | H32: 0 | I32: =MAX(0,Shadows!$C$2/(TAN(RADIANS('Glasgow Solar Spreadsheet '!N32)))) -> 0 | J32: -23.01239181 | K32: -3.606818438 | L32: 15.65901969 | M32: -54.88529539 | N32: -1.501354882 | O32: 91.50135488 | P32: 90 | Q32: 0 | R32: -48.86523076 | S32: 48.86523076 | T32: 84.92902877 | U32: 0 | V32: 11.90884652 | W32: 0.01823069639 | X32: 11.92707721 | Y32: 4.029252933 | Z32: 4.029252933 | AA32: Sep | AB32: =(SUM($Y$5844:$Y$6568))/1000 -> 25.0009586
A33: 1 | B33: 17 | C33: 2.9 | D33: 0 | E33: 0 | F33: 0 | G33: 0 | H33: 0 | I33: =MAX(0,Shadows!$C$2/(TAN(RADIANS('Glasgow Solar Spreadsheet '!N33)))) -> 0 | J33: -23.01239181 | K33: -3.606818438 | L33: 16.65901969 | M33: -69.88529539 | N33: -8.380647069 | O33: 98.38064707 | P33: 90 | Q33: 0 | R33: -60.88077137 | S33: 60.88077137 | T33: 93.43607014 | U33: 0 | V33: 0 | W33: 0 | X33: 0 | Y33: 0 | Z33: 0 | AA33: Oct | AB33: =(SUM($Y$6569:$Y$7312))/1000 -> 14.88959697
A34: 1 | B34: 18 | C34: 2.7 | D34: 0 | E34: 0 | F34: 0 | G34: 0 | H34: 0 | I34: =MAX(0,Shadows!$C$2/(TAN(RADIANS('Glasgow Solar Spreadsheet '!N34)))) -> 0 | J34: -23.01239181 | K34: -3.606818438 | L34: 17.65901969 | M34: -84.88529539 | N34: -16.10565729 | O34: 106.1056573 | P34: 90 | Q34: 0 | R34: -72.59348598 | S34: 72.59348598 | T34: 102.9021759 | U34: 0 | V34: 0 | W34: 0 | X34: 0 | Y34: 0 | Z34: 0 | AA34: Nov | AB34: =(SUM($Y$7313:$Y$8032))/1000 -> 7.499188155
A35: 1 | B35: 19 | C35: 2.9 | D35: 0 | E35: 0 | F35: 0 | G35: 0 | H35: 0 | I35: =MAX(0,Shadows!$C$2/(TAN(RADIANS('Glasgow Solar Spreadsheet '!N35)))) -> 0 | J35: -23.01239181 | K35: -3.606818438 | L35: 18.65901969 | M35: -99.88529539 | N35: -24.34374381 | O35: 114.3437438 | P35: 90 | Q35: 0 | R35: -84.40945667 | S35: 84.40945667 | T35: 112.9878038 | U35: 0 | V35: 0 | W35: 0 | X35: 0 | Y35: 0 | Z35: 0 | AA35: Dec | AB35: =(SUM($Y$8043:$Y$8776))/1000 -> 3.983896906
A36: 1 | B36: 20 | C36: 3 | D36: 0 | E36: 0 | F36: 0 | G36: 0 | H36: 0 | I36: =MAX(0,Shadows!$C$2/(TAN(RADIANS('Glasgow Solar Spreadsheet '!N36)))) -> 0 | J36: -23.01239181 | K36: -3.606818438 | L36: 19.65901969 | M36: -114.8852954 | N36: -32.74929319 | O36: 122.7492932 | P36: 90 | Q36: 0 | R36: -83.10391172 | S36: 83.10391172 | T36: 121.0114943 | U36: 0 | V36: 0 | W36: 0 | X36: 0 | Y36: 0 | Z36: 0 | AA36: Total | AB36: =SUM(AB24:AB35) -> 324.6302489
A37: 1 | B37: 21 | C37: 3.2 | D37: 0 | E37: 0 | F37: 0 | G37: 0 | H37: 0 | I37: =MAX(0,Shadows!$C$2/(TAN(RADIANS('Glasgow Solar Spreadsheet '!N37)))) -> 0 | J37: -23.01239181 | K37: -3.606818438 | L37: 20.65901969 | M37: -129.8852954 | N37: -40.91185702 | O37: 130.911857 | P37: 90 | Q37: 0 | R37: -69.15762833 | S37: 69.15762833 | T37: 126.745152 | U37: 0 | V37: 0 | W37: 0 | X37: 0 | Y37: 0 | Z37: 0
A38: 1 | B38: 22 | C38: 3 | D38: 0 | E38: 0 | F38: 0 | G38: 0 | H38: 0 | I38: =MAX(0,Shadows!$C$2/(TAN(RADIANS('Glasgow Solar Spreadsheet '!N38)))) -> 0 | J38: -23.01239181 | K38: -3.606818438 | L38: 21.65901969 | M38: -144.8852954 | N38: -48.26615413 | O38: 138.2661541 | P38: 90 | Q38: 0 | R38: -52.68805724 | S38: 52.68805724 | T38: 131.6701287 | U38: 0 | V38: 0 | W38: 0 | X38: 0 | Y38: 0 | Z38: 0
A39: 1 | B39: 23 | C39: 2.9 | D39: 0 | E39: 0 | F39: 0 | G39: 0 | H39: 0 | I39: =MAX(0,Shadows!$C$2/(TAN(RADIANS('Glasgow Solar Spreadsheet '!N39)))) -> 0 | J39: -23.01239181 | K39: -3.606818438 | L39: 22.65901969 | M39: -159.8852954 | N39: -53.97714744 | O39: 143.9771474 | P39: 90 | Q39: 0 | R39: -32.56275261 | S39: 32.56275261 | T39: 135.269507 | U39: 0 | V39: 0 | W39: 0 | X39: 0 | Y39: 0 | Z39: 0
A40: 1 | B40: 24 | C40: 2.9 | D40: 0 | E40: 0 | F40: 0 | G40: 0 | H40: 0 | I40: =MAX(0,Shadows!$C$2/(TAN(RADIANS('Glasgow Solar Spreadsheet '!N40)))) -> 0 | J40: -23.01239181 | K40: -3.606818438 | L40: 23.65901969 | M40: -174.8852954 | N40: -56.95553178 | O40: 146.9555318 | P40: 90 | Q40: 0 | R40: -8.654764929 | S40: 8.654764929 | T40: 137.0461161 | U40: 0 | V40: 0 | W40: 0 | X40: 0 | Y40: 0 | Z40: 0
A41: 2 | B41: 1 | C41: 2.7 | D41: 0 | E41: 0 | F41: 0 | G41: 0 | H41: 0 | I41: =MAX(0,Shadows!$C$2/(TAN(RADIANS('Glasgow Solar Spreadsheet '!N41)))) -> 0 | J41: -22.931365 | K41: -4.053568369 | L41: 0.6515738605 | M41: 170.2263921 | N41: -56.30808957 | O41: 146.3080896 | P41: 90 | Q41: 0 | R41: 16.36961395 | S41: 16.36961395 | T41: 136.6329303 | U41: 0 | V41: 0 | W41: 0 | X41: 0 | Y41: 0 | Z41: 0
A42: 2 | B42: 2 | C42: 2.4 | D42: 0 | E42: 0 | F42: 0 | G42: 0 | H42: 0 | I42: =MAX(0,Shadows!$C$2/(TAN(RADIANS('Glasgow Solar Spreadsheet '!N42)))) -> 0 | J42: -22.931365 | K42: -4.053568369 | L42: 1.651573861 | M42: 155.2263921 | N42: -52.36780837 | O42: 142.3678084 | P42: 90 | Q42: 0 | R42: 39.20092958 | S42: 39.20092958 | T42: 134.2468138 | U42: 0 | V42: 0 | W42: 0 | X42: 0 | Y42: 0 | Z42: 0
A43: 2 | B43: 3 | C43: 2.2 | D43: 0 | E43: 0 | F43: 0 | G43: 0 | H43: 0 | I43: =MAX(0,Shadows!$C$2/(TAN(RADIANS('Glasgow Solar Spreadsheet '!N43)))) -> 0 | J43: -22.931365 | K43: -4.053568369 | L43: 2.651573861 | M43: 140.2263921 | N43: -46.04313671 | O43: 136.0431367 | P43: 90 | Q43: 0 | R43: 58.08624762 | S43: 58.08624762 | T43: 130.1812669 | U43: 0 | V43: 0 | W43: 0 | X43: 0 | Y43: 0 | Z43: 0
A44: 2 | B44: 4 | C44: 2.3 | D44: 0 | E44: 0 | F44: 0 | G44: 0 | H44: 0 | I44: =MAX(0,Shadows!$C$2/(TAN(RADIANS('Glasgow Solar Spreadsheet '!N44)))) -> 0 | J44: -22.931365 | K44: -4.053568369 | L44: 3.651573861 | M44: 125.2263921 | N44: -38.36672275 | O44: 128.3667227 | P44: 90 | Q44: 0 | R44: 73.64382853 | S44: 73.64382853 | T44: 124.9542416 | U44: 0 | V44: 0 | W44: 0 | X44: 0 | Y44: 0 | Z44: 0
A45: 2 | B45: 5 | C45: 2.3 | D45: 0 | E45: 0 | F45: 0 | G45: 0 | H45: 0 | I45: =MAX(0,Shadows!$C$2/(TAN(RADIANS('Glasgow Solar Spreadsheet '!N45)))) -> 0 | J45: -22.931365 | K45: -4.053568369 | L45: 4.651573861 | M45: 110.2263921 | N45: -30.07907508 | O45: 120.0790751 | P45: 90 | Q45: 0 | R45: 87.03928475 | S45: 87.03928475 | T45: 119.0661555 | U45: 0 | V45: 0 | W45: 0 | X45: 0 | Y45: 0 | Z45: 0
A46: 2 | B46: 6 | C46: 2.4 | D46: 0 | E46: 0 | F46: 0 | G46: 0 | H46: 0 | I46: =MAX(0,Shadows!$C$2/(TAN(RADIANS('Glasgow Solar Spreadsheet '!N46)))) -> 0 | J46: -22.931365 | K46: -4.053568369 | L46: 5.651573861 | M46: 95.22639209 | N46: -21.68557774 | O46: 111.6855777 | P46: 90 | Q46: 0 | R46: 80.75040189 | S46: 80.75040189 | T46: 109.7528237 | U46: 0 | V46: 0 | W46: 0 | X46: 0 | Y46: 0 | Z46: 0
A47: 2 | B47: 7 | C47: 2.4 | D47: 0 | E47: 0 | F47: 0 | G47: 0 | H47: 0 | I47: =MAX(0,Shadows!$C$2/(TAN(RADIANS('Glasgow Solar Spreadsheet '!N47)))) -> 0 | J47: -22.931365 | K47: -4.053568369 | L47: 6.651573861 | M47: 80.22639209 | N47: -13.56927048 | O47: 103.5692705 | P47: 90 | Q47: 0 | R47: 69.01383144 | S47: 69.01383144 | T47: 99.82279327 | U47: 0 | V47: 0 | W47: 0 | X47: 0 | Y47: 0 | Z47: 0
A48: 2 | B48: 8 | C48: 2.4 | D48: 0 | E48: 0 | F48: 0 | G48: 0 | H48: 0 | I48: =MAX(0,Shadows!$C$2/(TAN(RADIANS('Glasgow Solar Spreadsheet '!N48)))) -> 0 | J48: -22.931365 | K48: -4.053568369 | L48: 7.651573861 | M48: 65.22639209 | N48: -6.06814162 | O48: 96.06814162 | P48: 90 | Q48: 0 | R48: 57.23819593 | S48: 57.23819593 | T48: 90.61092117 | U48: 0 | V48: 0 | W48: 0 | X48: 0 | Y48: 0 | Z48: 0
A49: 2 | B49: 9 | C49: 2.4 | D49: 0 | E49: 0 | F49: 0 | G49: 0.9003926106 | H49: 0.9076538413 | I49: =MAX(0,Shadows!$C$2/(TAN(RADIANS('Glasgow Solar Spreadsheet '!N49)))) -> 20.43088365 | J49: -22.931365 | K49: -4.053568369 | L49: 8.651573861 | M49: 50.22639209 | N49: 0.483066692 | O49: 89.51693331 | P49: 90 | Q49: 0 | R49: 45.06142505 | S49: 45.06142505 | T49: 82.47523832 | U49: 0 | V49: 0 | W49: 0 | X49: 0 | Y49: 0 | Z49: 0
A50: 2 | B50: 10 | C50: 2.5 | D50: 0 | E50: 0 | F50: 6 | G50: 0.2630738375 | H50: 0.2651954007 | I50: =MAX(0,Shadows!$C$2/(TAN(RADIANS('Glasgow Solar Spreadsheet '!N50)))) -> 1.713485675 | J50: -22.931365 | K50: -4.053568369 | L50: 9.651573861 | M50: 35.22639209 | N50: 5.740733047 | O50: 84.25926695 | P50: 90 | Q50: 0 | R50: 32.26950835 | S50: 32.26950835 | T50: 75.84188342 | U50: 0 | V50: 5.954423259 | W50: 0.009115348193 | X50: 5.963538607 | Y50: 2.018329824 | Z50: 1.483078037
A51: 2 | B51: 11 | C51: 2.7 | D51: 0 | E51: 0 | F51: 20 | G51: 0.02148019496 | H51: 0.02165342234 | I51: =MAX(0,Shadows!$C$2/(TAN(RADIANS('Glasgow Solar Spreadsheet '!N51)))) -> 1.043754724 | J51: -22.931365 | K51: -4.053568369 | L51: 10.65157386 | M51: 20.22639209 | N51: 9.371493933 | O51: 80.62850607 | P51: 90 | Q51: 0 | R51: 18.8272172 | S51: 18.8272172 | T51: 71.18430755 | U51: 0 | V51: 19.84807753 | W51: 0.03038449398 | X51: 19.87846202 | Y51: 6.72282827 | Z51: 6.57725603
A52: 2 | B52: 12 | C52: 2.8 | D52: 0 | E52: 0 | F52: 33 | G52: 0 | H52: 0 | I52: =MAX(0,Shadows!$C$2/(TAN(RADIANS('Glasgow Solar Spreadsheet '!N52)))) -> 0.8777620493 | J52: -22.931365 | K52: -4.053568369 | L52: 11.65157386 | M52: 5.226392092 | N52: 11.10307516 | O52: 78.89692484 | P52: 90 | Q52: 0 | R52: 4.904362752 | S52: 4.904362752 | T52: 68.93523417 | U52: 0 | V52: 32.74932792 | W52: 0.05013441506 | X52: 32.79946234 | Y52: 11.08859295 | Z52: 11.08859295
A53: 2 | B53: 13 | C53: 3.4 | D53: 0 | E53: 0 | F53: 38 | G53: 0 | H53: 0 | I53: =MAX(0,Shadows!$C$2/(TAN(RADIANS('Glasgow Solar Spreadsheet '!N53)))) -> 0.9038244167 | J53: -22.931365 | K53: -4.053568369 | L53: 12.65157386 | M53: -9.773607908 | N53: 10.79053498 | O53: 79.20946502 | P53: 90 | Q53: 0 | R53: -9.157812716 | S53: 9.157812716 | T53: 69.34265741 | U53: 0 | V53: 37.71134731 | W53: 0.05773053855 | X53: 37.76907785 | Y53: 12.74053728 | Z53: 12.74053728
A54: 2 | B54: 14 | C54: 3.9 | D54: 0 | E54: 0 | F54: 32 | G54: 0.07342642863 | H54: 0.07401857725 | I54: =MAX(0,Shadows!$C$2/(TAN(RADIANS('Glasgow Solar Spreadsheet '!N54)))) -> 1.158026381 | J54: -22.931365 | K54: -4.053568369 | L54: 13.65157386 | M54: -24.77360791 | N54: 8.460833366 | O54: 81.53916663 | P54: 90 | Q54: 0 | R54: -22.96475891 | S54: 22.96475891 | T54: 72.3594981 | U54: 0 | V54: 31.75692405 | W54: 0.04861519036 | X54: 31.80553924 | Y54: 10.70912226 | Z54: 9.916448263
A55: 2 | B55: 15 | C55: 4.5 | D55: 0 | E55: 0 | F55: 18 | G55: 0.3914882524 | H55: 0.3946454157 | I55: =MAX(0,Shadows!$C$2/(TAN(RADIANS('Glasgow Solar Spreadsheet '!N55)))) -> 2.288808414 | J55: -22.931365 | K55: -4.053568369 | L55: 14.65157386 | M55: -39.77360791 | N55: 4.304048039 | O55: 85.69595196 | P55: 90 | Q55: 0 | R55: -36.21831703 | S55: 36.21831703 | T55: 77.66610683 | U55: 0 | V55: 17.86326978 | W55: 0.02734604458 | X55: 17.89061582 | Y55: 6.010549182 | Z55: 3.638513502
A56: 2 | B56: 16 | C56: 4.8 | D56: 0 | E56: 0 | F56: 9 | G56: 0 | H56: 0 | I56: =MAX(0,Shadows!$C$2/(TAN(RADIANS('Glasgow Solar Spreadsheet '!N56)))) -> 0 | J56: -22.931365 | K56: -4.053568369 | L56: 15.65157386 | M56: -54.77360791 | N56: -1.382159901 | O56: 91.3821599 | P56: 90 | Q56: 0 | R56: -48.811066 | S56: 48.811066 | T56: 84.80375773 | U56: 0 | V56: 8.931634889 | W56: 0.01367302229 | X56: 8.945307911 | Y56: 3.001941569 | Z56: 3.001941569
A57: 2 | B57: 17 | C57: 5.1 | D57: 0 | E57: 0 | F57: 0 | G57: 0 | H57: 0 | I57: =MAX(0,Shadows!$C$2/(TAN(RADIANS('Glasgow Solar Spreadsheet '!N57)))) -> 0 | J57: -22.931365 | K57: -4.053568369 | L57: 16.65157386 | M57: -69.77360791 | N57: -8.257297424 | O57: 98.25729742 | P57: 90 | Q57: 0 | R57: -60.83643837 | S57: 60.83643837 | T57: 93.30748777 | U57: 0 | V57: 0 | W57: 0 | X57: 0 | Y57: 0 | Z57: 0
A58: 2 | B58: 18 | C58: 5.4 | D58: 0 | E58: 0 | F58: 0 | G58: 0 | H58: 0 | I58: =MAX(0,Shadows!$C$2/(TAN(RADIANS('Glasgow Solar Spreadsheet '!N58)))) -> 0 | J58: -22.931365 | K58: -4.053568369 | L58: 17.65157386 | M58: -84.77360791 | N58: -15.97992527 | O58: 105.9799253 | P58: 90 | Q58: 0 | R58: -72.55552662 | S58: 72.55552662 | T58: 102.7720733 | U58: 0 | V58: 0 | W58: 0 | X58: 0 | Y58: 0 | Z58: 0
A59: 2 | B59: 19 | C59: 5.6 | D59: 0 | E59: 0 | F59: 0 | G59: 0 | H59: 0 | I59: =MAX(0,Shadows!$C$2/(TAN(RADIANS('Glasgow Solar Spreadsheet '!N59)))) -> 0 | J59: -22.931365 | K59: -4.053568369 | L59: 18.65157386 | M59: -99.77360791 | N59: -24.21693568 | O59: 114.2169357 | P59: 90 | Q59: 0 | R59: -84.37375475 | S59: 84.37375475 | T59: 112.8571415 | U59: 0 | V59: 0 | W59: 0 | X59: 0 | Y59: 0 | Z59: 0
A60: 2 | B60: 20 | C60: 5.8 | D60: 0 | E60: 0 | F60: 0 | G60: 0 | H60: 0 | I60: =MAX(0,Shadows!$C$2/(TAN(RADIANS('Glasgow Solar Spreadsheet '!N60)))) -> 0 | J60: -22.931365 | K60: -4.053568369 | L60: 19.65157386 | M60: -114.7736079 | N60: -32.62254533 | O60: 122.6225453 | P60: 90 | Q60: 0 | R60: -83.1428568 | S60: 83.1428568 | T60: 120.8939231 | U60: 0 | V60: 0 | W60: 0 | X60: 0 | Y60: 0 | Z60: 0
A61: 2 | B61: 21 | C61: 6 | D61: 0 | E61: 0 | F61: 0 | G61: 0 | H61: 0 | I61: =MAX(0,Shadows!$C$2/(TAN(RADIANS('Glasgow Solar Spreadsheet '!N61)))) -> 0 | J61: -22.931365 | K61: -4.053568369 | L61: 20.65157386 | M61: -129.7736079 | N61: -40.7866658 | O61: 130.7866658 | P61: 90 | Q61: 0 | R61: -69.20825513 | S61: 69.20825513 | T61: 126.6303035 | U61: 0 | V61: 0 | W61: 0 | X61: 0 | Y61: 0 | Z61: 0
A62: 2 | B62: 22 | C62: 5.8 | D62: 0 | E62: 0 | F62: 0 | G62: 0 | H62: 0 | I62: =MAX(0,Shadows!$C$2/(TAN(RADIANS('Glasgow Solar Spreadsheet '!N62)))) -> 0 | J62: -22.931365 | K62: -4.053568369 | L62: 21.65157386 | M62: -144.7736079 | N62: -48.14540478 | O62: 138.1454048 | P62: 90 | Q62: 0 | R62: -52.763961 | S62: 52.763961 | T62: 131.5608095 | U62: 0 | V62: 0 | W62: 0 | X62: 0 | Y62: 0 | Z62: 0
A63: 2 | B63: 23 | C63: 5.6 | D63: 0 | E63: 0 | F63: 0 | G63: 0 | H63: 0 | I63: =MAX(0,Shadows!$C$2/(TAN(RADIANS('Glasgow Solar Spreadsheet '!N63)))) -> 0 | J63: -22.931365 | K63: -4.053568369 | L63: 22.65157386 | M63: -159.7736079 | N63: -53.86681641 | O63: 143.8668164 | P63: 90 | Q63: 0 | R63: -32.68242472 | S63: 32.68242472 | T63: 135.1695206 | U63: 0 | V63: 0 | W63: 0 | X63: 0 | Y63: 0 | Z63: 0
A64: 2 | B64: 24 | C64: 5.4 | D64: 0 | E64: 0 | F64: 0 | G64: 0 | H64: 0 | I64: =MAX(0,Shadows!$C$2/(TAN(RADIANS('Glasgow Solar Spreadsheet '!N64)))) -> 0 | J64: -22.931365 | K64: -4.053568369 | L64: 23.65157386 | M64: -174.7736079 | N64: -56.86532262 | O64: 146.8653226 | P64: 90 | Q64: 0 | R64: -8.828549261 | S64: 8.828549261 | T64: 136.9596461 | U64: 0 | V64: 0 | W64: 0 | X64: 0 | Y64: 0 | Z64: 0
A65: 3 | B65: 1 | C65: 5.3 | D65: 0 | E65: 0 | F65: 0 | G65: 0 | H65: 0 | I65: =MAX(0,Shadows!$C$2/(TAN(RADIANS('Glasgow Solar Spreadsheet '!N65)))) -> 0 | J65: -22.84354315 | K65: -4.495559789 | L65: 0.6442073368 | M65: 170.3368899 | N65: -56.23893531 | O65: 146.2389353 | P65: 90 | Q65: 0 | R65: 16.16195802 | S65: 16.16195802 | T65: 136.5557887 | U65: 0 | V65: 0 | W65: 0 | X65: 0 | Y65: 0 | Z65: 0
A66: 3 | B66: 2 | C66: 5.1 | D66: 0 | E66: 0 | F66: 0 | G66: 0 | H66: 0 | I66: =MAX(0,Shadows!$C$2/(TAN(RADIANS('Glasgow Solar Spreadsheet '!N66)))) -> 0 | J66: -22.84354315 | K66: -4.495559789 | L66: 1.644207337 | M66: 155.3368899 | N66: -52.32586007 | O66: 142.3258601 | P66: 90 | Q66: 0 | R66: 38.99183142 | S66: 38.99183142 | T66: 134.1858415 | U66: 0 | V66: 0 | W66: 0 | X66: 0 | Y66: 0 | Z66: 0
A67: 3 | B67: 3 | C67: 4.9 | D67: 0 | E67: 0 | F67: 0 | G67: 0 | H67: 0 | I67: =MAX(0,Shadows!$C$2/(TAN(RADIANS('Glasgow Solar Spreadsheet '!N67)))) -> 0 | J67: -22.84354315 | K67: -4.495559789 | L67: 2.644207337 | M67: 140.3368899 | N67: -46.02056523 | O67: 136.0205652 | P67: 90 | Q67: 0 | R67: 57.89534279 | S67: 57.89534279 | T67: 130.1335833 | U67: 0 | V67: 0 | W67: 0 | X67: 0 | Y67: 0 | Z67: 0
A68: 3 | B68: 4 | C68: 4.9 | D68: 0 | E68: 0 | F68: 0 | G68: 0 | H68: 0 | I68: =MAX(0,Shadows!$C$2/(TAN(RADIANS('Glasgow Solar Spreadsheet '!N68)))) -> 0 | J68: -22.84354315 | K68: -4.495559789 | L68: 3.644207337 | M68: 125.3368899 | N68: -38.35497702 | O68: 128.354977 | P68: 90 | Q68: 0 | R68: 73.47302323 | S68: 73.47302323 | T68: 124.9155319 | U68: 0 | V68: 0 | W68: 0 | X68: 0 | Y68: 0 | Z68: 0
A69: 3 | B69: 5 | C69: 5 | D69: 0 | E69: 0 | F69: 0 | G69: 0 | H69: 0 | I69: =MAX(0,Shadows!$C$2/(TAN(RADIANS('Glasgow Solar Spreadsheet '!N69)))) -> 0 | J69: -22.84354315 | K69: -4.495559789 | L69: 4.644207337 | M69: 110.3368899 | N69: -30.07135069 | O69: 120.0713507 | P69: 90 | Q69: 0 | R69: 86.88417919 | S69: 86.88417919 | T69: 119.0319605 | U69: 0 | V69: 0 | W69: 0 | X69: 0 | Y69: 0 | Z69: 0
A70: 3 | B70: 6 | C70: 5 | D70: 0 | E70: 0 | F70: 0 | G70: 0 | H70: 0 | I70: =MAX(0,Shadows!$C$2/(TAN(RADIANS('Glasgow Solar Spreadsheet '!N70)))) -> 0 | J70: -22.84354315 | K70: -4.495559789 | L70: 5.644207337 | M70: 95.33688995 | N70: -21.67668268 | O70: 111.6766827 | P70: 90 | Q70: 0 | R70: 80.89476595 | S70: 80.89476595 | T70: 109.7685133 | U70: 0 | V70: 0 | W70: 0 | X70: 0 | Y70: 0 | Z70: 0
A71: 3 | B71: 7 | C71: 5.1 | D71: 0 | E71: 0 | F71: 0 | G71: 0 | H71: 0 | I71: =MAX(0,Shadows!$C$2/(TAN(RADIANS('Glasgow Solar Spreadsheet '!N71)))) -> 0 | J71: -22.84354315 | K71: -4.495559789 | L71: 6.644207337 | M71: 80.33688995 | N71: -13.55502705 | O71: 103.555027 | P71: 90 | Q71: 0 | R71: 69.15135501 | S71: 69.15135501 | T71: 99.83075193 | U71: 0 | V71: 0 | W71: 0 | X71: 0 | Y71: 0 | Z71: 0
A72: 3 | B72: 8 | C72: 5.2 | D72: 0 | E72: 0 | F72: 0 | G72: 0 | H72: 0 | I72: =MAX(0,Shadows!$C$2/(TAN(RADIANS('Glasgow Solar Spreadsheet '!N72)))) -> 0 | J72: -22.84354315 | K72: -4.495559789 | L72: 7.644207337 | M72: 65.33688995 | N72: -6.044966645 | O72: 96.04496665 | P72: 90 | Q72: 0 | R72: 57.37137234 | S72: 57.37137234 | T72: 90.60734916 | U72: 0 | V72: 0 | W72: 0 | X72: 0 | Y72: 0 | Z72: 0
A73: 3 | B73: 9 | C73: 5.3 | D73: 0 | E73: 0 | F73: 0 | G73: 0.8940359055 | H73: 0.9012458725 | I73: =MAX(0,Shadows!$C$2/(TAN(RADIANS('Glasgow Solar Spreadsheet '!N73)))) -> 19.0417711 | J73: -22.84354315 | K73: -4.495559789 | L73: 8.644207337 | M73: 50.33688995 | N73: 0.5183049393 | O73: 89.48169506 | P73: 90 | Q73: 0 | R73: 45.19117536 | S73: 45.19117536 | T73: 82.45637787 | U73: 0 | V73: 0 | W73: 0 | X73: 0 | Y73: 0 | Z73: 0
A74: 3 | B74: 10 | C74: 5.1 | D74: 0 | E74: 0 | F74: 15 | G74: 0.2590286344 | H74: 0.261117575 | I74: =MAX(0,Shadows!$C$2/(TAN(RADIANS('Glasgow Solar Spreadsheet '!N74)))) -> 1.698637516 | J74: -22.84354315 | K74: -4.495559789 | L74: 9.644207337 | M74: 35.33688995 | N74: 5.790574497 | O74: 84.2094255 | P74: 90 | Q74: 0 | R74: 32.39500886 | S74: 32.39500886 | T74: 75.80423195 | U74: 0 | V74: 14.88605815 | W74: 0.02278837048 | X74: 14.90884652 | Y74: 4.997680913 | Z74: 3.692698592
A75: 3 | B75: 11 | C75: 5 | D75: 0 | E75: 0 | F75: 39 | G75: 0.01789699181 | H75: 0.01804132239 | I75: =MAX(0,Shadows!$C$2/(TAN(RADIANS('Glasgow Solar Spreadsheet '!N75)))) -> 1.03632171 | J75: -22.84354315 | K75: -4.495559789 | L75: 10.64420734 | M75: 20.33688995 | N75: 9.43750592 | O75: 80.56249408 | P75: 90 | Q75: 0 | R75: 18.94593679 | S75: 18.94593679 | T75: 71.12536842 | U75: 0 | V75: 38.70375118 | W75: 0.05924976325 | X75: 38.76300095 | Y75: 12.99878474 | Z75: 12.76426947
A76: 3 | B76: 12 | C76: 4.8 | D76: 0 | E76: 0 | F76: 34 | G76: 0 | H76: 0 | I76: =MAX(0,Shadows!$C$2/(TAN(RADIANS('Glasgow Solar Spreadsheet '!N76)))) -> 0.8711354886 | J76: -22.84354315 | K76: -4.495559789 | L76: 11.64420734 | M76: 5.336889947 | N76: 11.18541222 | O76: 78.81458778 | P76: 90 | Q76: 0 | R76: 5.012688982 | S76: 5.012688982 | T76: 68.8546177 | U76: 0 | V76: 33.7417318 | W76: 0.05165363976 | X76: 33.79338544 | Y76: 11.34066815 | Z76: 11.34066815
A77: 3 | B77: 13 | C77: 4.5 | D77: 0 | E77: 0 | F77: 38 | G77: 0 | H77: 0 | I77: =MAX(0,Shadows!$C$2/(TAN(RADIANS('Glasgow Solar Spreadsheet '!N77)))) -> 0.8955576171 | J77: -22.84354315 | K77: -4.495559789 | L77: 12.64420734 | M77: -9.663110053 | N77: 10.88777115 | O77: 79.11222885 | P77: 90 | Q77: 0 | R77: -9.06327827 | S77: 9.06327827 | T77: 69.24273407 | U77: 0 | V77: 37.71134731 | W77: 0.05773053855 | X77: 37.76907785 | Y77: 12.68893716 | Z77: 12.68893716
A78: 3 | B78: 14 | C78: 4.2 | D78: 0 | E78: 0 | F78: 32 | G78: 0.06692188854 | H78: 0.06746158119 | I78: =MAX(0,Shadows!$C$2/(TAN(RADIANS('Glasgow Solar Spreadsheet '!N78)))) -> 1.143014779 | J78: -22.84354315 | K78: -4.495559789 | L78: 13.64420734 | M78: -24.66311005 | N78: 8.57031275 | O78: 81.42968725 | P78: 90 | Q78: 0 | R78: -22.88585146 | S78: 22.88585146 | T78: 72.24475423 | U78: 0 | V78: 31.75692405 | W78: 0.04861519036 | X78: 31.80553924 | Y78: 10.69727151 | Z78: 9.975616661
A79: 3 | B79: 15 | C79: 3.9 | D79: 0 | E79: 0 | F79: 18 | G79: 0.3799437241 | H79: 0.3830077864 | I79: =MAX(0,Shadows!$C$2/(TAN(RADIANS('Glasgow Solar Spreadsheet '!N79)))) -> 2.227210482 | J79: -22.84354315 | K79: -4.495559789 | L79: 14.64420734 | M79: -39.66311005 | N79: 4.422619092 | O79: 85.57738091 | P79: 90 | Q79: 0 | R79: -36.15475695 | S79: 36.15475695 | T79: 77.54153817 | U79: 0 | V79: 17.86326978 | W79: 0.02734604458 | X79: 17.89061582 | Y79: 6.023881269 | Z79: 3.716687839
A80: 3 | B80: 16 | C80: 3.7 | D80: 0 | E80: 0 | F80: 8 | G80: 0 | H80: 0 | I80: =MAX(0,Shadows!$C$2/(TAN(RADIANS('Glasgow Solar Spreadsheet '!N80)))) -> 0 | J80: -22.84354315 | K80: -4.495559789 | L80: 15.64420734 | M80: -54.66311005 | N80: -1.257439021 | O80: 91.25743902 | P80: 90 | Q80: 0 | R80: -48.76085013 | S80: 48.76085013 | T80: 84.67352904 | U80: 0 | V80: 7.939231012 | W80: 0.01215379759 | X80: 7.95138481 | Y80: 2.679255688 | Z80: 2.679255688
A81: 3 | B81: 17 | C81: 3.6 | D81: 0 | E81: =D81*SIN(RADIANS(N81)) -> 0 | F81: 0 | G81: =MAX(0,(SIN(RADIANS(N81)))*(MAX(0,I81-$K$7))/(SIN(RADIANS(180-$J$11-N81)))) -> 0 | H81: =MAX(0,G81/$J$9) -> 0 | I81: =MAX(0,Shadows!$C$2/(TAN(RADIANS('Glasgow Solar Spreadsheet '!N81)))) -> 0 | J81: =23.45*SIN(RADIANS(280.1+0.9863*A81)) -> -22.84354315 | K81: =9.87* SIN(RADIANS(1.978*A81 - 160.22)) - 7.53*COS(RADIANS(0.989*A81 - 80.11)) - 1.5*SIN(RADIANS(0.989*A81 - 80.11)) -> -4.495559789 | L81: =($E$7/15)+(K81/60)+B81 -> 16.64420734 | M81: =15*(12-L81) -> -69.66311005 | N81: =DEGREES(ASIN((COS(RADIANS($D$7))*COS(RADIANS(J81))*COS(RADIANS(M81))) + (SIN(RADIANS($D$7))*SIN(RADIANS(J81))))) -> -8.128772254 | O81: =DEGREES(ACOS((SIN(RADIANS($D$7)))*(SIN(RADIANS(J81)))+(COS(RADIANS($D$7)))*(COS(RADIANS(J81)))*(COS(RADIANS(M81))))) -> 98.12877225 | P81: =N81+O81 -> 90 | Q81: =$D$10 -> 0 | R81: =DEGREES(ASIN(((COS(RADIANS(J81))*SIN(RADIANS(M81))) /COS(RADIANS(N81))))) -> -60.79657425 | S81: =ABS(R81-Q81) -> 60.79657425 | T81: =DEGREES(ACOS(SIN(RADIANS( N81))*COS(RADIANS(90-$J$10)) + COS(RADIANS( N81 ))*COS(RADIANS(S81 ))*SIN(RADIANS(90-$J$10)))) -> 93.17446148 | U81: =MAX(0,(D81*COS(RADIANS(T81)))) -> 0 | V81: =IFERROR(F81*(0.5*(1+COS(RADIANS(90-$J$10))))*(1+(1-((F81^2)/((E81+F81)^2)))*((SIN(RADIANS(0.5*$J$10)))^3))*(1+(1-((F81^2)/((E81+F81)^2)))*((COS(RADIANS(T81)))^2)*((SIN(RADIANS(90-N81)))^3)),0) -> 0 | W81: =0.5*(1-COS(RADIANS(90-$J$10)))* (E81 + F81)*0.2 -> 0 | X81: =U81+V81+W81 -> 0 | Y81: =$J$8*(X81/1000)*(1-$J$7*(C81-25))*0.9 -> 0 | Z81: =Y81*(1-H81) -> 0
A82: =IF(B82>1,A81,A81+1) -> 3 | B82: =IF(B81<24,B81+1,1) -> 18 | C82: 3.4 | D82: 0 | E82: 0 | F82: 0 | G82: 0 | H82: 0 | I82: =MAX(0,Shadows!$C$2/(TAN(RADIANS('Glasgow Solar Spreadsheet '!N82)))) -> 0 | J82: -22.84354315 | K82: -4.495559789 | L82: 17.64420734 | M82: -84.66311005 | N82: -15.84928601 | O82: 105.849286 | P82: 90 | Q82: 0 | R82: -72.52249625 | S82: 72.52249625 | T82: 102.6379375 | U82: 0 | V82: 0 | W82: 0 | X82: 0 | Y82: 0 | Z82: 0
A83: 3 | B83: 19 | C83: 3.2 | D83: 0 | E83: 0 | F83: 0 | G83: 0 | H83: 0 | I83: =MAX(0,Shadows!$C$2/(TAN(RADIANS('Glasgow Solar Spreadsheet '!N83)))) -> 0 | J83: -22.84354315 | K83: -4.495559789 | L83: 18.64420734 | M83: -99.66311005 | N83: -24.08536789 | O83: 114.0853679 | P83: 90 | Q83: 0 | R83: -84.34343278 | S83: 84.34343278 | T83: 112.7227196 | U83: 0 | V83: 0 | W83: 0 | X83: 0 | Y83: 0 | Z83: 0
A84: 3 | B84: 20 | C84: 3.1 | D84: 0 | E84: 0 | F84: 0 | G84: 0 | H84: 0 | I84: =MAX(0,Shadows!$C$2/(TAN(RADIANS('Glasgow Solar Spreadsheet '!N84)))) -> 0 | J84: -22.84354315 | K84: -4.495559789 | L84: 19.64420734 | M84: -114.6631101 | N84: -32.49102597 | O84: 122.491026 | P84: 90 | Q84: 0 | R84: -83.17595508 | S84: 83.17595508 | T84: 120.7706837 | U84: 0 | V84: 0 | W84: 0 | X84: 0 | Y84: 0 | Z84: 0
A85: 3 | B85: 21 | C85: 2.9 | D85: 0 | E85: 0 | F85: 0 | G85: 0 | H85: 0 | I85: =MAX(0,Shadows!$C$2/(TAN(RADIANS('Glasgow Solar Spreadsheet '!N85)))) -> 0 | J85: -22.84354315 | K85: -4.495559789 | L85: 20.64420734 | M85: -129.6631101 | N85: -40.65648716 | O85: 130.6564872 | P85: 90 | Q85: 0 | R85: -69.25259186 | S85: 69.25259186 | T85: 126.509606 | U85: 0 | V85: 0 | W85: 0 | X85: 0 | Y85: 0 | Z85: 0
A86: 3 | B86: 22 | C86: 3 | D86: 0 | E86: 0 | F86: 0 | G86: 0 | H86: 0 | I86: =MAX(0,Shadows!$C$2/(TAN(RADIANS('Glasgow Solar Spreadsheet '!N86)))) -> 0 | J86: -22.84354315 | K86: -4.495559789 | L86: 21.64420734 | M86: -144.6631101 | N86: -48.01920621 | O86: 138.0192062 | P86: 90 | Q86: 0 | R86: -52.83336005 | S86: 52.83336005 | T86: 131.4453443 | U86: 0 | V86: 0 | W86: 0 | X86: 0 | Y86: 0 | Z86: 0
A87: 3 | B87: 23 | C87: 3.2 | D87: 0 | E87: 0 | F87: 0 | G87: 0 | H87: 0 | I87: =MAX(0,Shadows!$C$2/(TAN(RADIANS('Glasgow Solar Spreadsheet '!N87)))) -> 0 | J87: -22.84354315 | K87: -4.495559789 | L87: 22.64420734 | M87: -159.6631101 | N87: -53.75034757 | O87: 143.7503476 | P87: 90 | Q87: 0 | R87: -32.79616363 | S87: 32.79616363 | T87: 135.0630257 | U87: 0 | V87: 0 | W87: 0 | X87: 0 | Y87: 0 | Z87: 0
A88: 3 | B88: 24 | C88: 3.3 | D88: 0 | E88: 0 | F88: 0 | G88: 0 | H88: 0 | I88: =MAX(0,Shadows!$C$2/(TAN(RADIANS('Glasgow Solar Spreadsheet '!N88)))) -> 0 | J88: -22.84354315 | K88: -4.495559789 | L88: 23.64420734 | M88: -174.6631101 | N88: -56.76827969 | O88: 146.7682797 | P88: 90 | Q88: 0 | R88: -8.998559973 | S88: 8.998559973 | T88: 136.8663435 | U88: 0 | V88: 0 | W88: 0 | X88: 0 | Y88: 0 | Z88: 0
A89: 4 | B89: 1 | C89: 3.4 | D89: 0 | E89: 0 | F89: 0 | G89: 0 | H89: 0 | I89: =MAX(0,Shadows!$C$2/(TAN(RADIANS('Glasgow Solar Spreadsheet '!N89)))) -> 0 | J89: -22.74895228 | K89: -4.932384406 | L89: 0.6369269266 | M89: 170.4460961 | N89: -56.16265877 | O89: 146.1626588 | P89: 90 | Q89: 0 | R89: 15.95491686 | S89: 15.95491686 | T89: 136.4716593 | U89: 0 | V89: 0 | W89: 0 | X89: 0 | Y89: 0 | Z89: 0
A90: 4 | B90: 2 | C90: 3.6 | D90: 0 | E90: 0 | F90: 0 | G90: 0 | H90: 0 | I90: =MAX(0,Shadows!$C$2/(TAN(RADIANS('Glasgow Solar Spreadsheet '!N90)))) -> 0 | J90: -22.74895228 | K90: -4.932384406 | L90: 1.636926927 | M90: 155.4460961 | N90: -52.2769522 | O90: 142.2769522 | P90: 90 | Q90: 0 | R90: 38.78056005 | S90: 38.78056005 | T90: 134.1178724 | U90: 0 | V90: 0 | W90: 0 | X90: 0 | Y90: 0 | Z90: 0
A91: 4 | B91: 3 | C91: 3.7 | D91: 0 | E91: 0 | F91: 0 | G91: 0 | H91: 0 | I91: =MAX(0,Shadows!$C$2/(TAN(RADIANS('Glasgow Solar Spreadsheet '!N91)))) -> 0 | J91: -22.74895228 | K91: -4.932384406 | L91: 2.636926927 | M91: 140.4460961 | N91: -45.99139247 | O91: 135.9913925 | P91: 90 | Q91: 0 | R91: 57.70094419 | S91: 57.70094419 | T91: 130.0790139 | U91: 0 | V91: 0 | W91: 0 | X91: 0 | Y91: 0 | Z91: 0
A92: 4 | B92: 4 | C92: 3.5 | D92: 0 | E92: 0 | F92: 0 | G92: 0 | H92: 0 | I92: =MAX(0,Shadows!$C$2/(TAN(RADIANS('Glasgow Solar Spreadsheet '!N92)))) -> 0 | J92: -22.74895228 | K92: -4.932384406 | L92: 3.636926927 | M92: 125.4460961 | N92: -38.33692882 | O92: 128.3369288 | P92: 90 | Q92: 0 | R92: 73.2983948 | S92: 73.2983948 | T92: 124.8700745 | U92: 0 | V92: 0 | W92: 0 | X92: 0 | Y92: 0 | Z92: 0
A93: 4 | B93: 5 | C93: 3.3 | D93: 0 | E93: 0 | F93: 0 | G93: 0 | H93: 0 | I93: =MAX(0,Shadows!$C$2/(TAN(RADIANS('Glasgow Solar Spreadsheet '!N93)))) -> 0 | J93: -22.74895228 | K93: -4.932384406 | L93: 4.636926927 | M93: 110.4460961 | N93: -30.05748584 | O93: 120.0574858 | P93: 90 | Q93: 0 | R93: 86.72536943 | S93: 86.72536943 | T93: 118.9911219 | U93: 0 | V93: 0 | W93: 0 | X93: 0 | Y93: 0 | Z93: 0
A94: 4 | B94: 6 | C94: 3.1 | D94: 0 | E94: 0 | F94: 0 | G94: 0 | H94: 0 | I94: =MAX(0,Shadows!$C$2/(TAN(RADIANS('Glasgow Solar Spreadsheet '!N94)))) -> 0 | J94: -22.74895228 | K94: -4.932384406 | L94: 5.636926927 | M94: 95.4460961 | N94: -21.66167848 | O94: 111.6616785 | P94: 90 | Q94: 0 | R94: 81.04253265 | S94: 81.04253265 | T94: 109.7787864 | U94: 0 | V94: 0 | W94: 0 | X94: 0 | Y94: 0 | Z94: 0
A95: 4 | B95: 7 | C95: 3.1 | D95: 0 | E95: 0 | F95: 0 | G95: 0 | H95: 0 | I95: =MAX(0,Shadows!$C$2/(TAN(RADIANS('Glasgow Solar Spreadsheet '!N95)))) -> 0 | J95: -22.74895228 | K95: -4.932384406 | L95: 6.636926927 | M95: 80.4460961 | N95: -13.53460363 | O95: 103.5346036 | P95: 90 | Q95: 0 | R95: 69.29188701 | S95: 69.29188701 | T95: 99.83311966 | U95: 0 | V95: 0 | W95: 0 | X95: 0 | Y95: 0 | Z95: 0
A96: 4 | B96: 8 | C96: 3.1 | D96: 0 | E96: 0 | F96: 0 | G96: 0 | H96: 0 | I96: =MAX(0,Shadows!$C$2/(TAN(RADIANS('Glasgow Solar Spreadsheet '!N96)))) -> 0 | J96: -22.74895228 | K96: -4.932384406 | L96: 7.636926927 | M96: 65.4460961 | N96: -6.015472237 | O96: 96.01547224 | P96: 90 | Q96: 0 | R96: 57.50707935 | S96: 57.50707935 | T96: 90.59792487 | U96: 0 | V96: 0 | W96: 0 | X96: 0 | Y96: 0 | Z96: 0
A97: 4 | B97: 9 | C97: 3.1 | D97: 0 | E97: 0 | F97: 0 | G97: 0.8865628524 | H97: 0.8937125528 | I97: =MAX(0,Shadows!$C$2/(TAN(RADIANS('Glasgow Solar Spreadsheet '!N97)))) -> 17.62290864 | J97: -22.74895228 | K97: -4.932384406 | L97: 8.636926927 | M97: 50.4460961 | N97: 0.5600323491 | O97: 89.43996765 | P97: 90 | Q97: 0 | R97: 45.3228698 | S97: 45.3228698 | T97: 82.43135909 | U97: 0 | V97: 0 | W97: 0 | X97: 0 | Y97: 0 | Z97: 0
A98: 4 | B98: 10 | C98: 3.5 | D98: 0 | E98: 0 | F98: 16 | G98: 0.2544742225 | H98: 0.256526434 | I98: =MAX(0,Shadows!$C$2/(TAN(RADIANS('Glasgow Solar Spreadsheet '!N98)))) -> 1.682115202 | J98: -22.74895228 | K98: -4.932384406 | L98: 9.636926927 | M98: 35.4460961 | N98: 5.847059342 | O98: 84.15294066 | P98: 90 | Q98: 0 | R98: 32.52172736 | S98: 32.52172736 | T98: 75.76012863 | U98: 0 | V98: 15.87846202 | W98: 0.02430759518 | X98: 15.90276962 | Y98: 5.362461624 | Z98: 3.986848466
A99: 4 | B99: 11 | C99: 3.8 | D99: 77 | E99: 12.72224891 | F99: 39 | G99: 0.01397547024 | H99: 0.01408817564 | I99: =MAX(0,Shadows!$C$2/(TAN(RADIANS('Glasgow Solar Spreadsheet '!N99)))) -> 1.028249308 | J99: -22.74895228 | K99: -4.932384406 | L99: 10.63692693 | M99: 20.4460961 | N99: 9.510248014 | O99: 80.48975199 | P99: 90 | Q99: 0 | R99: 19.06499858 | S99: 19.06499858 | T99: 71.05977628 | U99: 24.99277739 | V99: 45.01966877 | W99: 0.07857771802 | X99: 70.09102388 | Y99: 23.60878761 | Z99: 23.27618286
A100: 4 | B100: 12 | C100: 4.2 | D100: 3 | E100: 0.5865265569 | F100: 64 | G100: 0 | H100: 0 | I100: =MAX(0,Shadows!$C$2/(TAN(RADIANS('Glasgow Solar Spreadsheet '!N100)))) -> 0.8640771266 | J100: -22.74895228 | K100: -4.932384406 | L100: 11.63692693 | M100: 5.446096101 | N100: 11.27445085 | O100: 78.72554915 | P100: 90 | Q100: 0 | R100: 5.120368797 | S100: 5.120368797 | T100: 68.76732824 | U100: 1.08646845 | V100: 63.96156901 | W100: 0.09812144635 | X100: 65.1461589 | Y100: 21.91084215 | Z100: 21.91084215
A101: 4 | B101: 13 | C101: 4.3 | D101: 67 | E101: 12.77449191 | F101: 78 | G101: 0 | H101: 0 | I101: =MAX(0,Shadows!$C$2/(TAN(RADIANS('Glasgow Solar Spreadsheet '!N101)))) -> 0.8868947926 | J101: -22.74895228 | K101: -4.932384406 | L101: 12.63692693 | M101: -9.553903899 | N101: 10.99154041 | O101: 79.00845959 | P101: 90 | Q101: 0 | R101: -8.970403861 | S101: 8.970403861 | T101: 69.13635395 | U101: 23.86172696 | V101: 85.38563277 | W101: 0.1379068501 | X101: 109.3852666 | Y101: 36.77635485 | Z101: 36.77635485
A102: 4 | B102: 14 | C102: 4.4 | D102: 79 | E102: 11.93056379 | F102: 75 | G102: 0.06012670046 | H102: 0.06061159321 | I102: =MAX(0,Shadows!$C$2/(TAN(RADIANS('Glasgow Solar Spreadsheet '!N102)))) -> 1.12755622 | J102: -22.74895228 | K102: -4.932384406 | L102: 13.63692693 | M102: -24.5539039 | N102: 8.686029771 | O102: 81.31397023 | P102: 90 | Q102: 0 | R102: -22.80953823 | S102: 22.80953823 | T102: 72.12398438 | U102: 24.24970155 | V102: 81.33333943 | W102: 0.1320670596 | X102: 105.715108 | Y102: 35.52928323 | Z102: 33.37579677
A103: 4 | B103: 15 | C103: 4.5 | D103: 59 | E103: 4.677387397 | F103: 47 | G103: 0.3680265729 | H103: 0.3709945292 | I103: =MAX(0,Shadows!$C$2/(TAN(RADIANS('Glasgow Solar Spreadsheet '!N103)))) -> 2.166015219 | J103: -22.74895228 | K103: -4.932384406 | L103: 14.63692693 | M103: -39.5539039 | N103: 4.547052145 | O103: 85.45294786 | P103: 90 | Q103: 0 | R103: -36.094577 | S103: 36.094577 | T103: 77.41149958 | U103: 12.85889454 | V103: 49.18067082 | W103: 0.0785095633 | X103: 62.11807492 | Y103: 20.86925057 | Z103: 13.12687278
A104: 4 | B104: 16 | C104: 4.1 | D104: 0 | E104: 0 | F104: 13 | G104: 0 | H104: 0 | I104: =MAX(0,Shadows!$C$2/(TAN(RADIANS('Glasgow Solar Spreadsheet '!N104)))) -> 0 | J104: -22.74895228 | K104: -4.932384406 | L104: 15.63692693 | M104: -54.5539039 | N104: -1.127250688 | O104: 91.12725069 | P104: 90 | Q104: 0 | R104: -48.7146442 | S104: 48.7146442 | T104: 84.53840772 | U104: 0 | V104: 12.90125039 | W104: 0.01974992108 | X104: 12.92100032 | Y104: 4.34737134 | Z104: 4.34737134
A105: 4 | B105: 17 | C105: 3.6 | D105: 0 | E105: 0 | F105: 0 | G105: 0 | H105: 0 | I105: =MAX(0,Shadows!$C$2/(TAN(RADIANS('Glasgow Solar Spreadsheet '!N105)))) -> 0 | J105: -22.74895228 | K105: -4.932384406 | L105: 16.63692693 | M105: -69.5539039 | N105: -7.995136074 | O105: 97.99513607 | P105: 90 | Q105: 0 | R105: -60.76123302 | S105: 60.76123302 | T105: 93.03706259 | U105: 0 | V105: 0 | W105: 0 | X105: 0 | Y105: 0 | Z105: 0
A106: 4 | B106: 18 | C106: 3.2 | D106: 0 | E106: 0 | F106: 0 | G106: 0 | H106: 0 | I106: =MAX(0,Shadows!$C$2/(TAN(RADIANS('Glasgow Solar Spreadsheet '!N106)))) -> 0 | J106: -22.74895228 | K106: -4.932384406 | L106: 17.63692693 | M106: -84.5539039 | N106: -15.71380816 | O106: 105.7138082 | P106: 90 | Q106: 0 | R106: -72.49444214 | S106: 72.49444214 | T106: 102.4998434 | U106: 0 | V106: 0 | W106: 0 | X106: 0 | Y106: 0 | Z106: 0
A107: 4 | B107: 19 | C107: 3.1 | D107: 0 | E107: 0 | F107: 0 | G107: 0 | H107: 0 | I107: =MAX(0,Shadows!$C$2/(TAN(RADIANS('Glasgow Solar Spreadsheet '!N107)))) -> 0 | J107: -22.74895228 | K107: -4.932384406 | L107: 18.63692693 | M107: -99.5539039 | N107: -23.94911167 | O107: 113.9491117 | P107: 90 | Q107: 0 | R107: -84.31853265 | S107: 84.31853265 | T107: 112.5846145 | U107: 0 | V107: 0 | W107: 0 | X107: 0 | Y107: 0 | Z107: 0
A108: 4 | B108: 20 | C108: 3.1 | D108: 0 | E108: 0 | F108: 0 | G108: 0 | H108: 0 | I108: =MAX(0,Shadows!$C$2/(TAN(RADIANS('Glasgow Solar Spreadsheet '!N108)))) -> 0 | J108: -22.74895228 | K108: -4.932384406 | L108: 19.63692693 | M108: -114.5539039 | N108: -32.35480762 | O108: 122.3548076 | P108: 90 | Q108: 0 | R108: -83.20316717 | S108: 83.20316717 | T108: 120.6418389 | U108: 0 | V108: 0 | W108: 0 | X108: 0 | Y108: 0 | Z108: 0
A109: 4 | B109: 21 | C109: 3 | D109: 0 | E109: 0 | F109: 0 | G109: 0 | H109: 0 | I109: =MAX(0,Shadows!$C$2/(TAN(RADIANS('Glasgow Solar Spreadsheet '!N109)))) -> 0 | J109: -22.74895228 | K109: -4.932384406 | L109: 20.63692693 | M109: -129.5539039 | N109: -40.52139391 | O109: 130.5213939 | P109: 90 | Q109: 0 | R109: -69.29059525 | S109: 69.29059525 | T109: 126.3831213 | U109: 0 | V109: 0 | W109: 0 | X109: 0 | Y109: 0 | Z109: 0
A110: 4 | B110: 22 | C110: 3 | D110: 0 | E110: 0 | F110: 0 | G110: 0 | H110: 0 | I110: =MAX(0,Shadows!$C$2/(TAN(RADIANS('Glasgow Solar Spreadsheet '!N110)))) -> 0 | J110: -22.74895228 | K110: -4.932384406 | L110: 21.63692693 | M110: -144.5539039 | N110: -47.88762998 | O110: 137.88763 | P110: 90 | Q110: 0 | R110: -52.89619158 | S110: 52.89619158 | T110: 131.3237913 | U110: 0 | V110: 0 | W110: 0 | X110: 0 | Y110: 0 | Z110: 0
A111: 4 | B111: 23 | C111: 3 | D111: 0 | E111: 0 | F111: 0 | G111: 0 | H111: 0 | I111: =MAX(0,Shadows!$C$2/(TAN(RADIANS('Glasgow Solar Spreadsheet '!N111)))) -> 0 | J111: -22.74895228 | K111: -4.932384406 | L111: 22.63692693 | M111: -159.5539039 | N111: -53.62780607 | O111: 143.6278061 | P111: 90 | Q111: 0 | R111: -32.90385347 | S111: 32.90385347 | T111: 134.9500724 | U111: 0 | V111: 0 | W111: 0 | X111: 0 | Y111: 0 | Z111: 0
A112: 4 | B112: 24 | C112: 3 | D112: 0 | E112: 0 | F112: 0 | G112: 0 | H112: 0 | I112: =MAX(0,Shadows!$C$2/(TAN(RADIANS('Glasgow Solar Spreadsheet '!N112)))) -> 0 | J112: -22.74895228 | K112: -4.932384406 | L112: 23.63692693 | M112: -174.5539039 | N112: -56.66444816 | O112: 146.6644482 | P112: 90 | Q112: 0 | R112: -9.164592239 | S112: 9.164592239 | T112: 136.7662446 | U112: 0 | V112: 0 | W112: 0 | X112: 0 | Y112: 0 | Z112: 0
A113: 5 | B113: 1 | C113: 3.1 | D113: 0 | E113: 0 | F113: 0 | G113: 0 | H113: 0 | I113: =MAX(0,Shadows!$C$2/(TAN(RADIANS('Glasgow Solar Spreadsheet '!N113)))) -> 0 | J113: -22.64762043 | K113: -5.363640028 | L113: 0.6297393329 | M113: 170.55391 | N113: -56.0792731 | O113: 146.0792731 | P113: 90 | Q113: 0 | R113: 15.7487496 | S113: 15.7487496 | T113: 136.3805628 | U113: 0 | V113: 0 | W113: 0 | X113: 0 | Y113: 0 | Z113: 0
A114: 5 | B114: 2 | C114: 3.2 | D114: 0 | E114: 0 | F114: 0 | G114: 0 | H114: 0 | I114: =MAX(0,Shadows!$C$2/(TAN(RADIANS('Glasgow Solar Spreadsheet '!N114)))) -> 0 | J114: -22.64762043 | K114: -5.363640028 | L114: 1.629739333 | M114: 155.55391 | N114: -52.22106509 | O114: 142.2210651 | P114: 90 | Q114: 0 | R114: 38.56735787 | S114: 38.56735787 | T114: 134.0429099 | U114: 0 | V114: 0 | W114: 0 | X114: 0 | Y114: 0 | Z114: 0
A115: 5 | B115: 3 | C115: 3.3 | D115: 0 | E115: 0 | F115: 0 | G115: 0 | H115: 0 | I115: =MAX(0,Shadows!$C$2/(TAN(RADIANS('Glasgow Solar Spreadsheet '!N115)))) -> 0 | J115: -22.64762043 | K115: -5.363640028 | L115: 2.629739333 | M115: 140.55391 | N115: -45.95558064 | O115: 135.9555806 | P115: 90 | Q115: 0 | R115: 57.50324421 | S115: 57.50324421 | T115: 130.0175484 | U115: 0 | V115: 0 | W115: 0 | X115: 0 | Y115: 0 | Z115: 0
A116: 5 | B116: 4 | C116: 3.3 | D116: 0 | E116: 0 | F116: 0 | G116: 0 | H116: 0 | I116: =MAX(0,Shadows!$C$2/(TAN(RADIANS('Glasgow Solar Spreadsheet '!N116)))) -> 0 | J116: -22.64762043 | K116: -5.363640028 | L116: 3.629739333 | M116: 125.55391 | N116: -38.31253461 | O116: 128.3125346 | P116: 90 | Q116: 0 | R116: 73.1200936 | S116: 73.1200936 | T116: 124.8178519 | U116: 0 | V116: 0 | W116: 0 | X116: 0 | Y116: 0 | Z116: 0
A117: 5 | B117: 5 | C117: 3.3 | D117: 0 | E117: 0 | F117: 0 | G117: 0 | H117: 0 | I117: =MAX(0,Shadows!$C$2/(TAN(RADIANS('Glasgow Solar Spreadsheet '!N117)))) -> 0 | J117: -22.64762043 | K117: -5.363640028 | L117: 4.629739333 | M117: 110.55391 | N117: -30.03743816 | O117: 120.0374382 | P117: 90 | Q117: 0 | R117: 86.56297819 | S117: 86.56297819 | T117: 118.9436199 | U117: 0 | V117: 0 | W117: 0 | X117: 0 | Y117: 0 | Z117: 0
A118: 5 | B118: 6 | C118: 3.3 | D118: 0 | E118: 0 | F118: 0 | G118: 0 | H118: 0 | I118: =MAX(0,Shadows!$C$2/(TAN(RADIANS('Glasgow Solar Spreadsheet '!N118)))) -> 0 | J118: -22.64762043 | K118: -5.363640028 | L118: 5.629739333 | M118: 95.55391001 | N118: -21.64052773 | O118: 111.6405277 | P118: 90 | Q118: 0 | R118: 81.19359641 | S118: 81.19359641 | T118: 109.7835896 | U118: 0 | V118: 0 | W118: 0 | X118: 0 | Y118: 0 | Z118: 0
A119: 5 | B119: 7 | C119: 3.6 | D119: 0 | E119: 0 | F119: 0 | G119: 0 | H119: 0 | I119: =MAX(0,Shadows!$C$2/(TAN(RADIANS('Glasgow Solar Spreadsheet '!N119)))) -> 0 | J119: -22.64762043 | K119: -5.363640028 | L119: 6.629739333 | M119: 80.55391001 | N119: -13.50796995 | O119: 103.50797 | P119: 90 | Q119: 0 | R119: 69.43533263 | S119: 69.43533263 | T119: 99.82985322 | U119: 0 | V119: 0 | W119: 0 | X119: 0 | Y119: 0 | Z119: 0
A120: 5 | B120: 8 | C120: 3.8 | D120: 0 | E120: 0 | F120: 0 | G120: 0 | H120: 0 | I120: =MAX(0,Shadows!$C$2/(TAN(RADIANS('Glasgow Solar Spreadsheet '!N120)))) -> 0 | J120: -22.64762043 | K120: -5.363640028 | L120: 7.629739333 | M120: 65.55391001 | N120: -5.979636759 | O120: 95.97963676 | P120: 90 | Q120: 0 | R120: 57.64522906 | S120: 57.64522906 | T120: 90.58261632 | U120: 0 | V120: 0 | W120: 0 | X120: 0 | Y120: 0 | Z120: 0
A121: 5 | B121: 9 | C121: 4.1 | D121: 0 | E121: 0 | F121: 0 | G121: 0.8779979101 | H121: 0.8850785384 | I121: =MAX(0,Shadows!$C$2/(TAN(RADIANS('Glasgow Solar Spreadsheet '!N121)))) -> 16.22550848 | J121: -22.64762043 | K121: -5.363640028 | L121: 8.629739333 | M121: 50.55391001 | N121: 0.6082609041 | O121: 89.3917391 | P121: 90 | Q121: 0 | R121: 45.45642513 | S121: 45.45642513 | T121: 82.40016199 | U121: 0 | V121: 0 | W121: 0 | X121: 0 | Y121: 0 | Z121: 0
A122: 5 | B122: 10 | C122: 4.2 | D122: 0 | E122: 0 | F122: 6 | G122: 0.2494213094 | H122: 0.2514327716 | I122: =MAX(0,Shadows!$C$2/(TAN(RADIANS('Glasgow Solar Spreadsheet '!N122)))) -> 1.664021603 | J122: -22.64762043 | K122: -5.363640028 | L122: 9.629739333 | M122: 35.55391001 | N122: 5.910189208 | O122: 84.08981079 | P122: 90 | Q122: 0 | R122: 32.6495838 | S122: 32.6495838 | T122: 75.70956602 | U122: 0 | V122: 5.954423259 | W122: 0.009115348193 | X122: 5.963538607 | Y122: 2.005738409 | Z122: 1.501430041
A123: 5 | B123: 11 | C123: 4.4 | D123: 0 | E123: 0 | F123: 21 | G123: 0.009723616535 | H123: 0.009802032798 | I123: =MAX(0,Shadows!$C$2/(TAN(RADIANS('Glasgow Solar Spreadsheet '!N123)))) -> 1.019569749 | J123: -22.64762043 | K123: -5.363640028 | L123: 10.62973933 | M123: 20.55391001 | N123: 9.589711025 | O123: 80.41028898 | P123: 90 | Q123: 0 | R123: 19.1843247 | S123: 19.1843247 | T123: 70.98753649 | U123: 0 | V123: 20.84048141 | W123: 0.03190371867 | X123: 20.87238513 | Y123: 7.014899729 | Z123: 6.946139452
A124: 5 | B124: 12 | C124: 4.5 | D124: 0 | E124: 0 | F124: 35 | G124: 0 | H124: 0 | I124: =MAX(0,Shadows!$C$2/(TAN(RADIANS('Glasgow Solar Spreadsheet '!N124)))) -> 0.8566108368 | J124: -22.64762043 | K124: -5.363640028 | L124: 11.62973933 | M124: 5.553910007 | N124: 11.37017077 | O124: 78.62982923 | P124: 90 | Q124: 0 | R124: 5.227325836 | S124: 5.227325836 | T124: 68.67338428 | U124: 0 | V124: 34.73413568 | W124: 0.05317286446 | X124: 34.78730854 | Y124: 11.68717897 | Z124: 11.68717897
A125: 5 | B125: 13 | C125: 4.4 | D125: 0 | E125: 0 | F125: 39 | G125: 0 | H125: 0 | I125: =MAX(0,Shadows!$C$2/(TAN(RADIANS('Glasgow Solar Spreadsheet '!N125)))) -> 0.8778645193 | J125: -22.64762043 | K125: -5.363640028 | L125: 12.62973933 | M125: -9.446089993 | N125: 11.10181133 | O125: 78.89818867 | P125: 90 | Q125: 0 | R125: -8.879264117 | S125: 8.879264117 | T125: 69.02354907 | U125: 0 | V125: 38.70375118 | W125: 0.05924976325 | X125: 38.76300095 | Y125: 13.02767093 | Z125: 13.02767093
A126: 5 | B126: 14 | C126: 4.2 | D126: 0 | E126: 0 | F126: 34 | G126: 0.05305494123 | H126: 0.05348280366 | I126: =MAX(0,Shadows!$C$2/(TAN(RADIANS('Glasgow Solar Spreadsheet '!N126)))) -> 1.111706075 | J126: -22.64762043 | K126: -5.363640028 | L126: 13.62973933 | M126: -24.44608999 | N126: 8.807942227 | O126: 81.19205777 | P126: 90 | Q126: 0 | R126: -22.73589075 | S126: 22.73589075 | T126: 71.99723389 | U126: 0 | V126: 33.7417318 | W126: 0.05165363976 | X126: 33.79338544 | Y126: 11.36585098 | Z126: 10.75797341
A127: 5 | B127: 15 | C127: 4.1 | D127: 0 | E127: 0 | F127: 19 | G127: 0.3557647786 | H127: 0.3586338494 | I127: =MAX(0,Shadows!$C$2/(TAN(RADIANS('Glasgow Solar Spreadsheet '!N127)))) -> 2.105443062 | J127: -22.64762043 | K127: -5.363640028 | L127: 14.62973933 | M127: -39.44608999 | N127: 4.677295375 | O127: 85.32270463 | P127: 90 | Q127: 0 | R127: -36.03784361 | S127: 36.03784361 | T127: 77.27604818 | U127: 0 | V127: 18.85567365 | W127: 0.02886526928 | X127: 18.88453892 | Y127: 6.35385042 | Z127: 4.075144585
A128: 5 | B128: 16 | C128: 4 | D128: 0 | E128: 0 | F128: 5 | G128: 0 | H128: 0 | I128: =MAX(0,Shadows!$C$2/(TAN(RADIANS('Glasgow Solar Spreadsheet '!N128)))) -> 0 | J128: -22.64762043 | K128: -5.363640028 | L128: 15.62973933 | M128: -54.44608999 | N128: -0.9916545963 | O128: 90.9916546 | P128: 90 | Q128: 0 | R128: -48.67250786 | S128: 48.67250786 | T128: 84.39845994 | U128: 0 | V128: 4.962019383 | W128: 0.007596123494 | X128: 4.969615506 | Y128: 1.672683126 | Z128: 1.672683126
A129: 5 | B129: 17 | C129: 3.8 | D129: 0 | E129: 0 | F129: 0 | G129: 0 | H129: 0 | I129: =MAX(0,Shadows!$C$2/(TAN(RADIANS('Glasgow Solar Spreadsheet '!N129)))) -> 0 | J129: -22.64762043 | K129: -5.363640028 | L129: 16.62973933 | M129: -69.44608999 | N129: -7.856454414 | O129: 97.85645441 | P129: 90 | Q129: 0 | R129: -60.73046682 | S129: 60.73046682 | T129: 92.89536326 | U129: 0 | V129: 0 | W129: 0 | X129: 0 | Y129: 0 | Z129: 0
A130: 5 | B130: 18 | C130: 3.7 | D130: 0 | E130: 0 | F130: 0 | G130: 0 | H130: 0 | I130: =MAX(0,Shadows!$C$2/(TAN(RADIANS('Glasgow Solar Spreadsheet '!N130)))) -> 0 | J130: -22.64762043 | K130: -5.363640028 | L130: 17.62973933 | M130: -84.44608999 | N130: -15.57356115 | O130: 105.5735611 | P130: 90 | Q130: 0 | R130: -72.4714092 | S130: 72.4714092 | T130: 102.3578664 | U130: 0 | V130: 0 | W130: 0 | X130: 0 | Y130: 0 | Z130: 0
A131: 5 | B131: 19 | C131: 3.8 | D131: 0 | E131: 0 | F131: 0 | G131: 0 | H131: 0 | I131: =MAX(0,Shadows!$C$2/(TAN(RADIANS('Glasgow Solar Spreadsheet '!N131)))) -> 0 | J131: -22.64762043 | K131: -5.363640028 | L131: 18.62973933 | M131: -99.44608999 | N131: -23.80823868 | O131: 113.8082387 | P131: 90 | Q131: 0 | R131: -84.29909327 | S131: 84.29909327 | T131: 112.442903 | U131: 0 | V131: 0 | W131: 0 | X131: 0 | Y131: 0 | Z131: 0
A132: 5 | B132: 20 | C132: 3.9 | D132: 0 | E132: 0 | F132: 0 | G132: 0 | H132: 0 | I132: =MAX(0,Shadows!$C$2/(TAN(RADIANS('Glasgow Solar Spreadsheet '!N132)))) -> 0 | J132: -22.64762043 | K132: -5.363640028 | L132: 19.62973933 | M132: -114.44609 | N132: -32.21396303 | O132: 122.213963 | P132: 90 | Q132: 0 | R132: -83.2244576 | S132: 83.2244576 | T132: 120.5074528 | U132: 0 | V132: 0 | W132: 0 | X132: 0 | Y132: 0 | Z132: 0
A133: 5 | B133: 21 | C133: 4 | D133: 0 | E133: 0 | F133: 0 | G133: 0 | H133: 0 | I133: =MAX(0,Shadows!$C$2/(TAN(RADIANS('Glasgow Solar Spreadsheet '!N133)))) -> 0 | J133: -22.64762043 | K133: -5.363640028 | L133: 20.62973933 | M133: -129.44609 | N133: -40.38145901 | O133: 130.381459 | P133: 90 | Q133: 0 | R133: -69.3222272 | S133: 69.3222272 | T133: 126.2509126 | U133: 0 | V133: 0 | W133: 0 | X133: 0 | Y133: 0 | Z133: 0
A134: 5 | B134: 22 | C134: 4 | D134: 0 | E134: 0 | F134: 0 | G134: 0 | H134: 0 | I134: =MAX(0,Shadows!$C$2/(TAN(RADIANS('Glasgow Solar Spreadsheet '!N134)))) -> 0 | J134: -22.64762043 | K134: -5.363640028 | L134: 21.62973933 | M134: -144.44609 | N134: -47.75074795 | O134: 137.750748 | P134: 90 | Q134: 0 | R134: -52.95239979 | S134: 52.95239979 | T134: 131.19621 | U134: 0 | V134: 0 | W134: 0 | X134: 0 | Y134: 0 | Z134: 0
A135: 5 | B135: 23 | C135: 3.9 | D135: 0 | E135: 0 | F135: 0 | G135: 0 | H135: 0 | I135: =MAX(0,Shadows!$C$2/(TAN(RADIANS('Glasgow Solar Spreadsheet '!N135)))) -> 0 | J135: -22.64762043 | K135: -5.363640028 | L135: 22.62973933 | M135: -159.44609 | N135: -53.49925812 | O135: 143.4992581 | P135: 90 | Q135: 0 | R135: -33.0053875 | S135: 33.0053875 | T135: 134.8307127 | U135: 0 | V135: 0 | W135: 0 | X135: 0 | Y135: 0 | Z135: 0
A136: 5 | B136: 24 | C136: 3.9 | D136: 0 | E136: 0 | F136: 0 | G136: 0 | H136: 0 | I136: =MAX(0,Shadows!$C$2/(TAN(RADIANS('Glasgow Solar Spreadsheet '!N136)))) -> 0 | J136: -22.64762043 | K136: -5.363640028 | L136: 23.62973933 | M136: -174.44609 | N136: -56.55387554 | O136: 146.5538755 | P136: 90 | Q136: 0 | R136: -9.326449979 | S136: 9.326449979 | T136: 136.6593881 | U136: 0 | V136: 0 | W136: 0 | X136: 0 | Y136: 0 | Z136: 0
A137: 6 | B137: 1 | C137: 3.7 | D137: 0 | E137: 0 | F137: 0 | G137: 0 | H137: 0 | I137: =MAX(0,Shadows!$C$2/(TAN(RADIANS('Glasgow Solar Spreadsheet '!N137)))) -> 0 | J137: -22.53957761 | K137: -5.788931011 | L137: 0.6226511498 | M137: 170.6602328 | N137: -55.98879467 | O137: 145.9887947 | P137: 90 | Q137: 0 | R137: 15.54371111 | S137: 15.54371111 | T137: 136.282523 | U137: 0 | V137: 0 | W137: 0 | X137: 0 | Y137: 0 | Z137: 0
A138: 6 | B138: 2 | C138: 3.5 | D138: 0 | E138: 0 | F138: 0 | G138: 0 | H138: 0 | I138: =MAX(0,Shadows!$C$2/(TAN(RADIANS('Glasgow Solar Spreadsheet '!N138)))) -> 0 | J138: -22.53957761 | K138: -5.788931011 | L138: 1.62265115 | M138: 155.6602328 | N138: -52.15818223 | O138: 142.1581822 | P138: 90 | Q138: 0 | R138: 38.35246812 | S138: 38.35246812 | T138: 133.9609598 | U138: 0 | V138: 0 | W138: 0 | X138: 0 | Y138: 0 | Z138: 0
A139: 6 | B139: 3 | C139: 3.3 | D139: 0 | E139: 0 | F139: 0 | G139: 0 | H139: 0 | I139: =MAX(0,Shadows!$C$2/(TAN(RADIANS('Glasgow Solar Spreadsheet '!N139)))) -> 0 | J139: -22.53957761 | K139: -5.788931011 | L139: 2.62265115 | M139: 140.6602328 | N139: -45.91309464 | O139: 135.9130946 | P139: 90 | Q139: 0 | R139: 57.30243794 | S139: 57.30243794 | T139: 129.9491795 | U139: 0 | V139: 0 | W139: 0 | X139: 0 | Y139: 0 | Z139: 0
A140: 6 | B140: 4 | C140: 3.4 | D140: 0 | E140: 0 | F140: 0 | G140: 0 | H140: 0 | I140: =MAX(0,Shadows!$C$2/(TAN(RADIANS('Glasgow Solar Spreadsheet '!N140)))) -> 0 | J140: -22.53957761 | K140: -5.788931011 | L140: 3.62265115 | M140: 125.6602328 | N140: -38.2817531 | O140: 128.2817531 | P140: 90 | Q140: 0 | R140: 72.93827267 | S140: 72.93827267 | T140: 124.758849 | U140: 0 | V140: 0 | W140: 0 | X140: 0 | Y140: 0 | Z140: 0
A141: 6 | B141: 5 | C141: 3.6 | D141: 0 | E141: 0 | F141: 0 | G141: 0 | H141: 0 | I141: =MAX(0,Shadows!$C$2/(TAN(RADIANS('Glasgow Solar Spreadsheet '!N141)))) -> 0 | J141: -22.53957761 | K141: -5.788931011 | L141: 4.62265115 | M141: 110.6602328 | N141: -30.01116738 | O141: 120.0111674 | P141: 90 | Q141: 0 | R141: 86.39713031 | S141: 86.39713031 | T141: 118.8894368 | U141: 0 | V141: 0 | W141: 0 | X141: 0 | Y141: 0 | Z141: 0
A142: 6 | B142: 6 | C142: 3.7 | D142: 0 | E142: 0 | F142: 0 | G142: 0 | H142: 0 | I142: =MAX(0,Shadows!$C$2/(TAN(RADIANS('Glasgow Solar Spreadsheet '!N142)))) -> 0 | J142: -22.53957761 | K142: -5.788931011 | L142: 5.62265115 | M142: 95.66023275 | N142: -21.61319502 | O142: 111.613195 | P142: 90 | Q142: 0 | R142: 81.34785023 | S142: 81.34785023 | T142: 109.782871 | U142: 0 | V142: 0 | W142: 0 | X142: 0 | Y142: 0 | Z142: 0
A143: 6 | B143: 7 | C143: 3.8 | D143: 0 | E143: 0 | F143: 0 | G143: 0 | H143: 0 | I143: =MAX(0,Shadows!$C$2/(TAN(RADIANS('Glasgow Solar Spreadsheet '!N143)))) -> 0 | J143: -22.53957761 | K143: -5.788931011 | L143: 6.62265115 | M143: 80.66023275 | N143: -13.47509774 | O143: 103.4750977 | P143: 90 | Q143: 0 | R143: 69.58159614 | S143: 69.58159614 | T143: 99.82091114 | U143: 0 | V143: 0 | W143: 0 | X143: 0 | Y143: 0 | Z143: 0
A144: 6 | B144: 8 | C144: 3.8 | D144: 0 | E144: 0 | F144: 0 | G144: 0 | H144: 0 | I144: =MAX(0,Shadows!$C$2/(TAN(RADIANS('Glasgow Solar Spreadsheet '!N144)))) -> 0 | J144: -22.53957761 | K144: -5.788931011 | L144: 7.62265115 | M144: 65.66023275 | N144: -5.937440539 | O144: 95.93744054 | P144: 90 | Q144: 0 | R144: 57.78573316 | S144: 57.78573316 | T144: 90.56139334 | U144: 0 | V144: 0 | W144: 0 | X144: 0 | Y144: 0 | Z144: 0
A145: 6 | B145: 9 | C145: 3.9 | D145: 0 | E145: =D145*SIN(RADIANS(N145)) -> 0 | F145: 0 | G145: =MAX(0,(SIN(RADIANS(N145)))*(MAX(0,I145-$K$7))/(SIN(RADIANS(180-$J$11-N145)))) -> 0.8683694441 | H145: =MAX(0,G145/$J$9) -> 0.8753724235 | I145: =MAX(0,Shadows!$C$2/(TAN(RADIANS('Glasgow Solar Spreadsheet '!N145)))) -> 14.88576616 | J145: =23.45*SIN(RADIANS(280.1+0.9863*A145)) -> -22.53957761 | K145: =9.87* SIN(RADIANS(1.978*A145 - 160.22)) - 7.53*COS(RADIANS(0.989*A145 - 80.11)) - 1.5*SIN(RADIANS(0.989*A145 - 80.11)) -> -5.788931011 | L145: =($E$7/15)+(K145/60)+B145 -> 8.62265115 | M145: =15*(12-L145) -> 50.66023275 | N145: =DEGREES(ASIN((COS(RADIANS($D$7))*COS(RADIANS(J145))*COS(RADIANS(M145))) + (SIN(RADIANS($D$7))*SIN(RADIANS(J145))))) -> 0.663000655 | O145: =DEGREES(ACOS((SIN(RADIANS($D$7)))*(SIN(RADIANS(J145)))+(COS(RADIANS($D$7)))*(COS(RADIANS(J145)))*(COS(RADIANS(M145))))) -> 89.33699935 | P145: =N145+O145 -> 90 | Q145: =$D$10 -> 0 | R145: =DEGREES(ASIN(((COS(RADIANS(J145))*SIN(RADIANS(M145))) /COS(RADIANS(N145))))) -> 45.59175804 | S145: =ABS(R145-Q145) -> 45.59175804 | T145: =DEGREES(ACOS(SIN(RADIANS( N145))*COS(RADIANS(90-$J$10)) + COS(RADIANS( N145 ))*COS(RADIANS(S145 ))*SIN(RADIANS(90-$J$10)))) -> 82.36276847 | U145: =MAX(0,(D145*COS(RADIANS(T145)))) -> 0 | V145: =IFERROR(F145*(0.5*(1+COS(RADIANS(90-$J$10))))*(1+(1-((F145^2)/((E145+F145)^2)))*((SIN(RADIANS(0.5*$J$10)))^3))*(1+(1-((F145^2)/((E145+F145)^2)))*((COS(RADIANS(T145)))^2)*((SIN(RADIANS(90-N145)))^3)),0) -> 0 | W145: =0.5*(1-COS(RADIANS(90-$J$10)))* (E145 + F145)*0.2 -> 0 | X145: =U145+V145+W145 -> 0 | Y145: =$J$8*(X145/1000)*(1-$J$7*(C145-25))*0.9 -> 0 | Z145: =Y145*(1-H145) -> 0
A146: =IF(B146>1,A145,A145+1) -> 6 | B146: =IF(B145<24,B145+1,1) -> 10 | C146: 4.5 | D146: 0 | E146: 0 | F146: 13 | G146: 0.2438818014 | H146: 0.2458485902 | I146: =MAX(0,Shadows!$C$2/(TAN(RADIANS('Glasgow Solar Spreadsheet '!N146)))) -> 1.644466446 | J146: -22.53957761 | K146: -5.788931011 | L146: 9.62265115 | M146: 35.66023275 | N146: 5.979963849 | O146: 84.02003615 | P146: 90 | Q146: 0 | R146: 32.77849838 | S146: 32.77849838 | T146: 75.6525385 | U146: 0 | V146: 12.90125039 | W146: 0.01974992108 | X146: 12.92100032 | Y146: 4.340952187 | Z146: 3.273735212
A147: 6 | B147: 11 | C147: 5.2 | D147: 66 | E147: 11.09291555 | F147: 41 | G147: 0.005150029059 | H147: 0.005191561551 | I147: =MAX(0,Shadows!$C$2/(TAN(RADIANS('Glasgow Solar Spreadsheet '!N147)))) -> 1.010316911 | J147: -22.53957761 | K147: -5.788931011 | L147: 10.62265115 | M147: 20.66023275 | N147: 9.675883971 | O147: 80.32411603 | P147: 90 | Q147: 0 | R147: 19.30383765 | S147: 19.30383765 | T147: 70.90865613 | U147: 21.58695886 | V147: 46.54791442 | W147: 0.07914084393 | X147: 68.21401412 | Y147: 22.85794313 | Z147: 22.73927472
A148: 6 | B148: 12 | C148: 5.8 | D148: 74 | E148: 14.71848426 | F148: 73 | G148: 0 | H148: 0 | I148: =MAX(0,Shadows!$C$2/(TAN(RADIANS('Glasgow Solar Spreadsheet '!N148)))) -> 0.8487612054 | J148: -22.53957761 | K148: -5.788931011 | L148: 11.62265115 | M148: 5.660232753 | N148: 11.47254996 | O148: 78.52745004 | P148: 90 | Q148: 0 | R148: 5.333484216 | S148: 5.333484216 | T148: 68.57280592 | U148: 27.03357985 | V148: 81.3867278 | W148: 0.1332640878 | X148: 108.5535717 | Y148: 36.29449592 | Z148: 36.29449592
A149: 6 | B149: 13 | C149: 5.8 | D149: 9 | E149: 1.750967528 | F149: 72 | G149: 0 | H149: 0 | I149: =MAX(0,Shadows!$C$2/(TAN(RADIANS('Glasgow Solar Spreadsheet '!N149)))) -> 0.8684955702 | J149: -22.53957761 | K149: -5.788931011 | L149: 12.62265115 | M149: -9.339767247 | N149: 11.21855081 | O149: 78.78144919 | P149: 90 | Q149: 0 | R149: -8.789933096 | S149: 8.789933096 | T149: 68.90435301 | U149: 3.239333338 | V149: 72.75845911 | W149: 0.1120442914 | X149: 76.10983674 | Y149: 25.44704992 | Z149: 25.44704992
A150: 6 | B150: 14 | C150: 5.8 | D150: 0 | E150: 0 | F150: 36 | G150: 0.04572088184 | H150: 0.04608959863 | I150: =MAX(0,Shadows!$C$2/(TAN(RADIANS('Glasgow Solar Spreadsheet '!N150)))) -> 1.095518277 | J150: -22.53957761 | K150: -5.788931011 | L150: 13.62265115 | M150: -24.33976725 | N150: 8.936006373 | O150: 81.06399363 | P150: 90 | Q150: 0 | R150: -22.6649798 | S150: 22.6649798 | T150: 71.86454963 | U150: 0 | V150: 35.72653955 | W150: 0.05469208916 | X150: 35.78123164 | Y150: 11.96332599 | Z150: 11.41194109
A151: 6 | B151: 15 | C151: 5.8 | D151: 0 | E151: 0 | F151: 20 | G151: 0.3431861091 | H151: 0.345953739 | I151: =MAX(0,Shadows!$C$2/(TAN(RADIANS('Glasgow Solar Spreadsheet '!N151)))) -> 2.045684565 | J151: -22.53957761 | K151: -5.788931011 | L151: 14.62265115 | M151: -39.33976725 | N151: 4.813295544 | O151: 85.18670446 | P151: 90 | Q151: 0 | R151: -35.98462217 | S151: 35.98462217 | T151: 77.13524251 | U151: 0 | V151: 19.84807753 | W151: 0.03038449398 | X151: 19.87846202 | Y151: 6.646292215 | Z151: 4.346982573
A152: 6 | B152: 16 | C152: 5.4 | D152: 0 | E152: 0 | F152: 5 | G152: 0 | H152: 0 | I152: =MAX(0,Shadows!$C$2/(TAN(RADIANS('Glasgow Solar Spreadsheet '!N152)))) -> 0 | J152: -22.53957761 | K152: -5.788931011 | L152: 15.62265115 | M152: -54.33976725 | N152: -0.8507116687 | O152: 90.85071167 | P152: 90 | Q152: 0 | R152: -48.63449934 | S152: 48.63449934 | T152: 84.25375305 | U152: 0 | V152: 4.962019383 | W152: 0.007596123494 | X152: 4.969615506 | Y152: 1.664041959 | Z152: 1.664041959
A153: 6 | B153: 17 | C153: 5.1 | D153: 0 | E153: 0 | F153: 0 | G153: 0 | H153: 0 | I153: =MAX(0,Shadows!$C$2/(TAN(RADIANS('Glasgow Solar Spreadsheet '!N153)))) -> 0 | J153: -22.53957761 | K153: -5.788931011 | L153: 16.62265115 | M153: -69.33976725 | N153: -7.712793792 | O153: 97.71279379 | P153: 90 | Q153: 0 | R153: -60.70432595 | S153: 60.70432595 | T153: 92.74943648 | U153: 0 | V153: 0 | W153: 0 | X153: 0 | Y153: 0 | Z153: 0
A154: 6 | B154: 18 | C154: 4.7 | D154: 0 | E154: 0 | F154: 0 | G154: 0 | H154: 0 | I154: =MAX(0,Shadows!$C$2/(TAN(RADIANS('Glasgow Solar Spreadsheet '!N154)))) -> 0 | J154: -22.53957761 | K154: -5.788931011 | L154: 17.62265115 | M154: -84.33976725 | N154: -15.42861512 | O154: 105.4286151 | P154: 90 | Q154: 0 | R154: -72.45343999 | S154: 72.45343999 | T154: 102.2120824 | U154: 0 | V154: 0 | W154: 0 | X154: 0 | Y154: 0 | Z154: 0
A155: 6 | B155: 19 | C155: 4.7 | D155: 0 | E155: 0 | F155: 0 | G155: 0 | H155: 0 | I155: =MAX(0,Shadows!$C$2/(TAN(RADIANS('Glasgow Solar Spreadsheet '!N155)))) -> 0 | J155: -22.53957761 | K155: -5.788931011 | L155: 18.62265115 | M155: -99.33976725 | N155: -23.66282109 | O155: 113.6628211 | P155: 90 | Q155: 0 | R155: -84.28515051 | S155: 84.28515051 | T155: 112.2976616 | U155: 0 | V155: 0 | W155: 0 | X155: 0 | Y155: 0 | Z155: 0
A156: 6 | B156: 20 | C156: 4.7 | D156: 0 | E156: 0 | F156: 0 | G156: 0 | H156: 0 | I156: =MAX(0,Shadows!$C$2/(TAN(RADIANS('Glasgow Solar Spreadsheet '!N156)))) -> 0 | J156: -22.53957761 | K156: -5.788931011 | L156: 19.62265115 | M156: -114.3397672 | N156: -32.0685652 | O156: 122.0685652 | P156: 90 | Q156: 0 | R156: -83.23979474 | S156: 83.23979474 | T156: 120.3675899 | U156: 0 | V156: 0 | W156: 0 | X156: 0 | Y156: 0 | Z156: 0
A157: 6 | B157: 21 | C157: 4.7 | D157: 0 | E157: 0 | F157: 0 | G157: 0 | H157: 0 | I157: =MAX(0,Shadows!$C$2/(TAN(RADIANS('Glasgow Solar Spreadsheet '!N157)))) -> 0 | J157: -22.53957761 | K157: -5.788931011 | L157: 20.62265115 | M157: -129.3397672 | N157: -40.23675554 | O157: 130.2367555 | P157: 90 | Q157: 0 | R157: -69.34745473 | S157: 69.34745473 | T157: 126.1130436 | U157: 0 | V157: 0 | W157: 0 | X157: 0 | Y157: 0 | Z157: 0
A158: 6 | B158: 22 | C158: 4.6 | D158: 0 | E158: 0 | F158: 0 | G158: 0 | H158: 0 | I158: =MAX(0,Shadows!$C$2/(TAN(RADIANS('Glasgow Solar Spreadsheet '!N158)))) -> 0 | J158: -22.53957761 | K158: -5.788931011 | L158: 21.62265115 | M158: -144.3397672 | N158: -47.60863226 | O158: 137.6086323 | P158: 90 | Q158: 0 | R158: -53.00193587 | S158: 53.00193587 | T158: 131.0626611 | U158: 0 | V158: 0 | W158: 0 | X158: 0 | Y158: 0 | Z158: 0
A159: 6 | B159: 23 | C159: 4.6 | D159: 0 | E159: 0 | F159: 0 | G159: 0 | H159: 0 | I159: =MAX(0,Shadows!$C$2/(TAN(RADIANS('Glasgow Solar Spreadsheet '!N159)))) -> 0 | J159: -22.53957761 | K159: -5.788931011 | L159: 22.62265115 | M159: -159.3397672 | N159: -53.36477085 | O159: 143.3647709 | P159: 90 | Q159: 0 | R159: -33.10066806 | S159: 33.10066806 | T159: 134.7050001 | U159: 0 | V159: 0 | W159: 0 | X159: 0 | Y159: 0 | Z159: 0
A160: 6 | B160: 24 | C160: 4.5 | D160: 0 | E160: 0 | F160: 0 | G160: 0 | H160: 0 | I160: =MAX(0,Shadows!$C$2/(TAN(RADIANS('Glasgow Solar Spreadsheet '!N160)))) -> 0 | J160: -22.53957761 | K160: -5.788931011 | L160: 23.62265115 | M160: -174.3397672 | N160: -56.43661158 | O160: 146.4366116 | P160: 90 | Q160: 0 | R160: -9.483946174 | S160: 9.483946174 | T160: 136.545815 | U160: 0 | V160: 0 | W160: 0 | X160: 0 | Y160: 0 | Z160: 0
A161: 7 | B161: 1 | C161: 4.4 | D161: 0 | E161: 0 | F161: 0 | G161: 0 | H161: 0 | I161: =MAX(0,Shadows!$C$2/(TAN(RADIANS('Glasgow Solar Spreadsheet '!N161)))) -> 0 | J161: -22.42485586 | K161: -6.207868687 | L161: 0.6156688552 | M161: 170.7649672 | N161: -55.89124309 | O161: 145.8912431 | P161: 90 | Q161: 0 | R161: 15.34005138 | S161: 15.34005138 | T161: 136.177566 | U161: 0 | V161: 0 | W161: 0 | X161: 0 | Y161: 0 | Z161: 0
A162: 7 | B162: 2 | C162: 4.2 | D162: 0 | E162: 0 | F162: 0 | G162: 0 | H162: 0 | I162: =MAX(0,Shadows!$C$2/(TAN(RADIANS('Glasgow Solar Spreadsheet '!N162)))) -> 0 | J162: -22.42485586 | K162: -6.207868687 | L162: 1.615668855 | M162: 155.7649672 | N162: -52.08829039 | O162: 142.0882904 | P162: 90 | Q162: 0 | R162: 38.13613435 | S162: 38.13613435 | T162: 133.8720308 | U162: 0 | V162: 0 | W162: 0 | X162: 0 | Y162: 0 | Z162: 0
A163: 7 | B163: 3 | C163: 4.1 | D163: 0 | E163: 0 | F163: 0 | G163: 0 | H163: 0 | I163: =MAX(0,Shadows!$C$2/(TAN(RADIANS('Glasgow Solar Spreadsheet '!N163)))) -> 0 | J163: -22.42485586 | K163: -6.207868687 | L163: 2.615668855 | M163: 140.7649672 | N163: -45.86390214 | O163: 135.8639021 | P163: 90 | Q163: 0 | R163: 57.09872283 | S163: 57.09872283 | T163: 129.8739025 | U163: 0 | V163: 0 | W163: 0 | X163: 0 | Y163: 0 | Z163: 0
A164: 7 | B164: 4 | C164: 3.9 | D164: 0 | E164: 0 | F164: 0 | G164: 0 | H164: 0 | I164: =MAX(0,Shadows!$C$2/(TAN(RADIANS('Glasgow Solar Spreadsheet '!N164)))) -> 0 | J164: -22.42485586 | K164: -6.207868687 | L164: 3.615668855 | M164: 125.7649672 | N164: -38.24454539 | O164: 128.2445454 | P164: 90 | Q164: 0 | R164: 72.75308748 | S164: 72.75308748 | T164: 124.6930533 | U164: 0 | V164: 0 | W164: 0 | X164: 0 | Y164: 0 | Z164: 0
A165: 7 | B165: 5 | C165: 3.7 | D165: 0 | E165: 0 | F165: 0 | G165: 0 | H165: 0 | I165: =MAX(0,Shadows!$C$2/(TAN(RADIANS('Glasgow Solar Spreadsheet '!N165)))) -> 0 | J165: -22.42485586 | K165: -6.207868687 | L165: 4.615668855 | M165: 110.7649672 | N165: -29.97863538 | O165: 119.9786354 | P165: 90 | Q165: 0 | R165: 86.22795256 | S165: 86.22795256 | T165: 118.8285574 | U165: 0 | V165: 0 | W165: 0 | X165: 0 | Y165: 0 | Z165: 0
A166: 7 | B166: 6 | C166: 3.5 | D166: 0 | E166: 0 | F166: 0 | G166: 0 | H166: 0 | I166: =MAX(0,Shadows!$C$2/(TAN(RADIANS('Glasgow Solar Spreadsheet '!N166)))) -> 0 | J166: -22.42485586 | K166: -6.207868687 | L166: 5.615668855 | M166: 95.76496717 | N166: -21.57964701 | O166: 111.579647 | P166: 90 | Q166: 0 | R166: 81.50518572 | S166: 81.50518572 | T166: 109.7765804 | U166: 0 | V166: 0 | W166: 0 | X166: 0 | Y166: 0 | Z166: 0
A167: 7 | B167: 7 | C167: 3.5 | D167: 0 | E167: 0 | F167: 0 | G167: 0 | H167: 0 | I167: =MAX(0,Shadows!$C$2/(TAN(RADIANS('Glasgow Solar Spreadsheet '!N167)))) -> 0 | J167: -22.42485586 | K167: -6.207868687 | L167: 6.615668855 | M167: 80.76496717 | N167: -13.43596076 | O167: 103.4359608 | P167: 90 | Q167: 0 | R167: 69.73058101 | S167: 69.73058101 | T167: 99.80625379 | U167: 0 | V167: 0 | W167: 0 | X167: 0 | Y167: 0 | Z167: 0
A168: 7 | B168: 8 | C168: 3.6 | D168: 0 | E168: 0 | F168: 0 | G168: 0 | H168: 0 | I168: =MAX(0,Shadows!$C$2/(TAN(RADIANS('Glasgow Solar Spreadsheet '!N168)))) -> 0 | J168: -22.42485586 | K168: -6.207868687 | L168: 7.615668855 | M168: 65.76496717 | N168: -5.88886592 | O168: 95.88886592 | P168: 90 | Q168: 0 | R168: 57.92850292 | S168: 57.92850292 | T168: 90.53422769 | U168: 0 | V168: 0 | W168: 0 | X168: 0 | Y168: 0 | Z168: 0
A169: 7 | B169: 9 | C169: 3.6 | D169: 0 | E169: 0 | F169: 0 | G169: 0.8577094747 | H169: 0.8646264866 | I169: =MAX(0,Shadows!$C$2/(TAN(RADIANS('Glasgow Solar Spreadsheet '!N169)))) -> 13.62658688 | J169: -22.42485586 | K169: -6.207868687 | L169: 8.615668855 | M169: 50.76496717 | N169: 0.7242596871 | O169: 89.27574031 | P169: 90 | Q169: 0 | R169: 45.72878522 | S169: 45.72878522 | T169: 82.31916229 | U169: 0 | V169: 0 | W169: 0 | X169: 0 | Y169: 0 | Z169: 0
A170: 7 | B170: 10 | C170: 4.3 | D170: 0 | E170: 0 | F170: 21 | G170: 0.23786873 | H170: 0.2397870262 | I170: =MAX(0,Shadows!$C$2/(TAN(RADIANS('Glasgow Solar Spreadsheet '!N170)))) -> 1.623564727 | J170: -22.42485586 | K170: -6.207868687 | L170: 9.615668855 | M170: 35.76496717 | N170: 6.056381124 | O170: 83.94361888 | P170: 90 | Q170: 0 | R170: 32.90839154 | S170: 32.90839154 | T170: 75.58904223 | U170: 0 | V170: 20.84048141 | W170: 0.03190371867 | X170: 20.87238513 | Y170: 7.01749208 | Z170: 5.334788523
A171: 7 | B171: 11 | C171: 5.1 | D171: 50 | E171: 8.483604355 | F171: 66 | G171: 0.0002638741143 | H171: 0.0002660021314 | I171: =MAX(0,Shadows!$C$2/(TAN(RADIANS('Glasgow Solar Spreadsheet '!N171)))) -> 1.000526007 | J171: -22.42485586 | K171: -6.207868687 | L171: 10.61566886 | M171: 20.76496717 | N171: 9.768754062 | O171: 80.23124594 | P171: 90 | Q171: 0 | R171: 19.42346039 | S171: 19.42346039 | T171: 70.82314402 | U171: 16.42425746 | V171: 70.77171453 | W171: 0.1131573314 | X171: 87.30912933 | Y171: 29.26739963 | Z171: 29.25961444
A172: 7 | B172: 12 | C172: 5.8 | D172: 316 | E172: 63.44102138 | F172: 63 | G172: 0 | H172: 0 | I172: =MAX(0,Shadows!$C$2/(TAN(RADIANS('Glasgow Solar Spreadsheet '!N172)))) -> 0.8405533482 | J172: -22.42485586 | K172: -6.207868687 | L172: 11.61566886 | M172: 5.764967172 | N172: 11.5815647 | O172: 78.4184353 | P172: 90 | Q172: 0 | R172: 5.438768574 | S172: 5.438768574 | T172: 68.46561493 | U172: 115.990813 | V172: 82.1459651 | W172: 0.1920923226 | X172: 198.3288704 | Y172: 66.31054383 | Z172: 66.31054383
A173: 7 | B173: 13 | C173: 5.5 | D173: 298 | E173: 58.60473924 | F173: 77 | G173: 0 | H173: 0 | I173: =MAX(0,Shadows!$C$2/(TAN(RADIANS('Glasgow Solar Spreadsheet '!N173)))) -> 0.8588167257 | J173: -22.42485586 | K173: -6.207868687 | L173: 12.61566886 | M173: -9.235032828 | N173: 11.34172413 | O173: 78.65827587 | P173: 90 | Q173: 0 | R173: -8.702484242 | S173: 8.702484242 | T173: 68.77880094 | U173: 107.8669107 | V173: 97.71102381 | W173: 0.2060140691 | X173: 205.7839486 | Y173: 68.87979748 | Z173: 68.87979748
A174: 7 | B174: 14 | C174: 5.2 | D174: 311 | E174: 49.02731082 | F174: 57 | G174: 0.03813892657 | H174: 0.03844649856 | I174: =MAX(0,Shadows!$C$2/(TAN(RADIANS('Glasgow Solar Spreadsheet '!N174)))) -> 1.079045013 | J174: -22.42485586 | K174: -6.207868687 | L174: 13.61566886 | M174: -24.23503283 | N174: 9.070176925 | O174: 80.92982308 | P174: 90 | Q174: 0 | R174: -22.59687537 | S174: 22.59687537 | T174: 71.72597999 | U174: 97.517757 | V174: 71.77530233 | W174: 0.1610793093 | X174: 169.4541386 | Y174: 56.78265844 | Z174: 54.59956405
A175: 7 | B175: 15 | C175: 4.9 | D175: 74 | E175: 6.391622118 | F175: 50 | G175: 0.3303180051 | H175: 0.3329818599 | I175: =MAX(0,Shadows!$C$2/(TAN(RADIANS('Glasgow Solar Spreadsheet '!N175)))) -> 1.986902084 | J175: -22.42485586 | K175: -6.207868687 | L175: 14.61566886 | M175: -39.23503283 | N175: 4.95499801 | O175: 85.04500199 | P175: 90 | Q175: 0 | R175: -35.93497699 | S175: 35.93497699 | T175: 76.98914246 | U175: 16.6600413 | V175: 53.00026943 | W175: 0.08567154513 | X175: 69.74598227 | Y175: 23.39728014 | Z175: 15.60641028
A176: 7 | B176: 16 | C176: 3.9 | D176: 0 | E176: 0 | F176: 17 | G176: 0 | H176: 0 | I176: =MAX(0,Shadows!$C$2/(TAN(RADIANS('Glasgow Solar Spreadsheet '!N176)))) -> 0 | J176: -22.42485586 | K176: -6.207868687 | L176: 15.61566886 | M176: -54.23503283 | N176: -0.7044840365 | O176: 90.70448404 | P176: 90 | Q176: 0 | R176: -48.60067544 | S176: 48.60067544 | T176: 84.10435553 | U176: 0 | V176: 16.8708659 | W176: 0.02582681988 | X176: 16.89669272 | Y176: 5.689221198 | Z176: 5.689221198
A177: 7 | B177: 17 | C177: 2.8 | D177: 0 | E177: 0 | F177: 0 | G177: 0 | H177: 0 | I177: =MAX(0,Shadows!$C$2/(TAN(RADIANS('Glasgow Solar Spreadsheet '!N177)))) -> 0 | J177: -22.42485586 | K177: -6.207868687 | L177: 16.61566886 | M177: -69.23503283 | N177: -7.564221691 | O177: 97.56422169 | P177: 90 | Q177: 0 | R177: -60.6828588 | S177: 60.6828588 | T177: 92.59935603 | U177: 0 | V177: 0 | W177: 0 | X177: 0 | Y177: 0 | Z177: 0
A178: 7 | B178: 18 | C178: 1.8 | D178: 0 | E178: 0 | F178: 0 | G178: 0 | H178: 0 | I178: =MAX(0,Shadows!$C$2/(TAN(RADIANS('Glasgow Solar Spreadsheet '!N178)))) -> 0 | J178: -22.42485586 | K178: -6.207868687 | L178: 17.61566886 | M178: -84.23503283 | N178: -15.27904088 | O178: 105.2790409 | P178: 90 | Q178: 0 | R178: -72.44057463 | S178: 72.44057463 | T178: 102.0625676 | U178: 0 | V178: 0 | W178: 0 | X178: 0 | Y178: 0 | Z178: 0
A179: 7 | B179: 19 | C179: 1.6 | D179: 0 | E179: 0 | F179: 0 | G179: 0 | H179: 0 | I179: =MAX(0,Shadows!$C$2/(TAN(RADIANS('Glasgow Solar Spreadsheet '!N179)))) -> 0 | J179: -22.42485586 | K179: -6.207868687 | L179: 18.61566886 | M179: -99.23503283 | N179: -23.5129314 | O179: 113.5129314 | P179: 90 | Q179: 0 | R179: -84.27673728 | S179: 84.27673728 | T179: 112.1489668 | U179: 0 | V179: 0 | W179: 0 | X179: 0 | Y179: 0 | Z179: 0
A180: 7 | B180: 20 | C180: 1.3 | D180: 0 | E180: 0 | F180: 0 | G180: 0 | H180: 0 | I180: =MAX(0,Shadows!$C$2/(TAN(RADIANS('Glasgow Solar Spreadsheet '!N180)))) -> 0 | J180: -22.42485586 | K180: -6.207868687 | L180: 19.61566886 | M180: -114.2350328 | N180: -31.91868724 | O180: 121.9186872 | P180: 90 | Q180: 0 | R180: -83.24915077 | S180: 83.24915077 | T180: 120.2223162 | U180: 0 | V180: 0 | W180: 0 | X180: 0 | Y180: 0 | Z180: 0
A181: 7 | B181: 21 | C181: 1.1 | D181: 0 | E181: 0 | F181: 0 | G181: 0 | H181: 0 | I181: =MAX(0,Shadows!$C$2/(TAN(RADIANS('Glasgow Solar Spreadsheet '!N181)))) -> 0 | J181: -22.42485586 | K181: -6.207868687 | L181: 20.61566886 | M181: -129.2350328 | N181: -40.08735658 | O181: 130.0873566 | P181: 90 | Q181: 0 | R181: -69.36624989 | S181: 69.36624989 | T181: 125.9695792 | U181: 0 | V181: 0 | W181: 0 | X181: 0 | Y181: 0 | Z181: 0
A182: 7 | B182: 22 | C182: 1.1 | D182: 0 | E182: 0 | F182: 0 | G182: 0 | H182: 0 | I182: =MAX(0,Shadows!$C$2/(TAN(RADIANS('Glasgow Solar Spreadsheet '!N182)))) -> 0 | J182: -22.42485586 | K182: -6.207868687 | L182: 21.61566886 | M182: -144.2350328 | N182: -47.46135522 | O182: 137.4613552 | P182: 90 | Q182: 0 | R182: -53.04475793 | S182: 53.04475793 | T182: 130.9232065 | U182: 0 | V182: 0 | W182: 0 | X182: 0 | Y182: 0 | Z182: 0
A183: 7 | B183: 23 | C183: 1 | D183: 0 | E183: 0 | F183: 0 | G183: 0 | H183: 0 | I183: =MAX(0,Shadows!$C$2/(TAN(RADIANS('Glasgow Solar Spreadsheet '!N183)))) -> 0 | J183: -22.42485586 | K183: -6.207868687 | L183: 22.61566886 | M183: -159.2350328 | N183: -53.22441227 | O183: 143.2244123 | P183: 90 | Q183: 0 | R183: -33.18960664 | S183: 33.18960664 | T183: 134.5729897 | U183: 0 | V183: 0 | W183: 0 | X183: 0 | Y183: 0 | Z183: 0
A184: 7 | B184: 24 | C184: 1 | D184: 0 | E184: 0 | F184: 0 | G184: 0 | H184: 0 | I184: =MAX(0,Shadows!$C$2/(TAN(RADIANS('Glasgow Solar Spreadsheet '!N184)))) -> 0 | J184: -22.42485586 | K184: -6.207868687 | L184: 23.61566886 | M184: -174.2350328 | N184: -56.31270816 | O184: 146.3127082 | P184: 90 | Q184: 0 | R184: -9.636903143 | S184: 9.636903143 | T184: 136.4255682 | U184: 0 | V184: 0 | W184: 0 | X184: 0 | Y184: 0 | Z184: 0
A185: 8 | B185: 1 | C185: 1.5 | D185: 0 | E185: 0 | F185: 0 | G185: 0 | H185: 0 | I185: =MAX(0,Shadows!$C$2/(TAN(RADIANS('Glasgow Solar Spreadsheet '!N185)))) -> 0 | J185: -22.30348915 | K185: -6.6200718 | L185: 0.6087988033 | M185: 170.868018 | N185: -55.78664116 | O185: 145.7866412 | P185: 90 | Q185: 0 | R185: 15.13801497 | S185: 15.13801497 | T185: 136.0657206 | U185: 0 | V185: 0 | W185: 0 | X185: 0 | Y185: 0 | Z185: 0
A186: 8 | B186: 2 | C186: 2 | D186: 0 | E186: 0 | F186: 0 | G186: 0 | H186: 0 | I186: =MAX(0,Shadows!$C$2/(TAN(RADIANS('Glasgow Solar Spreadsheet '!N186)))) -> 0 | J186: -22.30348915 | K186: -6.6200718 | L186: 1.608798803 | M186: 155.868018 | N186: -52.01137964 | O186: 142.0113796 | P186: 90 | Q186: 0 | R186: 37.91859986 | S186: 37.91859986 | T186: 133.7761346 | U186: 0 | V186: 0 | W186: 0 | X186: 0 | Y186: 0 | Z186: 0
A187: 8 | B187: 3 | C187: 2.5 | D187: 0 | E187: 0 | F187: 0 | G187: 0 | H187: 0 | I187: =MAX(0,Shadows!$C$2/(TAN(RADIANS('Glasgow Solar Spreadsheet '!N187)))) -> 0 | J187: -22.30348915 | K187: -6.6200718 | L187: 2.608798803 | M187: 140.868018 | N187: -45.80797367 | O187: 135.8079737 | P187: 90 | Q187: 0 | R187: 56.89229833 | S187: 56.89229833 | T187: 129.7917153 | U187: 0 | V187: 0 | W187: 0 | X187: 0 | Y187: 0 | Z187: 0
A188: 8 | B188: 4 | C188: 2.5 | D188: 0 | E188: 0 | F188: 0 | G188: 0 | H188: 0 | I188: =MAX(0,Shadows!$C$2/(TAN(RADIANS('Glasgow Solar Spreadsheet '!N188)))) -> 0 | J188: -22.30348915 | K188: -6.6200718 | L188: 3.608798803 | M188: 125.868018 | N188: -38.20087508 | O188: 128.2008751 | P188: 90 | Q188: 0 | R188: 72.5646957 | S188: 72.5646957 | T188: 124.620455 | U188: 0 | V188: 0 | W188: 0 | X188: 0 | Y188: 0 | Z188: 0
A189: 8 | B189: 5 | C189: 2.6 | D189: 0 | E189: 0 | F189: 0 | G189: 0 | H189: 0 | I189: =MAX(0,Shadows!$C$2/(TAN(RADIANS('Glasgow Solar Spreadsheet '!N189)))) -> 0 | J189: -22.30348915 | K189: -6.6200718 | L189: 4.608798803 | M189: 110.868018 | N189: -29.93980632 | O189: 119.9398063 | P189: 90 | Q189: 0 | R189: 86.05557348 | S189: 86.05557348 | T189: 118.760969 | U189: 0 | V189: 0 | W189: 0 | X189: 0 | Y189: 0 | Z189: 0
A190: 8 | B190: 6 | C190: 2.6 | D190: 0 | E190: 0 | F190: 0 | G190: 0 | H190: 0 | I190: =MAX(0,Shadows!$C$2/(TAN(RADIANS('Glasgow Solar Spreadsheet '!N190)))) -> 0 | J190: -22.30348915 | K190: -6.6200718 | L190: 5.608798803 | M190: 95.86801795 | N190: -21.53985252 | O190: 111.5398525 | P190: 90 | Q190: 0 | R190: 81.66549329 | S190: 81.66549329 | T190: 109.7646694 | U190: 0 | V190: 0 | W190: 0 | X190: 0 | Y190: 0 | Z190: 0
A191: 8 | B191: 7 | C191: 2.9 | D191: 0 | E191: 0 | F191: 0 | G191: 0 | H191: 0 | I191: =MAX(0,Shadows!$C$2/(TAN(RADIANS('Glasgow Solar Spreadsheet '!N191)))) -> 0 | J191: -22.30348915 | K191: -6.6200718 | L191: 6.608798803 | M191: 80.86801795 | N191: -13.39053486 | O191: 103.3905349 | P191: 90 | Q191: 0 | R191: 69.88218995 | S191: 69.88218995 | T191: 99.78584343 | U191: 0 | V191: 0 | W191: 0 | X191: 0 | Y191: 0 | Z191: 0
A192: 8 | B192: 8 | C192: 3.3 | D192: 0 | E192: 0 | F192: 0 | G192: 0 | H192: 0 | I192: =MAX(0,Shadows!$C$2/(TAN(RADIANS('Glasgow Solar Spreadsheet '!N192)))) -> 0 | J192: -22.30348915 | K192: -6.6200718 | L192: 7.608798803 | M192: 65.86801795 | N192: -5.833897297 | O192: 95.8338973 | P192: 90 | Q192: 0 | R192: 58.07344936 | S192: 58.07344936 | T192: 90.50109301 | U192: 0 | V192: 0 | W192: 0 | X192: 0 | Y192: 0 | Z192: 0
A193: 8 | B193: 9 | C193: 3.6 | D193: 0 | E193: 0 | F193: 0 | G193: 0.846053396 | H193: 0.8528764073 | I193: =MAX(0,Shadows!$C$2/(TAN(RADIANS('Glasgow Solar Spreadsheet '!N193)))) -> 12.46027173 | J193: -22.30348915 | K193: -6.6200718 | L193: 8.608798803 | M193: 50.86801795 | N193: 0.7920440863 | O193: 89.20795591 | P193: 90 | Q193: 0 | R193: 45.86742343 | S193: 45.86742343 | T193: 82.26932914 | U193: 0 | V193: 0 | W193: 0 | X193: 0 | Y193: 0 | Z193: 0
A194: 8 | B194: 10 | C194: 4.1 | D194: 0 | E194: 0 | F194: 7 | G194: 0.2313961719 | H194: 0.23326227 | I194: =MAX(0,Shadows!$C$2/(TAN(RADIANS('Glasgow Solar Spreadsheet '!N194)))) -> 1.60143514 | J194: -22.30348915 | K194: -6.6200718 | L194: 9.608798803 | M194: 35.86801795 | N194: 6.139436972 | O194: 83.86056303 | P194: 90 | Q194: 0 | R194: 33.03918403 | S194: 33.03918403 | T194: 75.51907528 | U194: 0 | V194: 6.946827136 | W194: 0.01063457289 | X194: 6.957461708 | Y194: 2.34089226 | Z194: 1.794850418
A195: 8 | B195: 11 | C195: 4.6 | D195: 0 | E195: 0 | F195: 22 | G195: 0 | H195: 0 | I195: =MAX(0,Shadows!$C$2/(TAN(RADIANS('Glasgow Solar Spreadsheet '!N195)))) -> 0.9902332754 | J195: -22.30348915 | K195: -6.6200718 | L195: 10.6087988 | M195: 20.86801795 | N195: 9.868306681 | O195: 80.13169332 | P195: 90 | Q195: 0 | R195: 19.54311632 | S195: 19.54311632 | T195: 70.73101069 | U195: 0 | V195: 21.83288528 | W195: 0.03342294337 | X195: 21.86630823 | Y195: 7.343510983 | Z195: 7.343510983
A196: 8 | B196: 12 | C196: 5.1 | D196: 0 | E196: 0 | F196: 36 | G196: 0 | H196: 0 | I196: =MAX(0,Shadows!$C$2/(TAN(RADIANS('Glasgow Solar Spreadsheet '!N196)))) -> 0.8320127323 | J196: -22.30348915 | K196: -6.6200718 | L196: 11.6087988 | M196: 5.86801795 | N196: 11.69718955 | O196: 78.30281045 | P196: 90 | Q196: 0 | R196: 5.543104111 | S196: 5.543104111 | T196: 68.35183469 | U196: 0 | V196: 35.72653955 | W196: 0.05469208916 | X196: 35.78123164 | Y196: 11.99443419 | Z196: 11.99443419
A197: 8 | B197: 13 | C197: 5 | D197: 0 | E197: 0 | F197: 41 | G197: 0 | H197: 0 | I197: =MAX(0,Shadows!$C$2/(TAN(RADIANS('Glasgow Solar Spreadsheet '!N197)))) -> 0.848856595 | J197: -22.30348915 | K197: -6.6200718 | L197: 12.6087988 | M197: -9.13198205 | N197: 11.47129492 | O197: 78.52870508 | P197: 90 | Q197: 0 | R197: -8.616990353 | S197: 8.616990353 | T197: 68.6469296 | U197: 0 | V197: 40.68855894 | W197: 0.06228821265 | X197: 40.75084715 | Y197: 13.66538908 | Z197: 13.66538908
A198: 8 | B198: 14 | C198: 4.9 | D198: 0 | E198: 0 | F198: 36 | G198: 0.03032355424 | H198: 0.03056809903 | I198: =MAX(0,Shadows!$C$2/(TAN(RADIANS('Glasgow Solar Spreadsheet '!N198)))) -> 1.062336478 | J198: -22.30348915 | K198: -6.6200718 | L198: 13.6087988 | M198: -24.13198205 | N198: 9.210407061 | O198: 80.78959294 | P198: 90 | Q198: 0 | R198: -22.53164664 | S198: 22.53164664 | T198: 71.58157488 | U198: 0 | V198: 35.72653955 | W198: 0.05469208916 | X198: 35.78123164 | Y198: 12.00332225 | Z198: 11.63640351
A199: 8 | B199: 15 | C199: 4.7 | D199: 0 | E199: 0 | F199: 21 | G199: 0.3171874738 | H199: 0.3197454373 | I199: =MAX(0,Shadows!$C$2/(TAN(RADIANS('Glasgow Solar Spreadsheet '!N199)))) -> 1.929231725 | J199: -22.30348915 | K199: -6.6200718 | L199: 14.6087988 | M199: -39.13198205 | N199: 5.10234674 | O199: 84.89765326 | P199: 90 | Q199: 0 | R199: -35.88897129 | S199: 35.88897129 | T199: 76.83780934 | U199: 0 | V199: 20.84048141 | W199: 0.03190371867 | X199: 20.87238513 | Y199: 7.007122679 | Z199: 4.766627173
A200: 8 | B200: 16 | C200: 4.6 | D200: 0 | E200: 0 | F200: 6 | G200: 0 | H200: 0 | I200: =MAX(0,Shadows!$C$2/(TAN(RADIANS('Glasgow Solar Spreadsheet '!N200)))) -> 0 | J200: -22.30348915 | K200: -6.6200718 | L200: 15.6087988 | M200: -54.13198205 | N200: -0.5530350223 | O200: 90.55303502 | P200: 90 | Q200: 0 | R200: -48.57109146 | S200: 48.57109146 | T200: 83.95033697 | U200: 0 | V200: 5.954423259 | W200: 0.009115348193 | X200: 5.963538607 | Y200: 2.002775723 | Z200: 2.002775723
A201: 8 | B201: 17 | C201: 4.5 | D201: 0 | E201: 0 | F201: 0 | G201: 0 | H201: 0 | I201: =MAX(0,Shadows!$C$2/(TAN(RADIANS('Glasgow Solar Spreadsheet '!N201)))) -> 0 | J201: -22.30348915 | K201: -6.6200718 | L201: 16.6087988 | M201: -69.13198205 | N201: -7.410806529 | O201: 97.41080653 | P201: 90 | Q201: 0 | R201: -60.66611184 | S201: 60.66611184 | T201: 92.44519646 | U201: 0 | V201: 0 | W201: 0 | X201: 0 | Y201: 0 | Z201: 0
A202: 8 | B202: 18 | C202: 4.4 | D202: 0 | E202: 0 | F202: 0 | G202: 0 | H202: 0 | I202: =MAX(0,Shadows!$C$2/(TAN(RADIANS('Glasgow Solar Spreadsheet '!N202)))) -> 0 | J202: -22.30348915 | K202: -6.6200718 | L202: 17.6087988 | M202: -84.13198205 | N202: -15.12490991 | O202: 105.1249099 | P202: 90 | Q202: 0 | R202: -72.43285088 | S202: 72.43285088 | T202: 101.9093986 | U202: 0 | V202: 0 | W202: 0 | X202: 0 | Y202: 0 | Z202: 0
A203: 8 | B203: 19 | C203: 4.1 | D203: 0 | E203: 0 | F203: 0 | G203: 0 | H203: 0 | I203: =MAX(0,Shadows!$C$2/(TAN(RADIANS('Glasgow Solar Spreadsheet '!N203)))) -> 0 | J203: -22.30348915 | K203: -6.6200718 | L203: 18.6087988 | M203: -99.13198205 | N203: -23.35864254 | O203: 113.3586425 | P203: 90 | Q203: 0 | R203: -84.27388345 | S203: 84.27388345 | T203: 111.9968952 | U203: 0 | V203: 0 | W203: 0 | X203: 0 | Y203: 0 | Z203: 0
A204: 8 | B204: 20 | C204: 3.7 | D204: 0 | E204: 0 | F204: 0 | G204: 0 | H204: 0 | I204: =MAX(0,Shadows!$C$2/(TAN(RADIANS('Glasgow Solar Spreadsheet '!N204)))) -> 0 | J204: -22.30348915 | K204: -6.6200718 | L204: 19.6087988 | M204: -114.131982 | N204: -31.76440241 | O204: 121.7644024 | P204: 90 | Q204: 0 | R204: -83.25250169 | S204: 83.25250169 | T204: 120.0716979 | U204: 0 | V204: 0 | W204: 0 | X204: 0 | Y204: 0 | Z204: 0
A205: 8 | B205: 21 | C205: 3.4 | D205: 0 | E205: 0 | F205: 0 | G205: 0 | H205: 0 | I205: =MAX(0,Shadows!$C$2/(TAN(RADIANS('Glasgow Solar Spreadsheet '!N205)))) -> 0 | J205: -22.30348915 | K205: -6.6200718 | L205: 20.6087988 | M205: -129.131982 | N205: -39.93333521 | O205: 129.9333352 | P205: 90 | Q205: 0 | R205: -69.37858974 | S205: 69.37858974 | T205: 125.8205851 | U205: 0 | V205: 0 | W205: 0 | X205: 0 | Y205: 0 | Z205: 0
... 2045 more rows

Sheet Solar_Power (hidden)
A3: Land Available (m^2) | B3: =LandSolar -> 20000 | F3: Capacity (MW) | G3: =(B4*'Glasgow Solar Spreadsheet '!J8)/1000000 -> 1.741034986
A4: Number of Solar Panels | B4: =(B3/Shadows!G2)*0.9777 -> 5046.478221
B5: Per Solar Panel (With array) | C5: Per solar panel | D5: Single | F5: Over area
A6: Month | B6: Total Power (kWh) | C6: Energy (kWh)/m^2 | E6: Month | F6: Total Power (GWh)
A7: January | B7: =(SUM('Glasgow Solar Spreadsheet '!$Z$17:$Z$760))/1000 -> 5.164321139 | C7: =B7/Shadows!$G$2 -> 1.332803219 | E7: January | F7: =(B7*$B$4)/1000000 -> 0.02606163415
A8: February | B8: =(SUM('Glasgow Solar Spreadsheet '!$Z$761:$Z$1432))/1000 -> 11.05125651 | C8: =B8/Shadows!$G$2 -> 2.852098051 | E8: February | F8: 0.05576992529
A9: March | B9: =(SUM('Glasgow Solar Spreadsheet '!$Z$1433:$Z$2176))/1000 -> 22.45103483 | C9: =B9/Shadows!$G$2 -> 5.794142288 | E9: March | F9: 0.1132986583
A10: April | B10: =(SUM('Glasgow Solar Spreadsheet '!$Z$2177:$Z$2896))/1000 -> 39.45819252 | C10: =B10/Shadows!$G$2 -> 10.18333381 | E10: April | F10: 0.1991249092
A11: May | B11: =(SUM('Glasgow Solar Spreadsheet '!$Z$2897:$Z$3640))/1000 -> 53.04022521 | C11: =B11/Shadows!$G$2 -> 13.68857223 | E11: May | F11: 0.2676663414
A12: June | B12: =(SUM('Glasgow Solar Spreadsheet '!$Z$3641:$Z$4360))/1000 -> 51.75865862 | C12: =B12/Shadows!$G$2 -> 13.35782671 | E12: June | F12: 0.2611989435
A13: July | B13: =(SUM('Glasgow Solar Spreadsheet '!$Z$4361:$Z$5104))/1000 -> 46.39869265 | C13: =B13/Shadows!$G$2 -> 11.97453165 | E13: July | F13: 0.234149992
A14: August | B14: =(SUM('Glasgow Solar Spreadsheet '!$Z$5105:$Z$5848))/1000 -> 42.30291581 | C14: =B14/Shadows!$G$2 -> 10.91749736 | E14: August | F14: 0.2134807433
A15: September | B15: =(SUM('Glasgow Solar Spreadsheet '!$Z5832:Z$6568))/1000 -> 25.94160856 | C15: =B15/Shadows!$G$2 -> 6.694986327 | E15: September | F15: 0.1309137626
A16: October | B16: =(SUM('Glasgow Solar Spreadsheet '!$Z$6569:$Z$7312))/1000 -> 14.65119991 | C16: =B16/Shadows!$G$2 -> 3.781168112 | E16: October | F16: 0.07393696126 | H16: Density
A17: November | B17: =(SUM('Glasgow Solar Spreadsheet '!$Z$7313:$Z$8032))/1000 -> 7.211543042 | C17: =B17/Shadows!$G$2 -> 1.861148354 | E17: November | F17: 0.0363928949 | H17: =(F19/B3)*1000000 -> 81.52545447
A18: December | B18: =(SUM('Glasgow Solar Spreadsheet '!$Z$8043:$Z$8776))/1000 -> 3.668761187 | C18: =B18/Shadows!$G$2 -> 0.9468304914 | E18: December | F18: 0.01851432343
A19: Total | B19: =SUM(B7:B18) -> 323.09841 | C19: =SUM(C7:C18) -> 83.3849386 | E19: Total (GWh) | F19: =SUM(F7:F18) -> 1.630509089
A20: Year average | B20: =B19/12 -> 26.9248675 | C20: =AVERAGE(C7:C18) -> 6.948744884 | E20: Capacity Coefficient (%) | F20: =($F$19/(B4*'Glasgow Solar Spreadsheet '!J8*24*365))*100000000000 -> 10.69083482

Sheet Shadows (hidden)
A1: Max Shadow (m) | B1: Average Shadow (m) | C1: Height (m) | D1: Length (m) | E1: Area covered Not including shadow (m^2) | F1: Area covered including shadow (m^2) | G1: Area Covered(m^2)
A2: =MAX(C5:C8764) -> 0.2697027072 | B2: =AVERAGE(C5:C8764) -> 0.04134714922 | C2: =(SIN(RADIANS(90-'Glasgow Solar Spreadsheet '!$J$10)))*('Glasgow Solar Spreadsheet '!$J$9) -> 0.1722589922 | D2: =(C2/(TAN(RADIANS('Glasgow Solar Spreadsheet '!J11)))) -> 0.976929291 | E2: =D2*'Glasgow Solar Spreadsheet '!K10 -> 1.91478141 | F2: =E2+B2 -> 1.95612856 | G2: =(D2+'Glasgow Solar Spreadsheet '!K7)*'Glasgow Solar Spreadsheet '!K10 -> 3.87478141 | K2: Solar Access
A3: Date | B3: Time | E3: Annual Energy Output (kWh) | F3: Annual Array Output (GWh) | K3: =(Solar_Power!B19)/'Glasgow Solar Spreadsheet '!Z9 -> 0.995260105 | O3: Cost (£m)
A4: (Year Day) | B4: (Hour) | C4: Shadow Length (m) | E4: =(SUM('Glasgow Solar Spreadsheet '!Z17:Z8776))/1000 -> 321.9803432 | F4: =Solar_Power!F19 -> 1.630509089 | N4: Panels | O4: =(400*Solar_Power!B4)/1000000 -> 2.018591289
A5: 1 | B5: 1 | C5: =MAX(0,$C$2*(TAN(RADIANS('Glasgow Solar Spreadsheet '!N17)))) -> 0 | I5: 1 | J5: 10 | K5: 30 | N5: Land at £100/m^2 | O5: =(100*Solar_Power!B3)/1000000 -> 2
A6: =IF(B6>1,A5,A5+1) -> 1 | B6: =IF(B5<24,B5+1,1) -> 2 | C6: =MAX(0,$C$2*(TAN(RADIANS('Glasgow Solar Spreadsheet '!N18)))) -> 0 | H6: 0 | I6: 153 | J6: 128 | K6: 102 | N6: Total | O6: =O4+O5 -> 4.018591289
A7: 1 | B7: 3 | C7: =MAX(0,$C$2*(TAN(RADIANS('Glasgow Solar Spreadsheet '!N19)))) -> 0 | H7: 0.5 | I7: 105 | J7: 107 | K7: 99
A8: 1 | B8: 4 | C8: =MAX(0,$C$2*(TAN(RADIANS('Glasgow Solar Spreadsheet '!N20)))) -> 0 | H8: 0.75 | I8: 90 | J8: 93 | K8: 91 | N8: Energy Generated Over Life Time (kWh)
A9: 1 | B9: 5 | C9: =MAX(0,$C$2*(TAN(RADIANS('Glasgow Solar Spreadsheet '!N21)))) -> 0 | H9: 1 | I9: 79 | J9: 82 | K9: 82 | N9: =Solar_Power!F19*25*1000000 -> 40762727.24
A10: 1 | B10: 6 | C10: =MAX(0,$C$2*(TAN(RADIANS('Glasgow Solar Spreadsheet '!N22)))) -> 0 | H10: 2 | I10: 52 | J10: 54 | K10: 57
A11: 1 | B11: 7 | C11: =MAX(0,$C$2*(TAN(RADIANS('Glasgow Solar Spreadsheet '!N23)))) -> 0 | H11: 3 | I11: 39 | J11: 41 | K11: 43 | N11: Levelised Cost (£/kWh)
A12: 1 | B12: 8 | C12: =MAX(0,$C$2*(TAN(RADIANS('Glasgow Solar Spreadsheet '!N24)))) -> 0 | N12: =O6*1000000/N9 -> 0.09858494662
A13: 1 | B13: 9 | C13: =MAX(0,$C$2*(TAN(RADIANS('Glasgow Solar Spreadsheet '!N25)))) -> 0.001365886676
A14: 1 | B14: 10 | C14: =MAX(0,$C$2*(TAN(RADIANS('Glasgow Solar Spreadsheet '!N26)))) -> 0.01718623785
A15: 1 | B15: 11 | C15: =MAX(0,$C$2*(TAN(RADIANS('Glasgow Solar Spreadsheet '!N27)))) -> 0.02824621593
A16: 1 | B16: 12 | C16: =MAX(0,$C$2*(TAN(RADIANS('Glasgow Solar Spreadsheet '!N28)))) -> 0.03356943619
A17: 1 | B17: 13 | C17: =MAX(0,$C$2*(TAN(RADIANS('Glasgow Solar Spreadsheet '!N29)))) -> 0.03254824402
A18: 1 | B18: 14 | C18: =MAX(0,$C$2*(TAN(RADIANS('Glasgow Solar Spreadsheet '!N30)))) -> 0.02530685353
A19: 1 | B19: 15 | C19: =MAX(0,$C$2*(TAN(RADIANS('Glasgow Solar Spreadsheet '!N31)))) -> 0.01262388264
A20: 1 | B20: 16 | C20: =MAX(0,$C$2*(TAN(RADIANS('Glasgow Solar Spreadsheet '!N32)))) -> 0
A21: 1 | B21: 17 | C21: =MAX(0,$C$2*(TAN(RADIANS('Glasgow Solar Spreadsheet '!N33)))) -> 0
A22: 1 | B22: 18 | C22: =MAX(0,$C$2*(TAN(RADIANS('Glasgow Solar Spreadsheet '!N34)))) -> 0
A23: 1 | B23: 19 | C23: =MAX(0,$C$2*(TAN(RADIANS('Glasgow Solar Spreadsheet '!N35)))) -> 0
A24: 1 | B24: 20 | C24: =MAX(0,$C$2*(TAN(RADIANS('Glasgow Solar Spreadsheet '!N36)))) -> 0
A25: 1 | B25: 21 | C25: =MAX(0,$C$2*(TAN(RADIANS('Glasgow Solar Spreadsheet '!N37)))) -> 0
A26: 1 | B26: 22 | C26: =MAX(0,$C$2*(TAN(RADIANS('Glasgow Solar Spreadsheet '!N38)))) -> 0
A27: 1 | B27: 23 | C27: =MAX(0,$C$2*(TAN(RADIANS('Glasgow Solar Spreadsheet '!N39)))) -> 0
A28: 1 | B28: 24 | C28: =MAX(0,$C$2*(TAN(RADIANS('Glasgow Solar Spreadsheet '!N40)))) -> 0
A29: 2 | B29: 1 | C29: =MAX(0,$C$2*(TAN(RADIANS('Glasgow Solar Spreadsheet '!N41)))) -> 0
A30: 2 | B30: 2 | C30: =MAX(0,$C$2*(TAN(RADIANS('Glasgow Solar Spreadsheet '!N42)))) -> 0
A31: 2 | B31: 3 | C31: =MAX(0,$C$2*(TAN(RADIANS('Glasgow Solar Spreadsheet '!N43)))) -> 0
A32: 2 | B32: 4 | C32: =MAX(0,$C$2*(TAN(RADIANS('Glasgow Solar Spreadsheet '!N44)))) -> 0
A33: 2 | B33: 5 | C33: =MAX(0,$C$2*(TAN(RADIANS('Glasgow Solar Spreadsheet '!N45)))) -> 0
A34: 2 | B34: 6 | C34: =MAX(0,$C$2*(TAN(RADIANS('Glasgow Solar Spreadsheet '!N46)))) -> 0
A35: 2 | B35: 7 | C35: =MAX(0,$C$2*(TAN(RADIANS('Glasgow Solar Spreadsheet '!N47)))) -> 0
A36: 2 | B36: 8 | C36: =MAX(0,$C$2*(TAN(RADIANS('Glasgow Solar Spreadsheet '!N48)))) -> 0
A37: 2 | B37: 9 | C37: =MAX(0,$C$2*(TAN(RADIANS('Glasgow Solar Spreadsheet '!N49)))) -> 0.00145236794
A38: 2 | B38: 10 | C38: =MAX(0,$C$2*(TAN(RADIANS('Glasgow Solar Spreadsheet '!N50)))) -> 0.01731742543
A39: 2 | B39: 11 | C39: =MAX(0,$C$2*(TAN(RADIANS('Glasgow Solar Spreadsheet '!N51)))) -> 0.02842924656
A40: 2 | B40: 12 | C40: =MAX(0,$C$2*(TAN(RADIANS('Glasgow Solar Spreadsheet '!N52)))) -> 0.03380547203
A41: 2 | B41: 13 | C41: =MAX(0,$C$2*(TAN(RADIANS('Glasgow Solar Spreadsheet '!N53)))) -> 0.03283066917
A42: 2 | B42: 14 | C42: =MAX(0,$C$2*(TAN(RADIANS('Glasgow Solar Spreadsheet '!N54)))) -> 0.0256239071
A43: 2 | B43: 15 | C43: =MAX(0,$C$2*(TAN(RADIANS('Glasgow Solar Spreadsheet '!N55)))) -> 0.01296445794
A44: 2 | B44: 16 | C44: =MAX(0,$C$2*(TAN(RADIANS('Glasgow Solar Spreadsheet '!N56)))) -> 0
A45: 2 | B45: 17 | C45: =MAX(0,$C$2*(TAN(RADIANS('Glasgow Solar Spreadsheet '!N57)))) -> 0
A46: 2 | B46: 18 | C46: =MAX(0,$C$2*(TAN(RADIANS('Glasgow Solar Spreadsheet '!N58)))) -> 0
A47: 2 | B47: 19 | C47: =MAX(0,$C$2*(TAN(RADIANS('Glasgow Solar Spreadsheet '!N59)))) -> 0
A48: 2 | B48: 20 | C48: =MAX(0,$C$2*(TAN(RADIANS('Glasgow Solar Spreadsheet '!N60)))) -> 0
A49: 2 | B49: 21 | C49: =MAX(0,$C$2*(TAN(RADIANS('Glasgow Solar Spreadsheet '!N61)))) -> 0
A50: 2 | B50: 22 | C50: =MAX(0,$C$2*(TAN(RADIANS('Glasgow Solar Spreadsheet '!N62)))) -> 0
A51: 2 | B51: 23 | C51: =MAX(0,$C$2*(TAN(RADIANS('Glasgow Solar Spreadsheet '!N63)))) -> 0
A52: 2 | B52: 24 | C52: =MAX(0,$C$2*(TAN(RADIANS('Glasgow Solar Spreadsheet '!N64)))) -> 0
A53: 3 | B53: 1 | C53: =MAX(0,$C$2*(TAN(RADIANS('Glasgow Solar Spreadsheet '!N65)))) -> 0
A54: 3 | B54: 2 | C54: =MAX(0,$C$2*(TAN(RADIANS('Glasgow Solar Spreadsheet '!N66)))) -> 0
A55: 3 | B55: 3 | C55: =MAX(0,$C$2*(TAN(RADIANS('Glasgow Solar Spreadsheet '!N67)))) -> 0
A56: 3 | B56: 4 | C56: =MAX(0,$C$2*(TAN(RADIANS('Glasgow Solar Spreadsheet '!N68)))) -> 0
A57: 3 | B57: 5 | C57: =MAX(0,$C$2*(TAN(RADIANS('Glasgow Solar Spreadsheet '!N69)))) -> 0
A58: 3 | B58: 6 | C58: =MAX(0,$C$2*(TAN(RADIANS('Glasgow Solar Spreadsheet '!N70)))) -> 0
A59: 3 | B59: 7 | C59: =MAX(0,$C$2*(TAN(RADIANS('Glasgow Solar Spreadsheet '!N71)))) -> 0
A60: 3 | B60: 8 | C60: =MAX(0,$C$2*(TAN(RADIANS('Glasgow Solar Spreadsheet '!N72)))) -> 0
A61: 3 | B61: 9 | C61: =MAX(0,$C$2*(TAN(RADIANS('Glasgow Solar Spreadsheet '!N73)))) -> 0.001558319352
A62: 3 | B62: 10 | C62: =MAX(0,$C$2*(TAN(RADIANS('Glasgow Solar Spreadsheet '!N74)))) -> 0.0174688008
A63: 3 | B63: 11 | C63: =MAX(0,$C$2*(TAN(RADIANS('Glasgow Solar Spreadsheet '!N75)))) -> 0.02863315524
A64: 3 | B64: 12 | C64: =MAX(0,$C$2*(TAN(RADIANS('Glasgow Solar Spreadsheet '!N76)))) -> 0.03406262378
A65: 3 | B65: 13 | C65: =MAX(0,$C$2*(TAN(RADIANS('Glasgow Solar Spreadsheet '!N77)))) -> 0.03313372567
A66: 3 | B66: 14 | C66: =MAX(0,$C$2*(TAN(RADIANS('Glasgow Solar Spreadsheet '!N78)))) -> 0.02596043459
A67: 3 | B67: 15 | C67: =MAX(0,$C$2*(TAN(RADIANS('Glasgow Solar Spreadsheet '!N79)))) -> 0.01332301579
A68: 3 | B68: 16 | C68: =MAX(0,$C$2*(TAN(RADIANS('Glasgow Solar Spreadsheet '!N80)))) -> 0
A69: 3 | B69: 17 | C69: =MAX(0,$C$2*(TAN(RADIANS('Glasgow Solar Spreadsheet '!N81)))) -> 0
A70: =IF(B70>1,A69,A69+1) -> 3 | B70: =IF(B69<24,B69+1,1) -> 18 | C70: =MAX(0,$C$2*(TAN(RADIANS('Glasgow Solar Spreadsheet '!N82)))) -> 0
A71: 3 | B71: 19 | C71: =MAX(0,$C$2*(TAN(RADIANS('Glasgow Solar Spreadsheet '!N83)))) -> 0
A72: 3 | B72: 20 | C72: =MAX(0,$C$2*(TAN(RADIANS('Glasgow Solar Spreadsheet '!N84)))) -> 0
A73: 3 | B73: 21 | C73: =MAX(0,$C$2*(TAN(RADIANS('Glasgow Solar Spreadsheet '!N85)))) -> 0
A74: 3 | B74: 22 | C74: =MAX(0,$C$2*(TAN(RADIANS('Glasgow Solar Spreadsheet '!N86)))) -> 0
A75: 3 | B75: 23 | C75: =MAX(0,$C$2*(TAN(RADIANS('Glasgow Solar Spreadsheet '!N87)))) -> 0
A76: 3 | B76: 24 | C76: =MAX(0,$C$2*(TAN(RADIANS('Glasgow Solar Spreadsheet '!N88)))) -> 0
A77: 4 | B77: 1 | C77: =MAX(0,$C$2*(TAN(RADIANS('Glasgow Solar Spreadsheet '!N89)))) -> 0
A78: 4 | B78: 2 | C78: =MAX(0,$C$2*(TAN(RADIANS('Glasgow Solar Spreadsheet '!N90)))) -> 0
A79: 4 | B79: 3 | C79: =MAX(0,$C$2*(TAN(RADIANS('Glasgow Solar Spreadsheet '!N91)))) -> 0
A80: 4 | B80: 4 | C80: =MAX(0,$C$2*(TAN(RADIANS('Glasgow Solar Spreadsheet '!N92)))) -> 0
A81: 4 | B81: 5 | C81: =MAX(0,$C$2*(TAN(RADIANS('Glasgow Solar Spreadsheet '!N93)))) -> 0
A82: 4 | B82: 6 | C82: =MAX(0,$C$2*(TAN(RADIANS('Glasgow Solar Spreadsheet '!N94)))) -> 0
A83: 4 | B83: 7 | C83: =MAX(0,$C$2*(TAN(RADIANS('Glasgow Solar Spreadsheet '!N95)))) -> 0
A84: 4 | B84: 8 | C84: =MAX(0,$C$2*(TAN(RADIANS('Glasgow Solar Spreadsheet '!N96)))) -> 0
A85: 4 | B85: 9 | C85: =MAX(0,$C$2*(TAN(RADIANS('Glasgow Solar Spreadsheet '!N97)))) -> 0.001683783365
A86: 4 | B86: 10 | C86: =MAX(0,$C$2*(TAN(RADIANS('Glasgow Solar Spreadsheet '!N98)))) -> 0.01764038538
A87: 4 | B87: 11 | C87: =MAX(0,$C$2*(TAN(RADIANS('Glasgow Solar Spreadsheet '!N99)))) -> 0.02885794347
A88: 4 | B88: 12 | C88: =MAX(0,$C$2*(TAN(RADIANS('Glasgow Solar Spreadsheet '!N100)))) -> 0.03434087016
A89: 4 | B89: 13 | C89: =MAX(0,$C$2*(TAN(RADIANS('Glasgow Solar Spreadsheet '!N101)))) -> 0.03345736231
A90: 4 | B90: 14 | C90: =MAX(0,$C$2*(TAN(RADIANS('Glasgow Solar Spreadsheet '!N102)))) -> 0.02631634671
A91: 4 | B91: 15 | C91: =MAX(0,$C$2*(TAN(RADIANS('Glasgow Solar Spreadsheet '!N103)))) -> 0.01369942379
A92: 4 | B92: 16 | C92: =MAX(0,$C$2*(TAN(RADIANS('Glasgow Solar Spreadsheet '!N104)))) -> 0
A93: 4 | B93: 17 | C93: =MAX(0,$C$2*(TAN(RADIANS('Glasgow Solar Spreadsheet '!N105)))) -> 0
A94: 4 | B94: 18 | C94: =MAX(0,$C$2*(TAN(RADIANS('Glasgow Solar Spreadsheet '!N106)))) -> 0
A95: 4 | B95: 19 | C95: =MAX(0,$C$2*(TAN(RADIANS('Glasgow Solar Spreadsheet '!N107)))) -> 0
A96: 4 | B96: 20 | C96: =MAX(0,$C$2*(TAN(RADIANS('Glasgow Solar Spreadsheet '!N108)))) -> 0
A97: 4 | B97: 21 | C97: =MAX(0,$C$2*(TAN(RADIANS('Glasgow Solar Spreadsheet '!N109)))) -> 0
A98: 4 | B98: 22 | C98: =MAX(0,$C$2*(TAN(RADIANS('Glasgow Solar Spreadsheet '!N110)))) -> 0
A99: 4 | B99: 23 | C99: =MAX(0,$C$2*(TAN(RADIANS('Glasgow Solar Spreadsheet '!N111)))) -> 0
A100: 4 | B100: 24 | C100: =MAX(0,$C$2*(TAN(RADIANS('Glasgow Solar Spreadsheet '!N112)))) -> 0
A101: 5 | B101: 1 | C101: =MAX(0,$C$2*(TAN(RADIANS('Glasgow Solar Spreadsheet '!N113)))) -> 0
A102: 5 | B102: 2 | C102: =MAX(0,$C$2*(TAN(RADIANS('Glasgow Solar Spreadsheet '!N114)))) -> 0
A103: 5 | B103: 3 | C103: =MAX(0,$C$2*(TAN(RADIANS('Glasgow Solar Spreadsheet '!N115)))) -> 0
A104: 5 | B104: 4 | C104: =MAX(0,$C$2*(TAN(RADIANS('Glasgow Solar Spreadsheet '!N116)))) -> 0
A105: 5 | B105: 5 | C105: =MAX(0,$C$2*(TAN(RADIANS('Glasgow Solar Spreadsheet '!N117)))) -> 0
A106: 5 | B106: 6 | C106: =MAX(0,$C$2*(TAN(RADIANS('Glasgow Solar Spreadsheet '!N118)))) -> 0
A107: 5 | B107: 7 | C107: =MAX(0,$C$2*(TAN(RADIANS('Glasgow Solar Spreadsheet '!N119)))) -> 0
A108: 5 | B108: 8 | C108: =MAX(0,$C$2*(TAN(RADIANS('Glasgow Solar Spreadsheet '!N120)))) -> 0
A109: 5 | B109: 9 | C109: =MAX(0,$C$2*(TAN(RADIANS('Glasgow Solar Spreadsheet '!N121)))) -> 0.00182879695
A110: 5 | B110: 10 | C110: =MAX(0,$C$2*(TAN(RADIANS('Glasgow Solar Spreadsheet '!N122)))) -> 0.01783219662
A111: 5 | B111: 11 | C111: =MAX(0,$C$2*(TAN(RADIANS('Glasgow Solar Spreadsheet '!N123)))) -> 0.02910361006
A112: 5 | B112: 12 | C112: =MAX(0,$C$2*(TAN(RADIANS('Glasgow Solar Spreadsheet '!N124)))) -> 0.03464018798
A113: 5 | B113: 13 | C113: =MAX(0,$C$2*(TAN(RADIANS('Glasgow Solar Spreadsheet '!N125)))) -> 0.03380152604
A114: 5 | B114: 14 | C114: =MAX(0,$C$2*(TAN(RADIANS('Glasgow Solar Spreadsheet '!N126)))) -> 0.02669155191
A115: 5 | B115: 15 | C115: =MAX(0,$C$2*(TAN(RADIANS('Glasgow Solar Spreadsheet '!N127)))) -> 0.01409354684
A116: 5 | B116: 16 | C116: =MAX(0,$C$2*(TAN(RADIANS('Glasgow Solar Spreadsheet '!N128)))) -> 0
A117: 5 | B117: 17 | C117: =MAX(0,$C$2*(TAN(RADIANS('Glasgow Solar Spreadsheet '!N129)))) -> 0
A118: 5 | B118: 18 | C118: =MAX(0,$C$2*(TAN(RADIANS('Glasgow Solar Spreadsheet '!N130)))) -> 0
A119: 5 | B119: 19 | C119: =MAX(0,$C$2*(TAN(RADIANS('Glasgow Solar Spreadsheet '!N131)))) -> 0
A120: 5 | B120: 20 | C120: =MAX(0,$C$2*(TAN(RADIANS('Glasgow Solar Spreadsheet '!N132)))) -> 0
A121: 5 | B121: 21 | C121: =MAX(0,$C$2*(TAN(RADIANS('Glasgow Solar Spreadsheet '!N133)))) -> 0
A122: 5 | B122: 22 | C122: =MAX(0,$C$2*(TAN(RADIANS('Glasgow Solar Spreadsheet '!N134)))) -> 0
A123: 5 | B123: 23 | C123: =MAX(0,$C$2*(TAN(RADIANS('Glasgow Solar Spreadsheet '!N135)))) -> 0
A124: 5 | B124: 24 | C124: =MAX(0,$C$2*(TAN(RADIANS('Glasgow Solar Spreadsheet '!N136)))) -> 0
A125: 6 | B125: 1 | C125: =MAX(0,$C$2*(TAN(RADIANS('Glasgow Solar Spreadsheet '!N137)))) -> 0
A126: 6 | B126: 2 | C126: =MAX(0,$C$2*(TAN(RADIANS('Glasgow Solar Spreadsheet '!N138)))) -> 0
A127: 6 | B127: 3 | C127: =MAX(0,$C$2*(TAN(RADIANS('Glasgow Solar Spreadsheet '!N139)))) -> 0
A128: 6 | B128: 4 | C128: =MAX(0,$C$2*(TAN(RADIANS('Glasgow Solar Spreadsheet '!N140)))) -> 0
A129: 6 | B129: 5 | C129: =MAX(0,$C$2*(TAN(RADIANS('Glasgow Solar Spreadsheet '!N141)))) -> 0
A130: 6 | B130: 6 | C130: =MAX(0,$C$2*(TAN(RADIANS('Glasgow Solar Spreadsheet '!N142)))) -> 0
A131: 6 | B131: 7 | C131: =MAX(0,$C$2*(TAN(RADIANS('Glasgow Solar Spreadsheet '!N143)))) -> 0
A132: 6 | B132: 8 | C132: =MAX(0,$C$2*(TAN(RADIANS('Glasgow Solar Spreadsheet '!N144)))) -> 0
A133: 6 | B133: 9 | C133: =MAX(0,$C$2*(TAN(RADIANS('Glasgow Solar Spreadsheet '!N145)))) -> 0.001993391545
A134: =IF(B134>1,A133,A133+1) -> 6 | B134: =IF(B133<24,B133+1,1) -> 10 | C134: =MAX(0,$C$2*(TAN(RADIANS('Glasgow Solar Spreadsheet '!N146)))) -> 0.01804424802
A135: 6 | B135: 11 | C135: =MAX(0,$C$2*(TAN(RADIANS('Glasgow Solar Spreadsheet '!N147)))) -> 0.02937015117
A136: 6 | B136: 12 | C136: =MAX(0,$C$2*(TAN(RADIANS('Glasgow Solar Spreadsheet '!N148)))) -> 0.03496055218
A137: 6 | B137: 13 | C137: =MAX(0,$C$2*(TAN(RADIANS('Glasgow Solar Spreadsheet '!N149)))) -> 0.03416616207
A138: 6 | B138: 14 | C138: =MAX(0,$C$2*(TAN(RADIANS('Glasgow Solar Spreadsheet '!N150)))) -> 0.02708595652
A139: 6 | B139: 15 | C139: =MAX(0,$C$2*(TAN(RADIANS('Glasgow Solar Spreadsheet '!N151)))) -> 0.01450524725
A140: 6 | B140: 16 | C140: =MAX(0,$C$2*(TAN(RADIANS('Glasgow Solar Spreadsheet '!N152)))) -> 0
A141: 6 | B141: 17 | C141: =MAX(0,$C$2*(TAN(RADIANS('Glasgow Solar Spreadsheet '!N153)))) -> 0
A142: 6 | B142: 18 | C142: =MAX(0,$C$2*(TAN(RADIANS('Glasgow Solar Spreadsheet '!N154)))) -> 0
A143: 6 | B143: 19 | C143: =MAX(0,$C$2*(TAN(RADIANS('Glasgow Solar Spreadsheet '!N155)))) -> 0
A144: 6 | B144: 20 | C144: =MAX(0,$C$2*(TAN(RADIANS('Glasgow Solar Spreadsheet '!N156)))) -> 0
A145: 6 | B145: 21 | C145: =MAX(0,$C$2*(TAN(RADIANS('Glasgow Solar Spreadsheet '!N157)))) -> 0
A146: 6 | B146: 22 | C146: =MAX(0,$C$2*(TAN(RADIANS('Glasgow Solar Spreadsheet '!N158)))) -> 0
A147: 6 | B147: 23 | C147: =MAX(0,$C$2*(TAN(RADIANS('Glasgow Solar Spreadsheet '!N159)))) -> 0
A148: 6 | B148: 24 | C148: =MAX(0,$C$2*(TAN(RADIANS('Glasgow Solar Spreadsheet '!N160)))) -> 0
A149: 7 | B149: 1 | C149: =MAX(0,$C$2*(TAN(RADIANS('Glasgow Solar Spreadsheet '!N161)))) -> 0
A150: 7 | B150: 2 | C150: =MAX(0,$C$2*(TAN(RADIANS('Glasgow Solar Spreadsheet '!N162)))) -> 0
A151: 7 | B151: 3 | C151: =MAX(0,$C$2*(TAN(RADIANS('Glasgow Solar Spreadsheet '!N163)))) -> 0
A152: 7 | B152: 4 | C152: =MAX(0,$C$2*(TAN(RADIANS('Glasgow Solar Spreadsheet '!N164)))) -> 0
A153: 7 | B153: 5 | C153: =MAX(0,$C$2*(TAN(RADIANS('Glasgow Solar Spreadsheet '!N165)))) -> 0
A154: 7 | B154: 6 | C154: =MAX(0,$C$2*(TAN(RADIANS('Glasgow Solar Spreadsheet '!N166)))) -> 0
A155: 7 | B155: 7 | C155: =MAX(0,$C$2*(TAN(RADIANS('Glasgow Solar Spreadsheet '!N167)))) -> 0
A156: 7 | B156: 8 | C156: =MAX(0,$C$2*(TAN(RADIANS('Glasgow Solar Spreadsheet '!N168)))) -> 0
A157: 7 | B157: 9 | C157: =MAX(0,$C$2*(TAN(RADIANS('Glasgow Solar Spreadsheet '!N169)))) -> 0.002177593016
A158: 7 | B158: 10 | C158: =MAX(0,$C$2*(TAN(RADIANS('Glasgow Solar Spreadsheet '!N170)))) -> 0.01827654907
A159: 7 | B159: 11 | C159: =MAX(0,$C$2*(TAN(RADIANS('Glasgow Solar Spreadsheet '!N171)))) -> 0.02965756032
A160: 7 | B160: 12 | C160: =MAX(0,$C$2*(TAN(RADIANS('Glasgow Solar Spreadsheet '!N172)))) -> 0.03530193589
A161: 7 | B161: 13 | C161: =MAX(0,$C$2*(TAN(RADIANS('Glasgow Solar Spreadsheet '!N173)))) -> 0.03455121392
A162: 7 | B162: 14 | C162: =MAX(0,$C$2*(TAN(RADIANS('Glasgow Solar Spreadsheet '!N174)))) -> 0.02749946485
A163: 7 | B163: 15 | C163: =MAX(0,$C$2*(TAN(RADIANS('Glasgow Solar Spreadsheet '!N175)))) -> 0.01493438487
A164: 7 | B164: 16 | C164: =MAX(0,$C$2*(TAN(RADIANS('Glasgow Solar Spreadsheet '!N176)))) -> 0
A165: 7 | B165: 17 | C165: =MAX(0,$C$2*(TAN(RADIANS('Glasgow Solar Spreadsheet '!N177)))) -> 0
A166: 7 | B166: 18 | C166: =MAX(0,$C$2*(TAN(RADIANS('Glasgow Solar Spreadsheet '!N178)))) -> 0
A167: 7 | B167: 19 | C167: =MAX(0,$C$2*(TAN(RADIANS('Glasgow Solar Spreadsheet '!N179)))) -> 0
A168: 7 | B168: 20 | C168: =MAX(0,$C$2*(TAN(RADIANS('Glasgow Solar Spreadsheet '!N180)))) -> 0
A169: 7 | B169: 21 | C169: =MAX(0,$C$2*(TAN(RADIANS('Glasgow Solar Spreadsheet '!N181)))) -> 0
A170: 7 | B170: 22 | C170: =MAX(0,$C$2*(TAN(RADIANS('Glasgow Solar Spreadsheet '!N182)))) -> 0
A171: 7 | B171: 23 | C171: =MAX(0,$C$2*(TAN(RADIANS('Glasgow Solar Spreadsheet '!N183)))) -> 0
A172: 7 | B172: 24 | C172: =MAX(0,$C$2*(TAN(RADIANS('Glasgow Solar Spreadsheet '!N184)))) -> 0
A173: 8 | B173: 1 | C173: =MAX(0,$C$2*(TAN(RADIANS('Glasgow Solar Spreadsheet '!N185)))) -> 0
A174: 8 | B174: 2 | C174: =MAX(0,$C$2*(TAN(RADIANS('Glasgow Solar Spreadsheet '!N186)))) -> 0
A175: 8 | B175: 3 | C175: =MAX(0,$C$2*(TAN(RADIANS('Glasgow Solar Spreadsheet '!N187)))) -> 0
A176: 8 | B176: 4 | C176: =MAX(0,$C$2*(TAN(RADIANS('Glasgow Solar Spreadsheet '!N188)))) -> 0
A177: 8 | B177: 5 | C177: =MAX(0,$C$2*(TAN(RADIANS('Glasgow Solar Spreadsheet '!N189)))) -> 0
A178: 8 | B178: 6 | C178: =MAX(0,$C$2*(TAN(RADIANS('Glasgow Solar Spreadsheet '!N190)))) -> 0
A179: 8 | B179: 7 | C179: =MAX(0,$C$2*(TAN(RADIANS('Glasgow Solar Spreadsheet '!N191)))) -> 0
A180: 8 | B180: 8 | C180: =MAX(0,$C$2*(TAN(RADIANS('Glasgow Solar Spreadsheet '!N192)))) -> 0
A181: 8 | B181: 9 | C181: =MAX(0,$C$2*(TAN(RADIANS('Glasgow Solar Spreadsheet '!N193)))) -> 0.002381421613
A182: 8 | B182: 10 | C182: =MAX(0,$C$2*(TAN(RADIANS('Glasgow Solar Spreadsheet '!N194)))) -> 0.01852910534
A183: 8 | B183: 11 | C183: =MAX(0,$C$2*(TAN(RADIANS('Glasgow Solar Spreadsheet '!N195)))) -> 0.0299658284
A184: 8 | B184: 12 | C184: =MAX(0,$C$2*(TAN(RADIANS('Glasgow Solar Spreadsheet '!N196)))) -> 0.03566431048
A185: 8 | B185: 13 | C185: =MAX(0,$C$2*(TAN(RADIANS('Glasgow Solar Spreadsheet '!N197)))) -> 0.03495662352
A186: 8 | B186: 14 | C186: =MAX(0,$C$2*(TAN(RADIANS('Glasgow Solar Spreadsheet '!N198)))) -> 0.0279319792
A187: 8 | B187: 15 | C187: =MAX(0,$C$2*(TAN(RADIANS('Glasgow Solar Spreadsheet '!N199)))) -> 0.01538081715
A188: 8 | B188: 16 | C188: =MAX(0,$C$2*(TAN(RADIANS('Glasgow Solar Spreadsheet '!N200)))) -> 0
A189: 8 | B189: 17 | C189: =MAX(0,$C$2*(TAN(RADIANS('Glasgow Solar Spreadsheet '!N201)))) -> 0
A190: 8 | B190: 18 | C190: =MAX(0,$C$2*(TAN(RADIANS('Glasgow Solar Spreadsheet '!N202)))) -> 0
A191: 8 | B191: 19 | C191: =MAX(0,$C$2*(TAN(RADIANS('Glasgow Solar Spreadsheet '!N203)))) -> 0
A192: 8 | B192: 20 | C192: =MAX(0,$C$2*(TAN(RADIANS('Glasgow Solar Spreadsheet '!N204)))) -> 0
A193: 8 | B193: 21 | C193: =MAX(0,$C$2*(TAN(RADIANS('Glasgow Solar Spreadsheet '!N205)))) -> 0
A194: 8 | B194: 22 | C194: =MAX(0,$C$2*(TAN(RADIANS('Glasgow Solar Spreadsheet '!N206)))) -> 0
A195: 8 | B195: 23 | C195: =MAX(0,$C$2*(TAN(RADIANS('Glasgow Solar Spreadsheet '!N207)))) -> 0
A196: 8 | B196: 24 | C196: =MAX(0,$C$2*(TAN(RADIANS('Glasgow Solar Spreadsheet '!N208)))) -> 0
A197: 9 | B197: 1 | C197: =MAX(0,$C$2*(TAN(RADIANS('Glasgow Solar Spreadsheet '!N209)))) -> 0
A198: =IF(B198>1,A197,A197+1) -> 9 | B198: =IF(B197<24,B197+1,1) -> 2 | C198: =MAX(0,$C$2*(TAN(RADIANS('Glasgow Solar Spreadsheet '!N210)))) -> 0
A199: 9 | B199: 3 | C199: =MAX(0,$C$2*(TAN(RADIANS('Glasgow Solar Spreadsheet '!N211)))) -> 0
A200: 9 | B200: 4 | C200: =MAX(0,$C$2*(TAN(RADIANS('Glasgow Solar Spreadsheet '!N212)))) -> 0
... 8564 more rows

Sheet HelioScope Validation (hidden)
A1: Location | B1: Glasgow | C1: Latitude | D1: Longitude | H1: Panel Data
B2: (RADIANS) | C2: 55.84 | D2: -4.213 | H2: No. panels: | J2: 1 | K2: Distance Between Panels (m) | AC2: 1000
A3: Reference longitude | D3: 0 | H3: β: | J3: 0.004 | K3: 1 | Q3: Energy | T3: Energy Density (kWh/m^2)
A4: Ground reflectance | C4: 0.2 | H4: PSTC (W) | J4: 345 | Q4: =(SUM(Z12:Z8771)/1000000000)*Solar_Power!B4 -> 1.528840203 | T4: =(Q4/Solar_Power!B3)*1000000 -> 76.44201014 | W4: Annual energy output (kWh) = | Z4: =(SUM(Y12:Y8771))/1000 -> 305.4452002 | AA4: 0 | AB4: 159
A5: Surface azimuth | C5: 0 | H5: Panel Height | I5: Height (m) | J5: 0.992 | K5: Width (m) | L5: 1.96 | AA5: 10 | AB5: 180
H6: Panel inclination to the vertical () | J6: =90-J7 -> 80 | W6: Capacity coefficient = | Z6: =(Z4*1000)/(J4*24*365*J2) -> 0.1010671697 | AA6: 20 | AB6: 198
H7: Panel inclination to the horizontal () | J7: 10 | AA7: 30 | AB7: 213
D8: Direct | E8: Direct | F8: Diffuse | G8: Panel | J8: Declination | K8: Equation | L8: Local | M8: Hour | N8: Solar | O8: Solar | P8: Perpindicular | Q8: Surface Azimuth | R8: Solar | S8: Surface | T8: Solar | U8: Direct | V8: Diffuse | W8: Ground | X8: Total solar | Y8: Panel | Z8: Array | AA8: 40 | AB8: 224
C9: Ambient | D9: normal | E9: Horizontal | F9: horizontal | G9: Length | K9: of time | L9: solar | M9: angle | N9: elevation | O9: Zenith | R9: azimuth | S9: Solar | T9: incidence | U9: solar | V9: solar | W9: reflected | X9: on panel | Y9: power | Z9: Output | AA9: 50 | AB9: 232
A10: Date | B10: Time | C10: temperature | D10: solar | F10: solar | G10: in Shadow | L10: time | N10: Bs | R10: as | S10: azimuth | T10: angle | U10: on panel | V10: on panel | W10: on panel | Y10: output | AA10: 60 | AB10: 236
A11: (Year Day) | B11: (Hour) | C11: (degC) | D11: (W/m^2) | E11: (W/m^2) | F11: (W/m^2) | G11: (m) | H11: Panel In Shadow | I11: Shadow Length (m) | J11: (deg) | K11: E | L11: (hour) | M11: (deg) | N11: (deg) | O11: (deg) | R11: (deg) | S11: (deg) | T11: (deg) | U11: (W/m^2) | V11: (W/m^2) | W11: (W/m^2) | X11: (W/m^2) | Y11: (W) | Z11: (W) | AA11: 70 | AB11: 235
A12: 1 | B12: 1 | C12: 8.33411 | D12: 0 | E12: =D12*SIN(RADIANS(N12)) -> 0 | F12: 0 | G12: =MAX(0,(SIN(RADIANS(N12)))*(MAX(0,I12-$K$3))/(SIN(RADIANS(180-$J$7-N12)))) -> 0 | H12: =MAX(0,G12/$J$5) -> 0 | I12: =MAX(0,Shadows!$C$2/(TAN(RADIANS('HelioScope Validation'!N12)))) -> 0 | J12: =23.45*SIN(RADIANS(280.1+0.9863*A12)) -> -23.01239181 | K12: =9.87* SIN(RADIANS(1.978*A12 - 160.22)) - 7.53*COS(RADIANS(0.989*A12 - 80.11)) - 1.5*SIN(RADIANS(0.989*A12 - 80.11)) -> -3.606818438 | L12: =($D$2/15)+(K12/60)+B12 -> 0.6590196927 | M12: =15*(12-L12) -> 170.1147046 | N12: =DEGREES(ASIN((COS(RADIANS($C$2))*COS(RADIANS(J12))*COS(RADIANS(M12))) + (SIN(RADIANS($C$2))*SIN(RADIANS(J12))))) -> -56.37011168 | O12: =DEGREES(ACOS((SIN(RADIANS($C$2)))*(SIN(RADIANS(J12)))+(COS(RADIANS($C$2)))*(COS(RADIANS(J12)))*(COS(RADIANS(M12))))) -> 146.3701117 | P12: =N12+O12 -> 90 | Q12: =$C$5 -> 0 | R12: =DEGREES(ASIN(((COS(RADIANS(J12))*SIN(RADIANS(M12))) /COS(RADIANS(N12))))) -> 16.57762186 | S12: =ABS(R12-Q12) -> 16.57762186 | T12: =DEGREES(ACOS(SIN(RADIANS( N12))*COS(RADIANS(90-$J$6)) + COS(RADIANS( N12 ))*COS(RADIANS(S12 ))*SIN(RADIANS(90-$J$6)))) -> 136.7030658 | U12: =MAX(0,(D12*COS(RADIANS(T12)))) -> 0 | V12: =IFERROR(F12*(0.5*(1+COS(RADIANS(90-$J$6))))*(1+(1-((F12^2)/((E12+F12)^2)))*((SIN(RADIANS(0.5*$J$6)))^3))*(1+(1-((F12^2)/((E12+F12)^2)))*((COS(RADIANS(T12)))^2)*((SIN(RADIANS(90-N12)))^3)),0) -> 0 | W12: =0.5*(1-COS(RADIANS(90-$J$6)))* (E12 + F12)*0.2 -> 0 | X12: =U12+V12+W12 -> 0 | Y12: =$J$4*(X12/1000)*(1-$J$3*(C12-25))*0.9 -> 0 | Z12: =Y12*(1-H12) -> 0 | AA12: 90 | AB12: 222
A13: =IF(B13>1,A12,A12+1) -> 1 | B13: =IF(B12<24,B12+1,1) -> 2 | C13: 8.36766 | D13: 0 | E13: 0 | F13: 0 | G13: 0 | H13: 0 | I13: =MAX(0,Shadows!$C$2/(TAN(RADIANS('HelioScope Validation'!N13)))) -> 0 | J13: -23.01239181 | K13: -3.606818438 | L13: 1.659019693 | M13: 155.1147046 | N13: -52.40281988 | O13: 142.4028199 | P13: 90 | Q13: 0 | R13: 39.40761352 | S13: 39.40761352 | T13: 134.300789 | U13: 0 | V13: 0 | W13: 0 | X13: 0 | Y13: 0 | Z13: 0
A14: 1 | B14: 3 | C14: 8.19456 | D14: 0 | E14: 0 | F14: 0 | G14: 0 | H14: 0 | I14: =MAX(0,Shadows!$C$2/(TAN(RADIANS('HelioScope Validation'!N14)))) -> 0 | J14: -23.01239181 | K14: -3.606818438 | L14: 2.659019693 | M14: 140.1147046 | N14: -46.05914726 | O14: 136.0591473 | P14: 90 | Q14: 0 | R14: 58.27346937 | S14: 58.27346937 | T14: 130.2220773 | U14: 0 | V14: 0 | W14: 0 | X14: 0 | Y14: 0 | Z14: 0
A15: 1 | B15: 4 | C15: 8.06828 | D15: 0 | E15: 0 | F15: 0 | G15: 0 | H15: 0 | I15: =MAX(0,Shadows!$C$2/(TAN(RADIANS('HelioScope Validation'!N15)))) -> 0 | J15: -23.01239181 | K15: -3.606818438 | L15: 3.659019693 | M15: 125.1147046 | N15: -38.37221177 | O15: 128.3722118 | P15: 90 | Q15: 0 | R15: 73.81066321 | S15: 73.81066321 | T15: 124.9862235 | U15: 0 | V15: 0 | W15: 0 | X15: 0 | Y15: 0 | Z15: 0 | AB15: Number of Panels
A16: 1 | B16: 5 | C16: 7.95692 | D16: 0 | E16: 0 | F16: 0 | G16: 0 | H16: 0 | I16: =MAX(0,Shadows!$C$2/(TAN(RADIANS('HelioScope Validation'!N16)))) -> 0 | J16: -23.01239181 | K16: -3.606818438 | L16: 4.659019693 | M16: 110.1147046 | N16: -30.0807034 | O16: 120.0807034 | P16: 90 | Q16: 0 | R16: 87.19056557 | S16: 87.19056557 | T16: 119.0937291 | U16: 0 | V16: 0 | W16: 0 | X16: 0 | Y16: 0 | Z16: 0 | AB16: 18598 | AC16: 0.001
A17: 1 | B17: 6 | C17: 7.85022 | D17: 0 | E17: 0 | F17: 0 | G17: 0 | H17: 0 | I17: =MAX(0,Shadows!$C$2/(TAN(RADIANS('HelioScope Validation'!N17)))) -> 0 | J17: -23.01239181 | K17: -3.606818438 | L17: 5.659019693 | M17: 95.11470461 | N17: -21.68840305 | O17: 111.688403 | P17: 90 | Q17: 0 | R17: 80.60954443 | S17: 80.60954443 | T17: 109.7317729 | U17: 0 | V17: 0 | W17: 0 | X17: 0 | Y17: 0 | Z17: 0
A18: 1 | B18: 7 | C18: 7.77245 | D18: 0 | E18: 0 | F18: 0 | G18: 0 | H18: 0 | I18: =MAX(0,Shadows!$C$2/(TAN(RADIANS('HelioScope Validation'!N18)))) -> 0 | J18: -23.01239181 | K18: -3.606818438 | L18: 6.659019693 | M18: 80.11470461 | N18: -13.57736612 | O18: 103.5773661 | P18: 90 | Q18: 0 | R18: 68.87941009 | S18: 68.87941009 | T18: 99.80928863 | U18: 0 | V18: 0 | W18: 0 | X18: 0 | Y18: 0 | Z18: 0 | AB18: Array | AC18: Validation | AD18: Difference
A19: 1 | B19: 8 | C19: 7.70896 | D19: 0 | E19: 0 | F19: 0 | G19: 0 | H19: 0 | I19: =MAX(0,Shadows!$C$2/(TAN(RADIANS('HelioScope Validation'!N19)))) -> 0 | J19: -23.01239181 | K19: -3.606818438 | L19: 7.659019693 | M19: 65.11470461 | N19: -6.085020725 | O19: 96.08502072 | P19: 90 | Q19: 0 | R19: 57.10763747 | S19: 57.10763747 | T19: 90.60867468 | U19: 0 | V19: 0 | W19: 0 | X19: 0 | Y19: 0 | Z19: 0 | AA19: Jan | AB19: =((((SUM($Z$12:$Z$755))/1000))*18598)*0.001 -> 70.18371789 | AC19: 110.1 | AD19: =(AB19-AC19)/AB19 -> -0.5687399203
A20: 1 | B20: 9 | C20: 7.78147 | D20: 0 | E20: 0 | F20: 0 | G20: 0.9056126339 | H20: 0.9129159616 | I20: =MAX(0,Shadows!$C$2/(TAN(RADIANS('HelioScope Validation'!N20)))) -> 21.72446729 | J20: -23.01239181 | K20: -3.606818438 | L20: 8.659019693 | M20: 50.11470461 | N20: 0.4543037245 | O20: 89.54569628 | P20: 90 | Q20: 0 | R20: 44.93370195 | S20: 44.93370195 | T20: 82.48796222 | U20: 0 | V20: 0 | W20: 0 | X20: 0 | Y20: 0 | Z20: 0 | AA20: Feb | AB20: =(((SUM($Z$756:$Z$1427))/1000)*18598)*0.001 -> 152.0708447 | AC20: 209.16 | AD20: -0.3754115752
A21: 1 | B21: 10 | C21: 8.36222 | D21: 0.1339617916 | E21: 0.01329930865 | F21: 19.2 | G21: 0.2666003906 | H21: 0.2687503938 | I21: =MAX(0,Shadows!$C$2/(TAN(RADIANS('HelioScope Validation'!N21)))) -> 1.726565212 | J21: -23.01239181 | K21: -3.606818438 | L21: 9.659019693 | M21: 35.11470461 | N21: 5.69753152 | O21: 84.30246848 | P21: 90 | Q21: 0 | R21: 32.14530599 | S21: 32.14530599 | T21: 75.87309226 | U21: 0.03269611672 | V21: 19.06270589 | W21: 0.02918931885 | X21: 19.12459133 | Y21: 6.333378511 | Z21: 4.631280542 | AA21: Mar | AB21: =(((SUM($Z$1428:$Z$2171))/1000)*18598)*0.001 -> 363.8678264 | AC21: 437.713 | AD21: -0.2029450484
A22: 1 | B22: 11 | C22: 9.08627 | D22: 0.6417575763 | E22: 0.1038455428 | F22: 42.45 | G22: 0.02471774712 | H22: 0.02491708379 | I22: =MAX(0,Shadows!$C$2/(TAN(RADIANS('HelioScope Validation'!N22)))) -> 1.050518076 | J22: -23.01239181 | K22: -3.606818438 | L22: 10.65901969 | M22: 20.11470461 | N22: 9.312219468 | O22: 80.68778053 | P22: 90 | Q22: 0 | R22: 18.70891801 | S22: 18.70891801 | T22: 71.23658996 | U22: 0.2064284382 | V22: 42.20252995 | W22: 0.06464885318 | X22: 42.47360724 | Y22: 14.02753964 | Z22: 13.67801426 | AA22: Apr | AB22: =(((SUM($Z$2172:$Z$2891))/1000)*18598)*0.001 -> 725.3447737 | AC22: 722.357 | AD22: 0.004119108364
A23: 1 | B23: 12 | C23: 9.69953 | D23: 0.0170141557 | E23: 0.003254457588 | F23: 57.2333 | G23: 0 | H23: 0 | I23: =MAX(0,Shadows!$C$2/(TAN(RADIANS('HelioScope Validation'!N23)))) -> 0.8839338332 | J23: -23.01239181 | K23: -3.606818438 | L23: 11.65901969 | M23: 5.11470461 | N23: 11.02745826 | O23: 78.97254174 | P23: 90 | Q23: 0 | R23: 4.795466903 | S23: 4.795466903 | T23: 69.00916077 | U23: 0.006094788377 | V23: 56.80104794 | W23: 0.0869551872 | X23: 56.89409792 | Y23: 18.7467864 | Z23: 18.7467864 | AA23: May | AB23: =(((SUM($Z$2892:$Z$3635))/1000)*18598)*0.001 -> 991.6676209 | AC23: 884.78 | AD23: 0.1077857325
A24: 1 | B24: 13 | C24: 10.1562 | D24: 3.171848148 | E24: 0.5888987902 | F24: 60.25 | G24: 0 | H24: 0 | I24: =MAX(0,Shadows!$C$2/(TAN(RADIANS('HelioScope Validation'!N24)))) -> 0.9116670132 | J24: -23.01239181 | K24: -3.606818438 | L24: 12.65901969 | M24: -9.88529539 | N24: 10.69986176 | O24: 79.30013824 | P24: 90 | Q24: 0 | R24: -9.253932039 | S24: 9.253932039 | T24: 69.43609353 | U24: 1.114117711 | V24: 60.2337975 | W24: 0.09242795769 | X24: 61.44034317 | Y24: 20.2099407 | Z24: 20.2099407 | AA24: Jun | AB24: =(((SUM($Z$3636:$Z$4355))/1000)*18598)*0.001 -> 960.367178 | AC24: 815.754 | AD24: 0.1505811332
A25: 1 | B25: 14 | C25: 10.4391 | D25: 3.790252158 | E25: 0.5509187039 | F25: 60.35 | G25: 0.07962650071 | H25: 0.08026864991 | I25: =MAX(0,Shadows!$C$2/(TAN(RADIANS('HelioScope Validation'!N25)))) -> 1.172534561 | J25: -23.01239181 | K25: -3.606818438 | L25: 13.65901969 | M25: -24.88529539 | N25: 8.357632275 | O25: 81.64236773 | P25: 90 | Q25: 0 | R25: -23.04618836 | S25: 23.04618836 | T25: 72.46817216 | U25: 1.141758669 | V25: 60.27330313 | W25: 0.09252217987 | X25: 61.50758397 | Y25: 20.2104472 | Z25: 18.58818189 | AA25: Jul | AB25: =(((SUM($Z$4356:$Z$5099))/1000)*18598)*0.001 -> 948.20847 | AC25: 812.852 | AD25: 0.1427496951
A26: 1 | B26: 15 | C26: 10.3553 | D26: 1.370365079 | E26: 0.1001576764 | F26: 34.8 | G26: 0.4026320911 | H26: 0.4058791241 | I26: =MAX(0,Shadows!$C$2/(TAN(RADIANS('HelioScope Validation'!N26)))) -> 2.350557372 | J26: -23.01239181 | K26: -3.606818438 | L26: 14.65901969 | M26: -39.88529539 | N26: 4.191389387 | O26: 85.80861061 | P26: 90 | Q26: 0 | R26: -36.28518983 | S26: 36.28518983 | T26: 77.78514981 | U26: 0.289939268 | V26: 34.59702761 | W26: 0.05302118153 | X26: 34.93998806 | Y26: 11.48437986 | Z26: 6.823109823 | AA26: Aug | AB26: =(((SUM($Z$5100:$Z$5843))/1000)*18598)*0.001 -> 672.6377531 | AC26: 628.48 | AD26: 0.06564863913
A27: 1 | B27: 16 | C27: 9.90303 | D27: 0 | E27: 0 | F27: 1.9 | G27: 0 | H27: 0 | I27: =MAX(0,Shadows!$C$2/(TAN(RADIANS('HelioScope Validation'!N27)))) -> 0 | J27: -23.01239181 | K27: -3.606818438 | L27: 15.65901969 | M27: -54.88529539 | N27: -1.501354882 | O27: 91.50135488 | P27: 90 | Q27: 0 | R27: -48.86523076 | S27: 48.86523076 | T27: 84.92902877 | U27: 0 | V27: 1.885567365 | W27: 0.002886526928 | X27: 1.888453892 | Y27: 0.6217742688 | Z27: 0.6217742688 | AA27: Sep | AB27: =(((SUM($Z$5839:$Z$6563))/1000)*18598)*0.001 -> 397.8648739 | AC27: 461.232 | AD27: -0.1592679582
A28: 1 | B28: 17 | C28: 9.59157 | D28: 0 | E28: 0 | F28: 0 | G28: 0 | H28: 0 | I28: =MAX(0,Shadows!$C$2/(TAN(RADIANS('HelioScope Validation'!N28)))) -> 0 | J28: -23.01239181 | K28: -3.606818438 | L28: 16.65901969 | M28: -69.88529539 | N28: -8.380647069 | O28: 98.38064707 | P28: 90 | Q28: 0 | R28: -60.88077137 | S28: 60.88077137 | T28: 93.43607014 | U28: 0 | V28: 0 | W28: 0 | X28: 0 | Y28: 0 | Z28: 0 | AA28: Oct | AB28: =(((SUM($Z$6564:$Z$7307))/1000)*18598)*0.001 -> 205.4721413 | AC28: 284.672 | AD28: -0.3854530263
A29: 1 | B29: 18 | C29: 9.30542 | D29: 0 | E29: 0 | F29: 0 | G29: 0 | H29: 0 | I29: =MAX(0,Shadows!$C$2/(TAN(RADIANS('HelioScope Validation'!N29)))) -> 0 | J29: -23.01239181 | K29: -3.606818438 | L29: 17.65901969 | M29: -84.88529539 | N29: -16.10565729 | O29: 106.1056573 | P29: 90 | Q29: 0 | R29: -72.59348598 | S29: 72.59348598 | T29: 102.9021759 | U29: 0 | V29: 0 | W29: 0 | X29: 0 | Y29: 0 | Z29: 0 | AA29: Nov | AB29: =(((SUM($Z$7308:$Z$8027))/1000)*18598)*0.001 -> 94.15881241 | AC29: 155.979 | AD29: -0.656552329
A30: 1 | B30: 19 | C30: 8.98 | D30: 0 | E30: 0 | F30: 0 | G30: 0 | H30: 0 | I30: =MAX(0,Shadows!$C$2/(TAN(RADIANS('HelioScope Validation'!N30)))) -> 0 | J30: -23.01239181 | K30: -3.606818438 | L30: 18.65901969 | M30: -99.88529539 | N30: -24.34374381 | O30: 114.3437438 | P30: 90 | Q30: 0 | R30: -84.40945667 | S30: 84.40945667 | T30: 112.9878038 | U30: 0 | V30: 0 | W30: 0 | X30: 0 | Y30: 0 | Z30: 0 | AA30: Dec | AB30: =(((SUM($Z$8038:$Z$8771))/1000)*18598)*0.001 -> 52.28263647 | AC30: 80.55 | AD30: -0.5406644623
A31: 1 | B31: 20 | C31: 8.74787 | D31: 0 | E31: 0 | F31: 0 | G31: 0 | H31: 0 | I31: =MAX(0,Shadows!$C$2/(TAN(RADIANS('HelioScope Validation'!N31)))) -> 0 | J31: -23.01239181 | K31: -3.606818438 | L31: 19.65901969 | M31: -114.8852954 | N31: -32.74929319 | O31: 122.7492932 | P31: 90 | Q31: 0 | R31: -83.10391172 | S31: 83.10391172 | T31: 121.0114943 | U31: 0 | V31: 0 | W31: 0 | X31: 0 | Y31: 0 | Z31: 0 | AA31: Total | AB31: =SUM(AB19:AB30) -> 5634.126649 | AC31: =SUM(AC19:AC30) -> 5603.629
A32: 1 | B32: 21 | C32: 8.46392 | D32: 0 | E32: 0 | F32: 0 | G32: 0 | H32: 0 | I32: =MAX(0,Shadows!$C$2/(TAN(RADIANS('HelioScope Validation'!N32)))) -> 0 | J32: -23.01239181 | K32: -3.606818438 | L32: 20.65901969 | M32: -129.8852954 | N32: -40.91185702 | O32: 130.911857 | P32: 90 | Q32: 0 | R32: -69.15762833 | S32: 69.15762833 | T32: 126.745152 | U32: 0 | V32: 0 | W32: 0 | X32: 0 | Y32: 0 | Z32: 0 | AA32: Difference | AB32: =(AB31-AC31)/AB31 -> 0.005413021512
A33: 1 | B33: 22 | C33: 8.204 | D33: 0 | E33: 0 | F33: 0 | G33: 0 | H33: 0 | I33: =MAX(0,Shadows!$C$2/(TAN(RADIANS('HelioScope Validation'!N33)))) -> 0 | J33: -23.01239181 | K33: -3.606818438 | L33: 21.65901969 | M33: -144.8852954 | N33: -48.26615413 | O33: 138.2661541 | P33: 90 | Q33: 0 | R33: -52.68805724 | S33: 52.68805724 | T33: 131.6701287 | U33: 0 | V33: 0 | W33: 0 | X33: 0 | Y33: 0 | Z33: 0
A34: 1 | B34: 23 | C34: 7.9307 | D34: 0 | E34: 0 | F34: 0 | G34: 0 | H34: 0 | I34: =MAX(0,Shadows!$C$2/(TAN(RADIANS('HelioScope Validation'!N34)))) -> 0 | J34: -23.01239181 | K34: -3.606818438 | L34: 22.65901969 | M34: -159.8852954 | N34: -53.97714744 | O34: 143.9771474 | P34: 90 | Q34: 0 | R34: -32.56275261 | S34: 32.56275261 | T34: 135.269507 | U34: 0 | V34: 0 | W34: 0 | X34: 0 | Y34: 0 | Z34: 0
A35: 1 | B35: 24 | C35: 7.64719 | D35: 0 | E35: 0 | F35: 0 | G35: 0 | H35: 0 | I35: =MAX(0,Shadows!$C$2/(TAN(RADIANS('HelioScope Validation'!N35)))) -> 0 | J35: -23.01239181 | K35: -3.606818438 | L35: 23.65901969 | M35: -174.8852954 | N35: -56.95553178 | O35: 146.9555318 | P35: 90 | Q35: 0 | R35: -8.654764929 | S35: 8.654764929 | T35: 137.0461161 | U35: 0 | V35: 0 | W35: 0 | X35: 0 | Y35: 0 | Z35: 0
A36: 2 | B36: 1 | C36: 7.29674 | D36: 0 | E36: 0 | F36: 0 | G36: 0 | H36: 0 | I36: =MAX(0,Shadows!$C$2/(TAN(RADIANS('HelioScope Validation'!N36)))) -> 0 | J36: -22.931365 | K36: -4.053568369 | L36: 0.6515738605 | M36: 170.2263921 | N36: -56.30808957 | O36: 146.3080896 | P36: 90 | Q36: 0 | R36: 16.36961395 | S36: 16.36961395 | T36: 136.6329303 | U36: 0 | V36: 0 | W36: 0 | X36: 0 | Y36: 0 | Z36: 0
A37: 2 | B37: 2 | C37: 6.83299 | D37: 0 | E37: 0 | F37: 0 | G37: 0 | H37: 0 | I37: =MAX(0,Shadows!$C$2/(TAN(RADIANS('HelioScope Validation'!N37)))) -> 0 | J37: -22.931365 | K37: -4.053568369 | L37: 1.651573861 | M37: 155.2263921 | N37: -52.36780837 | O37: 142.3678084 | P37: 90 | Q37: 0 | R37: 39.20092958 | S37: 39.20092958 | T37: 134.2468138 | U37: 0 | V37: 0 | W37: 0 | X37: 0 | Y37: 0 | Z37: 0
A38: 2 | B38: 3 | C38: 6.66393 | D38: 0 | E38: 0 | F38: 0 | G38: 0 | H38: 0 | I38: =MAX(0,Shadows!$C$2/(TAN(RADIANS('HelioScope Validation'!N38)))) -> 0 | J38: -22.931365 | K38: -4.053568369 | L38: 2.651573861 | M38: 140.2263921 | N38: -46.04313671 | O38: 136.0431367 | P38: 90 | Q38: 0 | R38: 58.08624762 | S38: 58.08624762 | T38: 130.1812669 | U38: 0 | V38: 0 | W38: 0 | X38: 0 | Y38: 0 | Z38: 0
A39: 2 | B39: 4 | C39: 6.54671 | D39: 0 | E39: 0 | F39: 0 | G39: 0 | H39: 0 | I39: =MAX(0,Shadows!$C$2/(TAN(RADIANS('HelioScope Validation'!N39)))) -> 0 | J39: -22.931365 | K39: -4.053568369 | L39: 3.651573861 | M39: 125.2263921 | N39: -38.36672275 | O39: 128.3667227 | P39: 90 | Q39: 0 | R39: 73.64382853 | S39: 73.64382853 | T39: 124.9542416 | U39: 0 | V39: 0 | W39: 0 | X39: 0 | Y39: 0 | Z39: 0
A40: 2 | B40: 5 | C40: 6.38383 | D40: 0 | E40: 0 | F40: 0 | G40: 0 | H40: 0 | I40: =MAX(0,Shadows!$C$2/(TAN(RADIANS('HelioScope Validation'!N40)))) -> 0 | J40: -22.931365 | K40: -4.053568369 | L40: 4.651573861 | M40: 110.2263921 | N40: -30.07907508 | O40: 120.0790751 | P40: 90 | Q40: 0 | R40: 87.03928475 | S40: 87.03928475 | T40: 119.0661555 | U40: 0 | V40: 0 | W40: 0 | X40: 0 | Y40: 0 | Z40: 0
A41: 2 | B41: 6 | C41: 6.21887 | D41: 0 | E41: 0 | F41: 0 | G41: 0 | H41: 0 | I41: =MAX(0,Shadows!$C$2/(TAN(RADIANS('HelioScope Validation'!N41)))) -> 0 | J41: -22.931365 | K41: -4.053568369 | L41: 5.651573861 | M41: 95.22639209 | N41: -21.68557774 | O41: 111.6855777 | P41: 90 | Q41: 0 | R41: 80.75040189 | S41: 80.75040189 | T41: 109.7528237 | U41: 0 | V41: 0 | W41: 0 | X41: 0 | Y41: 0 | Z41: 0
A42: 2 | B42: 7 | C42: 6.09059 | D42: 0 | E42: 0 | F42: 0 | G42: 0 | H42: 0 | I42: =MAX(0,Shadows!$C$2/(TAN(RADIANS('HelioScope Validation'!N42)))) -> 0 | J42: -22.931365 | K42: -4.053568369 | L42: 6.651573861 | M42: 80.22639209 | N42: -13.56927048 | O42: 103.5692705 | P42: 90 | Q42: 0 | R42: 69.01383144 | S42: 69.01383144 | T42: 99.82279327 | U42: 0 | V42: 0 | W42: 0 | X42: 0 | Y42: 0 | Z42: 0
A43: 2 | B43: 8 | C43: 5.98041 | D43: 0 | E43: 0 | F43: 0 | G43: 0 | H43: 0 | I43: =MAX(0,Shadows!$C$2/(TAN(RADIANS('HelioScope Validation'!N43)))) -> 0 | J43: -22.931365 | K43: -4.053568369 | L43: 7.651573861 | M43: 65.22639209 | N43: -6.06814162 | O43: 96.06814162 | P43: 90 | Q43: 0 | R43: 57.23819593 | S43: 57.23819593 | T43: 90.61092117 | U43: 0 | V43: 0 | W43: 0 | X43: 0 | Y43: 0 | Z43: 0
A44: 2 | B44: 9 | C44: 5.99549 | D44: 0 | E44: 0 | F44: 0 | G44: 0.9003926106 | H44: 0.9076538413 | I44: =MAX(0,Shadows!$C$2/(TAN(RADIANS('HelioScope Validation'!N44)))) -> 20.43088365 | J44: -22.931365 | K44: -4.053568369 | L44: 8.651573861 | M44: 50.22639209 | N44: 0.483066692 | O44: 89.51693331 | P44: 90 | Q44: 0 | R44: 45.06142505 | S44: 45.06142505 | T44: 82.47523832 | U44: 0 | V44: 0 | W44: 0 | X44: 0 | Y44: 0 | Z44: 0
A45: 2 | B45: 10 | C45: 6.35593 | D45: 0.03346785099 | E45: 0.003347693258 | F45: 14.4667 | G45: 0.2630738375 | H45: 0.2651954007 | I45: =MAX(0,Shadows!$C$2/(TAN(RADIANS('HelioScope Validation'!N45)))) -> 1.713485675 | J45: -22.931365 | K45: -4.053568369 | L45: 9.651573861 | M45: 35.22639209 | N45: 5.740733047 | O45: 84.25926695 | P45: 90 | Q45: 0 | R45: 32.26950835 | S45: 32.26950835 | T45: 75.84188342 | U45: 0.00818619125 | V45: 14.35896472 | W45: 0.02198325385 | X45: 14.38913417 | Y45: 4.801020014 | Z45: 3.527811588
A46: 2 | B46: 11 | C46: 6.81868 | D46: 0 | E46: 0 | F46: 32.9667 | G46: 0.02148019496 | H46: 0.02165342234 | I46: =MAX(0,Shadows!$C$2/(TAN(RADIANS('HelioScope Validation'!N46)))) -> 1.043754724 | J46: -22.931365 | K46: -4.053568369 | L46: 10.65157386 | M46: 20.22639209 | N46: 9.371493933 | O46: 80.62850607 | P46: 90 | Q46: 0 | R46: 18.8272172 | S46: 18.8272172 | T46: 71.18430755 | U46: 0 | V46: 32.71628088 | W46: 0.05008382488 | X46: 32.7663647 | Y46: 10.91386006 | Z46: 10.67753763
A47: 2 | B47: 12 | C47: 7.22111 | D47: 0 | E47: 0 | F47: 44 | G47: 0 | H47: 0 | I47: =MAX(0,Shadows!$C$2/(TAN(RADIANS('HelioScope Validation'!N47)))) -> 0.8777620493 | J47: -22.931365 | K47: -4.053568369 | L47: 11.65157386 | M47: 5.226392092 | N47: 11.10307516 | O47: 78.89692484 | P47: 90 | Q47: 0 | R47: 4.904362752 | S47: 4.904362752 | T47: 68.93523417 | U47: 0 | V47: 43.66577057 | W47: 0.06684588675 | X47: 43.73261645 | Y47: 14.54465399 | Z47: 14.54465399
A48: 2 | B48: 13 | C48: 7.57121 | D48: 0 | E48: 0 | F48: 55.5833 | G48: 0 | H48: 0 | I48: =MAX(0,Shadows!$C$2/(TAN(RADIANS('HelioScope Validation'!N48)))) -> 0.9038244167 | J48: -22.931365 | K48: -4.053568369 | L48: 12.65157386 | M48: -9.773607908 | N48: 10.79053498 | O48: 79.20946502 | P48: 90 | Q48: 0 | R48: -9.157812716 | S48: 9.157812716 | T48: 69.34265741 | U48: 0 | V48: 55.16108239 | W48: 0.0844435222 | X48: 55.24552591 | Y48: 18.34961123 | Z48: 18.34961123
A49: 2 | B49: 14 | C49: 7.73611 | D49: 0.2358670179 | E49: 0.03470389236 | F49: 47.4667 | G49: 0.07342642863 | H49: 0.07401857725 | I49: =MAX(0,Shadows!$C$2/(TAN(RADIANS('HelioScope Validation'!N49)))) -> 1.158026381 | J49: -22.931365 | K49: -4.053568369 | L49: 13.65157386 | M49: -24.77360791 | N49: 8.460833366 | O49: 81.53916663 | P49: 90 | Q49: 0 | R49: -22.96475891 | S49: 22.96475891 | T49: 72.3594981 | U49: 0.07147799435 | V49: 47.13052769 | W49: 0.07216530602 | X49: 47.27417099 | Y49: 15.69227111 | Z49: 14.53075153
A50: 2 | B50: 15 | C50: 7.69188 | D50: 0.2507070355 | E50: 0.01881535728 | F50: 32.85 | G50: 0.3914882524 | H50: 0.3946454157 | I50: =MAX(0,Shadows!$C$2/(TAN(RADIANS('HelioScope Validation'!N50)))) -> 2.288808414 | J50: -22.931365 | K50: -4.053568369 | L50: 14.65157386 | M50: -39.77360791 | N50: 4.304048039 | O50: 85.69595196 | P50: 90 | Q50: 0 | R50: -36.21831703 | S50: 36.21831703 | T50: 77.66610683 | U50: 0.05355310812 | V50: 32.61206572 | W50: 0.04993511611 | X50: 32.71555394 | Y50: 10.86145546 | Z50: 6.575031854
A51: 2 | B51: 16 | C51: 7.35779 | D51: 0 | E51: 0 | F51: 1.96667 | G51: 0 | H51: 0 | I51: =MAX(0,Shadows!$C$2/(TAN(RADIANS('HelioScope Validation'!N51)))) -> 0 | J51: -22.931365 | K51: -4.053568369 | L51: 15.65157386 | M51: -54.77360791 | N51: -1.382159901 | O51: 91.3821599 | P51: 90 | Q51: 0 | R51: -48.811066 | S51: 48.811066 | T51: 84.80375773 | U51: 0 | V51: 1.951730932 | W51: 0.002987813638 | X51: 1.954718745 | Y51: 0.6497712342 | Z51: 0.6497712342
A52: 2 | B52: 17 | C52: 7.14126 | D52: 0 | E52: 0 | F52: 0 | G52: 0 | H52: 0 | I52: =MAX(0,Shadows!$C$2/(TAN(RADIANS('HelioScope Validation'!N52)))) -> 0 | J52: -22.931365 | K52: -4.053568369 | L52: 16.65157386 | M52: -69.77360791 | N52: -8.257297424 | O52: 98.25729742 | P52: 90 | Q52: 0 | R52: -60.83643837 | S52: 60.83643837 | T52: 93.30748777 | U52: 0 | V52: 0 | W52: 0 | X52: 0 | Y52: 0 | Z52: 0
A53: 2 | B53: 18 | C53: 6.95079 | D53: 0 | E53: 0 | F53: 0 | G53: 0 | H53: 0 | I53: =MAX(0,Shadows!$C$2/(TAN(RADIANS('HelioScope Validation'!N53)))) -> 0 | J53: -22.931365 | K53: -4.053568369 | L53: 17.65157386 | M53: -84.77360791 | N53: -15.97992527 | O53: 105.9799253 | P53: 90 | Q53: 0 | R53: -72.55552662 | S53: 72.55552662 | T53: 102.7720733 | U53: 0 | V53: 0 | W53: 0 | X53: 0 | Y53: 0 | Z53: 0
A54: 2 | B54: 19 | C54: 6.73649 | D54: 0 | E54: 0 | F54: 0 | G54: 0 | H54: 0 | I54: =MAX(0,Shadows!$C$2/(TAN(RADIANS('HelioScope Validation'!N54)))) -> 0 | J54: -22.931365 | K54: -4.053568369 | L54: 18.65157386 | M54: -99.77360791 | N54: -24.21693568 | O54: 114.2169357 | P54: 90 | Q54: 0 | R54: -84.37375475 | S54: 84.37375475 | T54: 112.8571415 | U54: 0 | V54: 0 | W54: 0 | X54: 0 | Y54: 0 | Z54: 0
A55: 2 | B55: 20 | C55: 6.50337 | D55: 0 | E55: 0 | F55: 0 | G55: 0 | H55: 0 | I55: =MAX(0,Shadows!$C$2/(TAN(RADIANS('HelioScope Validation'!N55)))) -> 0 | J55: -22.931365 | K55: -4.053568369 | L55: 19.65157386 | M55: -114.7736079 | N55: -32.62254533 | O55: 122.6225453 | P55: 90 | Q55: 0 | R55: -83.1428568 | S55: 83.1428568 | T55: 120.8939231 | U55: 0 | V55: 0 | W55: 0 | X55: 0 | Y55: 0 | Z55: 0
A56: 2 | B56: 21 | C56: 6.37857 | D56: 0 | E56: 0 | F56: 0 | G56: 0 | H56: 0 | I56: =MAX(0,Shadows!$C$2/(TAN(RADIANS('HelioScope Validation'!N56)))) -> 0 | J56: -22.931365 | K56: -4.053568369 | L56: 20.65157386 | M56: -129.7736079 | N56: -40.7866658 | O56: 130.7866658 | P56: 90 | Q56: 0 | R56: -69.20825513 | S56: 69.20825513 | T56: 126.6303035 | U56: 0 | V56: 0 | W56: 0 | X56: 0 | Y56: 0 | Z56: 0
A57: 2 | B57: 22 | C57: 6.18496 | D57: 0 | E57: 0 | F57: 0 | G57: 0 | H57: 0 | I57: =MAX(0,Shadows!$C$2/(TAN(RADIANS('HelioScope Validation'!N57)))) -> 0 | J57: -22.931365 | K57: -4.053568369 | L57: 21.65157386 | M57: -144.7736079 | N57: -48.14540478 | O57: 138.1454048 | P57: 90 | Q57: 0 | R57: -52.763961 | S57: 52.763961 | T57: 131.5608095 | U57: 0 | V57: 0 | W57: 0 | X57: 0 | Y57: 0 | Z57: 0
A58: 2 | B58: 23 | C58: 5.81793 | D58: 0 | E58: 0 | F58: 0 | G58: 0 | H58: 0 | I58: =MAX(0,Shadows!$C$2/(TAN(RADIANS('HelioScope Validation'!N58)))) -> 0 | J58: -22.931365 | K58: -4.053568369 | L58: 22.65157386 | M58: -159.7736079 | N58: -53.86681641 | O58: 143.8668164 | P58: 90 | Q58: 0 | R58: -32.68242472 | S58: 32.68242472 | T58: 135.1695206 | U58: 0 | V58: 0 | W58: 0 | X58: 0 | Y58: 0 | Z58: 0
A59: 2 | B59: 24 | C59: 5.30283 | D59: 0 | E59: 0 | F59: 0 | G59: 0 | H59: 0 | I59: =MAX(0,Shadows!$C$2/(TAN(RADIANS('HelioScope Validation'!N59)))) -> 0 | J59: -22.931365 | K59: -4.053568369 | L59: 23.65157386 | M59: -174.7736079 | N59: -56.86532262 | O59: 146.8653226 | P59: 90 | Q59: 0 | R59: -8.828549261 | S59: 8.828549261 | T59: 136.9596461 | U59: 0 | V59: 0 | W59: 0 | X59: 0 | Y59: 0 | Z59: 0
A60: 3 | B60: 1 | C60: 5.64817 | D60: 0 | E60: 0 | F60: 0 | G60: 0 | H60: 0 | I60: =MAX(0,Shadows!$C$2/(TAN(RADIANS('HelioScope Validation'!N60)))) -> 0 | J60: -22.84354315 | K60: -4.495559789 | L60: 0.6442073368 | M60: 170.3368899 | N60: -56.23893531 | O60: 146.2389353 | P60: 90 | Q60: 0 | R60: 16.16195802 | S60: 16.16195802 | T60: 136.5557887 | U60: 0 | V60: 0 | W60: 0 | X60: 0 | Y60: 0 | Z60: 0
A61: 3 | B61: 2 | C61: 5.65573 | D61: 0 | E61: 0 | F61: 0 | G61: 0 | H61: 0 | I61: =MAX(0,Shadows!$C$2/(TAN(RADIANS('HelioScope Validation'!N61)))) -> 0 | J61: -22.84354315 | K61: -4.495559789 | L61: 1.644207337 | M61: 155.3368899 | N61: -52.32586007 | O61: 142.3258601 | P61: 90 | Q61: 0 | R61: 38.99183142 | S61: 38.99183142 | T61: 134.1858415 | U61: 0 | V61: 0 | W61: 0 | X61: 0 | Y61: 0 | Z61: 0
A62: 3 | B62: 3 | C62: 5.52804 | D62: 0 | E62: 0 | F62: 0 | G62: 0 | H62: 0 | I62: =MAX(0,Shadows!$C$2/(TAN(RADIANS('HelioScope Validation'!N62)))) -> 0 | J62: -22.84354315 | K62: -4.495559789 | L62: 2.644207337 | M62: 140.3368899 | N62: -46.02056523 | O62: 136.0205652 | P62: 90 | Q62: 0 | R62: 57.89534279 | S62: 57.89534279 | T62: 130.1335833 | U62: 0 | V62: 0 | W62: 0 | X62: 0 | Y62: 0 | Z62: 0
A63: 3 | B63: 4 | C63: 5.40194 | D63: 0 | E63: 0 | F63: 0 | G63: 0 | H63: 0 | I63: =MAX(0,Shadows!$C$2/(TAN(RADIANS('HelioScope Validation'!N63)))) -> 0 | J63: -22.84354315 | K63: -4.495559789 | L63: 3.644207337 | M63: 125.3368899 | N63: -38.35497702 | O63: 128.354977 | P63: 90 | Q63: 0 | R63: 73.47302323 | S63: 73.47302323 | T63: 124.9155319 | U63: 0 | V63: 0 | W63: 0 | X63: 0 | Y63: 0 | Z63: 0
A64: 3 | B64: 5 | C64: 5.45002 | D64: 0 | E64: 0 | F64: 0 | G64: 0 | H64: 0 | I64: =MAX(0,Shadows!$C$2/(TAN(RADIANS('HelioScope Validation'!N64)))) -> 0 | J64: -22.84354315 | K64: -4.495559789 | L64: 4.644207337 | M64: 110.3368899 | N64: -30.07135069 | O64: 120.0713507 | P64: 90 | Q64: 0 | R64: 86.88417919 | S64: 86.88417919 | T64: 119.0319605 | U64: 0 | V64: 0 | W64: 0 | X64: 0 | Y64: 0 | Z64: 0
A65: 3 | B65: 6 | C65: 5.50703 | D65: 0 | E65: 0 | F65: 0 | G65: 0 | H65: 0 | I65: =MAX(0,Shadows!$C$2/(TAN(RADIANS('HelioScope Validation'!N65)))) -> 0 | J65: -22.84354315 | K65: -4.495559789 | L65: 5.644207337 | M65: 95.33688995 | N65: -21.67668268 | O65: 111.6766827 | P65: 90 | Q65: 0 | R65: 80.89476595 | S65: 80.89476595 | T65: 109.7685133 | U65: 0 | V65: 0 | W65: 0 | X65: 0 | Y65: 0 | Z65: 0
A66: 3 | B66: 7 | C66: 5.50704 | D66: 0 | E66: 0 | F66: 0 | G66: 0 | H66: 0 | I66: =MAX(0,Shadows!$C$2/(TAN(RADIANS('HelioScope Validation'!N66)))) -> 0 | J66: -22.84354315 | K66: -4.495559789 | L66: 6.644207337 | M66: 80.33688995 | N66: -13.55502705 | O66: 103.555027 | P66: 90 | Q66: 0 | R66: 69.15135501 | S66: 69.15135501 | T66: 99.83075193 | U66: 0 | V66: 0 | W66: 0 | X66: 0 | Y66: 0 | Z66: 0
A67: 3 | B67: 8 | C67: 5.50136 | D67: 0 | E67: 0 | F67: 0 | G67: 0 | H67: 0 | I67: =MAX(0,Shadows!$C$2/(TAN(RADIANS('HelioScope Validation'!N67)))) -> 0 | J67: -22.84354315 | K67: -4.495559789 | L67: 7.644207337 | M67: 65.33688995 | N67: -6.044966645 | O67: 96.04496665 | P67: 90 | Q67: 0 | R67: 57.37137234 | S67: 57.37137234 | T67: 90.60734916 | U67: 0 | V67: 0 | W67: 0 | X67: 0 | Y67: 0 | Z67: 0
A68: 3 | B68: 9 | C68: 5.57952 | D68: 0 | E68: 0 | F68: 0 | G68: 0.8940359055 | H68: 0.9012458725 | I68: =MAX(0,Shadows!$C$2/(TAN(RADIANS('HelioScope Validation'!N68)))) -> 19.0417711 | J68: -22.84354315 | K68: -4.495559789 | L68: 8.644207337 | M68: 50.33688995 | N68: 0.5183049393 | O68: 89.48169506 | P68: 90 | Q68: 0 | R68: 45.19117536 | S68: 45.19117536 | T68: 82.45637787 | U68: 0 | V68: 0 | W68: 0 | X68: 0 | Y68: 0 | Z68: 0
A69: 3 | B69: 10 | C69: 6.05343 | D69: 0 | E69: 0 | F69: 13.0167 | G69: 0.2590286344 | H69: 0.261117575 | I69: =MAX(0,Shadows!$C$2/(TAN(RADIANS('HelioScope Validation'!N69)))) -> 1.698637516 | J69: -22.84354315 | K69: -4.495559789 | L69: 9.644207337 | M69: 35.33688995 | N69: 5.790574497 | O69: 84.2094255 | P69: 90 | Q69: 0 | R69: 32.39500886 | S69: 32.39500886 | T69: 75.80423195 | U69: 0 | V69: 12.91782354 | W69: 0.01977529214 | X69: 12.93759883 | Y69: 4.321567355 | Z69: 3.193130167
A70: 3 | B70: 11 | C70: 6.68572 | D70: 0 | E70: 0 | F70: 30.9833 | G70: 0.01789699181 | H70: 0.01804132239 | I70: =MAX(0,Shadows!$C$2/(TAN(RADIANS('HelioScope Validation'!N70)))) -> 1.03632171 | J70: -22.84354315 | K70: -4.495559789 | L70: 10.64420734 | M70: 20.33688995 | N70: 9.43750592 | O70: 80.56249408 | P70: 90 | Q70: 0 | R70: 18.94593679 | S70: 18.94593679 | T70: 71.12536842 | U70: 0 | V70: 30.74794703 | W70: 0.04707059461 | X70: 30.79501762 | Y70: 10.26232678 | Z70: 10.07718084
A71: 3 | B71: 12 | C71: 7.305 | D71: 0 | E71: 0 | F71: 47.0333 | G71: 0 | H71: 0 | I71: =MAX(0,Shadows!$C$2/(TAN(RADIANS('HelioScope Validation'!N71)))) -> 0.8711354886 | J71: -22.84354315 | K71: -4.495559789 | L71: 11.64420734 | M71: 5.336889947 | N71: 11.18541222 | O71: 78.81458778 | P71: 90 | Q71: 0 | R71: 5.012688982 | S71: 5.012688982 | T71: 68.8546177 | U71: 0 | V71: 46.67602924 | W71: 0.07145415103 | X71: 46.7474834 | Y71: 15.54247192 | Z71: 15.54247192
A72: 3 | B72: 13 | C72: 7.75155 | D72: 0 | E72: 0 | F72: 50.6 | G72: 0 | H72: 0 | I72: =MAX(0,Shadows!$C$2/(TAN(RADIANS('HelioScope Validation'!N72)))) -> 0.8955576171 | J72: -22.84354315 | K72: -4.495559789 | L72: 12.64420734 | M72: -9.663110053 | N72: 10.88777115 | O72: 79.11222885 | P72: 90 | Q72: 0 | R72: -9.06327827 | S72: 9.06327827 | T72: 69.24273407 | U72: 0 | V72: 50.21563615 | W72: 0.07687276976 | X72: 50.29250892 | Y72: 16.69321906 | Z72: 16.69321906
A73: 3 | B73: 14 | C73: 7.98119 | D73: 0 | E73: 0 | F73: 43.9833 | G73: 0.06692188854 | H73: 0.06746158119 | I73: =MAX(0,Shadows!$C$2/(TAN(RADIANS('HelioScope Validation'!N73)))) -> 1.143014779 | J73: -22.84354315 | K73: -4.495559789 | L73: 13.64420734 | M73: -24.66311005 | N73: 8.57031275 | O73: 81.42968725 | P73: 90 | Q73: 0 | R73: -22.88585146 | S73: 22.88585146 | T73: 72.24475423 | U73: 0 | V73: 43.64919742 | W73: 0.06682051569 | X73: 43.71601794 | Y73: 14.49786487 | Z73: 13.51981598
A74: 3 | B74: 15 | C74: 7.99018 | D74: 0 | E74: 0 | F74: 32.8167 | G74: 0.3799437241 | H74: 0.3830077864 | I74: =MAX(0,Shadows!$C$2/(TAN(RADIANS('HelioScope Validation'!N74)))) -> 2.227210482 | J74: -22.84354315 | K74: -4.495559789 | L74: 14.64420734 | M74: -39.66311005 | N74: 4.422619092 | O74: 85.57738091 | P74: 90 | Q74: 0 | R74: -36.15475695 | S74: 36.15475695 | T74: 77.54153817 | U74: 0 | V74: 32.56742029 | W74: 0.04985594117 | X74: 32.61727624 | Y74: 10.81674326 | Z74: 6.673846366
A75: 3 | B75: 16 | C75: 7.64116 | D75: 0 | E75: 0 | F75: 3.86667 | G75: 0 | H75: 0 | I75: =MAX(0,Shadows!$C$2/(TAN(RADIANS('HelioScope Validation'!N75)))) -> 0 | J75: -22.84354315 | K75: -4.495559789 | L75: 15.64420734 | M75: -54.66311005 | N75: -1.257439021 | O75: 91.25743902 | P75: 90 | Q75: 0 | R75: -48.76085013 | S75: 48.76085013 | T75: 84.67352904 | U75: 0 | V75: 3.837298297 | W75: 0.005874340566 | X75: 3.843172638 | Y75: 1.276162674 | Z75: 1.276162674
A76: 3 | B76: 17 | C76: 7.35304 | D76: 0 | E76: =D76*SIN(RADIANS(N76)) -> 0 | F76: 0 | G76: =MAX(0,(SIN(RADIANS(N76)))*(MAX(0,I76-$K$3))/(SIN(RADIANS(180-$J$7-N76)))) -> 0 | H76: =MAX(0,G76/$J$5) -> 0 | I76: =MAX(0,Shadows!$C$2/(TAN(RADIANS('HelioScope Validation'!N76)))) -> 0 | J76: =23.45*SIN(RADIANS(280.1+0.9863*A76)) -> -22.84354315 | K76: =9.87* SIN(RADIANS(1.978*A76 - 160.22)) - 7.53*COS(RADIANS(0.989*A76 - 80.11)) - 1.5*SIN(RADIANS(0.989*A76 - 80.11)) -> -4.495559789 | L76: =($D$2/15)+(K76/60)+B76 -> 16.64420734 | M76: =15*(12-L76) -> -69.66311005 | N76: =DEGREES(ASIN((COS(RADIANS($C$2))*COS(RADIANS(J76))*COS(RADIANS(M76))) + (SIN(RADIANS($C$2))*SIN(RADIANS(J76))))) -> -8.128772254 | O76: =DEGREES(ACOS((SIN(RADIANS($C$2)))*(SIN(RADIANS(J76)))+(COS(RADIANS($C$2)))*(COS(RADIANS(J76)))*(COS(RADIANS(M76))))) -> 98.12877225 | P76: =N76+O76 -> 90 | Q76: =$C$5 -> 0 | R76: =DEGREES(ASIN(((COS(RADIANS(J76))*SIN(RADIANS(M76))) /COS(RADIANS(N76))))) -> -60.79657425 | S76: =ABS(R76-Q76) -> 60.79657425 | T76: =DEGREES(ACOS(SIN(RADIANS( N76))*COS(RADIANS(90-$J$6)) + COS(RADIANS( N76 ))*COS(RADIANS(S76 ))*SIN(RADIANS(90-$J$6)))) -> 93.17446148 | U76: =MAX(0,(D76*COS(RADIANS(T76)))) -> 0 | V76: =IFERROR(F76*(0.5*(1+COS(RADIANS(90-$J$6))))*(1+(1-((F76^2)/((E76+F76)^2)))*((SIN(RADIANS(0.5*$J$6)))^3))*(1+(1-((F76^2)/((E76+F76)^2)))*((COS(RADIANS(T76)))^2)*((SIN(RADIANS(90-N76)))^3)),0) -> 0 | W76: =0.5*(1-COS(RADIANS(90-$J$6)))* (E76 + F76)*0.2 -> 0 | X76: =U76+V76+W76 -> 0 | Y76: =$J$4*(X76/1000)*(1-$J$3*(C76-25))*0.9 -> 0 | Z76: =Y76*(1-H76) -> 0
A77: =IF(B77>1,A76,A76+1) -> 3 | B77: =IF(B76<24,B76+1,1) -> 18 | C77: 7.12292 | D77: 0 | E77: 0 | F77: 0 | G77: 0 | H77: 0 | I77: =MAX(0,Shadows!$C$2/(TAN(RADIANS('HelioScope Validation'!N77)))) -> 0 | J77: -22.84354315 | K77: -4.495559789 | L77: 17.64420734 | M77: -84.66311005 | N77: -15.84928601 | O77: 105.849286 | P77: 90 | Q77: 0 | R77: -72.52249625 | S77: 72.52249625 | T77: 102.6379375 | U77: 0 | V77: 0 | W77: 0 | X77: 0 | Y77: 0 | Z77: 0
A78: 3 | B78: 19 | C78: 6.87919 | D78: 0 | E78: 0 | F78: 0 | G78: 0 | H78: 0 | I78: =MAX(0,Shadows!$C$2/(TAN(RADIANS('HelioScope Validation'!N78)))) -> 0 | J78: -22.84354315 | K78: -4.495559789 | L78: 18.64420734 | M78: -99.66311005 | N78: -24.08536789 | O78: 114.0853679 | P78: 90 | Q78: 0 | R78: -84.34343278 | S78: 84.34343278 | T78: 112.7227196 | U78: 0 | V78: 0 | W78: 0 | X78: 0 | Y78: 0 | Z78: 0
A79: 3 | B79: 20 | C79: 6.62684 | D79: 0 | E79: 0 | F79: 0 | G79: 0 | H79: 0 | I79: =MAX(0,Shadows!$C$2/(TAN(RADIANS('HelioScope Validation'!N79)))) -> 0 | J79: -22.84354315 | K79: -4.495559789 | L79: 19.64420734 | M79: -114.6631101 | N79: -32.49102597 | O79: 122.491026 | P79: 90 | Q79: 0 | R79: -83.17595508 | S79: 83.17595508 | T79: 120.7706837 | U79: 0 | V79: 0 | W79: 0 | X79: 0 | Y79: 0 | Z79: 0
A80: 3 | B80: 21 | C80: 6.31449 | D80: 0 | E80: 0 | F80: 0 | G80: 0 | H80: 0 | I80: =MAX(0,Shadows!$C$2/(TAN(RADIANS('HelioScope Validation'!N80)))) -> 0 | J80: -22.84354315 | K80: -4.495559789 | L80: 20.64420734 | M80: -129.6631101 | N80: -40.65648716 | O80: 130.6564872 | P80: 90 | Q80: 0 | R80: -69.25259186 | S80: 69.25259186 | T80: 126.509606 | U80: 0 | V80: 0 | W80: 0 | X80: 0 | Y80: 0 | Z80: 0
A81: 3 | B81: 22 | C81: 5.87544 | D81: 0 | E81: 0 | F81: 0 | G81: 0 | H81: 0 | I81: =MAX(0,Shadows!$C$2/(TAN(RADIANS('HelioScope Validation'!N81)))) -> 0 | J81: -22.84354315 | K81: -4.495559789 | L81: 21.64420734 | M81: -144.6631101 | N81: -48.01920621 | O81: 138.0192062 | P81: 90 | Q81: 0 | R81: -52.83336005 | S81: 52.83336005 | T81: 131.4453443 | U81: 0 | V81: 0 | W81: 0 | X81: 0 | Y81: 0 | Z81: 0
A82: 3 | B82: 23 | C82: 5.65613 | D82: 0 | E82: 0 | F82: 0 | G82: 0 | H82: 0 | I82: =MAX(0,Shadows!$C$2/(TAN(RADIANS('HelioScope Validation'!N82)))) -> 0 | J82: -22.84354315 | K82: -4.495559789 | L82: 22.64420734 | M82: -159.6631101 | N82: -53.75034757 | O82: 143.7503476 | P82: 90 | Q82: 0 | R82: -32.79616363 | S82: 32.79616363 | T82: 135.0630257 | U82: 0 | V82: 0 | W82: 0 | X82: 0 | Y82: 0 | Z82: 0
A83: 3 | B83: 24 | C83: 5.02292 | D83: 0 | E83: 0 | F83: 0 | G83: 0 | H83: 0 | I83: =MAX(0,Shadows!$C$2/(TAN(RADIANS('HelioScope Validation'!N83)))) -> 0 | J83: -22.84354315 | K83: -4.495559789 | L83: 23.64420734 | M83: -174.6631101 | N83: -56.76827969 | O83: 146.7682797 | P83: 90 | Q83: 0 | R83: -8.998559973 | S83: 8.998559973 | T83: 136.8663435 | U83: 0 | V83: 0 | W83: 0 | X83: 0 | Y83: 0 | Z83: 0
A84: 4 | B84: 1 | C84: 5.21063 | D84: 0 | E84: 0 | F84: 0 | G84: 0 | H84: 0 | I84: =MAX(0,Shadows!$C$2/(TAN(RADIANS('HelioScope Validation'!N84)))) -> 0 | J84: -22.74895228 | K84: -4.932384406 | L84: 0.6369269266 | M84: 170.4460961 | N84: -56.16265877 | O84: 146.1626588 | P84: 90 | Q84: 0 | R84: 15.95491686 | S84: 15.95491686 | T84: 136.4716593 | U84: 0 | V84: 0 | W84: 0 | X84: 0 | Y84: 0 | Z84: 0
A85: 4 | B85: 2 | C85: 4.98237 | D85: 0 | E85: 0 | F85: 0 | G85: 0 | H85: 0 | I85: =MAX(0,Shadows!$C$2/(TAN(RADIANS('HelioScope Validation'!N85)))) -> 0 | J85: -22.74895228 | K85: -4.932384406 | L85: 1.636926927 | M85: 155.4460961 | N85: -52.2769522 | O85: 142.2769522 | P85: 90 | Q85: 0 | R85: 38.78056005 | S85: 38.78056005 | T85: 134.1178724 | U85: 0 | V85: 0 | W85: 0 | X85: 0 | Y85: 0 | Z85: 0
A86: 4 | B86: 3 | C86: 4.66952 | D86: 0 | E86: 0 | F86: 0 | G86: 0 | H86: 0 | I86: =MAX(0,Shadows!$C$2/(TAN(RADIANS('HelioScope Validation'!N86)))) -> 0 | J86: -22.74895228 | K86: -4.932384406 | L86: 2.636926927 | M86: 140.4460961 | N86: -45.99139247 | O86: 135.9913925 | P86: 90 | Q86: 0 | R86: 57.70094419 | S86: 57.70094419 | T86: 130.0790139 | U86: 0 | V86: 0 | W86: 0 | X86: 0 | Y86: 0 | Z86: 0
A87: 4 | B87: 4 | C87: 4.47022 | D87: 0 | E87: 0 | F87: 0 | G87: 0 | H87: 0 | I87: =MAX(0,Shadows!$C$2/(TAN(RADIANS('HelioScope Validation'!N87)))) -> 0 | J87: -22.74895228 | K87: -4.932384406 | L87: 3.636926927 | M87: 125.4460961 | N87: -38.33692882 | O87: 128.3369288 | P87: 90 | Q87: 0 | R87: 73.2983948 | S87: 73.2983948 | T87: 124.8700745 | U87: 0 | V87: 0 | W87: 0 | X87: 0 | Y87: 0 | Z87: 0
A88: 4 | B88: 5 | C88: 4.31791 | D88: 0 | E88: 0 | F88: 0 | G88: 0 | H88: 0 | I88: =MAX(0,Shadows!$C$2/(TAN(RADIANS('HelioScope Validation'!N88)))) -> 0 | J88: -22.74895228 | K88: -4.932384406 | L88: 4.636926927 | M88: 110.4460961 | N88: -30.05748584 | O88: 120.0574858 | P88: 90 | Q88: 0 | R88: 86.72536943 | S88: 86.72536943 | T88: 118.9911219 | U88: 0 | V88: 0 | W88: 0 | X88: 0 | Y88: 0 | Z88: 0
A89: 4 | B89: 6 | C89: 4.16219 | D89: 0 | E89: 0 | F89: 0 | G89: 0 | H89: 0 | I89: =MAX(0,Shadows!$C$2/(TAN(RADIANS('HelioScope Validation'!N89)))) -> 0 | J89: -22.74895228 | K89: -4.932384406 | L89: 5.636926927 | M89: 95.4460961 | N89: -21.66167848 | O89: 111.6616785 | P89: 90 | Q89: 0 | R89: 81.04253265 | S89: 81.04253265 | T89: 109.7787864 | U89: 0 | V89: 0 | W89: 0 | X89: 0 | Y89: 0 | Z89: 0
A90: 4 | B90: 7 | C90: 4.04523 | D90: 0 | E90: 0 | F90: 0 | G90: 0 | H90: 0 | I90: =MAX(0,Shadows!$C$2/(TAN(RADIANS('HelioScope Validation'!N90)))) -> 0 | J90: -22.74895228 | K90: -4.932384406 | L90: 6.636926927 | M90: 80.4460961 | N90: -13.53460363 | O90: 103.5346036 | P90: 90 | Q90: 0 | R90: 69.29188701 | S90: 69.29188701 | T90: 99.83311966 | U90: 0 | V90: 0 | W90: 0 | X90: 0 | Y90: 0 | Z90: 0
A91: 4 | B91: 8 | C91: 3.9487 | D91: 0 | E91: 0 | F91: 0 | G91: 0 | H91: 0 | I91: =MAX(0,Shadows!$C$2/(TAN(RADIANS('HelioScope Validation'!N91)))) -> 0 | J91: -22.74895228 | K91: -4.932384406 | L91: 7.636926927 | M91: 65.4460961 | N91: -6.015472237 | O91: 96.01547224 | P91: 90 | Q91: 0 | R91: 57.50707935 | S91: 57.50707935 | T91: 90.59792487 | U91: 0 | V91: 0 | W91: 0 | X91: 0 | Y91: 0 | Z91: 0
A92: 4 | B92: 9 | C92: 4.01668 | D92: 0 | E92: 0 | F92: 0 | G92: 0.8865628524 | H92: 0.8937125528 | I92: =MAX(0,Shadows!$C$2/(TAN(RADIANS('HelioScope Validation'!N92)))) -> 17.62290864 | J92: -22.74895228 | K92: -4.932384406 | L92: 8.636926927 | M92: 50.4460961 | N92: 0.5600323491 | O92: 89.43996765 | P92: 90 | Q92: 0 | R92: 45.3228698 | S92: 45.3228698 | T92: 82.43135909 | U92: 0 | V92: 0 | W92: 0 | X92: 0 | Y92: 0 | Z92: 0
A93: 4 | B93: 10 | C93: 4.64559 | D93: 0.7036608861 | E93: 0.07168432606 | F93: 21.1333 | G93: 0.2544742225 | H93: 0.256526434 | I93: =MAX(0,Shadows!$C$2/(TAN(RADIANS('HelioScope Validation'!N93)))) -> 1.682115202 | J93: -22.74895228 | K93: -4.932384406 | L93: 9.636926927 | M93: 35.4460961 | N93: 5.847059342 | O93: 84.15294066 | P93: 90 | Q93: 0 | R93: 32.52172736 | S93: 32.52172736 | T93: 75.76012863 | U93: 0.1730878773 | V93: 21.01881213 | W93: 0.03221513593 | X93: 21.22411515 | Y93: 7.126637145 | Z93: 5.298466332
A94: 4 | B94: 11 | C94: 5.57805 | D94: 11.4406394 | E94: 1.89026834 | F94: 47.5833 | G94: 0.01397547024 | H94: 0.01408817564 | I94: =MAX(0,Shadows!$C$2/(TAN(RADIANS('HelioScope Validation'!N94)))) -> 1.028249308 | J94: -22.74895228 | K94: -4.932384406 | L94: 10.63692693 | M94: 20.4460961 | N94: 9.510248014 | O94: 80.48975199 | P94: 90 | Q94: 0 | R94: 19.06499858 | S94: 19.06499858 | T94: 71.05977628 | U94: 3.71342018 | V94: 48.52675432 | W94: 0.07516146696 | X94: 52.31533597 | Y94: 17.50586559 | Z94: 17.25923988
A95: 4 | B95: 12 | C95: 6.38724 | D95: 9.873846107 | E95: 1.93042432 | F95: 70.1 | G95: 0 | H95: 0 | I95: =MAX(0,Shadows!$C$2/(TAN(RADIANS('HelioScope Validation'!N95)))) -> 0.8640771266 | J95: -22.74895228 | K95: -4.932384406 | L95: 11.63692693 | M95: 5.446096101 | N95: 11.27445085 | O95: 78.72554915 | P95: 90 | Q95: 0 | R95: 5.120368797 | S95: 5.120368797 | T95: 68.76732824 | U95: 3.575874093 | V95: 71.00606458 | W95: 0.1094303997 | X95: 74.69136908 | Y95: 24.91831406 | Z95: 24.91831406
A96: 4 | B96: 13 | C96: 6.90408 | D96: 21.63009666 | E96: 4.124082011 | F96: 62.0167 | G96: 0 | H96: 0 | I96: =MAX(0,Shadows!$C$2/(TAN(RADIANS('HelioScope Validation'!N96)))) -> 0.8868947926 | J96: -22.74895228 | K96: -4.932384406 | L96: 12.63692693 | M96: -9.553903899 | N96: 10.99154041 | O96: 79.00845959 | P96: 90 | Q96: 0 | R96: -8.970403861 | S96: 8.970403861 | T96: 69.13635395 | U96: 7.703454633 | V96: 64.44128054 | W96: 0.1004827096 | X96: 72.24521789 | Y96: 24.05586101 | Z96: 24.05586101
A97: 4 | B97: 14 | C97: 7.00299 | D97: 1.02839493 | E97: 0.1553079913 | F97: 55.1667 | G97: 0.06012670046 | H97: 0.06061159321 | I97: =MAX(0,Shadows!$C$2/(TAN(RADIANS('HelioScope Validation'!N97)))) -> 1.12755622 | J97: -22.74895228 | K97: -4.932384406 | L97: 13.63692693 | M97: -24.5539039 | N97: 8.686029771 | O97: 81.31397023 | P97: 90 | Q97: 0 | R97: -22.80953823 | S97: 22.80953823 | T97: 72.12398438 | U97: 0.3156743054 | V97: 54.85715119 | W97: 0.08404656093 | X97: 55.25687206 | Y97: 18.3923762 | Z97: 17.27758498
A98: 4 | B98: 15 | C98: 6.77133 | D98: 0.852683766 | E98: 0.06759885256 | F98: 34.15 | G98: 0.3680265729 | H98: 0.3709945292 | I98: =MAX(0,Shadows!$C$2/(TAN(RADIANS('HelioScope Validation'!N98)))) -> 2.166015219 | J98: -22.74895228 | K98: -4.932384406 | L98: 14.63692693 | M98: -39.5539039 | N98: 4.547052145 | O98: 85.45294786 | P98: 90 | Q98: 0 | R98: -36.094577 | S98: 36.094577 | T98: 77.41149958 | U98: 0.1858401801 | V98: 33.93242167 | W98: 0.05198422131 | X98: 34.17024607 | Y98: 11.38347605 | Z98: 7.160268715
A99: 4 | B99: 16 | C99: 6.24874 | D99: 0 | E99: 0 | F99: 2.28333 | G99: 0 | H99: 0 | I99: =MAX(0,Shadows!$C$2/(TAN(RADIANS('HelioScope Validation'!N99)))) -> 0 | J99: -22.74895228 | K99: -4.932384406 | L99: 15.63692693 | M99: -54.5539039 | N99: -1.127250688 | O99: 91.12725069 | P99: 90 | Q99: 0 | R99: -48.7146442 | S99: 48.7146442 | T99: 84.53840772 | U99: 0 | V99: 2.265985543 | W99: 0.003468891331 | X99: 2.269454435 | Y99: 0.7575190736 | Z99: 0.7575190736
A100: 4 | B100: 17 | C100: 5.86098 | D100: 0 | E100: 0 | F100: 0 | G100: 0 | H100: 0 | I100: =MAX(0,Shadows!$C$2/(TAN(RADIANS('HelioScope Validation'!N100)))) -> 0 | J100: -22.74895228 | K100: -4.932384406 | L100: 16.63692693 | M100: -69.5539039 | N100: -7.995136074 | O100: 97.99513607 | P100: 90 | Q100: 0 | R100: -60.76123302 | S100: 60.76123302 | T100: 93.03706259 | U100: 0 | V100: 0 | W100: 0 | X100: 0 | Y100: 0 | Z100: 0
A101: 4 | B101: 18 | C101: 5.5048 | D101: 0 | E101: 0 | F101: 0 | G101: 0 | H101: 0 | I101: =MAX(0,Shadows!$C$2/(TAN(RADIANS('HelioScope Validation'!N101)))) -> 0 | J101: -22.74895228 | K101: -4.932384406 | L101: 17.63692693 | M101: -84.5539039 | N101: -15.71380816 | O101: 105.7138082 | P101: 90 | Q101: 0 | R101: -72.49444214 | S101: 72.49444214 | T101: 102.4998434 | U101: 0 | V101: 0 | W101: 0 | X101: 0 | Y101: 0 | Z101: 0
A102: 4 | B102: 19 | C102: 5.14862 | D102: 0 | E102: 0 | F102: 0 | G102: 0 | H102: 0 | I102: =MAX(0,Shadows!$C$2/(TAN(RADIANS('HelioScope Validation'!N102)))) -> 0 | J102: -22.74895228 | K102: -4.932384406 | L102: 18.63692693 | M102: -99.5539039 | N102: -23.94911167 | O102: 113.9491117 | P102: 90 | Q102: 0 | R102: -84.31853265 | S102: 84.31853265 | T102: 112.5846145 | U102: 0 | V102: 0 | W102: 0 | X102: 0 | Y102: 0 | Z102: 0
A103: 4 | B103: 20 | C103: 4.79243 | D103: 0 | E103: 0 | F103: 0 | G103: 0 | H103: 0 | I103: =MAX(0,Shadows!$C$2/(TAN(RADIANS('HelioScope Validation'!N103)))) -> 0 | J103: -22.74895228 | K103: -4.932384406 | L103: 19.63692693 | M103: -114.5539039 | N103: -32.35480762 | O103: 122.3548076 | P103: 90 | Q103: 0 | R103: -83.20316717 | S103: 83.20316717 | T103: 120.6418389 | U103: 0 | V103: 0 | W103: 0 | X103: 0 | Y103: 0 | Z103: 0
A104: 4 | B104: 21 | C104: 4.43625 | D104: 0 | E104: 0 | F104: 0 | G104: 0 | H104: 0 | I104: =MAX(0,Shadows!$C$2/(TAN(RADIANS('HelioScope Validation'!N104)))) -> 0 | J104: -22.74895228 | K104: -4.932384406 | L104: 20.63692693 | M104: -129.5539039 | N104: -40.52139391 | O104: 130.5213939 | P104: 90 | Q104: 0 | R104: -69.29059525 | S104: 69.29059525 | T104: 126.3831213 | U104: 0 | V104: 0 | W104: 0 | X104: 0 | Y104: 0 | Z104: 0
A105: 4 | B105: 22 | C105: 4.08007 | D105: 0 | E105: 0 | F105: 0 | G105: 0 | H105: 0 | I105: =MAX(0,Shadows!$C$2/(TAN(RADIANS('HelioScope Validation'!N105)))) -> 0 | J105: -22.74895228 | K105: -4.932384406 | L105: 21.63692693 | M105: -144.5539039 | N105: -47.88762998 | O105: 137.88763 | P105: 90 | Q105: 0 | R105: -52.89619158 | S105: 52.89619158 | T105: 131.3237913 | U105: 0 | V105: 0 | W105: 0 | X105: 0 | Y105: 0 | Z105: 0
A106: 4 | B106: 23 | C106: 3.72388 | D106: 0 | E106: 0 | F106: 0 | G106: 0 | H106: 0 | I106: =MAX(0,Shadows!$C$2/(TAN(RADIANS('HelioScope Validation'!N106)))) -> 0 | J106: -22.74895228 | K106: -4.932384406 | L106: 22.63692693 | M106: -159.5539039 | N106: -53.62780607 | O106: 143.6278061 | P106: 90 | Q106: 0 | R106: -32.90385347 | S106: 32.90385347 | T106: 134.9500724 | U106: 0 | V106: 0 | W106: 0 | X106: 0 | Y106: 0 | Z106: 0
A107: 4 | B107: 24 | C107: 3.36758 | D107: 0 | E107: 0 | F107: 0 | G107: 0 | H107: 0 | I107: =MAX(0,Shadows!$C$2/(TAN(RADIANS('HelioScope Validation'!N107)))) -> 0 | J107: -22.74895228 | K107: -4.932384406 | L107: 23.63692693 | M107: -174.5539039 | N107: -56.66444816 | O107: 146.6644482 | P107: 90 | Q107: 0 | R107: -9.164592239 | S107: 9.164592239 | T107: 136.7662446 | U107: 0 | V107: 0 | W107: 0 | X107: 0 | Y107: 0 | Z107: 0
A108: 5 | B108: 1 | C108: 3.01029 | D108: 0 | E108: 0 | F108: 0 | G108: 0 | H108: 0 | I108: =MAX(0,Shadows!$C$2/(TAN(RADIANS('HelioScope Validation'!N108)))) -> 0 | J108: -22.64762043 | K108: -5.363640028 | L108: 0.6297393329 | M108: 170.55391 | N108: -56.0792731 | O108: 146.0792731 | P108: 90 | Q108: 0 | R108: 15.7487496 | S108: 15.7487496 | T108: 136.3805628 | U108: 0 | V108: 0 | W108: 0 | X108: 0 | Y108: 0 | Z108: 0
A109: 5 | B109: 2 | C109: 2.65163 | D109: 0 | E109: 0 | F109: 0 | G109: 0 | H109: 0 | I109: =MAX(0,Shadows!$C$2/(TAN(RADIANS('HelioScope Validation'!N109)))) -> 0 | J109: -22.64762043 | K109: -5.363640028 | L109: 1.629739333 | M109: 155.55391 | N109: -52.22106509 | O109: 142.2210651 | P109: 90 | Q109: 0 | R109: 38.56735787 | S109: 38.56735787 | T109: 134.0429099 | U109: 0 | V109: 0 | W109: 0 | X109: 0 | Y109: 0 | Z109: 0
A110: 5 | B110: 3 | C110: 2.31433 | D110: 0 | E110: 0 | F110: 0 | G110: 0 | H110: 0 | I110: =MAX(0,Shadows!$C$2/(TAN(RADIANS('HelioScope Validation'!N110)))) -> 0 | J110: -22.64762043 | K110: -5.363640028 | L110: 2.629739333 | M110: 140.55391 | N110: -45.95558064 | O110: 135.9555806 | P110: 90 | Q110: 0 | R110: 57.50324421 | S110: 57.50324421 | T110: 130.0175484 | U110: 0 | V110: 0 | W110: 0 | X110: 0 | Y110: 0 | Z110: 0
A111: 5 | B111: 4 | C111: 2.11099 | D111: 0 | E111: 0 | F111: 0 | G111: 0 | H111: 0 | I111: =MAX(0,Shadows!$C$2/(TAN(RADIANS('HelioScope Validation'!N111)))) -> 0 | J111: -22.64762043 | K111: -5.363640028 | L111: 3.629739333 | M111: 125.55391 | N111: -38.31253461 | O111: 128.3125346 | P111: 90 | Q111: 0 | R111: 73.1200936 | S111: 73.1200936 | T111: 124.8178519 | U111: 0 | V111: 0 | W111: 0 | X111: 0 | Y111: 0 | Z111: 0
A112: 5 | B112: 5 | C112: 1.93072 | D112: 0 | E112: 0 | F112: 0 | G112: 0 | H112: 0 | I112: =MAX(0,Shadows!$C$2/(TAN(RADIANS('HelioScope Validation'!N112)))) -> 0 | J112: -22.64762043 | K112: -5.363640028 | L112: 4.629739333 | M112: 110.55391 | N112: -30.03743816 | O112: 120.0374382 | P112: 90 | Q112: 0 | R112: 86.56297819 | S112: 86.56297819 | T112: 118.9436199 | U112: 0 | V112: 0 | W112: 0 | X112: 0 | Y112: 0 | Z112: 0
A113: 5 | B113: 6 | C113: 1.75766 | D113: 0 | E113: 0 | F113: 0 | G113: 0 | H113: 0 | I113: =MAX(0,Shadows!$C$2/(TAN(RADIANS('HelioScope Validation'!N113)))) -> 0 | J113: -22.64762043 | K113: -5.363640028 | L113: 5.629739333 | M113: 95.55391001 | N113: -21.64052773 | O113: 111.6405277 | P113: 90 | Q113: 0 | R113: 81.19359641 | S113: 81.19359641 | T113: 109.7835896 | U113: 0 | V113: 0 | W113: 0 | X113: 0 | Y113: 0 | Z113: 0
A114: 5 | B114: 7 | C114: 1.62934 | D114: 0 | E114: 0 | F114: 0 | G114: 0 | H114: 0 | I114: =MAX(0,Shadows!$C$2/(TAN(RADIANS('HelioScope Validation'!N114)))) -> 0 | J114: -22.64762043 | K114: -5.363640028 | L114: 6.629739333 | M114: 80.55391001 | N114: -13.50796995 | O114: 103.50797 | P114: 90 | Q114: 0 | R114: 69.43533263 | S114: 69.43533263 | T114: 99.82985322 | U114: 0 | V114: 0 | W114: 0 | X114: 0 | Y114: 0 | Z114: 0
A115: 5 | B115: 8 | C115: 1.5231 | D115: 0 | E115: 0 | F115: 0 | G115: 0 | H115: 0 | I115: =MAX(0,Shadows!$C$2/(TAN(RADIANS('HelioScope Validation'!N115)))) -> 0 | J115: -22.64762043 | K115: -5.363640028 | L115: 7.629739333 | M115: 65.55391001 | N115: -5.979636759 | O115: 95.97963676 | P115: 90 | Q115: 0 | R115: 57.64522906 | S115: 57.64522906 | T115: 90.58261632 | U115: 0 | V115: 0 | W115: 0 | X115: 0 | Y115: 0 | Z115: 0
A116: 5 | B116: 9 | C116: 1.69568 | D116: 0 | E116: 0 | F116: 0 | G116: 0.8779979101 | H116: 0.8850785384 | I116: =MAX(0,Shadows!$C$2/(TAN(RADIANS('HelioScope Validation'!N116)))) -> 16.22550848 | J116: -22.64762043 | K116: -5.363640028 | L116: 8.629739333 | M116: 50.55391001 | N116: 0.6082609041 | O116: 89.3917391 | P116: 90 | Q116: 0 | R116: 45.45642513 | S116: 45.45642513 | T116: 82.40016199 | U116: 0 | V116: 0 | W116: 0 | X116: 0 | Y116: 0 | Z116: 0
A117: 5 | B117: 10 | C117: 3.12013 | D117: 17.40923844 | E117: 1.79261933 | F117: 28.8333 | G117: 0.2494213094 | H117: 0.2514327716 | I117: =MAX(0,Shadows!$C$2/(TAN(RADIANS('HelioScope Validation'!N117)))) -> 1.664021603 | J117: -22.64762043 | K117: -5.363640028 | L117: 9.629739333 | M117: 35.55391001 | N117: 5.910189208 | O117: 84.08981079 | P117: 90 | Q117: 0 | R117: 32.6495838 | S117: 32.6495838 | T117: 75.70956602 | U117: 4.297248083 | V117: 29.67874627 | W117: 0.04652765307 | X117: 34.02252201 | Y117: 11.48854826 | Z117: 8.599950733
A118: 5 | B118: 11 | C118: 5.09641 | D118: 79.86605067 | E118: 13.30501974 | F118: 35.3 | G118: 0.009723616535 | H118: 0.009802032798 | I118: =MAX(0,Shadows!$C$2/(TAN(RADIANS('HelioScope Validation'!N118)))) -> 1.019569749 | J118: -22.64762043 | K118: -5.363640028 | L118: 10.62973933 | M118: 20.55391001 | N118: 9.589711025 | O118: 80.41028898 | P118: 90 | Q118: 0 | R118: 19.1843247 | S118: 19.1843247 | T118: 70.98753649 | U118: 26.01826879 | V118: 41.32395736 | W118: 0.07384194648 | X118: 67.4160681 | Y118: 22.59923179 | Z118: 22.37771338
A119: 5 | B119: 12 | C119: 6.85866 | D119: 125.9379653 | E119: 24.82828783 | F119: 42.3167 | G119: 0 | H119: 0 | I119: =MAX(0,Shadows!$C$2/(TAN(RADIANS('HelioScope Validation'!N119)))) -> 0.8566108368 | J119: -22.64762043 | K119: -5.363640028 | L119: 11.62973933 | M119: 5.553910007 | N119: 11.37017077 | O119: 78.62982923 | P119: 90 | Q119: 0 | R119: 5.227325836 | S119: 5.227325836 | T119: 68.67338428 | U119: 45.80162194 | V119: 52.37874728 | W119: 0.1020083239 | X119: 98.28237755 | Y119: 32.73113197 | Z119: 32.73113197
A120: 5 | B120: 13 | C120: 7.61191 | D120: 67.58097129 | E120: 13.012918 | F120: 63.7167 | G120: 0 | H120: 0 | I120: =MAX(0,Shadows!$C$2/(TAN(RADIANS('HelioScope Validation'!N120)))) -> 0.8778645193 | J120: -22.64762043 | K120: -5.363640028 | L120: 12.62973933 | M120: -9.446089993 | N120: 11.10181133 | O120: 78.89818867 | P120: 90 | Q120: 0 | R120: -8.879264117 | S120: 8.879264117 | T120: 69.02354907 | U120: 24.19292059 | V120: 71.0187783 | W120: 0.1165695308 | X120: 95.32826842 | Y120: 31.65813737 | Z120: 31.65813737
A121: 5 | B121: 14 | C121: 7.69345 | D121: 43.17616943 | E121: 6.611256866 | F121: 57.35 | G121: 0.05305494123 | H121: 0.05348280366 | I121: =MAX(0,Shadows!$C$2/(TAN(RADIANS('HelioScope Validation'!N121)))) -> 1.111706075 | J121: -22.64762043 | K121: -5.363640028 | L121: 13.62973933 | M121: -24.44608999 | N121: 8.807942227 | O121: 81.19205777 | P121: 90 | Q121: 0 | R121: -22.73589075 | S121: 22.73589075 | T121: 71.99723389 | U121: 13.34415252 | V121: 60.95972764 | W121: 0.0971715212 | X121: 74.40105168 | Y121: 24.70075744 | Z121: 23.37969168
A122: 5 | B122: 15 | C122: 7.06084 | D122: 11.60524805 | E122: 0.9463332898 | F122: 40.7667 | G122: 0.3557647786 | H122: 0.3586338494 | I122: =MAX(0,Shadows!$C$2/(TAN(RADIANS('HelioScope Validation'!N122)))) -> 2.105443062 | J122: -22.64762043 | K122: -5.363640028 | L122: 14.62973933 | M122: -39.44608999 | N122: 4.677295375 | O122: 85.32270463 | P122: 90 | Q122: 0 | R122: -36.03784361 | S122: 36.03784361 | T122: 77.27604818 | U122: 2.556102254 | V122: 41.0272318 | W122: 0.06337147043 | X122: 43.64670552 | Y122: 14.52476973 | Z122: 9.315695647
A123: 5 | B123: 16 | C123: 6.02544 | D123: 0 | E123: 0 | F123: 2.26667 | G123: 0 | H123: 0 | I123: =MAX(0,Shadows!$C$2/(TAN(RADIANS('HelioScope Validation'!N123)))) -> 0 | J123: -22.64762043 | K123: -5.363640028 | L123: 15.62973933 | M123: -54.44608999 | N123: -0.9916545963 | O123: 90.9916546 | P123: 90 | Q123: 0 | R123: -48.67250786 | S123: 48.67250786 | T123: 84.39845994 | U123: 0 | V123: 2.249452095 | W123: 0.003443581048 | X123: 2.252895676 | Y123: 0.7526167559 | Z123: 0.7526167559
A124: 5 | B124: 17 | C124: 5.63781 | D124: 0 | E124: 0 | F124: 0 | G124: 0 | H124: 0 | I124: =MAX(0,Shadows!$C$2/(TAN(RADIANS('HelioScope Validation'!N124)))) -> 0 | J124: -22.64762043 | K124: -5.363640028 | L124: 16.62973933 | M124: -69.44608999 | N124: -7.856454414 | O124: 97.85645441 | P124: 90 | Q124: 0 | R124: -60.73046682 | S124: 60.73046682 | T124: 92.89536326 | U124: 0 | V124: 0 | W124: 0 | X124: 0 | Y124: 0 | Z124: 0
A125: 5 | B125: 18 | C125: 5.3742 | D125: 0 | E125: 0 | F125: 0 | G125: 0 | H125: 0 | I125: =MAX(0,Shadows!$C$2/(TAN(RADIANS('HelioScope Validation'!N125)))) -> 0 | J125: -22.64762043 | K125: -5.363640028 | L125: 17.62973933 | M125: -84.44608999 | N125: -15.57356115 | O125: 105.5735611 | P125: 90 | Q125: 0 | R125: -72.4714092 | S125: 72.4714092 | T125: 102.3578664 | U125: 0 | V125: 0 | W125: 0 | X125: 0 | Y125: 0 | Z125: 0
A126: 5 | B126: 19 | C126: 5.1106 | D126: 0 | E126: 0 | F126: 0 | G126: 0 | H126: 0 | I126: =MAX(0,Shadows!$C$2/(TAN(RADIANS('HelioScope Validation'!N126)))) -> 0 | J126: -22.64762043 | K126: -5.363640028 | L126: 18.62973933 | M126: -99.44608999 | N126: -23.80823868 | O126: 113.8082387 | P126: 90 | Q126: 0 | R126: -84.29909327 | S126: 84.29909327 | T126: 112.442903 | U126: 0 | V126: 0 | W126: 0 | X126: 0 | Y126: 0 | Z126: 0
A127: 5 | B127: 20 | C127: 4.84699 | D127: 0 | E127: 0 | F127: 0 | G127: 0 | H127: 0 | I127: =MAX(0,Shadows!$C$2/(TAN(RADIANS('HelioScope Validation'!N127)))) -> 0 | J127: -22.64762043 | K127: -5.363640028 | L127: 19.62973933 | M127: -114.44609 | N127: -32.21396303 | O127: 122.213963 | P127: 90 | Q127: 0 | R127: -83.2244576 | S127: 83.2244576 | T127: 120.5074528 | U127: 0 | V127: 0 | W127: 0 | X127: 0 | Y127: 0 | Z127: 0
A128: 5 | B128: 21 | C128: 4.58338 | D128: 0 | E128: 0 | F128: 0 | G128: 0 | H128: 0 | I128: =MAX(0,Shadows!$C$2/(TAN(RADIANS('HelioScope Validation'!N128)))) -> 0 | J128: -22.64762043 | K128: -5.363640028 | L128: 20.62973933 | M128: -129.44609 | N128: -40.38145901 | O128: 130.381459 | P128: 90 | Q128: 0 | R128: -69.3222272 | S128: 69.3222272 | T128: 126.2509126 | U128: 0 | V128: 0 | W128: 0 | X128: 0 | Y128: 0 | Z128: 0
A129: 5 | B129: 22 | C129: 4.31977 | D129: 0 | E129: 0 | F129: 0 | G129: 0 | H129: 0 | I129: =MAX(0,Shadows!$C$2/(TAN(RADIANS('HelioScope Validation'!N129)))) -> 0 | J129: -22.64762043 | K129: -5.363640028 | L129: 21.62973933 | M129: -144.44609 | N129: -47.75074795 | O129: 137.750748 | P129: 90 | Q129: 0 | R129: -52.95239979 | S129: 52.95239979 | T129: 131.19621 | U129: 0 | V129: 0 | W129: 0 | X129: 0 | Y129: 0 | Z129: 0
A130: 5 | B130: 23 | C130: 4.05617 | D130: 0 | E130: 0 | F130: 0 | G130: 0 | H130: 0 | I130: =MAX(0,Shadows!$C$2/(TAN(RADIANS('HelioScope Validation'!N130)))) -> 0 | J130: -22.64762043 | K130: -5.363640028 | L130: 22.62973933 | M130: -159.44609 | N130: -53.49925812 | O130: 143.4992581 | P130: 90 | Q130: 0 | R130: -33.0053875 | S130: 33.0053875 | T130: 134.8307127 | U130: 0 | V130: 0 | W130: 0 | X130: 0 | Y130: 0 | Z130: 0
A131: 5 | B131: 24 | C131: 3.79334 | D131: 0 | E131: 0 | F131: 0 | G131: 0 | H131: 0 | I131: =MAX(0,Shadows!$C$2/(TAN(RADIANS('HelioScope Validation'!N131)))) -> 0 | J131: -22.64762043 | K131: -5.363640028 | L131: 23.62973933 | M131: -174.44609 | N131: -56.55387554 | O131: 146.5538755 | P131: 90 | Q131: 0 | R131: -9.326449979 | S131: 9.326449979 | T131: 136.6593881 | U131: 0 | V131: 0 | W131: 0 | X131: 0 | Y131: 0 | Z131: 0
A132: 6 | B132: 1 | C132: 3.5348 | D132: 0 | E132: 0 | F132: 0 | G132: 0 | H132: 0 | I132: =MAX(0,Shadows!$C$2/(TAN(RADIANS('HelioScope Validation'!N132)))) -> 0 | J132: -22.53957761 | K132: -5.788931011 | L132: 0.6226511498 | M132: 170.6602328 | N132: -55.98879467 | O132: 145.9887947 | P132: 90 | Q132: 0 | R132: 15.54371111 | S132: 15.54371111 | T132: 136.282523 | U132: 0 | V132: 0 | W132: 0 | X132: 0 | Y132: 0 | Z132: 0
A133: 6 | B133: 2 | C133: 3.27379 | D133: 0 | E133: 0 | F133: 0 | G133: 0 | H133: 0 | I133: =MAX(0,Shadows!$C$2/(TAN(RADIANS('HelioScope Validation'!N133)))) -> 0 | J133: -22.53957761 | K133: -5.788931011 | L133: 1.62265115 | M133: 155.6602328 | N133: -52.15818223 | O133: 142.1581822 | P133: 90 | Q133: 0 | R133: 38.35246812 | S133: 38.35246812 | T133: 133.9609598 | U133: 0 | V133: 0 | W133: 0 | X133: 0 | Y133: 0 | Z133: 0
A134: 6 | B134: 3 | C134: 3.02775 | D134: 0 | E134: 0 | F134: 0 | G134: 0 | H134: 0 | I134: =MAX(0,Shadows!$C$2/(TAN(RADIANS('HelioScope Validation'!N134)))) -> 0 | J134: -22.53957761 | K134: -5.788931011 | L134: 2.62265115 | M134: 140.6602328 | N134: -45.91309464 | O134: 135.9130946 | P134: 90 | Q134: 0 | R134: 57.30243794 | S134: 57.30243794 | T134: 129.9491795 | U134: 0 | V134: 0 | W134: 0 | X134: 0 | Y134: 0 | Z134: 0
A135: 6 | B135: 4 | C135: 2.87815 | D135: 0 | E135: 0 | F135: 0 | G135: 0 | H135: 0 | I135: =MAX(0,Shadows!$C$2/(TAN(RADIANS('HelioScope Validation'!N135)))) -> 0 | J135: -22.53957761 | K135: -5.788931011 | L135: 3.62265115 | M135: 125.6602328 | N135: -38.2817531 | O135: 128.2817531 | P135: 90 | Q135: 0 | R135: 72.93827267 | S135: 72.93827267 | T135: 124.758849 | U135: 0 | V135: 0 | W135: 0 | X135: 0 | Y135: 0 | Z135: 0
A136: 6 | B136: 5 | C136: 2.74515 | D136: 0 | E136: 0 | F136: 0 | G136: 0 | H136: 0 | I136: =MAX(0,Shadows!$C$2/(TAN(RADIANS('HelioScope Validation'!N136)))) -> 0 | J136: -22.53957761 | K136: -5.788931011 | L136: 4.62265115 | M136: 110.6602328 | N136: -30.01116738 | O136: 120.0111674 | P136: 90 | Q136: 0 | R136: 86.39713031 | S136: 86.39713031 | T136: 118.8894368 | U136: 0 | V136: 0 | W136: 0 | X136: 0 | Y136: 0 | Z136: 0
A137: 6 | B137: 6 | C137: 2.61486 | D137: 0 | E137: 0 | F137: 0 | G137: 0 | H137: 0 | I137: =MAX(0,Shadows!$C$2/(TAN(RADIANS('HelioScope Validation'!N137)))) -> 0 | J137: -22.53957761 | K137: -5.788931011 | L137: 5.62265115 | M137: 95.66023275 | N137: -21.61319502 | O137: 111.613195 | P137: 90 | Q137: 0 | R137: 81.34785023 | S137: 81.34785023 | T137: 109.782871 | U137: 0 | V137: 0 | W137: 0 | X137: 0 | Y137: 0 | Z137: 0
A138: 6 | B138: 7 | C138: 2.49925 | D138: 0 | E138: 0 | F138: 0 | G138: 0 | H138: 0 | I138: =MAX(0,Shadows!$C$2/(TAN(RADIANS('HelioScope Validation'!N138)))) -> 0 | J138: -22.53957761 | K138: -5.788931011 | L138: 6.62265115 | M138: 80.66023275 | N138: -13.47509774 | O138: 103.4750977 | P138: 90 | Q138: 0 | R138: 69.58159614 | S138: 69.58159614 | T138: 99.82091114 | U138: 0 | V138: 0 | W138: 0 | X138: 0 | Y138: 0 | Z138: 0
A139: 6 | B139: 8 | C139: 2.39571 | D139: 0 | E139: 0 | F139: 0 | G139: 0 | H139: 0 | I139: =MAX(0,Shadows!$C$2/(TAN(RADIANS('HelioScope Validation'!N139)))) -> 0 | J139: -22.53957761 | K139: -5.788931011 | L139: 7.62265115 | M139: 65.66023275 | N139: -5.937440539 | O139: 95.93744054 | P139: 90 | Q139: 0 | R139: 57.78573316 | S139: 57.78573316 | T139: 90.56139334 | U139: 0 | V139: 0 | W139: 0 | X139: 0 | Y139: 0 | Z139: 0
A140: 6 | B140: 9 | C140: 2.43457 | D140: 0 | E140: =D140*SIN(RADIANS(N140)) -> 0 | F140: 0 | G140: =MAX(0,(SIN(RADIANS(N140)))*(MAX(0,I140-$K$3))/(SIN(RADIANS(180-$J$7-N140)))) -> 0.8683694441 | H140: =MAX(0,G140/$J$5) -> 0.8753724235 | I140: =MAX(0,Shadows!$C$2/(TAN(RADIANS('HelioScope Validation'!N140)))) -> 14.88576616 | J140: =23.45*SIN(RADIANS(280.1+0.9863*A140)) -> -22.53957761 | K140: =9.87* SIN(RADIANS(1.978*A140 - 160.22)) - 7.53*COS(RADIANS(0.989*A140 - 80.11)) - 1.5*SIN(RADIANS(0.989*A140 - 80.11)) -> -5.788931011 | L140: =($D$2/15)+(K140/60)+B140 -> 8.62265115 | M140: =15*(12-L140) -> 50.66023275 | N140: =DEGREES(ASIN((COS(RADIANS($C$2))*COS(RADIANS(J140))*COS(RADIANS(M140))) + (SIN(RADIANS($C$2))*SIN(RADIANS(J140))))) -> 0.663000655 | O140: =DEGREES(ACOS((SIN(RADIANS($C$2)))*(SIN(RADIANS(J140)))+(COS(RADIANS($C$2)))*(COS(RADIANS(J140)))*(COS(RADIANS(M140))))) -> 89.33699935 | P140: =N140+O140 -> 90 | Q140: =$C$5 -> 0 | R140: =DEGREES(ASIN(((COS(RADIANS(J140))*SIN(RADIANS(M140))) /COS(RADIANS(N140))))) -> 45.59175804 | S140: =ABS(R140-Q140) -> 45.59175804 | T140: =DEGREES(ACOS(SIN(RADIANS( N140))*COS(RADIANS(90-$J$6)) + COS(RADIANS( N140 ))*COS(RADIANS(S140 ))*SIN(RADIANS(90-$J$6)))) -> 82.36276847 | U140: =MAX(0,(D140*COS(RADIANS(T140)))) -> 0 | V140: =IFERROR(F140*(0.5*(1+COS(RADIANS(90-$J$6))))*(1+(1-((F140^2)/((E140+F140)^2)))*((SIN(RADIANS(0.5*$J$6)))^3))*(1+(1-((F140^2)/((E140+F140)^2)))*((COS(RADIANS(T140)))^2)*((SIN(RADIANS(90-N140)))^3)),0) -> 0 | W140: =0.5*(1-COS(RADIANS(90-$J$6)))* (E140 + F140)*0.2 -> 0 | X140: =U140+V140+W140 -> 0 | Y140: =$J$4*(X140/1000)*(1-$J$3*(C140-25))*0.9 -> 0 | Z140: =Y140*(1-H140) -> 0
A141: =IF(B141>1,A140,A140+1) -> 6 | B141: =IF(B140<24,B140+1,1) -> 10 | C141: 2.55866 | D141: 0 | E141: 0 | F141: 3.23333 | G141: 0.2438818014 | H141: 0.2458485902 | I141: =MAX(0,Shadows!$C$2/(TAN(RADIANS('HelioScope Validation'!N141)))) -> 1.644466446 | J141: -22.53957761 | K141: -5.788931011 | L141: 9.62265115 | M141: 35.66023275 | N141: 5.979963849 | O141: 84.02003615 | P141: 90 | Q141: 0 | R141: 32.77849838 | S141: 32.77849838 | T141: 75.6525385 | U141: 0 | V141: 3.208769226 | W141: 0.004912154795 | X141: 3.213681381 | Y141: 1.08742026 | Z141: 0.8200795221
A142: 6 | B142: 11 | C142: 2.84554 | D142: 0 | E142: 0 | F142: 23.2 | G142: 0.005150029059 | H142: 0.005191561551 | I142: =MAX(0,Shadows!$C$2/(TAN(RADIANS('HelioScope Validation'!N142)))) -> 1.010316911 | J142: -22.53957761 | K142: -5.788931011 | L142: 10.62265115 | M142: 20.66023275 | N142: 9.675883971 | O142: 80.32411603 | P142: 90 | Q142: 0 | R142: 19.30383765 | S142: 19.30383765 | T142: 70.90865613 | U142: 0 | V142: 23.02376993 | W142: 0.03524601301 | X142: 23.05901595 | Y142: 7.79431263 | Z142: 7.753847976
A143: 6 | B143: 12 | C143: 3.39424 | D143: 0 | E143: 0 | F143: 32.7833 | G143: 0 | H143: 0 | I143: =MAX(0,Shadows!$C$2/(TAN(RADIANS('HelioScope Validation'!N143)))) -> 0.8487612054 | J143: -22.53957761 | K143: -5.788931011 | L143: 11.62265115 | M143: 5.660232753 | N143: 11.47254996 | O143: 78.52745004 | P143: 90 | Q143: 0 | R143: 5.333484216 | S143: 5.333484216 | T143: 68.57280592 | U143: 0 | V143: 32.534274 | W143: 0.04980519907 | X143: 32.5840792 | Y143: 10.99172931 | Z143: 10.99172931
A144: 6 | B144: 13 | C144: 3.82854 | D144: 0 | E144: 0 | F144: 35.1667 | G144: 0 | H144: 0 | I144: =MAX(0,Shadows!$C$2/(TAN(RADIANS('HelioScope Validation'!N144)))) -> 0.8684955702 | J144: -22.53957761 | K144: -5.788931011 | L144: 12.62265115 | M144: -9.339767247 | N144: 11.21855081 | O144: 78.78144919 | P144: 90 | Q144: 0 | R144: -8.789933096 | S144: 8.789933096 | T144: 68.90435301 | U144: 0 | V144: 34.8995694 | W144: 0.05342611921 | X144: 34.95299552 | Y144: 11.7719925 | Z144: 11.7719925
A145: 6 | B145: 14 | C145: 4.80468 | D145: 67.06429652 | E145: 10.41717894 | F145: 55.8167 | G145: 0.04572088184 | H145: 0.04608959863 | I145: =MAX(0,Shadows!$C$2/(TAN(RADIANS('HelioScope Validation'!N145)))) -> 1.095518277 | J145: -22.53957761 | K145: -5.788931011 | L145: 13.62265115 | M145: -24.33976725 | N145: 8.936006373 | O145: 81.06399363 | P145: 90 | Q145: 0 | R145: -22.6649798 | S145: 22.6649798 | T145: 71.86454963 | U145: 20.87473329 | V145: 61.27125115 | W145: 0.1006241448 | X145: 82.24660859 | Y145: 27.60052972 | Z145: 26.32843238
A146: 6 | B146: 15 | C146: 5.21265 | D146: 38.20132021 | E146: 3.205437567 | F146: 40.7167 | G146: 0.3431861091 | H146: 0.345953739 | I146: =MAX(0,Shadows!$C$2/(TAN(RADIANS('HelioScope Validation'!N146)))) -> 2.045684565 | J146: -22.53957761 | K146: -5.788931011 | L146: 14.62265115 | M146: -39.33976725 | N146: 4.813295544 | O146: 85.18670446 | P146: 90 | Q146: 0 | R146: -35.98462217 | S146: 35.98462217 | T146: 77.13524251 | U146: 8.505543059 | V146: 42.20578306 | W146: 0.06672759621 | X146: 50.77805371 | Y146: 17.01450147 | Z146: 11.12827107
A147: 6 | B147: 16 | C147: 4.87953 | D147: 0 | E147: 0 | F147: 9.43333 | G147: 0 | H147: 0 | I147: =MAX(0,Shadows!$C$2/(TAN(RADIANS('HelioScope Validation'!N147)))) -> 0 | J147: -22.53957761 | K147: -5.788931011 | L147: 15.62265115 | M147: -54.33976725 | N147: -0.8507116687 | O147: 90.85071167 | P147: 90 | Q147: 0 | R147: -48.63449934 | S147: 48.63449934 | T147: 84.25375305 | U147: 0 | V147: 9.36167326 | W147: 0.01433134793 | X147: 9.376004608 | Y147: 3.145552258 | Z147: 3.145552258
A148: 6 | B148: 17 | C148: 4.66059 | D148: 0 | E148: 0 | F148: 0 | G148: 0 | H148: 0 | I148: =MAX(0,Shadows!$C$2/(TAN(RADIANS('HelioScope Validation'!N148)))) -> 0 | J148: -22.53957761 | K148: -5.788931011 | L148: 16.62265115 | M148: -69.33976725 | N148: -7.712793792 | O148: 97.71279379 | P148: 90 | Q148: 0 | R148: -60.70432595 | S148: 60.70432595 | T148: 92.74943648 | U148: 0 | V148: 0 | W148: 0 | X148: 0 | Y148: 0 | Z148: 0
A149: 6 | B149: 18 | C149: 4.48145 | D149: 0 | E149: 0 | F149: 0 | G149: 0 | H149: 0 | I149: =MAX(0,Shadows!$C$2/(TAN(RADIANS('HelioScope Validation'!N149)))) -> 0 | J149: -22.53957761 | K149: -5.788931011 | L149: 17.62265115 | M149: -84.33976725 | N149: -15.42861512 | O149: 105.4286151 | P149: 90 | Q149: 0 | R149: -72.45343999 | S149: 72.45343999 | T149: 102.2120824 | U149: 0 | V149: 0 | W149: 0 | X149: 0 | Y149: 0 | Z149: 0
A150: 6 | B150: 19 | C150: 4.30232 | D150: 0 | E150: 0 | F150: 0 | G150: 0 | H150: 0 | I150: =MAX(0,Shadows!$C$2/(TAN(RADIANS('HelioScope Validation'!N150)))) -> 0 | J150: -22.53957761 | K150: -5.788931011 | L150: 18.62265115 | M150: -99.33976725 | N150: -23.66282109 | O150: 113.6628211 | P150: 90 | Q150: 0 | R150: -84.28515051 | S150: 84.28515051 | T150: 112.2976616 | U150: 0 | V150: 0 | W150: 0 | X150: 0 | Y150: 0 | Z150: 0
A151: 6 | B151: 20 | C151: 4.12319 | D151: 0 | E151: 0 | F151: 0 | G151: 0 | H151: 0 | I151: =MAX(0,Shadows!$C$2/(TAN(RADIANS('HelioScope Validation'!N151)))) -> 0 | J151: -22.53957761 | K151: -5.788931011 | L151: 19.62265115 | M151: -114.3397672 | N151: -32.0685652 | O151: 122.0685652 | P151: 90 | Q151: 0 | R151: -83.23979474 | S151: 83.23979474 | T151: 120.3675899 | U151: 0 | V151: 0 | W151: 0 | X151: 0 | Y151: 0 | Z151: 0
A152: 6 | B152: 21 | C152: 3.94406 | D152: 0 | E152: 0 | F152: 0 | G152: 0 | H152: 0 | I152: =MAX(0,Shadows!$C$2/(TAN(RADIANS('HelioScope Validation'!N152)))) -> 0 | J152: -22.53957761 | K152: -5.788931011 | L152: 20.62265115 | M152: -129.3397672 | N152: -40.23675554 | O152: 130.2367555 | P152: 90 | Q152: 0 | R152: -69.34745473 | S152: 69.34745473 | T152: 126.1130436 | U152: 0 | V152: 0 | W152: 0 | X152: 0 | Y152: 0 | Z152: 0
A153: 6 | B153: 22 | C153: 3.76492 | D153: 0 | E153: 0 | F153: 0 | G153: 0 | H153: 0 | I153: =MAX(0,Shadows!$C$2/(TAN(RADIANS('HelioScope Validation'!N153)))) -> 0 | J153: -22.53957761 | K153: -5.788931011 | L153: 21.62265115 | M153: -144.3397672 | N153: -47.60863226 | O153: 137.6086323 | P153: 90 | Q153: 0 | R153: -53.00193587 | S153: 53.00193587 | T153: 131.0626611 | U153: 0 | V153: 0 | W153: 0 | X153: 0 | Y153: 0 | Z153: 0
A154: 6 | B154: 23 | C154: 3.58579 | D154: 0 | E154: 0 | F154: 0 | G154: 0 | H154: 0 | I154: =MAX(0,Shadows!$C$2/(TAN(RADIANS('HelioScope Validation'!N154)))) -> 0 | J154: -22.53957761 | K154: -5.788931011 | L154: 22.62265115 | M154: -159.3397672 | N154: -53.36477085 | O154: 143.3647709 | P154: 90 | Q154: 0 | R154: -33.10066806 | S154: 33.10066806 | T154: 134.7050001 | U154: 0 | V154: 0 | W154: 0 | X154: 0 | Y154: 0 | Z154: 0
A155: 6 | B155: 24 | C155: 3.40872 | D155: 0 | E155: 0 | F155: 0 | G155: 0 | H155: 0 | I155: =MAX(0,Shadows!$C$2/(TAN(RADIANS('HelioScope Validation'!N155)))) -> 0 | J155: -22.53957761 | K155: -5.788931011 | L155: 23.62265115 | M155: -174.3397672 | N155: -56.43661158 | O155: 146.4366116 | P155: 90 | Q155: 0 | R155: -9.483946174 | S155: 9.483946174 | T155: 136.545815 | U155: 0 | V155: 0 | W155: 0 | X155: 0 | Y155: 0 | Z155: 0
A156: 7 | B156: 1 | C156: 3.24753 | D156: 0 | E156: 0 | F156: 0 | G156: 0 | H156: 0 | I156: =MAX(0,Shadows!$C$2/(TAN(RADIANS('HelioScope Validation'!N156)))) -> 0 | J156: -22.42485586 | K156: -6.207868687 | L156: 0.6156688552 | M156: 170.7649672 | N156: -55.89124309 | O156: 145.8912431 | P156: 90 | Q156: 0 | R156: 15.34005138 | S156: 15.34005138 | T156: 136.177566 | U156: 0 | V156: 0 | W156: 0 | X156: 0 | Y156: 0 | Z156: 0
A157: 7 | B157: 2 | C157: 3.05767 | D157: 0 | E157: 0 | F157: 0 | G157: 0 | H157: 0 | I157: =MAX(0,Shadows!$C$2/(TAN(RADIANS('HelioScope Validation'!N157)))) -> 0 | J157: -22.42485586 | K157: -6.207868687 | L157: 1.615668855 | M157: 155.7649672 | N157: -52.08829039 | O157: 142.0882904 | P157: 90 | Q157: 0 | R157: 38.13613435 | S157: 38.13613435 | T157: 133.8720308 | U157: 0 | V157: 0 | W157: 0 | X157: 0 | Y157: 0 | Z157: 0
A158: 7 | B158: 3 | C158: 2.67124 | D158: 0 | E158: 0 | F158: 0 | G158: 0 | H158: 0 | I158: =MAX(0,Shadows!$C$2/(TAN(RADIANS('HelioScope Validation'!N158)))) -> 0 | J158: -22.42485586 | K158: -6.207868687 | L158: 2.615668855 | M158: 140.7649672 | N158: -45.86390214 | O158: 135.8639021 | P158: 90 | Q158: 0 | R158: 57.09872283 | S158: 57.09872283 | T158: 129.8739025 | U158: 0 | V158: 0 | W158: 0 | X158: 0 | Y158: 0 | Z158: 0
A159: 7 | B159: 4 | C159: 2.86108 | D159: 0 | E159: 0 | F159: 0 | G159: 0 | H159: 0 | I159: =MAX(0,Shadows!$C$2/(TAN(RADIANS('HelioScope Validation'!N159)))) -> 0 | J159: -22.42485586 | K159: -6.207868687 | L159: 3.615668855 | M159: 125.7649672 | N159: -38.24454539 | O159: 128.2445454 | P159: 90 | Q159: 0 | R159: 72.75308748 | S159: 72.75308748 | T159: 124.6930533 | U159: 0 | V159: 0 | W159: 0 | X159: 0 | Y159: 0 | Z159: 0
A160: 7 | B160: 5 | C160: 2.85861 | D160: 0 | E160: 0 | F160: 0 | G160: 0 | H160: 0 | I160: =MAX(0,Shadows!$C$2/(TAN(RADIANS('HelioScope Validation'!N160)))) -> 0 | J160: -22.42485586 | K160: -6.207868687 | L160: 4.615668855 | M160: 110.7649672 | N160: -29.97863538 | O160: 119.9786354 | P160: 90 | Q160: 0 | R160: 86.22795256 | S160: 86.22795256 | T160: 118.8285574 | U160: 0 | V160: 0 | W160: 0 | X160: 0 | Y160: 0 | Z160: 0
A161: 7 | B161: 6 | C161: 2.80615 | D161: 0 | E161: 0 | F161: 0 | G161: 0 | H161: 0 | I161: =MAX(0,Shadows!$C$2/(TAN(RADIANS('HelioScope Validation'!N161)))) -> 0 | J161: -22.42485586 | K161: -6.207868687 | L161: 5.615668855 | M161: 95.76496717 | N161: -21.57964701 | O161: 111.579647 | P161: 90 | Q161: 0 | R161: 81.50518572 | S161: 81.50518572 | T161: 109.7765804 | U161: 0 | V161: 0 | W161: 0 | X161: 0 | Y161: 0 | Z161: 0
A162: 7 | B162: 7 | C162: 2.77398 | D162: 0 | E162: 0 | F162: 0 | G162: 0 | H162: 0 | I162: =MAX(0,Shadows!$C$2/(TAN(RADIANS('HelioScope Validation'!N162)))) -> 0 | J162: -22.42485586 | K162: -6.207868687 | L162: 6.615668855 | M162: 80.76496717 | N162: -13.43596076 | O162: 103.4359608 | P162: 90 | Q162: 0 | R162: 69.73058101 | S162: 69.73058101 | T162: 99.80625379 | U162: 0 | V162: 0 | W162: 0 | X162: 0 | Y162: 0 | Z162: 0
A163: 7 | B163: 8 | C163: 2.75225 | D163: 0 | E163: 0 | F163: 0 | G163: 0 | H163: 0 | I163: =MAX(0,Shadows!$C$2/(TAN(RADIANS('HelioScope Validation'!N163)))) -> 0 | J163: -22.42485586 | K163: -6.207868687 | L163: 7.615668855 | M163: 65.76496717 | N163: -5.88886592 | O163: 95.88886592 | P163: 90 | Q163: 0 | R163: 57.92850292 | S163: 57.92850292 | T163: 90.53422769 | U163: 0 | V163: 0 | W163: 0 | X163: 0 | Y163: 0 | Z163: 0
A164: 7 | B164: 9 | C164: 2.80289 | D164: 0 | E164: 0 | F164: 0 | G164: 0.8577094747 | H164: 0.8646264866 | I164: =MAX(0,Shadows!$C$2/(TAN(RADIANS('HelioScope Validation'!N164)))) -> 13.62658688 | J164: -22.42485586 | K164: -6.207868687 | L164: 8.615668855 | M164: 50.76496717 | N164: 0.7242596871 | O164: 89.27574031 | P164: 90 | Q164: 0 | R164: 45.72878522 | S164: 45.72878522 | T164: 82.31916229 | U164: 0 | V164: 0 | W164: 0 | X164: 0 | Y164: 0 | Z164: 0
A165: 7 | B165: 10 | C165: 3.03886 | D165: 0 | E165: 0 | F165: 6.53333 | G165: 0.23786873 | H165: 0.2397870262 | I165: =MAX(0,Shadows!$C$2/(TAN(RADIANS('HelioScope Validation'!N165)))) -> 1.623564727 | J165: -22.42485586 | K165: -6.207868687 | L165: 9.615668855 | M165: 35.76496717 | N165: 6.056381124 | O165: 83.94361888 | P165: 90 | Q165: 0 | R165: 32.90839154 | S165: 32.90839154 | T165: 75.58904223 | U165: 0 | V165: 6.483702018 | W165: 0.009925596301 | X165: 6.493627615 | Y165: 2.193389846 | Z165: 1.667443418
A166: 7 | B166: 11 | C166: 3.28469 | D166: 0 | E166: 0 | F166: 16.5167 | G166: 0.0002638741143 | H166: 0.0002660021314 | I166: =MAX(0,Shadows!$C$2/(TAN(RADIANS('HelioScope Validation'!N166)))) -> 1.000526007 | J166: -22.42485586 | K166: -6.207868687 | L166: 10.61566886 | M166: 20.76496717 | N166: 9.768754062 | O166: 80.23124594 | P166: 90 | Q166: 0 | R166: 19.42346039 | S166: 19.42346039 | T166: 70.82314402 | U166: 0 | V166: 16.39123711 | W166: 0.02509257858 | X166: 16.41632969 | Y166: 5.540025592 | Z166: 5.538551934
A167: 7 | B167: 12 | C167: 3.54726 | D167: 0 | E167: 0 | F167: 14.4333 | G167: 0 | H167: 0 | I167: =MAX(0,Shadows!$C$2/(TAN(RADIANS('HelioScope Validation'!N167)))) -> 0.8405533482 | J167: -22.42485586 | K167: -6.207868687 | L167: 11.61566886 | M167: 5.764967172 | N167: 11.5815647 | O167: 78.4184353 | P167: 90 | Q167: 0 | R167: 5.438768574 | S167: 5.438768574 | T167: 68.46561493 | U167: 0 | V167: 14.32366287 | W167: 0.02192742584 | X167: 14.3455903 | Y167: 4.836534043 | Z167: 4.836534043
A168: 7 | B168: 13 | C168: 3.95497 | D168: 0.08506109813 | E168: 0.01672813247 | F168: 25.0833 | G168: 0 | H168: 0 | I168: =MAX(0,Shadows!$C$2/(TAN(RADIANS('HelioScope Validation'!N168)))) -> 0.8588167257 | J168: -22.42485586 | K168: -6.207868687 | L168: 12.61566886 | M168: -9.235032828 | N168: 11.34172413 | O168: 78.65827587 | P168: 90 | Q168: 0 | R168: -8.702484242 | S168: 8.702484242 | T168: 68.77880094 | U168: 0.03078952307 | V168: 24.90567095 | W168: 0.03813258268 | X168: 24.97459306 | Y168: 8.407395242 | Z168: 8.407395242
A169: 7 | B169: 14 | C169: 5.2277 | D169: 81.58686246 | E169: 12.86168638 | F169: 51.3333 | G169: 0.03813892657 | H169: 0.03844649856 | I169: =MAX(0,Shadows!$C$2/(TAN(RADIANS('HelioScope Validation'!N169)))) -> 1.079045013 | J169: -22.42485586 | K169: -6.207868687 | L169: 13.61566886 | M169: -24.23503283 | N169: 9.070176925 | O169: 80.92982308 | P169: 90 | Q169: 0 | R169: -22.59687537 | S169: 22.59687537 | T169: 71.72597999 | U169: 25.58253321 | V169: 57.72736544 | W169: 0.09752660885 | X169: 83.40742526 | Y169: 27.94625808 | Z169: 26.87182231
A170: 7 | B170: 15 | C170: 5.83238 | D170: 46.15589168 | E170: 3.98663538 | F170: 40.0833 | G170: 0.3303180051 | H170: 0.3329818599 | I170: =MAX(0,Shadows!$C$2/(TAN(RADIANS('HelioScope Validation'!N170)))) -> 1.986902084 | J170: -22.42485586 | K170: -6.207868687 | L170: 14.61566886 | M170: -39.23503283 | N170: 4.95499801 | O170: 85.04500199 | P170: 90 | Q170: 0 | R170: -35.93497699 | S170: 35.93497699 | T170: 76.98914246 | U170: 10.39133867 | V170: 41.96394851 | W170: 0.0669521343 | X170: 52.42223932 | Y170: 17.52507878 | Z170: 11.68954546
A171: 7 | B171: 16 | C171: 5.55751 | D171: 0.05000377976 | E171: -0.000614809281 | F171: 11.75 | G171: 0 | H171: 0 | I171: =MAX(0,Shadows!$C$2/(TAN(RADIANS('HelioScope Validation'!N171)))) -> 0 | J171: -22.42485586 | K171: -6.207868687 | L171: 15.61566886 | M171: -54.23503283 | N171: -0.7044840365 | O171: 90.70448404 | P171: 90 | Q171: 0 | R171: -48.60067544 | S171: 48.60067544 | T171: 84.10435553 | U171: 0.00513623429 | V171: 11.66040856 | W171: 0.01784995618 | X171: 11.68339475 | Y171: 3.909819694 | Z171: 3.909819694
A172: 7 | B172: 17 | C172: 5.28904 | D172: 0 | E172: 0 | F172: 0 | G172: 0 | H172: 0 | I172: =MAX(0,Shadows!$C$2/(TAN(RADIANS('HelioScope Validation'!N172)))) -> 0 | J172: -22.42485586 | K172: -6.207868687 | L172: 16.61566886 | M172: -69.23503283 | N172: -7.564221691 | O172: 97.56422169 | P172: 90 | Q172: 0 | R172: -60.6828588 | S172: 60.6828588 | T172: 92.59935603 | U172: 0 | V172: 0 | W172: 0 | X172: 0 | Y172: 0 | Z172: 0
A173: 7 | B173: 18 | C173: 5.0448 | D173: 0 | E173: 0 | F173: 0 | G173: 0 | H173: 0 | I173: =MAX(0,Shadows!$C$2/(TAN(RADIANS('HelioScope Validation'!N173)))) -> 0 | J173: -22.42485586 | K173: -6.207868687 | L173: 17.61566886 | M173: -84.23503283 | N173: -15.27904088 | O173: 105.2790409 | P173: 90 | Q173: 0 | R173: -72.44057463 | S173: 72.44057463 | T173: 102.0625676 | U173: 0 | V173: 0 | W173: 0 | X173: 0 | Y173: 0 | Z173: 0
A174: 7 | B174: 19 | C174: 4.80055 | D174: 0 | E174: 0 | F174: 0 | G174: 0 | H174: 0 | I174: =MAX(0,Shadows!$C$2/(TAN(RADIANS('HelioScope Validation'!N174)))) -> 0 | J174: -22.42485586 | K174: -6.207868687 | L174: 18.61566886 | M174: -99.23503283 | N174: -23.5129314 | O174: 113.5129314 | P174: 90 | Q174: 0 | R174: -84.27673728 | S174: 84.27673728 | T174: 112.1489668 | U174: 0 | V174: 0 | W174: 0 | X174: 0 | Y174: 0 | Z174: 0
A175: 7 | B175: 20 | C175: 4.55631 | D175: 0 | E175: 0 | F175: 0 | G175: 0 | H175: 0 | I175: =MAX(0,Shadows!$C$2/(TAN(RADIANS('HelioScope Validation'!N175)))) -> 0 | J175: -22.42485586 | K175: -6.207868687 | L175: 19.61566886 | M175: -114.2350328 | N175: -31.91868724 | O175: 121.9186872 | P175: 90 | Q175: 0 | R175: -83.24915077 | S175: 83.24915077 | T175: 120.2223162 | U175: 0 | V175: 0 | W175: 0 | X175: 0 | Y175: 0 | Z175: 0
A176: 7 | B176: 21 | C176: 4.30602 | D176: 0 | E176: 0 | F176: 0 | G176: 0 | H176: 0 | I176: =MAX(0,Shadows!$C$2/(TAN(RADIANS('HelioScope Validation'!N176)))) -> 0 | J176: -22.42485586 | K176: -6.207868687 | L176: 20.61566886 | M176: -129.2350328 | N176: -40.08735658 | O176: 130.0873566 | P176: 90 | Q176: 0 | R176: -69.36624989 | S176: 69.36624989 | T176: 125.9695792 | U176: 0 | V176: 0 | W176: 0 | X176: 0 | Y176: 0 | Z176: 0
A177: 7 | B177: 22 | C177: 4.0303 | D177: 0 | E177: 0 | F177: 0 | G177: 0 | H177: 0 | I177: =MAX(0,Shadows!$C$2/(TAN(RADIANS('HelioScope Validation'!N177)))) -> 0 | J177: -22.42485586 | K177: -6.207868687 | L177: 21.61566886 | M177: -144.2350328 | N177: -47.46135522 | O177: 137.4613552 | P177: 90 | Q177: 0 | R177: -53.04475793 | S177: 53.04475793 | T177: 130.9232065 | U177: 0 | V177: 0 | W177: 0 | X177: 0 | Y177: 0 | Z177: 0
A178: 7 | B178: 23 | C178: 3.81712 | D178: 0 | E178: 0 | F178: 0 | G178: 0 | H178: 0 | I178: =MAX(0,Shadows!$C$2/(TAN(RADIANS('HelioScope Validation'!N178)))) -> 0 | J178: -22.42485586 | K178: -6.207868687 | L178: 22.61566886 | M178: -159.2350328 | N178: -53.22441227 | O178: 143.2244123 | P178: 90 | Q178: 0 | R178: -33.18960664 | S178: 33.18960664 | T178: 134.5729897 | U178: 0 | V178: 0 | W178: 0 | X178: 0 | Y178: 0 | Z178: 0
A179: 7 | B179: 24 | C179: 3.5675 | D179: 0 | E179: 0 | F179: 0 | G179: 0 | H179: 0 | I179: =MAX(0,Shadows!$C$2/(TAN(RADIANS('HelioScope Validation'!N179)))) -> 0 | J179: -22.42485586 | K179: -6.207868687 | L179: 23.61566886 | M179: -174.2350328 | N179: -56.31270816 | O179: 146.3127082 | P179: 90 | Q179: 0 | R179: -9.636903143 | S179: 9.636903143 | T179: 136.4255682 | U179: 0 | V179: 0 | W179: 0 | X179: 0 | Y179: 0 | Z179: 0
A180: 8 | B180: 1 | C180: 3.23719 | D180: 0 | E180: 0 | F180: 0 | G180: 0 | H180: 0 | I180: =MAX(0,Shadows!$C$2/(TAN(RADIANS('HelioScope Validation'!N180)))) -> 0 | J180: -22.30348915 | K180: -6.6200718 | L180: 0.6087988033 | M180: 170.868018 | N180: -55.78664116 | O180: 145.7866412 | P180: 90 | Q180: 0 | R180: 15.13801497 | S180: 15.13801497 | T180: 136.0657206 | U180: 0 | V180: 0 | W180: 0 | X180: 0 | Y180: 0 | Z180: 0
A181: 8 | B181: 2 | C181: 2.88967 | D181: 0 | E181: 0 | F181: 0 | G181: 0 | H181: 0 | I181: =MAX(0,Shadows!$C$2/(TAN(RADIANS('HelioScope Validation'!N181)))) -> 0 | J181: -22.30348915 | K181: -6.6200718 | L181: 1.608798803 | M181: 155.868018 | N181: -52.01137964 | O181: 142.0113796 | P181: 90 | Q181: 0 | R181: 37.91859986 | S181: 37.91859986 | T181: 133.7761346 | U181: 0 | V181: 0 | W181: 0 | X181: 0 | Y181: 0 | Z181: 0
A182: 8 | B182: 3 | C182: 2.56205 | D182: 0 | E182: 0 | F182: 0 | G182: 0 | H182: 0 | I182: =MAX(0,Shadows!$C$2/(TAN(RADIANS('HelioScope Validation'!N182)))) -> 0 | J182: -22.30348915 | K182: -6.6200718 | L182: 2.608798803 | M182: 140.868018 | N182: -45.80797367 | O182: 135.8079737 | P182: 90 | Q182: 0 | R182: 56.89229833 | S182: 56.89229833 | T182: 129.7917153 | U182: 0 | V182: 0 | W182: 0 | X182: 0 | Y182: 0 | Z182: 0
A183: 8 | B183: 4 | C183: 2.36276 | D183: 0 | E183: 0 | F183: 0 | G183: 0 | H183: 0 | I183: =MAX(0,Shadows!$C$2/(TAN(RADIANS('HelioScope Validation'!N183)))) -> 0 | J183: -22.30348915 | K183: -6.6200718 | L183: 3.608798803 | M183: 125.868018 | N183: -38.20087508 | O183: 128.2008751 | P183: 90 | Q183: 0 | R183: 72.5646957 | S183: 72.5646957 | T183: 124.620455 | U183: 0 | V183: 0 | W183: 0 | X183: 0 | Y183: 0 | Z183: 0
A184: 8 | B184: 5 | C184: 2.18558 | D184: 0 | E184: 0 | F184: 0 | G184: 0 | H184: 0 | I184: =MAX(0,Shadows!$C$2/(TAN(RADIANS('HelioScope Validation'!N184)))) -> 0 | J184: -22.30348915 | K184: -6.6200718 | L184: 4.608798803 | M184: 110.868018 | N184: -29.93980632 | O184: 119.9398063 | P184: 90 | Q184: 0 | R184: 86.05557348 | S184: 86.05557348 | T184: 118.760969 | U184: 0 | V184: 0 | W184: 0 | X184: 0 | Y184: 0 | Z184: 0
A185: 8 | B185: 6 | C185: 2.01531 | D185: 0 | E185: 0 | F185: 0 | G185: 0 | H185: 0 | I185: =MAX(0,Shadows!$C$2/(TAN(RADIANS('HelioScope Validation'!N185)))) -> 0 | J185: -22.30348915 | K185: -6.6200718 | L185: 5.608798803 | M185: 95.86801795 | N185: -21.53985252 | O185: 111.5398525 | P185: 90 | Q185: 0 | R185: 81.66549329 | S185: 81.66549329 | T185: 109.7646694 | U185: 0 | V185: 0 | W185: 0 | X185: 0 | Y185: 0 | Z185: 0
A186: 8 | B186: 7 | C186: 1.8879 | D186: 0 | E186: 0 | F186: 0 | G186: 0 | H186: 0 | I186: =MAX(0,Shadows!$C$2/(TAN(RADIANS('HelioScope Validation'!N186)))) -> 0 | J186: -22.30348915 | K186: -6.6200718 | L186: 6.608798803 | M186: 80.86801795 | N186: -13.39053486 | O186: 103.3905349 | P186: 90 | Q186: 0 | R186: 69.88218995 | S186: 69.88218995 | T186: 99.78584343 | U186: 0 | V186: 0 | W186: 0 | X186: 0 | Y186: 0 | Z186: 0
A187: 8 | B187: 8 | C187: 1.77037 | D187: 0 | E187: 0 | F187: 0 | G187: 0 | H187: 0 | I187: =MAX(0,Shadows!$C$2/(TAN(RADIANS('HelioScope Validation'!N187)))) -> 0 | J187: -22.30348915 | K187: -6.6200718 | L187: 7.608798803 | M187: 65.86801795 | N187: -5.833897297 | O187: 95.8338973 | P187: 90 | Q187: 0 | R187: 58.07344936 | S187: 58.07344936 | T187: 90.50109301 | U187: 0 | V187: 0 | W187: 0 | X187: 0 | Y187: 0 | Z187: 0
A188: 8 | B188: 9 | C188: 1.71219 | D188: 0 | E188: 0 | F188: 0 | G188: 0.846053396 | H188: 0.8528764073 | I188: =MAX(0,Shadows!$C$2/(TAN(RADIANS('HelioScope Validation'!N188)))) -> 12.46027173 | J188: -22.30348915 | K188: -6.6200718 | L188: 8.608798803 | M188: 50.86801795 | N188: 0.7920440863 | O188: 89.20795591 | P188: 90 | Q188: 0 | R188: 45.86742343 | S188: 45.86742343 | T188: 82.26932914 | U188: 0 | V188: 0 | W188: 0 | X188: 0 | Y188: 0 | Z188: 0
A189: 8 | B189: 10 | C189: 1.96601 | D189: 0.8549032407 | E189: 0.09143057982 | F189: 15.4667 | G189: 0.2313961719 | H189: 0.23326227 | I189: =MAX(0,Shadows!$C$2/(TAN(RADIANS('HelioScope Validation'!N189)))) -> 1.60143514 | J189: -22.30348915 | K189: -6.6200718 | L189: 9.608798803 | M189: 35.86801795 | N189: 6.139436972 | O189: 83.86056303 | P189: 90 | Q189: 0 | R189: 33.03918403 | S189: 33.03918403 | T189: 75.51907528 | U189: 0.2137751109 | V189: 15.40807457 | W189: 0.02363629624 | X189: 15.64548598 | Y189: 5.305512833 | Z189: 4.067936865
A190: 8 | B190: 11 | C190: 2.45128 | D190: 0 | E190: 0 | F190: 19.8333 | G190: 0 | H190: 0 | I190: =MAX(0,Shadows!$C$2/(TAN(RADIANS('HelioScope Validation'!N190)))) -> 0.9902332754 | J190: -22.30348915 | K190: -6.6200718 | L190: 10.6087988 | M190: 20.86801795 | N190: 9.868306681 | O190: 80.13169332 | P190: 90 | Q190: 0 | R190: 19.54311632 | S190: 19.54311632 | T190: 70.73101069 | U190: 0 | V190: 19.6826438 | W190: 0.03013123922 | X190: 19.71277504 | Y190: 6.672882974 | Z190: 6.672882974
A191: 8 | B191: 12 | C191: 2.67982 | D191: 0 | E191: 0 | F191: 26.8333 | G191: 0 | H191: 0 | I191: =MAX(0,Shadows!$C$2/(TAN(RADIANS('HelioScope Validation'!N191)))) -> 0.8320127323 | J191: -22.30348915 | K191: -6.6200718 | L191: 11.6087988 | M191: 5.86801795 | N191: 11.69718955 | O191: 78.30281045 | P191: 90 | Q191: 0 | R191: 5.543104111 | S191: 5.543104111 | T191: 68.35183469 | U191: 0 | V191: 26.62947094 | W191: 0.04076581211 | X191: 26.67023675 | Y191: 9.020451842 | Z191: 9.020451842
A192: 8 | B192: 13 | C192: 2.97036 | D192: 0 | E192: 0 | F192: 25.8667 | G192: 0 | H192: 0 | I192: =MAX(0,Shadows!$C$2/(TAN(RADIANS('HelioScope Validation'!N192)))) -> 0.848856595 | J192: -22.30348915 | K192: -6.6200718 | L192: 12.6087988 | M192: -9.13198205 | N192: 11.47129492 | O192: 78.52870508 | P192: 90 | Q192: 0 | R192: -8.616990353 | S192: 8.616990353 | T192: 68.6469296 | U192: 0 | V192: 25.67021335 | W192: 0.03929732952 | X192: 25.70951068 | Y192: 8.686236178 | Z192: 8.686236178
A193: 8 | B193: 14 | C193: 3.94433 | D193: 84.92866761 | E193: 13.59372381 | F193: 51.8833 | G193: 0.03032355424 | H193: 0.03056809903 | I193: =MAX(0,Shadows!$C$2/(TAN(RADIANS('HelioScope Validation'!N193)))) -> 1.062336478 | J193: -22.30348915 | K193: -6.6200718 | L193: 13.6087988 | M193: -24.13198205 | N193: 9.210407061 | O193: 80.78959294 | P193: 90 | Q193: 0 | R193: -22.53164664 | S193: 22.53164664 | T193: 71.58157488 | U193: 26.83356577 | V193: 58.59929128 | W193: 0.09947431178 | X193: 85.53233136 | Y193: 28.79455704 | Z193: 27.91436217
A194: 8 | B194: 15 | C194: 4.29412 | D194: 24.02851483 | E194: 2.1369782 | F194: 48.1667 | G194: 0.3171874738 | H194: 0.3197454373 | I194: =MAX(0,Shadows!$C$2/(TAN(RADIANS('HelioScope Validation'!N194)))) -> 1.929231725 | J194: -22.30348915 | K194: -6.6200718 | L194: 14.6087988 | M194: -39.13198205 | N194: 5.10234674 | O194: 84.89765326 | P194: 90 | Q194: 0 | R194: -35.88897129 | S194: 35.88897129 | T194: 76.83780934 | U194: 5.471493659 | V194: 49.06469626 | W194: 0.07642259036 | X194: 54.61261251 | Y194: 18.36167252 | Z194: 12.49061151
A195: 8 | B195: 16 | C195: 3.90127 | D195: 0 | E195: 0 | F195: 2.73333 | G195: 0 | H195: 0 | I195: =MAX(0,Shadows!$C$2/(TAN(RADIANS('HelioScope Validation'!N195)))) -> 0 | J195: -22.30348915 | K195: -6.6200718 | L195: 15.6087988 | M195: -54.13198205 | N195: -0.5530350223 | O195: 90.55303502 | P195: 90 | Q195: 0 | R195: -48.57109146 | S195: 48.57109146 | T195: 83.95033697 | U195: 0 | V195: 2.712567288 | W195: 0.004152542446 | X195: 2.71671983 | Y195: 0.9147321253 | Z195: 0.9147321253
A196: 8 | B196: 17 | C196: 3.58457 | D196: 0 | E196: 0 | F196: 0 | G196: 0 | H196: 0 | I196: =MAX(0,Shadows!$C$2/(TAN(RADIANS('HelioScope Validation'!N196)))) -> 0 | J196: -22.30348915 | K196: -6.6200718 | L196: 16.6087988 | M196: -69.13198205 | N196: -7.410806529 | O196: 97.41080653 | P196: 90 | Q196: 0 | R196: -60.66611184 | S196: 60.66611184 | T196: 92.44519646 | U196: 0 | V196: 0 | W196: 0 | X196: 0 | Y196: 0 | Z196: 0
A197: 8 | B197: 18 | C197: 3.30058 | D197: 0 | E197: 0 | F197: 0 | G197: 0 | H197: 0 | I197: =MAX(0,Shadows!$C$2/(TAN(RADIANS('HelioScope Validation'!N197)))) -> 0 | J197: -22.30348915 | K197: -6.6200718 | L197: 17.6087988 | M197: -84.13198205 | N197: -15.12490991 | O197: 105.1249099 | P197: 90 | Q197: 0 | R197: -72.43285088 | S197: 72.43285088 | T197: 101.9093986 | U197: 0 | V197: 0 | W197: 0 | X197: 0 | Y197: 0 | Z197: 0
A198: 8 | B198: 19 | C198: 3.01659 | D198: 0 | E198: 0 | F198: 0 | G198: 0 | H198: 0 | I198: =MAX(0,Shadows!$C$2/(TAN(RADIANS('HelioScope Validation'!N198)))) -> 0 | J198: -22.30348915 | K198: -6.6200718 | L198: 18.6087988 | M198: -99.13198205 | N198: -23.35864254 | O198: 113.3586425 | P198: 90 | Q198: 0 | R198: -84.27388345 | S198: 84.27388345 | T198: 111.9968952 | U198: 0 | V198: 0 | W198: 0 | X198: 0 | Y198: 0 | Z198: 0
A199: 8 | B199: 20 | C199: 2.73259 | D199: 0 | E199: 0 | F199: 0 | G199: 0 | H199: 0 | I199: =MAX(0,Shadows!$C$2/(TAN(RADIANS('HelioScope Validation'!N199)))) -> 0 | J199: -22.30348915 | K199: -6.6200718 | L199: 19.6087988 | M199: -114.131982 | N199: -31.76440241 | O199: 121.7644024 | P199: 90 | Q199: 0 | R199: -83.25250169 | S199: 83.25250169 | T199: 120.0716979 | U199: 0 | V199: 0 | W199: 0 | X199: 0 | Y199: 0 | Z199: 0
A200: 8 | B200: 21 | C200: 2.4486 | D200: 0 | E200: 0 | F200: 0 | G200: 0 | H200: 0 | I200: =MAX(0,Shadows!$C$2/(TAN(RADIANS('HelioScope Validation'!N200)))) -> 0 | J200: -22.30348915 | K200: -6.6200718 | L200: 20.6087988 | M200: -129.131982 | N200: -39.93333521 | O200: 129.9333352 | P200: 90 | Q200: 0 | R200: -69.37858974 | S200: 69.37858974 | T200: 125.8205851 | U200: 0 | V200: 0 | W200: 0 | X200: 0 | Y200: 0 | Z200: 0
... 2050 more rows

Sheet Wind data
F8: https://power.larc.nasa.gov/publications/swc2005_1265.pdf
C9: Required information | F9: Surface type | G9: Surface roughness
C10: Air density (kg/m^3) | D10: 1.23 | F10: 35m evergreen trees (70% coverage) | G10: 0.47
C11: Capacity factor | D11: 0.3 | F11: 20m deciduous trees (75% coverage) | G11: 0.39 | H11: `
C12: Area available (m^2) | D12: =LandWind -> 900 | F12: 0.5m shrubs and groundcover | G12: 0.27
C13: Wind data height (m) | D13: 10 | F13: Rough bare soil | G13: 0.22
C14: Surface roughness exponent | D14: 0.15 | F14: Airport: flat rough grass | G14: 0.15
C15: Scenario energy demand (GWh) | D15: 24.6 | I15: y = -0.1398x4 + 3.7598x3 - 21.079x2 + 45.726x - 32.705 | M15: y = 0.0408x5 - 2.1722x4 + 35.19x3 - 161.68x2 + 276.58x - 141.49 | Q15: y = 0.111x5 - 6.0154x4 + 108.47x3 - 710.46x2 + 1859.7x - 1431.5 | U15: y = -0.0139x6 + 1.0516x5 - 27.21x4 + 243.28x3 + 202.18x2 - 4599.1x + 5488.3
I16: 1kW turbine | M16: 5kW turbine | Q16: 10kW tyrbine | U16: 50kW turbine | Y16: Add your own turbine
A17: Date | B17: Time | C17: Wind speed at reference height | D17: Wind speed @10m | E17: Wind speed @20m | F17: Wind speed @35m | G17: Wind speed at @50m | I17: Max power available | J17: Potential turbine power | K17: Actual power | M17: Max power available | N17: Potential turbine power | O17: Actual power | Q17: Max power available | R17: Potential turbine power | S17: Actual power | U17: Max power available | V17: Potential turbine power | W17: Actual power | Y17: Max power available | Z17: Potential turbine power | AA17: Actual power
A18: (Year Day) | B18: (Hour) | C18: (m/s) | D18: (m/s) | E18: (m/s) | F18: (m/s) | G18: (m/s) | I18: (W) | J18: (W) | K18: (W) | M18: (W) | N18: (W) | O18: (W) | Q18: (W) | R18: (W) | S18: (W) | U18: (W) | V18: (W) | W18: (W) | Y18: (W) | Z18: (W) | AA18: (W)
A19: 1 | B19: 1 | C19: 5.878 | D19: =C19*(10/$D$13)^$D$14 -> 5.878 | E19: =C19*(20/$D$13)^$D$14 -> 6.522049357 | F19: =C19*(35/$D$13)^$D$14 -> 7.093160524 | G19: =C19*(50/$D$13)^$D$14 -> 7.482988579 | I19: =0.5*$D$10*'Turbine information'!$B$38*((C19*('Turbine information'!$B$42/$D$13)^$D$14)^3) -> 768.687078 | J19: =( -0.1398*C19^4) +(3.7598*C19^3) - (21.079*C19^2) + (45.726*C19) - 32.705 -> 104.4643385 | K19: =(IF(J19<0, 0, J19)*IF(C19<'Turbine information'!$B$34, 0, J19)*IF(C19>'Turbine information'!$B$35, 0, J19))/J19^2 -> 104.4643385 | M19: =0.5*$D$10*'Turbine information'!$E$38*((C19*('Turbine information'!$E$42/$D$13)^$D$14)^3) -> 2382.865952 | N19: =(0.0408*C19^5) - (2.1722*C19^4) + (35.19*C19^3) - (161.68*C19^2) + (276.58*C19) - 141.49 -> 737.9987868 | O19: =IF(N19<0, 0, N19)*IF(C19<'Turbine information'!$E$34, 0, N19)*IF(C19>'Turbine information'!$E$35, 0, N19)/N19^2 -> 737.9987868 | Q19: =0.5*$D$10*'Turbine information'!$H$38*((C19*('Turbine information'!$H$42/$D$13)^$D$14)^3)*$D$11 -> 1968.8578 | R19: =(0.111*C19^5) - (6.0154*C19^4) + (108.47*C19^3) - (710.46*C19^2) + (1859.7*C19) - (1431.5) -> 579.8934139 | S19: =IF(R19<0, 0, R19)*IF(C19<'Turbine information'!$H$34, 0, R19)*IF(C19>'Turbine information'!$H$35, 0, R19)/R19^2 -> 579.8934139 | U19: =0.5*$D$10*'Turbine information'!$K$38*((C19*('Turbine information'!$K$42/$D$13)^$D$14)^3)*$D$11 -> 19393.35076 | V19: =(-0.0139*C19^6) + (1.0516*C19^5) - (27.21*C19^4) + (243.28*C19^3) + (202.18*C19^2) - (4599.1*C19) + 5488.3 -> 9171.442284 | W19: =IF(V19<0, 0, V19)*IF(C19<'Turbine information'!$K$34, 0, V19)*IF(C19>'Turbine information'!$K$35, 0, V19)/V19^2 -> 9171.442284 | Y19: =0.5*$D$10*'Turbine information'!$N$38*((C19*('Turbine information'!$N$42/$D$13)^$D$14)^3)*$D$11 -> 0 | AA19: =IF(Z19<0, 0, V19)*IF(C19<'Turbine information'!$N$34, 0, Z19)*IF(C19>'Turbine information'!$N$35, 0, Z19)/Z19^2 -> 
A20: 1 | B20: 2 | C20: 5.882 | D20: 5.882 | E20: 6.526487635 | F20: 7.097987445 | G20: 7.48808078 | I20: =0.5*$D$10*'Turbine information'!$B$38*((C20*('Turbine information'!$B$42/$D$13)^$D$14)^3) -> 770.257429 | J20: 104.7608645 | K20: =(IF(J20<0, 0, J20)*IF(C20<'Turbine information'!$B$34, 0, J20)*IF(C20>'Turbine information'!$B$35, 0, J20))/J20^2 -> 104.7608645 | M20: =0.5*$D$10*'Turbine information'!$E$38*((C20*('Turbine information'!$E$42/$D$13)^$D$14)^3) -> 2387.73391 | N20: 740.0095504 | O20: =IF(N20<0, 0, N20)*IF(C20<'Turbine information'!$E$34, 0, N20)*IF(C20>'Turbine information'!$E$35, 0, N20)/N20^2 -> 740.0095504 | Q20: =0.5*$D$10*'Turbine information'!$H$38*((C20*('Turbine information'!$H$42/$D$13)^$D$14)^3)*$D$11 -> 1972.87998 | R20: 582.0027117 | S20: =IF(R20<0, 0, R20)*IF(C20<'Turbine information'!$H$34, 0, R20)*IF(C20>'Turbine information'!$H$35, 0, R20)/R20^2 -> 582.0027117 | U20: =0.5*$D$10*'Turbine information'!$K$38*((C20*('Turbine information'!$K$42/$D$13)^$D$14)^3)*$D$11 -> 19432.96944 | V20: 9197.78055 | W20: =IF(V20<0, 0, V20)*IF(C20<'Turbine information'!$K$34, 0, V20)*IF(C20>'Turbine information'!$K$35, 0, V20)/V20^2 -> 9197.78055 | Y20: =0.5*$D$10*'Turbine information'!$N$38*((C20*('Turbine information'!$N$42/$D$13)^$D$14)^3)*$D$11 -> 0 | AA20: =IF(Z20<0, 0, V20)*IF(C20<'Turbine information'!$N$34, 0, Z20)*IF(C20>'Turbine information'!$N$35, 0, Z20)/Z20^2 -> 
A21: 1 | B21: 3 | C21: 6.028 | D21: 6.028 | E21: 6.688484778 | F21: 7.274170064 | G21: 7.673946097 | I21: =0.5*$D$10*'Turbine information'!$B$38*((C21*('Turbine information'!$B$42/$D$13)^$D$14)^3) -> 829.0496993 | J21: 115.9412445 | K21: =(IF(J21<0, 0, J21)*IF(C21<'Turbine information'!$B$34, 0, J21)*IF(C21>'Turbine information'!$B$35, 0, J21))/J21^2 -> 115.9412445 | M21: =0.5*$D$10*'Turbine information'!$E$38*((C21*('Turbine information'!$E$42/$D$13)^$D$14)^3) -> 2569.985054 | N21: 815.397847 | O21: =IF(N21<0, 0, N21)*IF(C21<'Turbine information'!$E$34, 0, N21)*IF(C21>'Turbine information'!$E$35, 0, N21)/N21^2 -> 815.397847 | Q21: =0.5*$D$10*'Turbine information'!$H$38*((C21*('Turbine information'!$H$42/$D$13)^$D$14)^3)*$D$11 -> 2123.46612 | R21: 662.9663186 | S21: =IF(R21<0, 0, R21)*IF(C21<'Turbine information'!$H$34, 0, R21)*IF(C21>'Turbine information'!$H$35, 0, R21)/R21^2 -> 662.9663186 | U21: =0.5*$D$10*'Turbine information'!$K$38*((C21*('Turbine information'!$K$42/$D$13)^$D$14)^3)*$D$11 -> 20916.25068 | V21: 10174.98986 | W21: =IF(V21<0, 0, V21)*IF(C21<'Turbine information'!$K$34, 0, V21)*IF(C21>'Turbine information'!$K$35, 0, V21)/V21^2 -> 10174.98986 | Y21: =0.5*$D$10*'Turbine information'!$N$38*((C21*('Turbine information'!$N$42/$D$13)^$D$14)^3)*$D$11 -> 0 | AA21: =IF(Z21<0, 0, V21)*IF(C21<'Turbine information'!$N$34, 0, Z21)*IF(C21>'Turbine information'!$N$35, 0, Z21)/Z21^2 -> 
A22: 1 | B22: 4 | C22: 5.815 | D22: 5.815 | E22: 6.45214648 | F22: 7.017136517 | G22: 7.402786422 | I22: =0.5*$D$10*'Turbine information'!$B$38*((C22*('Turbine information'!$B$42/$D$13)^$D$14)^3) -> 744.2348323 | J22: 99.862483 | K22: =(IF(J22<0, 0, J22)*IF(C22<'Turbine information'!$B$34, 0, J22)*IF(C22>'Turbine information'!$B$35, 0, J22))/J22^2 -> 99.862483 | M22: =0.5*$D$10*'Turbine information'!$E$38*((C22*('Turbine information'!$E$42/$D$13)^$D$14)^3) -> 2307.066026 | N22: 706.7155416 | O22: =IF(N22<0, 0, N22)*IF(C22<'Turbine information'!$E$34, 0, N22)*IF(C22>'Turbine information'!$E$35, 0, N22)/N22^2 -> 706.7155416 | Q22: =0.5*$D$10*'Turbine information'!$H$38*((C22*('Turbine information'!$H$42/$D$13)^$D$14)^3)*$D$11 -> 1906.22764 | R22: 547.4333474 | S22: =IF(R22<0, 0, R22)*IF(C22<'Turbine information'!$H$34, 0, R22)*IF(C22>'Turbine information'!$H$35, 0, R22)/R22^2 -> 547.4333474 | U22: =0.5*$D$10*'Turbine information'!$K$38*((C22*('Turbine information'!$K$42/$D$13)^$D$14)^3)*$D$11 -> 18776.44046 | V22: 8759.752787 | W22: =IF(V22<0, 0, V22)*IF(C22<'Turbine information'!$K$34, 0, V22)*IF(C22>'Turbine information'!$K$35, 0, V22)/V22^2 -> 8759.752787 | Y22: =0.5*$D$10*'Turbine information'!$N$38*((C22*('Turbine information'!$N$42/$D$13)^$D$14)^3)*$D$11 -> 0 | AA22: =IF(Z22<0, 0, V22)*IF(C22<'Turbine information'!$N$34, 0, Z22)*IF(C22>'Turbine information'!$N$35, 0, Z22)/Z22^2 -> 
A23: 1 | B23: 5 | C23: 5.813 | D23: 5.813 | E23: 6.449927341 | F23: 7.014723056 | G23: 7.400240322 | I23: =0.5*$D$10*'Turbine information'!$B$38*((C23*('Turbine information'!$B$42/$D$13)^$D$14)^3) -> 743.4671843 | J23: 99.71849547 | K23: =(IF(J23<0, 0, J23)*IF(C23<'Turbine information'!$B$34, 0, J23)*IF(C23>'Turbine information'!$B$35, 0, J23))/J23^2 -> 99.71849547 | M23: =0.5*$D$10*'Turbine information'!$E$38*((C23*('Turbine information'!$E$42/$D$13)^$D$14)^3) -> 2304.686381 | N23: 705.7343345 | O23: =IF(N23<0, 0, N23)*IF(C23<'Turbine information'!$E$34, 0, N23)*IF(C23>'Turbine information'!$E$35, 0, N23)/N23^2 -> 705.7343345 | Q23: =0.5*$D$10*'Turbine information'!$H$38*((C23*('Turbine information'!$H$42/$D$13)^$D$14)^3)*$D$11 -> 1904.261444 | R23: 546.4262668 | S23: =IF(R23<0, 0, R23)*IF(C23<'Turbine information'!$H$34, 0, R23)*IF(C23>'Turbine information'!$H$35, 0, R23)/R23^2 -> 546.4262668 | U23: =0.5*$D$10*'Turbine information'!$K$38*((C23*('Turbine information'!$K$42/$D$13)^$D$14)^3)*$D$11 -> 18757.07333 | V23: 8746.780731 | W23: =IF(V23<0, 0, V23)*IF(C23<'Turbine information'!$K$34, 0, V23)*IF(C23>'Turbine information'!$K$35, 0, V23)/V23^2 -> 8746.780731 | Y23: =0.5*$D$10*'Turbine information'!$N$38*((C23*('Turbine information'!$N$42/$D$13)^$D$14)^3)*$D$11 -> 0 | AA23: =IF(Z23<0, 0, V23)*IF(C23<'Turbine information'!$N$34, 0, Z23)*IF(C23>'Turbine information'!$N$35, 0, Z23)/Z23^2 -> 
A24: 1 | B24: 6 | C24: 5.752 | D24: 5.752 | E24: 6.382243603 | F24: 6.94111251 | G24: 7.322584265 | I24: =0.5*$D$10*'Turbine information'!$B$38*((C24*('Turbine information'!$B$42/$D$13)^$D$14)^3) -> 720.3067214 | J24: 95.38880071 | K24: =(IF(J24<0, 0, J24)*IF(C24<'Turbine information'!$B$34, 0, J24)*IF(C24>'Turbine information'!$B$35, 0, J24))/J24^2 -> 95.38880071 | M24: =0.5*$D$10*'Turbine information'!$E$38*((C24*('Turbine information'!$E$42/$D$13)^$D$14)^3) -> 2232.890874 | N24: 676.1603937 | O24: =IF(N24<0, 0, N24)*IF(C24<'Turbine information'!$E$34, 0, N24)*IF(C24>'Turbine information'!$E$35, 0, N24)/N24^2 -> 676.1603937 | Q24: =0.5*$D$10*'Turbine information'!$H$38*((C24*('Turbine information'!$H$42/$D$13)^$D$14)^3)*$D$11 -> 1844.93996 | R24: 516.3990294 | S24: =IF(R24<0, 0, R24)*IF(C24<'Turbine information'!$H$34, 0, R24)*IF(C24>'Turbine information'!$H$35, 0, R24)/R24^2 -> 516.3990294 | U24: =0.5*$D$10*'Turbine information'!$K$38*((C24*('Turbine information'!$K$42/$D$13)^$D$14)^3)*$D$11 -> 18172.75365 | V24: 8354.056747 | W24: =IF(V24<0, 0, V24)*IF(C24<'Turbine information'!$K$34, 0, V24)*IF(C24>'Turbine information'!$K$35, 0, V24)/V24^2 -> 8354.056747 | Y24: =0.5*$D$10*'Turbine information'!$N$38*((C24*('Turbine information'!$N$42/$D$13)^$D$14)^3)*$D$11 -> 0 | AA24: =IF(Z24<0, 0, V24)*IF(C24<'Turbine information'!$N$34, 0, Z24)*IF(C24>'Turbine information'!$N$35, 0, Z24)/Z24^2 -> 
A25: 1 | B25: 7 | C25: 5.757 | D25: 5.757 | E25: 6.387791451 | F25: 6.947146161 | G25: 7.328949515 | I25: =0.5*$D$10*'Turbine information'!$B$38*((C25*('Turbine information'!$B$42/$D$13)^$D$14)^3) -> 722.1867624 | J25: 95.73919041 | K25: =(IF(J25<0, 0, J25)*IF(C25<'Turbine information'!$B$34, 0, J25)*IF(C25>'Turbine information'!$B$35, 0, J25))/J25^2 -> 95.73919041 | M25: =0.5*$D$10*'Turbine information'!$E$38*((C25*('Turbine information'!$E$42/$D$13)^$D$14)^3) -> 2238.718845 | N25: 678.5587537 | O25: =IF(N25<0, 0, N25)*IF(C25<'Turbine information'!$E$34, 0, N25)*IF(C25>'Turbine information'!$E$35, 0, N25)/N25^2 -> 678.5587537 | Q25: =0.5*$D$10*'Turbine information'!$H$38*((C25*('Turbine information'!$H$42/$D$13)^$D$14)^3)*$D$11 -> 1849.755357 | R25: 518.8102027 | S25: =IF(R25<0, 0, R25)*IF(C25<'Turbine information'!$H$34, 0, R25)*IF(C25>'Turbine information'!$H$35, 0, R25)/R25^2 -> 518.8102027 | U25: =0.5*$D$10*'Turbine information'!$K$38*((C25*('Turbine information'!$K$42/$D$13)^$D$14)^3)*$D$11 -> 18220.18556 | V25: 8386.032781 | W25: =IF(V25<0, 0, V25)*IF(C25<'Turbine information'!$K$34, 0, V25)*IF(C25>'Turbine information'!$K$35, 0, V25)/V25^2 -> 8386.032781 | Y25: =0.5*$D$10*'Turbine information'!$N$38*((C25*('Turbine information'!$N$42/$D$13)^$D$14)^3)*$D$11 -> 0 | AA25: =IF(Z25<0, 0, V25)*IF(C25<'Turbine information'!$N$34, 0, Z25)*IF(C25>'Turbine information'!$N$35, 0, Z25)/Z25^2 -> 
A26: 1 | B26: 8 | C26: 5.805 | D26: 5.805 | E26: 6.441050785 | F26: 7.005069214 | G26: 7.390055921 | I26: =0.5*$D$10*'Turbine information'!$B$38*((C26*('Turbine information'!$B$42/$D$13)^$D$14)^3) -> 740.4018708 | J26: 99.14383662 | K26: =(IF(J26<0, 0, J26)*IF(C26<'Turbine information'!$B$34, 0, J26)*IF(C26>'Turbine information'!$B$35, 0, J26))/J26^2 -> 99.14383662 | M26: =0.5*$D$10*'Turbine information'!$E$38*((C26*('Turbine information'!$E$42/$D$13)^$D$14)^3) -> 2295.184165 | N26: 701.8168458 | O26: =IF(N26<0, 0, N26)*IF(C26<'Turbine information'!$E$34, 0, N26)*IF(C26>'Turbine information'!$E$35, 0, N26)/N26^2 -> 701.8168458 | Q26: =0.5*$D$10*'Turbine information'!$H$38*((C26*('Turbine information'!$H$42/$D$13)^$D$14)^3)*$D$11 -> 1896.410178 | R26: 542.4123082 | S26: =IF(R26<0, 0, R26)*IF(C26<'Turbine information'!$H$34, 0, R26)*IF(C26>'Turbine information'!$H$35, 0, R26)/R26^2 -> 542.4123082 | U26: =0.5*$D$10*'Turbine information'!$K$38*((C26*('Turbine information'!$K$42/$D$13)^$D$14)^3)*$D$11 -> 18679.73795 | V26: 8694.952993 | W26: =IF(V26<0, 0, V26)*IF(C26<'Turbine information'!$K$34, 0, V26)*IF(C26>'Turbine information'!$K$35, 0, V26)/V26^2 -> 8694.952993 | Y26: =0.5*$D$10*'Turbine information'!$N$38*((C26*('Turbine information'!$N$42/$D$13)^$D$14)^3)*$D$11 -> 0 | AA26: =IF(Z26<0, 0, V26)*IF(C26<'Turbine information'!$N$34, 0, Z26)*IF(C26>'Turbine information'!$N$35, 0, Z26)/Z26^2 -> 
A27: 1 | B27: 9 | C27: 5.807 | D27: 5.807 | E27: 6.443269924 | F27: 7.007482675 | G27: 7.392602021 | I27: =0.5*$D$10*'Turbine information'!$B$38*((C27*('Turbine information'!$B$42/$D$13)^$D$14)^3) -> 741.1674077 | J27: 99.28730769 | K27: =(IF(J27<0, 0, J27)*IF(C27<'Turbine information'!$B$34, 0, J27)*IF(C27>'Turbine information'!$B$35, 0, J27))/J27^2 -> 99.28730769 | M27: =0.5*$D$10*'Turbine information'!$E$38*((C27*('Turbine information'!$E$42/$D$13)^$D$14)^3) -> 2297.557265 | N27: 702.7951169 | O27: =IF(N27<0, 0, N27)*IF(C27<'Turbine information'!$E$34, 0, N27)*IF(C27>'Turbine information'!$E$35, 0, N27)/N27^2 -> 702.7951169 | Q27: =0.5*$D$10*'Turbine information'!$H$38*((C27*('Turbine information'!$H$42/$D$13)^$D$14)^3)*$D$11 -> 1898.370967 | R27: 543.4136438 | S27: =IF(R27<0, 0, R27)*IF(C27<'Turbine information'!$H$34, 0, R27)*IF(C27>'Turbine information'!$H$35, 0, R27)/R27^2 -> 543.4136438 | U27: =0.5*$D$10*'Turbine information'!$K$38*((C27*('Turbine information'!$K$42/$D$13)^$D$14)^3)*$D$11 -> 18699.05183 | V27: 8707.900845 | W27: =IF(V27<0, 0, V27)*IF(C27<'Turbine information'!$K$34, 0, V27)*IF(C27>'Turbine information'!$K$35, 0, V27)/V27^2 -> 8707.900845 | Y27: =0.5*$D$10*'Turbine information'!$N$38*((C27*('Turbine information'!$N$42/$D$13)^$D$14)^3)*$D$11 -> 0 | AA27: =IF(Z27<0, 0, V27)*IF(C27<'Turbine information'!$N$34, 0, Z27)*IF(C27>'Turbine information'!$N$35, 0, Z27)/Z27^2 -> 
A28: 1 | B28: 10 | C28: 5.805 | D28: 5.805 | E28: 6.441050785 | F28: 7.005069214 | G28: 7.390055921 | I28: =0.5*$D$10*'Turbine information'!$B$38*((C28*('Turbine information'!$B$42/$D$13)^$D$14)^3) -> 740.4018708 | J28: 99.14383662 | K28: =(IF(J28<0, 0, J28)*IF(C28<'Turbine information'!$B$34, 0, J28)*IF(C28>'Turbine information'!$B$35, 0, J28))/J28^2 -> 99.14383662 | M28: =0.5*$D$10*'Turbine information'!$E$38*((C28*('Turbine information'!$E$42/$D$13)^$D$14)^3) -> 2295.184165 | N28: 701.8168458 | O28: =IF(N28<0, 0, N28)*IF(C28<'Turbine information'!$E$34, 0, N28)*IF(C28>'Turbine information'!$E$35, 0, N28)/N28^2 -> 701.8168458 | Q28: =0.5*$D$10*'Turbine information'!$H$38*((C28*('Turbine information'!$H$42/$D$13)^$D$14)^3)*$D$11 -> 1896.410178 | R28: 542.4123082 | S28: =IF(R28<0, 0, R28)*IF(C28<'Turbine information'!$H$34, 0, R28)*IF(C28>'Turbine information'!$H$35, 0, R28)/R28^2 -> 542.4123082 | U28: =0.5*$D$10*'Turbine information'!$K$38*((C28*('Turbine information'!$K$42/$D$13)^$D$14)^3)*$D$11 -> 18679.73795 | V28: 8694.952993 | W28: =IF(V28<0, 0, V28)*IF(C28<'Turbine information'!$K$34, 0, V28)*IF(C28>'Turbine information'!$K$35, 0, V28)/V28^2 -> 8694.952993 | Y28: =0.5*$D$10*'Turbine information'!$N$38*((C28*('Turbine information'!$N$42/$D$13)^$D$14)^3)*$D$11 -> 0 | AA28: =IF(Z28<0, 0, V28)*IF(C28<'Turbine information'!$N$34, 0, Z28)*IF(C28>'Turbine information'!$N$35, 0, Z28)/Z28^2 -> 
A29: 1 | B29: 11 | C29: 6.065 | D29: 6.065 | E29: 6.729538848 | F29: 7.318819084 | G29: 7.721048951 | I29: =0.5*$D$10*'Turbine information'!$B$38*((C29*('Turbine information'!$B$42/$D$13)^$D$14)^3) -> 844.4097725 | J29: 118.8855992 | K29: =(IF(J29<0, 0, J29)*IF(C29<'Turbine information'!$B$34, 0, J29)*IF(C29>'Turbine information'!$B$35, 0, J29))/J29^2 -> 118.8855992 | M29: =0.5*$D$10*'Turbine information'!$E$38*((C29*('Turbine information'!$E$42/$D$13)^$D$14)^3) -> 2617.600002 | N29: 835.1173645 | O29: =IF(N29<0, 0, N29)*IF(C29<'Turbine information'!$E$34, 0, N29)*IF(C29>'Turbine information'!$E$35, 0, N29)/N29^2 -> 835.1173645 | Q29: =0.5*$D$10*'Turbine information'!$H$38*((C29*('Turbine information'!$H$42/$D$13)^$D$14)^3)*$D$11 -> 2162.808267 | R29: 684.7188852 | S29: =IF(R29<0, 0, R29)*IF(C29<'Turbine information'!$H$34, 0, R29)*IF(C29>'Turbine information'!$H$35, 0, R29)/R29^2 -> 684.7188852 | U29: =0.5*$D$10*'Turbine information'!$K$38*((C29*('Turbine information'!$K$42/$D$13)^$D$14)^3)*$D$11 -> 21303.77285 | V29: 10427.42826 | W29: =IF(V29<0, 0, V29)*IF(C29<'Turbine information'!$K$34, 0, V29)*IF(C29>'Turbine information'!$K$35, 0, V29)/V29^2 -> 10427.42826 | Y29: =0.5*$D$10*'Turbine information'!$N$38*((C29*('Turbine information'!$N$42/$D$13)^$D$14)^3)*$D$11 -> 0 | AA29: =IF(Z29<0, 0, V29)*IF(C29<'Turbine information'!$N$34, 0, Z29)*IF(C29>'Turbine information'!$N$35, 0, Z29)/Z29^2 -> 
A30: 1 | B30: 12 | C30: 6.414 | D30: 6.414 | E30: 7.116778594 | F30: 7.739967948 | G30: 8.165343441 | I30: =0.5*$D$10*'Turbine information'!$B$38*((C30*('Turbine information'!$B$42/$D$13)^$D$14)^3) -> 998.7290951 | J30: 148.8909688 | K30: =(IF(J30<0, 0, J30)*IF(C30<'Turbine information'!$B$34, 0, J30)*IF(C30>'Turbine information'!$B$35, 0, J30))/J30^2 -> 148.8909688 | M30: =0.5*$D$10*'Turbine information'!$E$38*((C30*('Turbine information'!$E$42/$D$13)^$D$14)^3) -> 3095.977055 | N30: 1033.154085 | O30: =IF(N30<0, 0, N30)*IF(C30<'Turbine information'!$E$34, 0, N30)*IF(C30>'Turbine information'!$E$35, 0, N30)/N30^2 -> 1033.154085 | Q30: =0.5*$D$10*'Turbine information'!$H$38*((C30*('Turbine information'!$H$42/$D$13)^$D$14)^3)*$D$11 -> 2558.07028 | R30: 914.6751306 | S30: =IF(R30<0, 0, R30)*IF(C30<'Turbine information'!$H$34, 0, R30)*IF(C30>'Turbine information'!$H$35, 0, R30)/R30^2 -> 914.6751306 | U30: =0.5*$D$10*'Turbine information'!$K$38*((C30*('Turbine information'!$K$42/$D$13)^$D$14)^3)*$D$11 -> 25197.12405 | V30: 12897.20623 | W30: =IF(V30<0, 0, V30)*IF(C30<'Turbine information'!$K$34, 0, V30)*IF(C30>'Turbine information'!$K$35, 0, V30)/V30^2 -> 12897.20623 | Y30: =0.5*$D$10*'Turbine information'!$N$38*((C30*('Turbine information'!$N$42/$D$13)^$D$14)^3)*$D$11 -> 0 | AA30: =IF(Z30<0, 0, V30)*IF(C30<'Turbine information'!$N$34, 0, Z30)*IF(C30>'Turbine information'!$N$35, 0, Z30)/Z30^2 -> 
A31: 1 | B31: 13 | C31: 6.901 | D31: 6.901 | E31: 7.657138927 | F31: 8.32764559 | G31: 8.785318847 | I31: =0.5*$D$10*'Turbine information'!$B$38*((C31*('Turbine information'!$B$42/$D$13)^$D$14)^3) -> 1243.932794 | J31: 197.5831592 | K31: =(IF(J31<0, 0, J31)*IF(C31<'Turbine information'!$B$34, 0, J31)*IF(C31>'Turbine information'!$B$35, 0, J31))/J31^2 -> 197.5831592 | M31: =0.5*$D$10*'Turbine information'!$E$38*((C31*('Turbine information'!$E$42/$D$13)^$D$14)^3) -> 3856.088111 | N31: 1344.611401 | O31: =IF(N31<0, 0, N31)*IF(C31<'Turbine information'!$E$34, 0, N31)*IF(C31>'Turbine information'!$E$35, 0, N31)/N31^2 -> 1344.611401 | Q31: =0.5*$D$10*'Turbine information'!$H$38*((C31*('Turbine information'!$H$42/$D$13)^$D$14)^3)*$D$11 -> 3186.116763 | R31: 1310.597337 | S31: =IF(R31<0, 0, R31)*IF(C31<'Turbine information'!$H$34, 0, R31)*IF(C31>'Turbine information'!$H$35, 0, R31)/R31^2 -> 1310.597337 | U31: =0.5*$D$10*'Turbine information'!$K$38*((C31*('Turbine information'!$K$42/$D$13)^$D$14)^3)*$D$11 -> 31383.41426 | V31: 16577.82244 | W31: =IF(V31<0, 0, V31)*IF(C31<'Turbine information'!$K$34, 0, V31)*IF(C31>'Turbine information'!$K$35, 0, V31)/V31^2 -> 16577.82244 | Y31: =0.5*$D$10*'Turbine information'!$N$38*((C31*('Turbine information'!$N$42/$D$13)^$D$14)^3)*$D$11 -> 0 | AA31: =IF(Z31<0, 0, V31)*IF(C31<'Turbine information'!$N$34, 0, Z31)*IF(C31>'Turbine information'!$N$35, 0, Z31)/Z31^2 -> 
A32: 1 | B32: 14 | C32: 7.312 | D32: 7.312 | E32: 8.11317198 | F32: 8.82361173 | G32: 9.308542445 | I32: =0.5*$D$10*'Turbine information'!$B$38*((C32*('Turbine information'!$B$42/$D$13)^$D$14)^3) -> 1479.685382 | J32: 244.8741439 | K32: =(IF(J32<0, 0, J32)*IF(C32<'Turbine information'!$B$34, 0, J32)*IF(C32>'Turbine information'!$B$35, 0, J32))/J32^2 -> 244.8741439 | M32: =0.5*$D$10*'Turbine information'!$E$38*((C32*('Turbine information'!$E$42/$D$13)^$D$14)^3) -> 4586.901508 | N32: 1637.17618 | O32: =IF(N32<0, 0, N32)*IF(C32<'Turbine information'!$E$34, 0, N32)*IF(C32>'Turbine information'!$E$35, 0, N32)/N32^2 -> 1637.17618 | Q32: =0.5*$D$10*'Turbine information'!$H$38*((C32*('Turbine information'!$H$42/$D$13)^$D$14)^3)*$D$11 -> 3789.955873 | R32: 1711.5529 | S32: =IF(R32<0, 0, R32)*IF(C32<'Turbine information'!$H$34, 0, R32)*IF(C32>'Turbine information'!$H$35, 0, R32)/R32^2 -> 1711.5529 | U32: =0.5*$D$10*'Turbine information'!$K$38*((C32*('Turbine information'!$K$42/$D$13)^$D$14)^3)*$D$11 -> 37331.26061 | V32: 19851.70422 | W32: =IF(V32<0, 0, V32)*IF(C32<'Turbine information'!$K$34, 0, V32)*IF(C32>'Turbine information'!$K$35, 0, V32)/V32^2 -> 19851.70422 | Y32: =0.5*$D$10*'Turbine information'!$N$38*((C32*('Turbine information'!$N$42/$D$13)^$D$14)^3)*$D$11 -> 0 | AA32: =IF(Z32<0, 0, V32)*IF(C32<'Turbine information'!$N$34, 0, Z32)*IF(C32>'Turbine information'!$N$35, 0, Z32)/Z32^2 -> 
A33: 1 | B33: 15 | C33: 8.016 | D33: 8.016 | E33: 8.894308888 | F33: 9.67314984 | G33: 10.20476973 | I33: =0.5*$D$10*'Turbine information'!$B$38*((C33*('Turbine information'!$B$42/$D$13)^$D$14)^3) -> 1949.548127 | J33: 338.7522894 | K33: =(IF(J33<0, 0, J33)*IF(C33<'Turbine information'!$B$34, 0, J33)*IF(C33>'Turbine information'!$B$35, 0, J33))/J33^2 -> 338.7522894 | M33: =0.5*$D$10*'Turbine information'!$E$38*((C33*('Turbine information'!$E$42/$D$13)^$D$14)^3) -> 6043.436903 | N33: 2193.857499 | O33: =IF(N33<0, 0, N33)*IF(C33<'Turbine information'!$E$34, 0, N33)*IF(C33>'Turbine information'!$E$35, 0, N33)/N33^2 -> 2193.857499 | Q33: =0.5*$D$10*'Turbine information'!$H$38*((C33*('Turbine information'!$H$42/$D$13)^$D$14)^3)*$D$11 -> 4993.427295 | R33: 2531.865393 | S33: =IF(R33<0, 0, R33)*IF(C33<'Turbine information'!$H$34, 0, R33)*IF(C33>'Turbine information'!$H$35, 0, R33)/R33^2 -> 2531.865393 | U33: =0.5*$D$10*'Turbine information'!$K$38*((C33*('Turbine information'!$K$42/$D$13)^$D$14)^3)*$D$11 -> 49185.51611 | V33: 25692.05218 | W33: =IF(V33<0, 0, V33)*IF(C33<'Turbine information'!$K$34, 0, V33)*IF(C33>'Turbine information'!$K$35, 0, V33)/V33^2 -> 25692.05218 | Y33: =0.5*$D$10*'Turbine information'!$N$38*((C33*('Turbine information'!$N$42/$D$13)^$D$14)^3)*$D$11 -> 0 | AA33: =IF(Z33<0, 0, V33)*IF(C33<'Turbine information'!$N$34, 0, Z33)*IF(C33>'Turbine information'!$N$35, 0, Z33)/Z33^2 -> 
A34: 1 | B34: 16 | C34: 8.744 | D34: 8.744 | E34: 9.702075464 | F34: 10.55164948 | G34: 11.13155021 | I34: =0.5*$D$10*'Turbine information'!$B$38*((C34*('Turbine information'!$B$42/$D$13)^$D$14)^3) -> 2530.412254 | J34: 451.8325635 | K34: =(IF(J34<0, 0, J34)*IF(C34<'Turbine information'!$B$34, 0, J34)*IF(C34>'Turbine information'!$B$35, 0, J34))/J34^2 -> 451.8325635 | M34: =0.5*$D$10*'Turbine information'!$E$38*((C34*('Turbine information'!$E$42/$D$13)^$D$14)^3) -> 7844.067342 | N34: 2828.713735 | O34: =IF(N34<0, 0, N34)*IF(C34<'Turbine information'!$E$34, 0, N34)*IF(C34>'Turbine information'!$E$35, 0, N34)/N34^2 -> 2828.713735 | Q34: =0.5*$D$10*'Turbine information'!$H$38*((C34*('Turbine information'!$H$42/$D$13)^$D$14)^3)*$D$11 -> 6481.209384 | R34: 3535.981413 | S34: =IF(R34<0, 0, R34)*IF(C34<'Turbine information'!$H$34, 0, R34)*IF(C34>'Turbine information'!$H$35, 0, R34)/R34^2 -> 3535.981413 | U34: =0.5*$D$10*'Turbine information'!$K$38*((C34*('Turbine information'!$K$42/$D$13)^$D$14)^3)*$D$11 -> 63840.24633 | V34: 31852.71476 | W34: =IF(V34<0, 0, V34)*IF(C34<'Turbine information'!$K$34, 0, V34)*IF(C34>'Turbine information'!$K$35, 0, V34)/V34^2 -> 31852.71476 | Y34: =0.5*$D$10*'Turbine information'!$N$38*((C34*('Turbine information'!$N$42/$D$13)^$D$14)^3)*$D$11 -> 0 | AA34: =IF(Z34<0, 0, V34)*IF(C34<'Turbine information'!$N$34, 0, Z34)*IF(C34>'Turbine information'!$N$35, 0, Z34)/Z34^2 -> 
A35: 1 | B35: 17 | C35: 8.986 | D35: 8.986 | E35: 9.970591276 | F35: 10.8436782 | G35: 11.43962834 | I35: =0.5*$D$10*'Turbine information'!$B$38*((C35*('Turbine information'!$B$42/$D$13)^$D$14)^3) -> 2746.376523 | J35: 492.6869517 | K35: =(IF(J35<0, 0, J35)*IF(C35<'Turbine information'!$B$34, 0, J35)*IF(C35>'Turbine information'!$B$35, 0, J35))/J35^2 -> 492.6869517 | M35: =0.5*$D$10*'Turbine information'!$E$38*((C35*('Turbine information'!$E$42/$D$13)^$D$14)^3) -> 8513.5386 | N35: 3049.655482 | O35: =IF(N35<0, 0, N35)*IF(C35<'Turbine information'!$E$34, 0, N35)*IF(C35>'Turbine information'!$E$35, 0, N35)/N35^2 -> 3049.655482 | Q35: =0.5*$D$10*'Turbine information'!$H$38*((C35*('Turbine information'!$H$42/$D$13)^$D$14)^3)*$D$11 -> 7034.364171 | R35: 3899.168921 | S35: =IF(R35<0, 0, R35)*IF(C35<'Turbine information'!$H$34, 0, R35)*IF(C35>'Turbine information'!$H$35, 0, R35)/R35^2 -> 3899.168921 | U35: =0.5*$D$10*'Turbine information'!$K$38*((C35*('Turbine information'!$K$42/$D$13)^$D$14)^3)*$D$11 -> 69288.84948 | V35: 33890.75614 | W35: =IF(V35<0, 0, V35)*IF(C35<'Turbine information'!$K$34, 0, V35)*IF(C35>'Turbine information'!$K$35, 0, V35)/V35^2 -> 33890.75614 | Y35: =0.5*$D$10*'Turbine information'!$N$38*((C35*('Turbine information'!$N$42/$D$13)^$D$14)^3)*$D$11 -> 0 | AA35: =IF(Z35<0, 0, V35)*IF(C35<'Turbine information'!$N$34, 0, Z35)*IF(C35>'Turbine information'!$N$35, 0, Z35)/Z35^2 -> 
A36: 1 | B36: 18 | C36: 8.187 | D36: 8.187 | E36: 9.084045268 | F36: 9.879500716 | G36: 10.4224613 | I36: =0.5*$D$10*'Turbine information'!$B$38*((C36*('Turbine information'!$B$42/$D$13)^$D$14)^3) -> 2076.99383 | J36: 363.9142451 | K36: =(IF(J36<0, 0, J36)*IF(C36<'Turbine information'!$B$34, 0, J36)*IF(C36>'Turbine information'!$B$35, 0, J36))/J36^2 -> 363.9142451 | M36: =0.5*$D$10*'Turbine information'!$E$38*((C36*('Turbine information'!$E$42/$D$13)^$D$14)^3) -> 6438.507973 | N36: 2338.264278 | O36: =IF(N36<0, 0, N36)*IF(C36<'Turbine information'!$E$34, 0, N36)*IF(C36>'Turbine information'!$E$35, 0, N36)/N36^2 -> 2338.264278 | Q36: =0.5*$D$10*'Turbine information'!$H$38*((C36*('Turbine information'!$H$42/$D$13)^$D$14)^3)*$D$11 -> 5319.857221 | R36: 2754.595027 | S36: =IF(R36<0, 0, R36)*IF(C36<'Turbine information'!$H$34, 0, R36)*IF(C36>'Turbine information'!$H$35, 0, R36)/R36^2 -> 2754.595027 | U36: =0.5*$D$10*'Turbine information'!$K$38*((C36*('Turbine information'!$K$42/$D$13)^$D$14)^3)*$D$11 -> 52400.8677 | V36: 27136.06938 | W36: =IF(V36<0, 0, V36)*IF(C36<'Turbine information'!$K$34, 0, V36)*IF(C36>'Turbine information'!$K$35, 0, V36)/V36^2 -> 27136.06938 | Y36: =0.5*$D$10*'Turbine information'!$N$38*((C36*('Turbine information'!$N$42/$D$13)^$D$14)^3)*$D$11 -> 0 | AA36: =IF(Z36<0, 0, V36)*IF(C36<'Turbine information'!$N$34, 0, Z36)*IF(C36>'Turbine information'!$N$35, 0, Z36)/Z36^2 -> 
A37: 1 | B37: 19 | C37: 7.222 | D37: 7.222 | E37: 8.013310727 | F37: 8.715006006 | G37: 9.193967934 | I37: =0.5*$D$10*'Turbine information'!$B$38*((C37*('Turbine information'!$B$42/$D$13)^$D$14)^3) -> 1425.716867 | J37: 234.0364476 | K37: =(IF(J37<0, 0, J37)*IF(C37<'Turbine information'!$B$34, 0, J37)*IF(C37>'Turbine information'!$B$35, 0, J37))/J37^2 -> 234.0364476 | M37: =0.5*$D$10*'Turbine information'!$E$38*((C37*('Turbine information'!$E$42/$D$13)^$D$14)^3) -> 4419.603603 | N37: 1570.913877 | O37: =IF(N37<0, 0, N37)*IF(C37<'Turbine information'!$E$34, 0, N37)*IF(C37>'Turbine information'!$E$35, 0, N37)/N37^2 -> 1570.913877 | Q37: =0.5*$D$10*'Turbine information'!$H$38*((C37*('Turbine information'!$H$42/$D$13)^$D$14)^3)*$D$11 -> 3651.72494 | R37: 1618.643864 | S37: =IF(R37<0, 0, R37)*IF(C37<'Turbine information'!$H$34, 0, R37)*IF(C37>'Turbine information'!$H$35, 0, R37)/R37^2 -> 1618.643864 | U37: =0.5*$D$10*'Turbine information'!$K$38*((C37*('Turbine information'!$K$42/$D$13)^$D$14)^3)*$D$11 -> 35969.67879 | V37: 19123.97074 | W37: =IF(V37<0, 0, V37)*IF(C37<'Turbine information'!$K$34, 0, V37)*IF(C37>'Turbine information'!$K$35, 0, V37)/V37^2 -> 19123.97074 | Y37: =0.5*$D$10*'Turbine information'!$N$38*((C37*('Turbine information'!$N$42/$D$13)^$D$14)^3)*$D$11 -> 0 | AA37: =IF(Z37<0, 0, V37)*IF(C37<'Turbine information'!$N$34, 0, Z37)*IF(C37>'Turbine information'!$N$35, 0, Z37)/Z37^2 -> 
A38: 1 | B38: 20 | C38: 6.498 | D38: 6.498 | E38: 7.209982429 | F38: 7.841333291 | G38: 8.272279651 | I38: =0.5*$D$10*'Turbine information'!$B$38*((C38*('Turbine information'!$B$42/$D$13)^$D$14)^3) -> 1038.48435 | J38: 156.720288 | K38: =(IF(J38<0, 0, J38)*IF(C38<'Turbine information'!$B$34, 0, J38)*IF(C38>'Turbine information'!$B$35, 0, J38))/J38^2 -> 156.720288 | M38: =0.5*$D$10*'Turbine information'!$E$38*((C38*('Turbine information'!$E$42/$D$13)^$D$14)^3) -> 3219.215037 | N38: 1084.013779 | O38: =IF(N38<0, 0, N38)*IF(C38<'Turbine information'!$E$34, 0, N38)*IF(C38>'Turbine information'!$E$35, 0, N38)/N38^2 -> 1084.013779 | Q38: =0.5*$D$10*'Turbine information'!$H$38*((C38*('Turbine information'!$H$42/$D$13)^$D$14)^3)*$D$11 -> 2659.896429 | R38: 976.7369492 | S38: =IF(R38<0, 0, R38)*IF(C38<'Turbine information'!$H$34, 0, R38)*IF(C38>'Turbine information'!$H$35, 0, R38)/R38^2 -> 976.7369492 | U38: =0.5*$D$10*'Turbine information'!$K$38*((C38*('Turbine information'!$K$42/$D$13)^$D$14)^3)*$D$11 -> 26200.11685 | V38: 13513.98432 | W38: =IF(V38<0, 0, V38)*IF(C38<'Turbine information'!$K$34, 0, V38)*IF(C38>'Turbine information'!$K$35, 0, V38)/V38^2 -> 13513.98432 | Y38: =0.5*$D$10*'Turbine information'!$N$38*((C38*('Turbine information'!$N$42/$D$13)^$D$14)^3)*$D$11 -> 0 | AA38: =IF(Z38<0, 0, V38)*IF(C38<'Turbine information'!$N$34, 0, Z38)*IF(C38>'Turbine information'!$N$35, 0, Z38)/Z38^2 -> 
A39: 1 | B39: 21 | C39: 6.383 | D39: 6.383 | E39: 7.08238194 | F39: 7.70255931 | G39: 8.125878888 | I39: =0.5*$D$10*'Turbine information'!$B$38*((C39*('Turbine information'!$B$42/$D$13)^$D$14)^3) -> 984.3178673 | J39: 146.0613542 | K39: =(IF(J39<0, 0, J39)*IF(C39<'Turbine information'!$B$34, 0, J39)*IF(C39>'Turbine information'!$B$35, 0, J39))/J39^2 -> 146.0613542 | M39: =0.5*$D$10*'Turbine information'!$E$38*((C39*('Turbine information'!$E$42/$D$13)^$D$14)^3) -> 3051.303449 | N39: 1014.693602 | O39: =IF(N39<0, 0, N39)*IF(C39<'Turbine information'!$E$34, 0, N39)*IF(C39>'Turbine information'!$E$35, 0, N39)/N39^2 -> 1014.693602 | Q39: =0.5*$D$10*'Turbine information'!$H$38*((C39*('Turbine information'!$H$42/$D$13)^$D$14)^3)*$D$11 -> 2521.158435 | R39: 892.4300697 | S39: =IF(R39<0, 0, R39)*IF(C39<'Turbine information'!$H$34, 0, R39)*IF(C39>'Turbine information'!$H$35, 0, R39)/R39^2 -> 892.4300697 | U39: =0.5*$D$10*'Turbine information'!$K$38*((C39*('Turbine information'!$K$42/$D$13)^$D$14)^3)*$D$11 -> 24833.54047 | V39: 12671.66714 | W39: =IF(V39<0, 0, V39)*IF(C39<'Turbine information'!$K$34, 0, V39)*IF(C39>'Turbine information'!$K$35, 0, V39)/V39^2 -> 12671.66714 | Y39: =0.5*$D$10*'Turbine information'!$N$38*((C39*('Turbine information'!$N$42/$D$13)^$D$14)^3)*$D$11 -> 0 | AA39: =IF(Z39<0, 0, V39)*IF(C39<'Turbine information'!$N$34, 0, Z39)*IF(C39>'Turbine information'!$N$35, 0, Z39)/Z39^2 -> 
A40: 1 | B40: 22 | C40: 6.202 | D40: 6.202 | E40: 6.881549866 | F40: 7.484141131 | G40: 7.895456817 | I40: =0.5*$D$10*'Turbine information'!$B$38*((C40*('Turbine information'!$B$42/$D$13)^$D$14)^3) -> 902.9342375 | J40: 130.1812506 | K40: =(IF(J40<0, 0, J40)*IF(C40<'Turbine information'!$B$34, 0, J40)*IF(C40>'Turbine information'!$B$35, 0, J40))/J40^2 -> 130.1812506 | M40: =0.5*$D$10*'Turbine information'!$E$38*((C40*('Turbine information'!$E$42/$D$13)^$D$14)^3) -> 2799.020971 | N40: 910.2769894 | O40: =IF(N40<0, 0, N40)*IF(C40<'Turbine information'!$E$34, 0, N40)*IF(C40>'Turbine information'!$E$35, 0, N40)/N40^2 -> 910.2769894 | Q40: =0.5*$D$10*'Turbine information'!$H$38*((C40*('Turbine information'!$H$42/$D$13)^$D$14)^3)*$D$11 -> 2312.70847 | R40: 769.6353631 | S40: =IF(R40<0, 0, R40)*IF(C40<'Turbine information'!$H$34, 0, R40)*IF(C40>'Turbine information'!$H$35, 0, R40)/R40^2 -> 769.6353631 | U40: =0.5*$D$10*'Turbine information'!$K$38*((C40*('Turbine information'!$K$42/$D$13)^$D$14)^3)*$D$11 -> 22780.29758 | V40: 11378.29438 | W40: =IF(V40<0, 0, V40)*IF(C40<'Turbine information'!$K$34, 0, V40)*IF(C40>'Turbine information'!$K$35, 0, V40)/V40^2 -> 11378.29438 | Y40: =0.5*$D$10*'Turbine information'!$N$38*((C40*('Turbine information'!$N$42/$D$13)^$D$14)^3)*$D$11 -> 0 | AA40: =IF(Z40<0, 0, V40)*IF(C40<'Turbine information'!$N$34, 0, Z40)*IF(C40>'Turbine information'!$N$35, 0, Z40)/Z40^2 -> 
A41: 1 | B41: 23 | C41: 6.001 | D41: 6.001 | E41: 6.658526402 | F41: 7.241588347 | G41: 7.639573743 | I41: =0.5*$D$10*'Turbine information'!$B$38*((C41*('Turbine information'!$B$42/$D$13)^$D$14)^3) -> 817.9593394 | J41: 113.8210656 | K41: =(IF(J41<0, 0, J41)*IF(C41<'Turbine information'!$B$34, 0, J41)*IF(C41>'Turbine information'!$B$35, 0, J41))/J41^2 -> 113.8210656 | M41: =0.5*$D$10*'Turbine information'!$E$38*((C41*('Turbine information'!$E$42/$D$13)^$D$14)^3) -> 2535.605861 | N41: 801.1642339 | O41: =IF(N41<0, 0, N41)*IF(C41<'Turbine information'!$E$34, 0, N41)*IF(C41>'Turbine information'!$E$35, 0, N41)/N41^2 -> 801.1642339 | Q41: =0.5*$D$10*'Turbine information'!$H$38*((C41*('Turbine information'!$H$42/$D$13)^$D$14)^3)*$D$11 -> 2095.060099 | R41: 647.4086968 | S41: =IF(R41<0, 0, R41)*IF(C41<'Turbine information'!$H$34, 0, R41)*IF(C41>'Turbine information'!$H$35, 0, R41)/R41^2 -> 647.4086968 | U41: =0.5*$D$10*'Turbine information'!$K$38*((C41*('Turbine information'!$K$42/$D$13)^$D$14)^3)*$D$11 -> 20636.44991 | V41: 9991.981615 | W41: =IF(V41<0, 0, V41)*IF(C41<'Turbine information'!$K$34, 0, V41)*IF(C41>'Turbine information'!$K$35, 0, V41)/V41^2 -> 9991.981615 | Y41: =0.5*$D$10*'Turbine information'!$N$38*((C41*('Turbine information'!$N$42/$D$13)^$D$14)^3)*$D$11 -> 0 | AA41: =IF(Z41<0, 0, V41)*IF(C41<'Turbine information'!$N$34, 0, Z41)*IF(C41>'Turbine information'!$N$35, 0, Z41)/Z41^2 -> 
A42: 1 | B42: 24 | C42: 6.294 | D42: 6.294 | E42: 6.983630257 | F42: 7.595160316 | G42: 8.012577427 | I42: =0.5*$D$10*'Turbine information'!$B$38*((C42*('Turbine information'!$B$42/$D$13)^$D$14)^3) -> 943.7154191 | J42: 138.1163044 | K42: =(IF(J42<0, 0, J42)*IF(C42<'Turbine information'!$B$34, 0, J42)*IF(C42>'Turbine information'!$B$35, 0, J42))/J42^2 -> 138.1163044 | M42: =0.5*$D$10*'Turbine information'!$E$38*((C42*('Turbine information'!$E$42/$D$13)^$D$14)^3) -> 2925.43924 | N42: 962.628401 | O42: =IF(N42<0, 0, N42)*IF(C42<'Turbine information'!$E$34, 0, N42)*IF(C42>'Turbine information'!$E$35, 0, N42)/N42^2 -> 962.628401 | Q42: =0.5*$D$10*'Turbine information'!$H$38*((C42*('Turbine information'!$H$42/$D$13)^$D$14)^3)*$D$11 -> 2417.16235 | R42: 830.5386286 | S42: =IF(R42<0, 0, R42)*IF(C42<'Turbine information'!$H$34, 0, R42)*IF(C42>'Turbine information'!$H$35, 0, R42)/R42^2 -> 830.5386286 | U42: =0.5*$D$10*'Turbine information'!$K$38*((C42*('Turbine information'!$K$42/$D$13)^$D$14)^3)*$D$11 -> 23809.17368 | V42: 12030.59497 | W42: =IF(V42<0, 0, V42)*IF(C42<'Turbine information'!$K$34, 0, V42)*IF(C42>'Turbine information'!$K$35, 0, V42)/V42^2 -> 12030.59497 | Y42: =0.5*$D$10*'Turbine information'!$N$38*((C42*('Turbine information'!$N$42/$D$13)^$D$14)^3)*$D$11 -> 0 | AA42: =IF(Z42<0, 0, V42)*IF(C42<'Turbine information'!$N$34, 0, Z42)*IF(C42>'Turbine information'!$N$35, 0, Z42)/Z42^2 -> 
A43: 2 | B43: 1 | C43: 6.715 | D43: 6.715 | E43: 7.450759005 | F43: 8.103193759 | G43: 8.548531526 | I43: =0.5*$D$10*'Turbine information'!$B$38*((C43*('Turbine information'!$B$42/$D$13)^$D$14)^3) -> 1146.037652 | J43: 178.0439296 | K43: =(IF(J43<0, 0, J43)*IF(C43<'Turbine information'!$B$34, 0, J43)*IF(C43>'Turbine information'!$B$35, 0, J43))/J43^2 -> 178.0439296 | M43: =0.5*$D$10*'Turbine information'!$E$38*((C43*('Turbine information'!$E$42/$D$13)^$D$14)^3) -> 3552.621319 | N43: 1220.977814 | O43: =IF(N43<0, 0, N43)*IF(C43<'Turbine information'!$E$34, 0, N43)*IF(C43>'Turbine information'!$E$35, 0, N43)/N43^2 -> 1220.977814 | Q43: =0.5*$D$10*'Turbine information'!$H$38*((C43*('Turbine information'!$H$42/$D$13)^$D$14)^3)*$D$11 -> 2935.375441 | R43: 1149.109105 | S43: =IF(R43<0, 0, R43)*IF(C43<'Turbine information'!$H$34, 0, R43)*IF(C43>'Turbine information'!$H$35, 0, R43)/R43^2 -> 1149.109105 | U43: =0.5*$D$10*'Turbine information'!$K$38*((C43*('Turbine information'!$K$42/$D$13)^$D$14)^3)*$D$11 -> 28913.59932 | V43: 15143.37584 | W43: =IF(V43<0, 0, V43)*IF(C43<'Turbine information'!$K$34, 0, V43)*IF(C43>'Turbine information'!$K$35, 0, V43)/V43^2 -> 15143.37584 | Y43: =0.5*$D$10*'Turbine information'!$N$38*((C43*('Turbine information'!$N$42/$D$13)^$D$14)^3)*$D$11 -> 0 | AA43: =IF(Z43<0, 0, V43)*IF(C43<'Turbine information'!$N$34, 0, Z43)*IF(C43>'Turbine information'!$N$35, 0, Z43)/Z43^2 -> 
A44: 2 | B44: 2 | C44: 6.943 | D44: 6.943 | E44: 7.703740845 | F44: 8.378328261 | G44: 8.838786952 | I44: =0.5*$D$10*'Turbine information'!$B$38*((C44*('Turbine information'!$B$42/$D$13)^$D$14)^3) -> 1266.783304 | J44: 202.1563461 | K44: =(IF(J44<0, 0, J44)*IF(C44<'Turbine information'!$B$34, 0, J44)*IF(C44>'Turbine information'!$B$35, 0, J44))/J44^2 -> 202.1563461 | M44: =0.5*$D$10*'Turbine information'!$E$38*((C44*('Turbine information'!$E$42/$D$13)^$D$14)^3) -> 3926.92279 | N44: 1373.304367 | O44: =IF(N44<0, 0, N44)*IF(C44<'Turbine information'!$E$34, 0, N44)*IF(C44>'Turbine information'!$E$35, 0, N44)/N44^2 -> 1373.304367 | Q44: =0.5*$D$10*'Turbine information'!$H$38*((C44*('Turbine information'!$H$42/$D$13)^$D$14)^3)*$D$11 -> 3244.644357 | R44: 1348.802926 | S44: =IF(R44<0, 0, R44)*IF(C44<'Turbine information'!$H$34, 0, R44)*IF(C44>'Turbine information'!$H$35, 0, R44)/R44^2 -> 1348.802926 | U44: =0.5*$D$10*'Turbine information'!$K$38*((C44*('Turbine information'!$K$42/$D$13)^$D$14)^3)*$D$11 -> 31959.91408 | V44: 16906.14526 | W44: =IF(V44<0, 0, V44)*IF(C44<'Turbine information'!$K$34, 0, V44)*IF(C44>'Turbine information'!$K$35, 0, V44)/V44^2 -> 16906.14526 | Y44: =0.5*$D$10*'Turbine information'!$N$38*((C44*('Turbine information'!$N$42/$D$13)^$D$14)^3)*$D$11 -> 0 | AA44: =IF(Z44<0, 0, V44)*IF(C44<'Turbine information'!$N$34, 0, Z44)*IF(C44>'Turbine information'!$N$35, 0, Z44)/Z44^2 -> 
A45: 2 | B45: 3 | C45: 6.958 | D45: 6.958 | E45: 7.720384387 | F45: 8.396429215 | G45: 8.857882704 | I45: =0.5*$D$10*'Turbine information'!$B$38*((C45*('Turbine information'!$B$42/$D$13)^$D$14)^3) -> 1275.011519 | J45: 203.8039932 | K45: =(IF(J45<0, 0, J45)*IF(C45<'Turbine information'!$B$34, 0, J45)*IF(C45>'Turbine information'!$B$35, 0, J45))/J45^2 -> 203.8039932 | M45: =0.5*$D$10*'Turbine information'!$E$38*((C45*('Turbine information'!$E$42/$D$13)^$D$14)^3) -> 3952.429571 | N45: 1383.620019 | O45: =IF(N45<0, 0, N45)*IF(C45<'Turbine information'!$E$34, 0, N45)*IF(C45>'Turbine information'!$E$35, 0, N45)/N45^2 -> 1383.620019 | Q45: =0.5*$D$10*'Turbine information'!$H$38*((C45*('Turbine information'!$H$42/$D$13)^$D$14)^3)*$D$11 -> 3265.719493 | R45: 1362.602242 | S45: =IF(R45<0, 0, R45)*IF(C45<'Turbine information'!$H$34, 0, R45)*IF(C45>'Turbine information'!$H$35, 0, R45)/R45^2 -> 1362.602242 | U45: =0.5*$D$10*'Turbine information'!$K$38*((C45*('Turbine information'!$K$42/$D$13)^$D$14)^3)*$D$11 -> 32167.50525 | V45: 17023.77723 | W45: =IF(V45<0, 0, V45)*IF(C45<'Turbine information'!$K$34, 0, V45)*IF(C45>'Turbine information'!$K$35, 0, V45)/V45^2 -> 17023.77723 | Y45: =0.5*$D$10*'Turbine information'!$N$38*((C45*('Turbine information'!$N$42/$D$13)^$D$14)^3)*$D$11 -> 0 | AA45: =IF(Z45<0, 0, V45)*IF(C45<'Turbine information'!$N$34, 0, Z45)*IF(C45>'Turbine information'!$N$35, 0, Z45)/Z45^2 -> 
A46: 2 | B46: 4 | C46: 7.095 | D46: 7.095 | E46: 7.872395404 | F46: 8.561751262 | G46: 9.03229057 | I46: =0.5*$D$10*'Turbine information'!$B$38*((C46*('Turbine information'!$B$42/$D$13)^$D$14)^3) -> 1351.817407 | J46: 219.2018309 | K46: =(IF(J46<0, 0, J46)*IF(C46<'Turbine information'!$B$34, 0, J46)*IF(C46>'Turbine information'!$B$35, 0, J46))/J46^2 -> 219.2018309 | M46: =0.5*$D$10*'Turbine information'!$E$38*((C46*('Turbine information'!$E$42/$D$13)^$D$14)^3) -> 4190.521431 | N46: 1479.473997 | O46: =IF(N46<0, 0, N46)*IF(C46<'Turbine information'!$E$34, 0, N46)*IF(C46>'Turbine information'!$E$35, 0, N46)/N46^2 -> 1479.473997 | Q46: =0.5*$D$10*'Turbine information'!$H$38*((C46*('Turbine information'!$H$42/$D$13)^$D$14)^3)*$D$11 -> 3462.444372 | R46: 1492.376392 | S46: =IF(R46<0, 0, R46)*IF(C46<'Turbine information'!$H$34, 0, R46)*IF(C46>'Turbine information'!$H$35, 0, R46)/R46^2 -> 1492.376392 | U46: =0.5*$D$10*'Turbine information'!$K$38*((C46*('Turbine information'!$K$42/$D$13)^$D$14)^3)*$D$11 -> 34105.25544 | V46: 18106.85554 | W46: =IF(V46<0, 0, V46)*IF(C46<'Turbine information'!$K$34, 0, V46)*IF(C46>'Turbine information'!$K$35, 0, V46)/V46^2 -> 18106.85554 | Y46: =0.5*$D$10*'Turbine information'!$N$38*((C46*('Turbine information'!$N$42/$D$13)^$D$14)^3)*$D$11 -> 0 | AA46: =IF(Z46<0, 0, V46)*IF(C46<'Turbine information'!$N$34, 0, Z46)*IF(C46>'Turbine information'!$N$35, 0, Z46)/Z46^2 -> 
A47: 2 | B47: 5 | C47: 7.134 | D47: 7.134 | E47: 7.915668614 | F47: 8.608813742 | G47: 9.081939524 | I47: =0.5*$D$10*'Turbine information'!$B$38*((C47*('Turbine information'!$B$42/$D$13)^$D$14)^3) -> 1374.232294 | J47: 223.7000756 | K47: =(IF(J47<0, 0, J47)*IF(C47<'Turbine information'!$B$34, 0, J47)*IF(C47>'Turbine information'!$B$35, 0, J47))/J47^2 -> 223.7000756 | M47: =0.5*$D$10*'Turbine information'!$E$38*((C47*('Turbine information'!$E$42/$D$13)^$D$14)^3) -> 4260.005714 | N47: 1507.293193 | O47: =IF(N47<0, 0, N47)*IF(C47<'Turbine information'!$E$34, 0, N47)*IF(C47>'Turbine information'!$E$35, 0, N47)/N47^2 -> 1507.293193 | Q47: =0.5*$D$10*'Turbine information'!$H$38*((C47*('Turbine information'!$H$42/$D$13)^$D$14)^3)*$D$11 -> 3519.856193 | R47: 1530.544644 | S47: =IF(R47<0, 0, R47)*IF(C47<'Turbine information'!$H$34, 0, R47)*IF(C47>'Turbine information'!$H$35, 0, R47)/R47^2 -> 1530.544644 | U47: =0.5*$D$10*'Turbine information'!$K$38*((C47*('Turbine information'!$K$42/$D$13)^$D$14)^3)*$D$11 -> 34670.76484 | V47: 18417.91742 | W47: =IF(V47<0, 0, V47)*IF(C47<'Turbine information'!$K$34, 0, V47)*IF(C47>'Turbine information'!$K$35, 0, V47)/V47^2 -> 18417.91742 | Y47: =0.5*$D$10*'Turbine information'!$N$38*((C47*('Turbine information'!$N$42/$D$13)^$D$14)^3)*$D$11 -> 0 | AA47: =IF(Z47<0, 0, V47)*IF(C47<'Turbine information'!$N$34, 0, Z47)*IF(C47>'Turbine information'!$N$35, 0, Z47)/Z47^2 -> 
A48: 2 | B48: 6 | C48: 7.086 | D48: 7.086 | E48: 7.862409279 | F48: 8.550890689 | G48: 9.020833119 | I48: =0.5*$D$10*'Turbine information'!$B$38*((C48*('Turbine information'!$B$42/$D$13)^$D$14)^3) -> 1346.679593 | J48: 218.1709964 | K48: =(IF(J48<0, 0, J48)*IF(C48<'Turbine information'!$B$34, 0, J48)*IF(C48>'Turbine information'!$B$35, 0, J48))/J48^2 -> 218.1709964 | M48: =0.5*$D$10*'Turbine information'!$E$38*((C48*('Turbine information'!$E$42/$D$13)^$D$14)^3) -> 4174.594635 | N48: 1473.087361 | O48: =IF(N48<0, 0, N48)*IF(C48<'Turbine information'!$E$34, 0, N48)*IF(C48>'Turbine information'!$E$35, 0, N48)/N48^2 -> 1473.087361 | Q48: =0.5*$D$10*'Turbine information'!$H$38*((C48*('Turbine information'!$H$42/$D$13)^$D$14)^3)*$D$11 -> 3449.284758 | R48: 1483.645107 | S48: =IF(R48<0, 0, R48)*IF(C48<'Turbine information'!$H$34, 0, R48)*IF(C48>'Turbine information'!$H$35, 0, R48)/R48^2 -> 1483.645107 | U48: =0.5*$D$10*'Turbine information'!$K$38*((C48*('Turbine information'!$K$42/$D$13)^$D$14)^3)*$D$11 -> 33975.63257 | V48: 18035.23904 | W48: =IF(V48<0, 0, V48)*IF(C48<'Turbine information'!$K$34, 0, V48)*IF(C48>'Turbine information'!$K$35, 0, V48)/V48^2 -> 18035.23904 | Y48: =0.5*$D$10*'Turbine information'!$N$38*((C48*('Turbine information'!$N$42/$D$13)^$D$14)^3)*$D$11 -> 0 | AA48: =IF(Z48<0, 0, V48)*IF(C48<'Turbine information'!$N$34, 0, Z48)*IF(C48>'Turbine information'!$N$35, 0, Z48)/Z48^2 -> 
A49: 2 | B49: 7 | C49: 6.903 | D49: 6.903 | E49: 7.659358066 | F49: 8.33005905 | G49: 8.787864948 | I49: =0.5*$D$10*'Turbine information'!$B$38*((C49*('Turbine information'!$B$42/$D$13)^$D$14)^3) -> 1245.014632 | J49: 197.7995853 | K49: =(IF(J49<0, 0, J49)*IF(C49<'Turbine information'!$B$34, 0, J49)*IF(C49>'Turbine information'!$B$35, 0, J49))/J49^2 -> 197.7995853 | M49: =0.5*$D$10*'Turbine information'!$E$38*((C49*('Turbine information'!$E$42/$D$13)^$D$14)^3) -> 3859.441717 | N49: 1345.971331 | O49: =IF(N49<0, 0, N49)*IF(C49<'Turbine information'!$E$34, 0, N49)*IF(C49>'Turbine information'!$E$35, 0, N49)/N49^2 -> 1345.971331 | Q49: =0.5*$D$10*'Turbine information'!$H$38*((C49*('Turbine information'!$H$42/$D$13)^$D$14)^3)*$D$11 -> 3188.887701 | R49: 1312.402177 | S49: =IF(R49<0, 0, R49)*IF(C49<'Turbine information'!$H$34, 0, R49)*IF(C49>'Turbine information'!$H$35, 0, R49)/R49^2 -> 1312.402177 | U49: =0.5*$D$10*'Turbine information'!$K$38*((C49*('Turbine information'!$K$42/$D$13)^$D$14)^3)*$D$11 -> 31410.70814 | V49: 16593.42145 | W49: =IF(V49<0, 0, V49)*IF(C49<'Turbine information'!$K$34, 0, V49)*IF(C49>'Turbine information'!$K$35, 0, V49)/V49^2 -> 16593.42145 | Y49: =0.5*$D$10*'Turbine information'!$N$38*((C49*('Turbine information'!$N$42/$D$13)^$D$14)^3)*$D$11 -> 0 | AA49: =IF(Z49<0, 0, V49)*IF(C49<'Turbine information'!$N$34, 0, Z49)*IF(C49>'Turbine information'!$N$35, 0, Z49)/Z49^2 -> 
A50: 2 | B50: 8 | C50: 6.843 | D50: 6.843 | E50: 7.592783897 | F50: 8.257655234 | G50: 8.711481941 | I50: =0.5*$D$10*'Turbine information'!$B$38*((C50*('Turbine information'!$B$42/$D$13)^$D$14)^3) -> 1212.831464 | J50: 191.3653301 | K50: =(IF(J50<0, 0, J50)*IF(C50<'Turbine information'!$B$34, 0, J50)*IF(C50>'Turbine information'!$B$35, 0, J50))/J50^2 -> 191.3653301 | M50: =0.5*$D$10*'Turbine information'!$E$38*((C50*('Turbine information'!$E$42/$D$13)^$D$14)^3) -> 3759.676576 | N50: 1305.453761 | O50: =IF(N50<0, 0, N50)*IF(C50<'Turbine information'!$E$34, 0, N50)*IF(C50>'Turbine information'!$E$35, 0, N50)/N50^2 -> 1305.453761 | Q50: =0.5*$D$10*'Turbine information'!$H$38*((C50*('Turbine information'!$H$42/$D$13)^$D$14)^3)*$D$11 -> 3106.456134 | R50: 1258.888258 | S50: =IF(R50<0, 0, R50)*IF(C50<'Turbine information'!$H$34, 0, R50)*IF(C50>'Turbine information'!$H$35, 0, R50)/R50^2 -> 1258.888258 | U50: =0.5*$D$10*'Turbine information'!$K$38*((C50*('Turbine information'!$K$42/$D$13)^$D$14)^3)*$D$11 -> 30598.75296 | V50: 16127.02577 | W50: =IF(V50<0, 0, V50)*IF(C50<'Turbine information'!$K$34, 0, V50)*IF(C50>'Turbine information'!$K$35, 0, V50)/V50^2 -> 16127.02577 | Y50: =0.5*$D$10*'Turbine information'!$N$38*((C50*('Turbine information'!$N$42/$D$13)^$D$14)^3)*$D$11 -> 0 | AA50: =IF(Z50<0, 0, V50)*IF(C50<'Turbine information'!$N$34, 0, Z50)*IF(C50>'Turbine information'!$N$35, 0, Z50)/Z50^2 -> 
A51: 2 | B51: 9 | C51: 6.66 | D51: 6.66 | E51: 7.389732684 | F51: 8.036823595 | G51: 8.47851377 | I51: =0.5*$D$10*'Turbine information'!$B$38*((C51*('Turbine information'!$B$42/$D$13)^$D$14)^3) -> 1118.107402 | J51: 172.4893676 | K51: =(IF(J51<0, 0, J51)*IF(C51<'Turbine information'!$B$34, 0, J51)*IF(C51>'Turbine information'!$B$35, 0, J51))/J51^2 -> 172.4893676 | M51: =0.5*$D$10*'Turbine information'!$E$38*((C51*('Turbine information'!$E$42/$D$13)^$D$14)^3) -> 3466.03987 | N51: 1185.512129 | O51: =IF(N51<0, 0, N51)*IF(C51<'Turbine information'!$E$34, 0, N51)*IF(C51>'Turbine information'!$E$35, 0, N51)/N51^2 -> 1185.512129 | Q51: =0.5*$D$10*'Turbine information'!$H$38*((C51*('Turbine information'!$H$42/$D$13)^$D$14)^3)*$D$11 -> 2863.836981 | R51: 1103.780882 | S51: =IF(R51<0, 0, R51)*IF(C51<'Turbine information'!$H$34, 0, R51)*IF(C51>'Turbine information'!$H$35, 0, R51)/R51^2 -> 1103.780882 | U51: =0.5*$D$10*'Turbine information'!$K$38*((C51*('Turbine information'!$K$42/$D$13)^$D$14)^3)*$D$11 -> 28208.9418 | V51: 14725.69102 | W51: =IF(V51<0, 0, V51)*IF(C51<'Turbine information'!$K$34, 0, V51)*IF(C51>'Turbine information'!$K$35, 0, V51)/V51^2 -> 14725.69102 | Y51: =0.5*$D$10*'Turbine information'!$N$38*((C51*('Turbine information'!$N$42/$D$13)^$D$14)^3)*$D$11 -> 0 | AA51: =IF(Z51<0, 0, V51)*IF(C51<'Turbine information'!$N$34, 0, Z51)*IF(C51>'Turbine information'!$N$35, 0, Z51)/Z51^2 -> 
A52: 2 | B52: 10 | C52: 6.451 | D52: 6.451 | E52: 7.157832664 | F52: 7.784616968 | G52: 8.212446295 | I52: =0.5*$D$10*'Turbine information'!$B$38*((C52*('Turbine information'!$B$42/$D$13)^$D$14)^3) -> 1016.11289 | J52: 152.3104194 | K52: =(IF(J52<0, 0, J52)*IF(C52<'Turbine information'!$B$34, 0, J52)*IF(C52>'Turbine information'!$B$35, 0, J52))/J52^2 -> 152.3104194 | M52: =0.5*$D$10*'Turbine information'!$E$38*((C52*('Turbine information'!$E$42/$D$13)^$D$14)^3) -> 3149.865374 | N52: 1055.406212 | O52: =IF(N52<0, 0, N52)*IF(C52<'Turbine information'!$E$34, 0, N52)*IF(C52>'Turbine information'!$E$35, 0, N52)/N52^2 -> 1055.406212 | Q52: =0.5*$D$10*'Turbine information'!$H$38*((C52*('Turbine information'!$H$42/$D$13)^$D$14)^3)*$D$11 -> 2602.595838 | R52: 941.690618 | S52: =IF(R52<0, 0, R52)*IF(C52<'Turbine information'!$H$34, 0, R52)*IF(C52>'Turbine information'!$H$35, 0, R52)/R52^2 -> 941.690618 | U52: =0.5*$D$10*'Turbine information'!$K$38*((C52*('Turbine information'!$K$42/$D$13)^$D$14)^3)*$D$11 -> 25635.70309 | V52: 13167.87831 | W52: =IF(V52<0, 0, V52)*IF(C52<'Turbine information'!$K$34, 0, V52)*IF(C52>'Turbine information'!$K$35, 0, V52)/V52^2 -> 13167.87831 | Y52: =0.5*$D$10*'Turbine information'!$N$38*((C52*('Turbine information'!$N$42/$D$13)^$D$14)^3)*$D$11 -> 0 | AA52: =IF(Z52<0, 0, V52)*IF(C52<'Turbine information'!$N$34, 0, Z52)*IF(C52>'Turbine information'!$N$35, 0, Z52)/Z52^2 -> 
A53: 2 | B53: 11 | C53: 6.49 | D53: 6.49 | E53: 7.201105874 | F53: 7.831679449 | G53: 8.26209525 | I53: =0.5*$D$10*'Turbine information'!$B$38*((C53*('Turbine information'!$B$42/$D$13)^$D$14)^3) -> 1034.653487 | J53: 155.9644337 | K53: =(IF(J53<0, 0, J53)*IF(C53<'Turbine information'!$B$34, 0, J53)*IF(C53>'Turbine information'!$B$35, 0, J53))/J53^2 -> 155.9644337 | M53: =0.5*$D$10*'Turbine information'!$E$38*((C53*('Turbine information'!$E$42/$D$13)^$D$14)^3) -> 3207.339679 | N53: 1079.117523 | O53: =IF(N53<0, 0, N53)*IF(C53<'Turbine information'!$E$34, 0, N53)*IF(C53>'Turbine information'!$E$35, 0, N53)/N53^2 -> 1079.117523 | Q53: =0.5*$D$10*'Turbine information'!$H$38*((C53*('Turbine information'!$H$42/$D$13)^$D$14)^3)*$D$11 -> 2650.08434 | R53: 970.7139929 | S53: =IF(R53<0, 0, R53)*IF(C53<'Turbine information'!$H$34, 0, R53)*IF(C53>'Turbine information'!$H$35, 0, R53)/R53^2 -> 970.7139929 | U53: =0.5*$D$10*'Turbine information'!$K$38*((C53*('Turbine information'!$K$42/$D$13)^$D$14)^3)*$D$11 -> 26103.46727 | V53: 13454.89481 | W53: =IF(V53<0, 0, V53)*IF(C53<'Turbine information'!$K$34, 0, V53)*IF(C53>'Turbine information'!$K$35, 0, V53)/V53^2 -> 13454.89481 | Y53: =0.5*$D$10*'Turbine information'!$N$38*((C53*('Turbine information'!$N$42/$D$13)^$D$14)^3)*$D$11 -> 0 | AA53: =IF(Z53<0, 0, V53)*IF(C53<'Turbine information'!$N$34, 0, Z53)*IF(C53>'Turbine information'!$N$35, 0, Z53)/Z53^2 -> 
A54: 2 | B54: 12 | C54: 6.908 | D54: 6.908 | E54: 7.664905913 | F54: 8.336092701 | G54: 8.794230198 | I54: =0.5*$D$10*'Turbine information'!$B$38*((C54*('Turbine information'!$B$42/$D$13)^$D$14)^3) -> 1247.721969 | J54: 198.341239 | K54: =(IF(J54<0, 0, J54)*IF(C54<'Turbine information'!$B$34, 0, J54)*IF(C54>'Turbine information'!$B$35, 0, J54))/J54^2 -> 198.341239 | M54: =0.5*$D$10*'Turbine information'!$E$38*((C54*('Turbine information'!$E$42/$D$13)^$D$14)^3) -> 3867.834237 | N54: 1349.373963 | O54: =IF(N54<0, 0, N54)*IF(C54<'Turbine information'!$E$34, 0, N54)*IF(C54>'Turbine information'!$E$35, 0, N54)/N54^2 -> 1349.373963 | Q54: =0.5*$D$10*'Turbine information'!$H$38*((C54*('Turbine information'!$H$42/$D$13)^$D$14)^3)*$D$11 -> 3195.822073 | R54: 1316.920614 | S54: =IF(R54<0, 0, R54)*IF(C54<'Turbine information'!$H$34, 0, R54)*IF(C54>'Turbine information'!$H$35, 0, R54)/R54^2 -> 1316.920614 | U54: =0.5*$D$10*'Turbine information'!$K$38*((C54*('Turbine information'!$K$42/$D$13)^$D$14)^3)*$D$11 -> 31479.01206 | V54: 16632.43459 | W54: =IF(V54<0, 0, V54)*IF(C54<'Turbine information'!$K$34, 0, V54)*IF(C54>'Turbine information'!$K$35, 0, V54)/V54^2 -> 16632.43459 | Y54: =0.5*$D$10*'Turbine information'!$N$38*((C54*('Turbine information'!$N$42/$D$13)^$D$14)^3)*$D$11 -> 0 | AA54: =IF(Z54<0, 0, V54)*IF(C54<'Turbine information'!$N$34, 0, Z54)*IF(C54>'Turbine information'!$N$35, 0, Z54)/Z54^2 -> 
A55: 2 | B55: 13 | C55: 7.167 | D55: 7.167 | E55: 7.952284406 | F55: 8.648635841 | G55: 9.123950178 | I55: =0.5*$D$10*'Turbine information'!$B$38*((C55*('Turbine information'!$B$42/$D$13)^$D$14)^3) -> 1393.391153 | J55: 227.5459609 | K55: =(IF(J55<0, 0, J55)*IF(C55<'Turbine information'!$B$34, 0, J55)*IF(C55>'Turbine information'!$B$35, 0, J55))/J55^2 -> 227.5459609 | M55: =0.5*$D$10*'Turbine information'!$E$38*((C55*('Turbine information'!$E$42/$D$13)^$D$14)^3) -> 4319.39658 | N55: 1531.013839 | O55: =IF(N55<0, 0, N55)*IF(C55<'Turbine information'!$E$34, 0, N55)*IF(C55>'Turbine information'!$E$35, 0, N55)/N55^2 -> 1531.013839 | Q55: =0.5*$D$10*'Turbine information'!$H$38*((C55*('Turbine information'!$H$42/$D$13)^$D$14)^3)*$D$11 -> 3568.928265 | R55: 1563.261845 | S55: =IF(R55<0, 0, R55)*IF(C55<'Turbine information'!$H$34, 0, R55)*IF(C55>'Turbine information'!$H$35, 0, R55)/R55^2 -> 1563.261845 | U55: =0.5*$D$10*'Turbine information'!$K$38*((C55*('Turbine information'!$K$42/$D$13)^$D$14)^3)*$D$11 -> 35154.12727 | V55: 18682.02312 | W55: =IF(V55<0, 0, V55)*IF(C55<'Turbine information'!$K$34, 0, V55)*IF(C55>'Turbine information'!$K$35, 0, V55)/V55^2 -> 18682.02312 | Y55: =0.5*$D$10*'Turbine information'!$N$38*((C55*('Turbine information'!$N$42/$D$13)^$D$14)^3)*$D$11 -> 0 | AA55: =IF(Z55<0, 0, V55)*IF(C55<'Turbine information'!$N$34, 0, Z55)*IF(C55>'Turbine information'!$N$35, 0, Z55)/Z55^2 -> 
A56: 2 | B56: 14 | C56: 6.976 | D56: 6.976 | E56: 7.740356637 | F56: 8.41815036 | G56: 8.880797606 | I56: =0.5*$D$10*'Turbine information'!$B$38*((C56*('Turbine information'!$B$42/$D$13)^$D$14)^3) -> 1284.932314 | J56: 205.7911448 | K56: =(IF(J56<0, 0, J56)*IF(C56<'Turbine information'!$B$34, 0, J56)*IF(C56>'Turbine information'!$B$35, 0, J56))/J56^2 -> 205.7911448 | M56: =0.5*$D$10*'Turbine information'!$E$38*((C56*('Turbine information'!$E$42/$D$13)^$D$14)^3) -> 3983.183208 | N56: 1396.045913 | O56: =IF(N56<0, 0, N56)*IF(C56<'Turbine information'!$E$34, 0, N56)*IF(C56>'Turbine information'!$E$35, 0, N56)/N56^2 -> 1396.045913 | Q56: =0.5*$D$10*'Turbine information'!$H$38*((C56*('Turbine information'!$H$42/$D$13)^$D$14)^3)*$D$11 -> 3291.129877 | R56: 1379.268504 | S56: =IF(R56<0, 0, R56)*IF(C56<'Turbine information'!$H$34, 0, R56)*IF(C56>'Turbine information'!$H$35, 0, R56)/R56^2 -> 1379.268504 | U56: =0.5*$D$10*'Turbine information'!$K$38*((C56*('Turbine information'!$K$42/$D$13)^$D$14)^3)*$D$11 -> 32417.79884 | V56: 17165.19092 | W56: =IF(V56<0, 0, V56)*IF(C56<'Turbine information'!$K$34, 0, V56)*IF(C56>'Turbine information'!$K$35, 0, V56)/V56^2 -> 17165.19092 | Y56: =0.5*$D$10*'Turbine information'!$N$38*((C56*('Turbine information'!$N$42/$D$13)^$D$14)^3)*$D$11 -> 0 | AA56: =IF(Z56<0, 0, V56)*IF(C56<'Turbine information'!$N$34, 0, Z56)*IF(C56>'Turbine information'!$N$35, 0, Z56)/Z56^2 -> 
A57: 2 | B57: 15 | C57: 6.627 | D57: 6.627 | E57: 7.353116891 | F57: 7.997001496 | G57: 8.436503116 | I57: =0.5*$D$10*'Turbine information'!$B$38*((C57*('Turbine information'!$B$42/$D$13)^$D$14)^3) -> 1101.569105 | J57: 169.2055243 | K57: =(IF(J57<0, 0, J57)*IF(C57<'Turbine information'!$B$34, 0, J57)*IF(C57>'Turbine information'!$B$35, 0, J57))/J57^2 -> 169.2055243 | M57: =0.5*$D$10*'Turbine information'!$E$38*((C57*('Turbine information'!$E$42/$D$13)^$D$14)^3) -> 3414.772525 | N57: 1164.475913 | O57: =IF(N57<0, 0, N57)*IF(C57<'Turbine information'!$E$34, 0, N57)*IF(C57>'Turbine information'!$E$35, 0, N57)/N57^2 -> 1164.475913 | Q57: =0.5*$D$10*'Turbine information'!$H$38*((C57*('Turbine information'!$H$42/$D$13)^$D$14)^3)*$D$11 -> 2821.477018 | R57: 1077.11745 | S57: =IF(R57<0, 0, R57)*IF(C57<'Turbine information'!$H$34, 0, R57)*IF(C57>'Turbine information'!$H$35, 0, R57)/R57^2 -> 1077.11745 | U57: =0.5*$D$10*'Turbine information'!$K$38*((C57*('Turbine information'!$K$42/$D$13)^$D$14)^3)*$D$11 -> 27791.69398 | V57: 14476.57738 | W57: =IF(V57<0, 0, V57)*IF(C57<'Turbine information'!$K$34, 0, V57)*IF(C57>'Turbine information'!$K$35, 0, V57)/V57^2 -> 14476.57738 | Y57: =0.5*$D$10*'Turbine information'!$N$38*((C57*('Turbine information'!$N$42/$D$13)^$D$14)^3)*$D$11 -> 0 | AA57: =IF(Z57<0, 0, V57)*IF(C57<'Turbine information'!$N$34, 0, Z57)*IF(C57>'Turbine information'!$N$35, 0, Z57)/Z57^2 -> 
A58: 2 | B58: 16 | C58: 6.492 | D58: 6.492 | E58: 7.203325013 | F58: 7.834092909 | G58: 8.26464135 | I58: =0.5*$D$10*'Turbine information'!$B$38*((C58*('Turbine information'!$B$42/$D$13)^$D$14)^3) -> 1035.610318 | J58: 156.1531957 | K58: =(IF(J58<0, 0, J58)*IF(C58<'Turbine information'!$B$34, 0, J58)*IF(C58>'Turbine information'!$B$35, 0, J58))/J58^2 -> 156.1531957 | M58: =0.5*$D$10*'Turbine information'!$E$38*((C58*('Turbine information'!$E$42/$D$13)^$D$14)^3) -> 3210.305776 | N58: 1080.340555 | O58: =IF(N58<0, 0, N58)*IF(C58<'Turbine information'!$E$34, 0, N58)*IF(C58>'Turbine information'!$E$35, 0, N58)/N58^2 -> 1080.340555 | Q58: =0.5*$D$10*'Turbine information'!$H$38*((C58*('Turbine information'!$H$42/$D$13)^$D$14)^3)*$D$11 -> 2652.535096 | R58: 972.2175161 | S58: =IF(R58<0, 0, R58)*IF(C58<'Turbine information'!$H$34, 0, R58)*IF(C58>'Turbine information'!$H$35, 0, R58)/R58^2 -> 972.2175161 | U58: =0.5*$D$10*'Turbine information'!$K$38*((C58*('Turbine information'!$K$42/$D$13)^$D$14)^3)*$D$11 -> 26127.60735 | V58: 13469.66039 | W58: =IF(V58<0, 0, V58)*IF(C58<'Turbine information'!$K$34, 0, V58)*IF(C58>'Turbine information'!$K$35, 0, V58)/V58^2 -> 13469.66039 | Y58: =0.5*$D$10*'Turbine information'!$N$38*((C58*('Turbine information'!$N$42/$D$13)^$D$14)^3)*$D$11 -> 0 | AA58: =IF(Z58<0, 0, V58)*IF(C58<'Turbine information'!$N$34, 0, Z58)*IF(C58>'Turbine information'!$N$35, 0, Z58)/Z58^2 -> 
A59: 2 | B59: 17 | C59: 6.377 | D59: 6.377 | E59: 7.075724523 | F59: 7.695318928 | G59: 8.118240587 | I59: =0.5*$D$10*'Turbine information'!$B$38*((C59*('Turbine information'!$B$42/$D$13)^$D$14)^3) -> 981.5447086 | J59: 145.5174048 | K59: =(IF(J59<0, 0, J59)*IF(C59<'Turbine information'!$B$34, 0, J59)*IF(C59>'Turbine information'!$B$35, 0, J59))/J59^2 -> 145.5174048 | M59: =0.5*$D$10*'Turbine information'!$E$38*((C59*('Turbine information'!$E$42/$D$13)^$D$14)^3) -> 3042.706888 | N59: 1011.139959 | O59: =IF(N59<0, 0, N59)*IF(C59<'Turbine information'!$E$34, 0, N59)*IF(C59>'Turbine information'!$E$35, 0, N59)/N59^2 -> 1011.139959 | Q59: =0.5*$D$10*'Turbine information'!$H$38*((C59*('Turbine information'!$H$42/$D$13)^$D$14)^3)*$D$11 -> 2514.055473 | R59: 888.1655994 | S59: =IF(R59<0, 0, R59)*IF(C59<'Turbine information'!$H$34, 0, R59)*IF(C59>'Turbine information'!$H$35, 0, R59)/R59^2 -> 888.1655994 | U59: =0.5*$D$10*'Turbine information'!$K$38*((C59*('Turbine information'!$K$42/$D$13)^$D$14)^3)*$D$11 -> 24763.57593 | V59: 12628.14659 | W59: =IF(V59<0, 0, V59)*IF(C59<'Turbine information'!$K$34, 0, V59)*IF(C59>'Turbine information'!$K$35, 0, V59)/V59^2 -> 12628.14659 | Y59: =0.5*$D$10*'Turbine information'!$N$38*((C59*('Turbine information'!$N$42/$D$13)^$D$14)^3)*$D$11 -> 0 | AA59: =IF(Z59<0, 0, V59)*IF(C59<'Turbine information'!$N$34, 0, Z59)*IF(C59>'Turbine information'!$N$35, 0, Z59)/Z59^2 -> 
A60: 2 | B60: 18 | C60: 6.175 | D60: 6.175 | E60: 6.85159149 | F60: 7.451559414 | G60: 7.861084463 | I60: =0.5*$D$10*'Turbine information'!$B$38*((C60*('Turbine information'!$B$42/$D$13)^$D$14)^3) -> 891.1929064 | J60: 127.9059157 | K60: =(IF(J60<0, 0, J60)*IF(C60<'Turbine information'!$B$34, 0, J60)*IF(C60>'Turbine information'!$B$35, 0, J60))/J60^2 -> 127.9059157 | M60: =0.5*$D$10*'Turbine information'!$E$38*((C60*('Turbine information'!$E$42/$D$13)^$D$14)^3) -> 2762.623822 | N60: 895.1985476 | O60: =IF(N60<0, 0, N60)*IF(C60<'Turbine information'!$E$34, 0, N60)*IF(C60>'Turbine information'!$E$35, 0, N60)/N60^2 -> 895.1985476 | Q60: =0.5*$D$10*'Turbine information'!$H$38*((C60*('Turbine information'!$H$42/$D$13)^$D$14)^3)*$D$11 -> 2282.6351 | R60: 752.3539098 | S60: =IF(R60<0, 0, R60)*IF(C60<'Turbine information'!$H$34, 0, R60)*IF(C60>'Turbine information'!$H$35, 0, R60)/R60^2 -> 752.3539098 | U60: =0.5*$D$10*'Turbine information'!$K$38*((C60*('Turbine information'!$K$42/$D$13)^$D$14)^3)*$D$11 -> 22484.07333 | V60: 11188.92424 | W60: =IF(V60<0, 0, V60)*IF(C60<'Turbine information'!$K$34, 0, V60)*IF(C60>'Turbine information'!$K$35, 0, V60)/V60^2 -> 11188.92424 | Y60: =0.5*$D$10*'Turbine information'!$N$38*((C60*('Turbine information'!$N$42/$D$13)^$D$14)^3)*$D$11 -> 0 | AA60: =IF(Z60<0, 0, V60)*IF(C60<'Turbine information'!$N$34, 0, Z60)*IF(C60>'Turbine information'!$N$35, 0, Z60)/Z60^2 -> 
A61: 2 | B61: 19 | C61: 6.33 | D61: 6.33 | E61: 7.023574758 | F61: 7.638602606 | G61: 8.058407231 | I61: =0.5*$D$10*'Turbine information'!$B$38*((C61*('Turbine information'!$B$42/$D$13)^$D$14)^3) -> 960.0016186 | J61: 141.2981435 | K61: =(IF(J61<0, 0, J61)*IF(C61<'Turbine information'!$B$34, 0, J61)*IF(C61>'Turbine information'!$B$35, 0, J61))/J61^2 -> 141.2981435 | M61: =0.5*$D$10*'Turbine information'!$E$38*((C61*('Turbine information'!$E$42/$D$13)^$D$14)^3) -> 2975.925102 | N61: 983.5210079 | O61: =IF(N61<0, 0, N61)*IF(C61<'Turbine information'!$E$34, 0, N61)*IF(C61>'Turbine information'!$E$35, 0, N61)/N61^2 -> 983.5210079 | Q61: =0.5*$D$10*'Turbine information'!$H$38*((C61*('Turbine information'!$H$42/$D$13)^$D$14)^3)*$D$11 -> 2458.876608 | R61: 855.2208773 | S61: =IF(R61<0, 0, R61)*IF(C61<'Turbine information'!$H$34, 0, R61)*IF(C61>'Turbine information'!$H$35, 0, R61)/R61^2 -> 855.2208773 | U61: =0.5*$D$10*'Turbine information'!$K$38*((C61*('Turbine information'!$K$42/$D$13)^$D$14)^3)*$D$11 -> 24220.06126 | V61: 12288.73872 | W61: =IF(V61<0, 0, V61)*IF(C61<'Turbine information'!$K$34, 0, V61)*IF(C61>'Turbine information'!$K$35, 0, V61)/V61^2 -> 12288.73872 | Y61: =0.5*$D$10*'Turbine information'!$N$38*((C61*('Turbine information'!$N$42/$D$13)^$D$14)^3)*$D$11 -> 0 | AA61: =IF(Z61<0, 0, V61)*IF(C61<'Turbine information'!$N$34, 0, Z61)*IF(C61>'Turbine information'!$N$35, 0, Z61)/Z61^2 -> 
A62: 2 | B62: 20 | C62: 6.31 | D62: 6.31 | E62: 7.001383369 | F62: 7.614468 | G62: 8.032946229 | I62: =0.5*$D$10*'Turbine information'!$B$38*((C62*('Turbine information'!$B$42/$D$13)^$D$14)^3) -> 950.9307974 | J62: 139.525112 | K62: =(IF(J62<0, 0, J62)*IF(C62<'Turbine information'!$B$34, 0, J62)*IF(C62>'Turbine information'!$B$35, 0, J62))/J62^2 -> 139.525112 | M62: =0.5*$D$10*'Turbine information'!$E$38*((C62*('Turbine information'!$E$42/$D$13)^$D$14)^3) -> 2947.806311 | N62: 971.8858353 | O62: =IF(N62<0, 0, N62)*IF(C62<'Turbine information'!$E$34, 0, N62)*IF(C62>'Turbine information'!$E$35, 0, N62)/N62^2 -> 971.8858353 | Q62: =0.5*$D$10*'Turbine information'!$H$38*((C62*('Turbine information'!$H$42/$D$13)^$D$14)^3)*$D$11 -> 2435.643282 | R62: 841.4494139 | S62: =IF(R62<0, 0, R62)*IF(C62<'Turbine information'!$H$34, 0, R62)*IF(C62>'Turbine information'!$H$35, 0, R62)/R62^2 -> 841.4494139 | U62: =0.5*$D$10*'Turbine information'!$K$38*((C62*('Turbine information'!$K$42/$D$13)^$D$14)^3)*$D$11 -> 23991.21181 | V62: 12145.1277 | W62: =IF(V62<0, 0, V62)*IF(C62<'Turbine information'!$K$34, 0, V62)*IF(C62>'Turbine information'!$K$35, 0, V62)/V62^2 -> 12145.1277 | Y62: =0.5*$D$10*'Turbine information'!$N$38*((C62*('Turbine information'!$N$42/$D$13)^$D$14)^3)*$D$11 -> 0 | AA62: =IF(Z62<0, 0, V62)*IF(C62<'Turbine information'!$N$34, 0, Z62)*IF(C62>'Turbine information'!$N$35, 0, Z62)/Z62^2 -> 
A63: 2 | B63: 21 | C63: 6.802 | D63: 6.802 | E63: 7.547291549 | F63: 8.208179293 | G63: 8.659286886 | I63: =0.5*$D$10*'Turbine information'!$B$38*((C63*('Turbine information'!$B$42/$D$13)^$D$14)^3) -> 1191.161692 | J63: 187.0382658 | K63: =(IF(J63<0, 0, J63)*IF(C63<'Turbine information'!$B$34, 0, J63)*IF(C63>'Turbine information'!$B$35, 0, J63))/J63^2 -> 187.0382658 | M63: =0.5*$D$10*'Turbine information'!$E$38*((C63*('Turbine information'!$E$42/$D$13)^$D$14)^3) -> 3692.502087 | N63: 1278.102473 | O63: =IF(N63<0, 0, N63)*IF(C63<'Turbine information'!$E$34, 0, N63)*IF(C63>'Turbine information'!$E$35, 0, N63)/N63^2 -> 1278.102473 | Q63: =0.5*$D$10*'Turbine information'!$H$38*((C63*('Turbine information'!$H$42/$D$13)^$D$14)^3)*$D$11 -> 3050.952794 | R63: 1223.073375 | S63: =IF(R63<0, 0, R63)*IF(C63<'Turbine information'!$H$34, 0, R63)*IF(C63>'Turbine information'!$H$35, 0, R63)/R63^2 -> 1223.073375 | U63: =0.5*$D$10*'Turbine information'!$K$38*((C63*('Turbine information'!$K$42/$D$13)^$D$14)^3)*$D$11 -> 30052.0422 | V63: 15810.236 | W63: =IF(V63<0, 0, V63)*IF(C63<'Turbine information'!$K$34, 0, V63)*IF(C63>'Turbine information'!$K$35, 0, V63)/V63^2 -> 15810.236 | Y63: =0.5*$D$10*'Turbine information'!$N$38*((C63*('Turbine information'!$N$42/$D$13)^$D$14)^3)*$D$11 -> 0 | AA63: =IF(Z63<0, 0, V63)*IF(C63<'Turbine information'!$N$34, 0, Z63)*IF(C63>'Turbine information'!$N$35, 0, Z63)/Z63^2 -> 
A64: 2 | B64: 22 | C64: 7.616 | D64: 7.616 | E64: 8.450481099 | F64: 9.190457732 | G64: 9.69554968 | I64: =0.5*$D$10*'Turbine information'!$B$38*((C64*('Turbine information'!$B$42/$D$13)^$D$14)^3) -> 1672.020667 | J64: 283.4540158 | K64: =(IF(J64<0, 0, J64)*IF(C64<'Turbine information'!$B$34, 0, J64)*IF(C64>'Turbine information'!$B$35, 0, J64))/J64^2 -> 283.4540158 | M64: =0.5*$D$10*'Turbine information'!$E$38*((C64*('Turbine information'!$E$42/$D$13)^$D$14)^3) -> 5183.124881 | N64: 1869.557128 | O64: =IF(N64<0, 0, N64)*IF(C64<'Turbine information'!$E$34, 0, N64)*IF(C64>'Turbine information'!$E$35, 0, N64)/N64^2 -> 1869.557128 | Q64: =0.5*$D$10*'Turbine information'!$H$38*((C64*('Turbine information'!$H$42/$D$13)^$D$14)^3)*$D$11 -> 4282.589141 | R64: 2045.897598 | S64: =IF(R64<0, 0, R64)*IF(C64<'Turbine information'!$H$34, 0, R64)*IF(C64>'Turbine information'!$H$35, 0, R64)/R64^2 -> 2045.897598 | U64: =0.5*$D$10*'Turbine information'!$K$38*((C64*('Turbine information'!$K$42/$D$13)^$D$14)^3)*$D$11 -> 42183.72367 | V64: 22346.23241 | W64: =IF(V64<0, 0, V64)*IF(C64<'Turbine information'!$K$34, 0, V64)*IF(C64>'Turbine information'!$K$35, 0, V64)/V64^2 -> 22346.23241 | Y64: =0.5*$D$10*'Turbine information'!$N$38*((C64*('Turbine information'!$N$42/$D$13)^$D$14)^3)*$D$11 -> 0 | AA64: =IF(Z64<0, 0, V64)*IF(C64<'Turbine information'!$N$34, 0, Z64)*IF(C64>'Turbine information'!$N$35, 0, Z64)/Z64^2 -> 
A65: 2 | B65: 23 | C65: 8.495 | D65: 8.495 | E65: 9.425792665 | F65: 10.25117364 | G65: 10.81456073 | I65: =0.5*$D$10*'Turbine information'!$B$38*((C65*('Turbine information'!$B$42/$D$13)^$D$14)^3) -> 2320.33657 | J65: 411.4365377 | K65: =(IF(J65<0, 0, J65)*IF(C65<'Turbine information'!$B$34, 0, J65)*IF(C65>'Turbine information'!$B$35, 0, J65))/J65^2 -> 411.4365377 | M65: =0.5*$D$10*'Turbine information'!$E$38*((C65*('Turbine information'!$E$42/$D$13)^$D$14)^3) -> 7192.85021 | N65: 2605.996098 | O65: =IF(N65<0, 0, N65)*IF(C65<'Turbine information'!$E$34, 0, N65)*IF(C65>'Turbine information'!$E$35, 0, N65)/N65^2 -> 2605.996098 | Q65: =0.5*$D$10*'Turbine information'!$H$38*((C65*('Turbine information'!$H$42/$D$13)^$D$14)^3)*$D$11 -> 5943.137182 | R65: 3176.656711 | S65: =IF(R65<0, 0, R65)*IF(C65<'Turbine information'!$H$34, 0, R65)*IF(C65>'Turbine information'!$H$35, 0, R65)/R65^2 -> 3176.656711 | U65: =0.5*$D$10*'Turbine information'!$K$38*((C65*('Turbine information'!$K$42/$D$13)^$D$14)^3)*$D$11 -> 58540.20742 | V65: 29745.18568 | W65: =IF(V65<0, 0, V65)*IF(C65<'Turbine information'!$K$34, 0, V65)*IF(C65>'Turbine information'!$K$35, 0, V65)/V65^2 -> 29745.18568 | Y65: =0.5*$D$10*'Turbine information'!$N$38*((C65*('Turbine information'!$N$42/$D$13)^$D$14)^3)*$D$11 -> 0 | AA65: =IF(Z65<0, 0, V65)*IF(C65<'Turbine information'!$N$34, 0, Z65)*IF(C65>'Turbine information'!$N$35, 0, Z65)/Z65^2 -> 
A66: 2 | B66: 24 | C66: 9.416 | D66: 9.416 | E66: 10.44770615 | F66: 11.36257222 | G66: 11.98703989 | I66: =0.5*$D$10*'Turbine information'!$B$38*((C66*('Turbine information'!$B$42/$D$13)^$D$14)^3) -> 3159.804292 | J66: 568.8304199 | K66: =(IF(J66<0, 0, J66)*IF(C66<'Turbine information'!$B$34, 0, J66)*IF(C66>'Turbine information'!$B$35, 0, J66))/J66^2 -> 568.8304199 | M66: =0.5*$D$10*'Turbine information'!$E$38*((C66*('Turbine information'!$E$42/$D$13)^$D$14)^3) -> 9795.130268 | N66: 3450.529986 | O66: =IF(N66<0, 0, N66)*IF(C66<'Turbine information'!$E$34, 0, N66)*IF(C66>'Turbine information'!$E$35, 0, N66)/N66^2 -> 3450.529986 | Q66: =0.5*$D$10*'Turbine information'!$H$38*((C66*('Turbine information'!$H$42/$D$13)^$D$14)^3)*$D$11 -> 8093.28725 | R66: 4573.731402 | S66: =IF(R66<0, 0, R66)*IF(C66<'Turbine information'!$H$34, 0, R66)*IF(C66>'Turbine information'!$H$35, 0, R66)/R66^2 -> 4573.731402 | U66: =0.5*$D$10*'Turbine information'!$K$38*((C66*('Turbine information'!$K$42/$D$13)^$D$14)^3)*$D$11 -> 79719.29637 | V66: 37463.69224 | W66: =IF(V66<0, 0, V66)*IF(C66<'Turbine information'!$K$34, 0, V66)*IF(C66>'Turbine information'!$K$35, 0, V66)/V66^2 -> 37463.69224 | Y66: =0.5*$D$10*'Turbine information'!$N$38*((C66*('Turbine information'!$N$42/$D$13)^$D$14)^3)*$D$11 -> 0 | AA66: =IF(Z66<0, 0, V66)*IF(C66<'Turbine information'!$N$34, 0, Z66)*IF(C66>'Turbine information'!$N$35, 0, Z66)/Z66^2 -> 
A67: 3 | B67: 1 | C67: 9.708 | D67: 9.708 | E67: 10.77170043 | F67: 11.71493746 | G67: 12.35877052 | I67: =0.5*$D$10*'Turbine information'!$B$38*((C67*('Turbine information'!$B$42/$D$13)^$D$14)^3) -> 3462.981235 | J67: 622.8449315 | K67: =(IF(J67<0, 0, J67)*IF(C67<'Turbine information'!$B$34, 0, J67)*IF(C67>'Turbine information'!$B$35, 0, J67))/J67^2 -> 622.8449315 | M67: =0.5*$D$10*'Turbine information'!$E$38*((C67*('Turbine information'!$E$42/$D$13)^$D$14)^3) -> 10734.95355 | N67: 3726.724878 | O67: =IF(N67<0, 0, N67)*IF(C67<'Turbine information'!$E$34, 0, N67)*IF(C67>'Turbine information'!$E$35, 0, N67)/N67^2 -> 3726.724878 | Q67: =0.5*$D$10*'Turbine information'!$H$38*((C67*('Turbine information'!$H$42/$D$13)^$D$14)^3)*$D$11 -> 8869.822078 | R67: 5049.277776 | S67: =IF(R67<0, 0, R67)*IF(C67<'Turbine information'!$H$34, 0, R67)*IF(C67>'Turbine information'!$H$35, 0, R67)/R67^2 -> 5049.277776 | U67: =0.5*$D$10*'Turbine information'!$K$38*((C67*('Turbine information'!$K$42/$D$13)^$D$14)^3)*$D$11 -> 87368.20443 | V67: 39837.5612 | W67: =IF(V67<0, 0, V67)*IF(C67<'Turbine information'!$K$34, 0, V67)*IF(C67>'Turbine information'!$K$35, 0, V67)/V67^2 -> 39837.5612 | Y67: =0.5*$D$10*'Turbine information'!$N$38*((C67*('Turbine information'!$N$42/$D$13)^$D$14)^3)*$D$11 -> 0 | AA67: =IF(Z67<0, 0, V67)*IF(C67<'Turbine information'!$N$34, 0, Z67)*IF(C67>'Turbine information'!$N$35, 0, Z67)/Z67^2 -> 
A68: 3 | B68: 2 | C68: 9.036 | D68: 9.036 | E68: 10.02606975 | F68: 10.90401471 | G68: 11.50328084 | I68: =0.5*$D$10*'Turbine information'!$B$38*((C68*('Turbine information'!$B$42/$D$13)^$D$14)^3) -> 2792.476339 | J68: 501.3145606 | K68: =(IF(J68<0, 0, J68)*IF(C68<'Turbine information'!$B$34, 0, J68)*IF(C68>'Turbine information'!$B$35, 0, J68))/J68^2 -> 501.3145606 | M68: =0.5*$D$10*'Turbine information'!$E$38*((C68*('Turbine information'!$E$42/$D$13)^$D$14)^3) -> 8656.44419 | N68: 3095.779141 | O68: =IF(N68<0, 0, N68)*IF(C68<'Turbine information'!$E$34, 0, N68)*IF(C68>'Turbine information'!$E$35, 0, N68)/N68^2 -> 3095.779141 | Q68: =0.5*$D$10*'Turbine information'!$H$38*((C68*('Turbine information'!$H$42/$D$13)^$D$14)^3)*$D$11 -> 7152.440803 | R68: 3975.78628 | S68: =IF(R68<0, 0, R68)*IF(C68<'Turbine information'!$H$34, 0, R68)*IF(C68>'Turbine information'!$H$35, 0, R68)/R68^2 -> 3975.78628 | U68: =0.5*$D$10*'Turbine information'!$K$38*((C68*('Turbine information'!$K$42/$D$13)^$D$14)^3)*$D$11 -> 70451.91039 | V68: 34309.87477 | W68: =IF(V68<0, 0, V68)*IF(C68<'Turbine information'!$K$34, 0, V68)*IF(C68>'Turbine information'!$K$35, 0, V68)/V68^2 -> 34309.87477 | Y68: =0.5*$D$10*'Turbine information'!$N$38*((C68*('Turbine information'!$N$42/$D$13)^$D$14)^3)*$D$11 -> 0 | AA68: =IF(Z68<0, 0, V68)*IF(C68<'Turbine information'!$N$34, 0, Z68)*IF(C68>'Turbine information'!$N$35, 0, Z68)/Z68^2 -> 
A69: 3 | B69: 3 | C69: 9.01 | D69: 9.01 | E69: 9.997220943 | F69: 10.87263973 | G69: 11.47018154 | I69: =0.5*$D$10*'Turbine information'!$B$38*((C69*('Turbine information'!$B$42/$D$13)^$D$14)^3) -> 2768.44059 | J69: 496.820434 | K69: =(IF(J69<0, 0, J69)*IF(C69<'Turbine information'!$B$34, 0, J69)*IF(C69>'Turbine information'!$B$35, 0, J69))/J69^2 -> 496.820434 | M69: =0.5*$D$10*'Turbine information'!$E$38*((C69*('Turbine information'!$E$42/$D$13)^$D$14)^3) -> 8581.93537 | N69: 3071.776197 | O69: =IF(N69<0, 0, N69)*IF(C69<'Turbine information'!$E$34, 0, N69)*IF(C69>'Turbine information'!$E$35, 0, N69)/N69^2 -> 3071.776197 | Q69: =0.5*$D$10*'Turbine information'!$H$38*((C69*('Turbine information'!$H$42/$D$13)^$D$14)^3)*$D$11 -> 7090.877428 | R69: 3935.880761 | S69: =IF(R69<0, 0, R69)*IF(C69<'Turbine information'!$H$34, 0, R69)*IF(C69>'Turbine information'!$H$35, 0, R69)/R69^2 -> 3935.880761 | U69: =0.5*$D$10*'Turbine information'!$K$38*((C69*('Turbine information'!$K$42/$D$13)^$D$14)^3)*$D$11 -> 69845.50797 | V69: 34092.03161 | W69: =IF(V69<0, 0, V69)*IF(C69<'Turbine information'!$K$34, 0, V69)*IF(C69>'Turbine information'!$K$35, 0, V69)/V69^2 -> 34092.03161 | Y69: =0.5*$D$10*'Turbine information'!$N$38*((C69*('Turbine information'!$N$42/$D$13)^$D$14)^3)*$D$11 -> 0 | AA69: =IF(Z69<0, 0, V69)*IF(C69<'Turbine information'!$N$34, 0, Z69)*IF(C69>'Turbine information'!$N$35, 0, Z69)/Z69^2 -> 
A70: 3 | B70: 4 | C70: 9.286 | D70: 9.286 | E70: 10.30346212 | F70: 11.20569728 | G70: 11.82154337 | I70: =0.5*$D$10*'Turbine information'!$B$38*((C70*('Turbine information'!$B$42/$D$13)^$D$14)^3) -> 3030.727385 | J70: 545.3592252 | K70: =(IF(J70<0, 0, J70)*IF(C70<'Turbine information'!$B$34, 0, J70)*IF(C70>'Turbine information'!$B$35, 0, J70))/J70^2 -> 545.3592252 | M70: =0.5*$D$10*'Turbine information'!$E$38*((C70*('Turbine information'!$E$42/$D$13)^$D$14)^3) -> 9395.0026 | N70: 3328.429627 | O70: =IF(N70<0, 0, N70)*IF(C70<'Turbine information'!$E$34, 0, N70)*IF(C70>'Turbine information'!$E$35, 0, N70)/N70^2 -> 3328.429627 | Q70: =0.5*$D$10*'Turbine information'!$H$38*((C70*('Turbine information'!$H$42/$D$13)^$D$14)^3)*$D$11 -> 7762.679279 | R70: 4366.241816 | S70: =IF(R70<0, 0, R70)*IF(C70<'Turbine information'!$H$34, 0, R70)*IF(C70>'Turbine information'!$H$35, 0, R70)/R70^2 -> 4366.241816 | U70: =0.5*$D$10*'Turbine information'!$K$38*((C70*('Turbine information'!$K$42/$D$13)^$D$14)^3)*$D$11 -> 76462.79081 | V70: 36391.84263 | W70: =IF(V70<0, 0, V70)*IF(C70<'Turbine information'!$K$34, 0, V70)*IF(C70>'Turbine information'!$K$35, 0, V70)/V70^2 -> 36391.84263 | Y70: =0.5*$D$10*'Turbine information'!$N$38*((C70*('Turbine information'!$N$42/$D$13)^$D$14)^3)*$D$11 -> 0 | AA70: =IF(Z70<0, 0, V70)*IF(C70<'Turbine information'!$N$34, 0, Z70)*IF(C70>'Turbine information'!$N$35, 0, Z70)/Z70^2 -> 
A71: 3 | B71: 5 | C71: 9.6 | D71: 9.6 | E71: 10.65186693 | F71: 11.58461059 | G71: 12.22128111 | I71: =0.5*$D$10*'Turbine information'!$B$38*((C71*('Turbine information'!$B$42/$D$13)^$D$14)^3) -> 3348.686832 | J71: 602.6678819 | K71: =(IF(J71<0, 0, J71)*IF(C71<'Turbine information'!$B$34, 0, J71)*IF(C71>'Turbine information'!$B$35, 0, J71))/J71^2 -> 602.6678819 | M71: =0.5*$D$10*'Turbine information'!$E$38*((C71*('Turbine information'!$E$42/$D$13)^$D$14)^3) -> 10380.65042 | N71: 3624.32367 | O71: =IF(N71<0, 0, N71)*IF(C71<'Turbine information'!$E$34, 0, N71)*IF(C71>'Turbine information'!$E$35, 0, N71)/N71^2 -> 3624.32367 | Q71: =0.5*$D$10*'Turbine information'!$H$38*((C71*('Turbine information'!$H$42/$D$13)^$D$14)^3)*$D$11 -> 8577.076911 | R71: 4871.984293 | S71: =IF(R71<0, 0, R71)*IF(C71<'Turbine information'!$H$34, 0, R71)*IF(C71>'Turbine information'!$H$35, 0, R71)/R71^2 -> 4871.984293 | U71: =0.5*$D$10*'Turbine information'!$K$38*((C71*('Turbine information'!$K$42/$D$13)^$D$14)^3)*$D$11 -> 84484.64945 | V71: 38965.48351 | W71: =IF(V71<0, 0, V71)*IF(C71<'Turbine information'!$K$34, 0, V71)*IF(C71>'Turbine information'!$K$35, 0, V71)/V71^2 -> 38965.48351 | Y71: =0.5*$D$10*'Turbine information'!$N$38*((C71*('Turbine information'!$N$42/$D$13)^$D$14)^3)*$D$11 -> 0 | AA71: =IF(Z71<0, 0, V71)*IF(C71<'Turbine information'!$N$34, 0, Z71)*IF(C71>'Turbine information'!$N$35, 0, Z71)/Z71^2 -> 
A72: 3 | B72: 6 | C72: 9.957 | D72: 9.957 | E72: 11.04798323 | F72: 12.01541329 | G72: 12.67576 | I72: =0.5*$D$10*'Turbine information'!$B$38*((C72*('Turbine information'!$B$42/$D$13)^$D$14)^3) -> 3736.339718 | J72: 670.1755341 | K72: =(IF(J72<0, 0, J72)*IF(C72<'Turbine information'!$B$34, 0, J72)*IF(C72>'Turbine information'!$B$35, 0, J72))/J72^2 -> 670.1755341 | M72: =0.5*$D$10*'Turbine information'!$E$38*((C72*('Turbine information'!$E$42/$D$13)^$D$14)^3) -> 11582.34209 | N72: 3963.407722 | O72: =IF(N72<0, 0, N72)*IF(C72<'Turbine information'!$E$34, 0, N72)*IF(C72>'Turbine information'!$E$35, 0, N72)/N72^2 -> 3963.407722 | Q72: =0.5*$D$10*'Turbine information'!$H$38*((C72*('Turbine information'!$H$42/$D$13)^$D$14)^3)*$D$11 -> 9569.982127 | R72: 5463.348075 | S72: =IF(R72<0, 0, R72)*IF(C72<'Turbine information'!$H$34, 0, R72)*IF(C72>'Turbine information'!$H$35, 0, R72)/R72^2 -> 5463.348075 | U72: =0.5*$D$10*'Turbine information'!$K$38*((C72*('Turbine information'!$K$42/$D$13)^$D$14)^3)*$D$11 -> 94264.81698 | V72: 41817.95092 | W72: =IF(V72<0, 0, V72)*IF(C72<'Turbine information'!$K$34, 0, V72)*IF(C72>'Turbine information'!$K$35, 0, V72)/V72^2 -> 41817.95092 | Y72: =0.5*$D$10*'Turbine information'!$N$38*((C72*('Turbine information'!$N$42/$D$13)^$D$14)^3)*$D$11 -> 0 | AA72: =IF(Z72<0, 0, V72)*IF(C72<'Turbine information'!$N$34, 0, Z72)*IF(C72>'Turbine information'!$N$35, 0, Z72)/Z72^2 -> 
A73: 3 | B73: 7 | C73: 10.551 | D73: 10.551 | E73: 11.7070675 | F73: 12.73221107 | G73: 13.43195177 | I73: =0.5*$D$10*'Turbine information'!$B$38*((C73*('Turbine information'!$B$42/$D$13)^$D$14)^3) -> 4445.715883 | J73: 786.7945159 | K73: =(IF(J73<0, 0, J73)*IF(C73<'Turbine information'!$B$34, 0, J73)*IF(C73>'Turbine information'!$B$35, 0, J73))/J73^2 -> 786.7945159 | M73: =0.5*$D$10*'Turbine information'!$E$38*((C73*('Turbine information'!$E$42/$D$13)^$D$14)^3) -> 13781.34915 | N73: 4526.182323 | O73: =IF(N73<0, 0, N73)*IF(C73<'Turbine information'!$E$34, 0, N73)*IF(C73>'Turbine information'!$E$35, 0, N73)/N73^2 -> 4526.182323 | Q73: =0.5*$D$10*'Turbine information'!$H$38*((C73*('Turbine information'!$H$42/$D$13)^$D$14)^3)*$D$11 -> 11386.92537 | R73: 6471.030134 | S73: =IF(R73<0, 0, R73)*IF(C73<'Turbine information'!$H$34, 0, R73)*IF(C73>'Turbine information'!$H$35, 0, R73)/R73^2 -> 6471.030134 | U73: =0.5*$D$10*'Turbine information'!$K$38*((C73*('Turbine information'!$K$42/$D$13)^$D$14)^3)*$D$11 -> 112161.8016 | V73: 46337.52032 | W73: =IF(V73<0, 0, V73)*IF(C73<'Turbine information'!$K$34, 0, V73)*IF(C73>'Turbine information'!$K$35, 0, V73)/V73^2 -> 46337.52032 | Y73: =0.5*$D$10*'Turbine information'!$N$38*((C73*('Turbine information'!$N$42/$D$13)^$D$14)^3)*$D$11 -> 0 | AA73: =IF(Z73<0, 0, V73)*IF(C73<'Turbine information'!$N$34, 0, Z73)*IF(C73>'Turbine information'!$N$35, 0, Z73)/Z73^2 -> 
